Workbook

Sheet Cover
A1: =RIGHT(CELL("filename", $A$1), LEN(CELL("filename", $A$1)) - SEARCH("]", CELL("filename", $A$1))) -> 
B3: PR24 CA30 Freeform
B5: Model code: | C5: PR24CA30
B6: Version number: | C6: 2
B7: File name: | C7: =MID(CELL("filename"), FIND("[", CELL("filename"), 1) + 1, FIND("]", CELL("filename"), 1) - FIND("[", CELL("filename"), 1) - 1) -> 
B8: Date: | C8: 2024-12-19
B10: For enquiries please contact: | C10: PR24@ofwat.gov.uk
B22: Contents:
B24: Tab name | C24: Description
B25: Cover | C25: Input data - Resevoir safety; water totex. Submitted company business plan data import from central database.
B26: Flow chart | C26: Overview of how model functions
B27: F_Inputs BP | C27: Company data from business plan tables
B28: NETTOEX Water | C28: Net enhancement totex from companies business plan tables
B29: Reallocations | C29: Where we have reallocated totex from freeform business plan data table lines to a different line
B30: Consolidated Inputs | C30: Remaining totex within freeform post reallocation
B31: F_Input Override | C31: Override of business planning table values where an issue has been identified (not used in this model)
B32: Final_Input | C32: The final totex relating to freeform
B33: Company Total Pre Reallocation | C33: Company level totex across freeform lines before reallocations
B34: Company Total Post Reallocation | C34: Company level totex across freeform lines post reallocations
B35: Scheme summary | C35: List of schemes with requested, assessed and allowed values
B36: HDD - Private supplies | C36: Deep dive analysis
B37: WSH - Visitor centre | C37: Deep dive analysis
B38: WSH - Cwm Taf | C38: Deep dive analysis
B39: SRN - Havant Thicket | C39: Deep dive analysis
B40: TMS - Asset Improvement | C40: Deep dive analysis
B41: TMS - LWICA | C41: Deep dive analysis
B42: WSX - Access & recreation | C42: Deep dive analysis
B43: SES - Regional planning | C43: Deep dive analysis
B44: SVE - Run to Waste | C44: Deep dive analysis
B45: SES - Biodiversity | C45: Deep dive analysis
B46: Zero Request Deep Dives>> | C46: Start of deep dives where the company has requested 0 totex within their reprsentations
B47: ANH - HD Inv | C47: Deep dive analysis - zero request
B48: ANH - LARS meters | C48: Deep dive analysis - zero request
B49: SWB - Data management | C49: Deep dive analysis - zero request
B50: SRN - Top down efficiency | C50: Deep dive analysis - zero request
B51: WSX - Data and AI | C51: Deep dive analysis - zero request
B52: WSX - Tree planting | C52: Deep dive analysis - zero request
B53: SES - IT & open data | C53: Deep dive analysis - zero request
B54: TMS Asset Deficit DD Deep Dive> | C54: Thames Water deep dives from draft relating to asset deficit
B55: TMS - Trunk main basement | C55: Deep dive analysis
B56: TMS - Find and fix | C56: Deep dive analysis
B57: TMS - AD operational tech | C57: Deep dive analysis
B58: TMS - AD service reservoirs | C58: Deep dive analysis
B59: Allowance | C59: Summary of our assessed allowances per company before other adjustments (eg frontier shift).
B60: Outputs to aggregator | C60: Summary of submitted and assessed costs profiled over the 2023-30 period (including transitional and accelerated process expenditure).
B61: F_Outputs | C61: Allowance data export to central database.
B64: Error log
B66: Company | C66: Description of change to be made | D66: Sheet(s) in current model

Sheet Flow chart
A1: =RIGHT(CELL("filename", A1), LEN(CELL("filename", A1)) - SEARCH("]", CELL("filename", A1))) -> 
A3: Conceptual model
A49: End of sheet

Sheet Inputs >>

Sheet F_Inputs BP
A1: =RIGHT(CELL("filename", $I$1), LEN(CELL("filename", $I$1)) - SEARCH("]", CELL("filename", $I$1))) -> 
C3: RGH Freeform Enhancement | E3: Run on 16 Oct 2024 10:48
A4: Acronym | B4: Reference | C4: Item description | D4: Unit | E4: Model | F4: 2025-26 | G4: 2026-27 | H4: 2027-28 | I4: 2028-29 | J4: 2029-30
F6: Price Review 2024 | G6: Price Review 2024 | H6: Price Review 2024 | I6: Price Review 2024 | J6: Price Review 2024
F7: Run 11 - PR24 FD Data | G7: Run 11 - PR24 FD Data | H7: Run 11 - PR24 FD Data | I7: Run 11 - PR24 FD Data | J7: Run 11 - PR24 FD Data
F8: Latest | G8: Latest | H8: Latest | I8: Latest | J8: Latest | K8: Total
A9: ANH | B9: CW3_130TOT_PR24 | C9: Other enhancement (Freeform lines - by exception) - Additional line 1; enhancement water capex - Total | D9: £m | E9: Price Review 2024 | F9: 0 | G9: 0 | H9: 0 | I9: 0 | J9: 0 | K9: 0
A10: ANH | B10: CW3_131TOT_PR24 | C10: Other enhancement (Freeform lines - by exception) - Additional line 1; enhancement water opex - Total | D10: £m | E10: Price Review 2024 | F10: 0 | G10: 0 | H10: 0 | I10: 0 | J10: 0 | K10: 0
A11: ANH | B11: CW3_132TOT_PR24 | C11: Other enhancement (Freeform lines - by exception) - Additional line 2; enhancement water capex - Total | D11: £m | E11: Price Review 2024 | F11: 12.654 | G11: 23.954 | H11: 35.036 | I11: 27.495 | J11: 18.059 | K11: 117.198
A12: ANH | B12: CW3_133TOT_PR24 | C12: Other enhancement (Freeform lines - by exception) - Additional line 2; enhancement water opex - Total | D12: £m | E12: Price Review 2024 | F12: 0.331 | G12: 0.331 | H12: 0.436 | I12: 0.948 | J12: 1.383 | K12: 3.429
A13: ANH | B13: CW3_134TOT_PR24 | C13: Other enhancement (Freeform lines - by exception) - Additional line 3; enhancement water capex - Total | D13: £m | E13: Price Review 2024 | F13: 0 | G13: 0 | H13: 0 | I13: 0 | J13: 0 | K13: 0
A14: ANH | B14: CW3_135TOT_PR24 | C14: Other enhancement (Freeform lines - by exception) - Additional line 3; enhancement water opex - Total | D14: £m | E14: Price Review 2024 | F14: 0 | G14: 0 | H14: 0 | I14: 0 | J14: 0 | K14: 0
A15: ANH | B15: CW3_136TOT_PR24 | C15: Other enhancement (Freeform lines - by exception) - Additional line 4; enhancement water capex - Total | D15: £m | E15: Price Review 2024 | F15: 0 | G15: 0 | H15: 0 | I15: 0 | J15: 0 | K15: 0
A16: ANH | B16: CW3_137TOT_PR24 | C16: Other enhancement (Freeform lines - by exception) - Additional line 4; enhancement water opex - Total | D16: £m | E16: Price Review 2024 | F16: 0 | G16: 0 | H16: 0 | I16: 0 | J16: 0 | K16: 0
A17: ANH | B17: CW3_138TOT_PR24 | C17: Other enhancement (Freeform lines - by exception) - Additional line 5; enhancement water capex - Total | D17: £m | E17: Price Review 2024 | F17: 0.228 | G17: 0.426 | H17: 0.329 | I17: 0.017 | J17: 0 | K17: 1
A18: ANH | B18: CW3_139TOT_PR24 | C18: Other enhancement (Freeform lines - by exception) - Additional line 5; enhancement water opex - Total | D18: £m | E18: Price Review 2024 | F18: 0.086 | G18: 0.086 | H18: 0.086 | I18: 0.086 | J18: 0.086 | K18: 0.43
A19: ANH | B19: CW1A_015TOT_PR24 | C19: Net totex - Total | D19: £m | E19: Price Review 2024 | F19: 642.2760603 | G19: 768.1082597 | H19: 865.1307817 | I19: 933.8087939 | J19: 970.2019436 | K19: 4179.525839
A20: WSH | B20: CW3_130TOT_PR24 | C20: Other enhancement (Freeform lines - by exception) - Additional line 1; enhancement water capex - Total | D20: £m | E20: Price Review 2024 | F20: 0 | G20: 0 | H20: 0 | I20: 0 | J20: 0 | K20: 0
A21: WSH | B21: CW3_131TOT_PR24 | C21: Other enhancement (Freeform lines - by exception) - Additional line 1; enhancement water opex - Total | D21: £m | E21: Price Review 2024 | F21: 0 | G21: 0 | H21: 0 | I21: 0 | J21: 0 | K21: 0
A22: WSH | B22: CW3_132TOT_PR24 | C22: Other enhancement (Freeform lines - by exception) - Additional line 2; enhancement water capex - Total | D22: £m | E22: Price Review 2024 | F22: 1.358 | G22: 0.663 | H22: 0.655 | I22: 0.662 | J22: 0 | K22: 3.338
A23: WSH | B23: CW3_133TOT_PR24 | C23: Other enhancement (Freeform lines - by exception) - Additional line 2; enhancement water opex - Total | D23: £m | E23: Price Review 2024 | F23: 0 | G23: 0 | H23: 0 | I23: 0 | J23: 0 | K23: 0
A24: WSH | B24: CW3_134TOT_PR24 | C24: Other enhancement (Freeform lines - by exception) - Additional line 3; enhancement water capex - Total | D24: £m | E24: Price Review 2024 | F24: 6.149 | G24: 3.87 | H24: 3.877 | I24: 4.394 | J24: 6.178 | K24: 24.468
A25: WSH | B25: CW3_135TOT_PR24 | C25: Other enhancement (Freeform lines - by exception) - Additional line 3; enhancement water opex - Total | D25: £m | E25: Price Review 2024 | F25: 0 | G25: 0 | H25: 0 | I25: 0 | J25: 0 | K25: 0
A26: WSH | B26: CW3_136TOT_PR24 | C26: Other enhancement (Freeform lines - by exception) - Additional line 4; enhancement water capex - Total | D26: £m | E26: Price Review 2024 | F26: 0 | G26: 0 | H26: 0 | I26: 0 | J26: 0 | K26: 0
A27: WSH | B27: CW3_137TOT_PR24 | C27: Other enhancement (Freeform lines - by exception) - Additional line 4; enhancement water opex - Total | D27: £m | E27: Price Review 2024 | F27: 0 | G27: 0 | H27: 0 | I27: 0 | J27: 0 | K27: 0
A28: WSH | B28: CW3_138TOT_PR24 | C28: Other enhancement (Freeform lines - by exception) - Additional line 5; enhancement water capex - Total | D28: £m | E28: Price Review 2024 | F28: 14.156 | G28: 13.926 | H28: 13.95 | I28: 14.052 | J28: 14.225 | K28: 70.309
A29: WSH | B29: CW3_139TOT_PR24 | C29: Other enhancement (Freeform lines - by exception) - Additional line 5; enhancement water opex - Total | D29: £m | E29: Price Review 2024 | F29: 0 | G29: 0 | H29: 0 | I29: 0 | J29: 0 | K29: 0
A30: WSH | B30: CW1A_015TOT_PR24 | C30: Net totex - Total | D30: £m | E30: Price Review 2024 | F30: 473.339 | G30: 490.418 | H30: 483.149 | I30: 471.888 | J30: 446.842 | K30: 2365.636
A31: HDD | B31: CW3_130TOT_PR24 | C31: Other enhancement (Freeform lines - by exception) - Additional line 1; enhancement water capex - Total | D31: £m | E31: Price Review 2024 | F31: 7.036 | G31: 4.85 | H31: 0.57 | I31: 1.2 | J31: 1.199 | K31: 14.855
A32: HDD | B32: CW3_131TOT_PR24 | C32: Other enhancement (Freeform lines - by exception) - Additional line 1; enhancement water opex - Total | D32: £m | E32: Price Review 2024 | F32: 0 | G32: 0.025 | H32: 0.025 | I32: 0.025 | J32: 0.025 | K32: 0.1
A33: HDD | B33: CW3_132TOT_PR24 | C33: Other enhancement (Freeform lines - by exception) - Additional line 2; enhancement water capex - Total | D33: £m | E33: Price Review 2024 | F33: 0 | G33: 0 | H33: 0 | I33: 0 | J33: 0 | K33: 0
A34: HDD | B34: CW3_133TOT_PR24 | C34: Other enhancement (Freeform lines - by exception) - Additional line 2; enhancement water opex - Total | D34: £m | E34: Price Review 2024 | F34: 0 | G34: 0 | H34: 0 | I34: 0 | J34: 0 | K34: 0
A35: HDD | B35: CW3_134TOT_PR24 | C35: Other enhancement (Freeform lines - by exception) - Additional line 3; enhancement water capex - Total | D35: £m | E35: Price Review 2024 | F35: 0 | G35: 0 | H35: 0 | I35: 0 | J35: 0 | K35: 0
A36: HDD | B36: CW3_135TOT_PR24 | C36: Other enhancement (Freeform lines - by exception) - Additional line 3; enhancement water opex - Total | D36: £m | E36: Price Review 2024 | F36: 0 | G36: 0 | H36: 0 | I36: 0 | J36: 0 | K36: 0
A37: HDD | B37: CW3_136TOT_PR24 | C37: Other enhancement (Freeform lines - by exception) - Additional line 4; enhancement water capex - Total | D37: £m | E37: Price Review 2024 | F37: 0 | G37: 0 | H37: 0 | I37: 0 | J37: 0 | K37: 0
A38: HDD | B38: CW3_137TOT_PR24 | C38: Other enhancement (Freeform lines - by exception) - Additional line 4; enhancement water opex - Total | D38: £m | E38: Price Review 2024 | F38: 0 | G38: 0 | H38: 0 | I38: 0 | J38: 0 | K38: 0
A39: HDD | B39: CW3_138TOT_PR24 | C39: Other enhancement (Freeform lines - by exception) - Additional line 5; enhancement water capex - Total | D39: £m | E39: Price Review 2024 | F39: 0.05 | G39: 0.05 | H39: 0.05 | I39: 0.05 | J39: 0.05 | K39: 0.25
A40: HDD | B40: CW3_139TOT_PR24 | C40: Other enhancement (Freeform lines - by exception) - Additional line 5; enhancement water opex - Total | D40: £m | E40: Price Review 2024 | F40: 0 | G40: 0 | H40: 0 | I40: 0 | J40: 0 | K40: 0
A41: HDD | B41: CW1A_015TOT_PR24 | C41: Net totex - Total | D41: £m | E41: Price Review 2024 | F41: 43.69230674 | G41: 43.00992768 | H41: 38.76647658 | I41: 38.26094466 | J41: 39.26325025 | K41: 202.9929059
A42: NES | B42: CW3_130TOT_PR24 | C42: Other enhancement (Freeform lines - by exception) - Additional line 1; enhancement water capex - Total | D42: £m | E42: Price Review 2024 | F42: 14.135 | G42: 31.335 | H42: 47.707 | I42: 27.914 | J42: 19.661 | K42: 140.752
A43: NES | B43: CW3_131TOT_PR24 | C43: Other enhancement (Freeform lines - by exception) - Additional line 1; enhancement water opex - Total | D43: £m | E43: Price Review 2024 | F43: 0 | G43: 0 | H43: 0 | I43: 0 | J43: 0.104 | K43: 0.104
A44: NES | B44: CW3_132TOT_PR24 | C44: Other enhancement (Freeform lines - by exception) - Additional line 2; enhancement water capex - Total | D44: £m | E44: Price Review 2024 | F44: 0.921 | G44: 0 | H44: 0 | I44: 0 | J44: 0 | K44: 0.921
A45: NES | B45: CW3_133TOT_PR24 | C45: Other enhancement (Freeform lines - by exception) - Additional line 2; enhancement water opex - Total | D45: £m | E45: Price Review 2024 | F45: 1.42 | G45: 1.422 | H45: 1.422 | I45: 1.422 | J45: 1.422 | K45: 7.108
A46: NES | B46: CW3_134TOT_PR24 | C46: Other enhancement (Freeform lines - by exception) - Additional line 3; enhancement water capex - Total | D46: £m | E46: Price Review 2024 | F46: 0 | G46: 0 | H46: 0 | I46: 0 | J46: 0 | K46: 0
A47: NES | B47: CW3_135TOT_PR24 | C47: Other enhancement (Freeform lines - by exception) - Additional line 3; enhancement water opex - Total | D47: £m | E47: Price Review 2024 | F47: 0 | G47: 0 | H47: 0 | I47: 0 | J47: 0 | K47: 0
A48: NES | B48: CW3_136TOT_PR24 | C48: Other enhancement (Freeform lines - by exception) - Additional line 4; enhancement water capex - Total | D48: £m | E48: Price Review 2024 | F48: 0 | G48: 0 | H48: 0 | I48: 0 | J48: 0 | K48: 0
A49: NES | B49: CW3_137TOT_PR24 | C49: Other enhancement (Freeform lines - by exception) - Additional line 4; enhancement water opex - Total | D49: £m | E49: Price Review 2024 | F49: 0 | G49: 0 | H49: 0 | I49: 0 | J49: 0 | K49: 0
A50: NES | B50: CW3_138TOT_PR24 | C50: Other enhancement (Freeform lines - by exception) - Additional line 5; enhancement water capex - Total | D50: £m | E50: Price Review 2024 | F50: 14.605 | G50: 1.8 | H50: 1.8 | I50: 23.859 | J50: 29.098 | K50: 71.162
A51: NES | B51: CW3_139TOT_PR24 | C51: Other enhancement (Freeform lines - by exception) - Additional line 5; enhancement water opex - Total | D51: £m | E51: Price Review 2024 | F51: 0 | G51: 0 | H51: 0 | I51: 0 | J51: 0 | K51: 0
A52: NES | B52: CW1A_015TOT_PR24 | C52: Net totex - Total | D52: £m | E52: Price Review 2024 | F52: 656.5009319 | G52: 617.6941943 | H52: 617.4814854 | I52: 578.408895 | J52: 568.6069593 | K52: 3038.692466
A53: SVE | B53: CW3_130TOT_PR24 | C53: Other enhancement (Freeform lines - by exception) - Additional line 1; enhancement water capex - Total | D53: £m | E53: Price Review 2024 | F53: 2.440844309 | G53: 2.455706242 | H53: 2.470658668 | I53: 2.485702105 | J53: 2.500837205 | K53: 12.35374853
A54: SVE | B54: CW3_131TOT_PR24 | C54: Other enhancement (Freeform lines - by exception) - Additional line 1; enhancement water opex - Total | D54: £m | E54: Price Review 2024 | F54: 0 | G54: 0.01506130758 | H54: 0.04236658909 | I54: 0.08369346405 | J54: 0.09797605368 | K54: 0.2390974144
A55: SVE | B55: CW3_132TOT_PR24 | C55: Other enhancement (Freeform lines - by exception) - Additional line 2; enhancement water capex - Total | D55: £m | E55: Price Review 2024 | F55: 7.130479118 | G55: 11.946 | H55: 12.114 | I55: 9.136 | J55: 8.482 | K55: 48.80847912
A56: SVE | B56: CW3_133TOT_PR24 | C56: Other enhancement (Freeform lines - by exception) - Additional line 2; enhancement water opex - Total | D56: £m | E56: Price Review 2024 | F56: 0.632 | G56: 0.975 | H56: 1.072 | I56: 1.066 | J56: 1.056 | K56: 4.801
A57: SVE | B57: CW3_134TOT_PR24 | C57: Other enhancement (Freeform lines - by exception) - Additional line 3; enhancement water capex - Total | D57: £m | E57: Price Review 2024 | F57: 8.931488308 | G57: 10.23057685 | H57: 10.84737975 | I57: 12.33087029 | J57: 13.3886197 | K57: 55.7289349
A58: SVE | B58: CW3_135TOT_PR24 | C58: Other enhancement (Freeform lines - by exception) - Additional line 3; enhancement water opex - Total | D58: £m | E58: Price Review 2024 | F58: 0 | G58: 0 | H58: 0 | I58: 0 | J58: 0 | K58: 0
A59: SVE | B59: CW3_136TOT_PR24 | C59: Other enhancement (Freeform lines - by exception) - Additional line 4; enhancement water capex - Total | D59: £m | E59: Price Review 2024 | F59: 0 | G59: 0 | H59: 0 | I59: 0 | J59: 0 | K59: 0
A60: SVE | B60: CW3_137TOT_PR24 | C60: Other enhancement (Freeform lines - by exception) - Additional line 4; enhancement water opex - Total | D60: £m | E60: Price Review 2024 | F60: 0 | G60: 0 | H60: 0 | I60: 0 | J60: 0 | K60: 0
A61: SVE | B61: CW3_138TOT_PR24 | C61: Other enhancement (Freeform lines - by exception) - Additional line 5; enhancement water capex - Total | D61: £m | E61: Price Review 2024 | F61: 3.920983516 | G61: 5.347039533 | H61: 4.235789728 | I61: 3.44384593 | J61: 4.490831105 | K61: 21.43848981
A62: SVE | B62: CW3_139TOT_PR24 | C62: Other enhancement (Freeform lines - by exception) - Additional line 5; enhancement water opex - Total | D62: £m | E62: Price Review 2024 | F62: 0.148 | G62: 0.293 | H62: 0.294 | I62: 0.373 | J62: 0.364 | K62: 1.472
A63: SVE | B63: CW1A_015TOT_PR24 | C63: Net totex - Total | D63: £m | E63: Price Review 2024 | F63: 1002.825388 | G63: 1071.934504 | H63: 1211.139582 | I63: 1182.428934 | J63: 982.1283589 | K63: 5450.456766
A64: SWB | B64: CW3_130TOT_PR24 | C64: Other enhancement (Freeform lines - by exception) - Additional line 1; enhancement water capex - Total | D64: £m | E64: Price Review 2024 | F64: 0 | G64: 0 | H64: 0 | I64: 0 | J64: 0 | K64: 0
A65: SWB | B65: CW3_131TOT_PR24 | C65: Other enhancement (Freeform lines - by exception) - Additional line 1; enhancement water opex - Total | D65: £m | E65: Price Review 2024 | F65: 0 | G65: 0 | H65: 0 | I65: 0 | J65: 0 | K65: 0
A66: SWB | B66: CW3_132TOT_PR24 | C66: Other enhancement (Freeform lines - by exception) - Additional line 2; enhancement water capex - Total | D66: £m | E66: Price Review 2024 | F66: 0 | G66: 0 | H66: 0 | I66: 0 | J66: 0 | K66: 0
A67: SWB | B67: CW3_133TOT_PR24 | C67: Other enhancement (Freeform lines - by exception) - Additional line 2; enhancement water opex - Total | D67: £m | E67: Price Review 2024 | F67: 0 | G67: 0 | H67: 0 | I67: 0 | J67: 0 | K67: 0
A68: SWB | B68: CW3_134TOT_PR24 | C68: Other enhancement (Freeform lines - by exception) - Additional line 3; enhancement water capex - Total | D68: £m | E68: Price Review 2024 | F68: 0 | G68: 0 | H68: 0 | I68: 0 | J68: 0 | K68: 0
A69: SWB | B69: CW3_135TOT_PR24 | C69: Other enhancement (Freeform lines - by exception) - Additional line 3; enhancement water opex - Total | D69: £m | E69: Price Review 2024 | F69: 0 | G69: 0 | H69: 0 | I69: 0 | J69: 0 | K69: 0
A70: SWB | B70: CW3_136TOT_PR24 | C70: Other enhancement (Freeform lines - by exception) - Additional line 4; enhancement water capex - Total | D70: £m | E70: Price Review 2024 | F70: 0 | G70: 0 | H70: 0 | I70: 0 | J70: 0 | K70: 0
A71: SWB | B71: CW3_137TOT_PR24 | C71: Other enhancement (Freeform lines - by exception) - Additional line 4; enhancement water opex - Total | D71: £m | E71: Price Review 2024 | F71: 0 | G71: 0 | H71: 0 | I71: 0 | J71: 0 | K71: 0
A72: SWB | B72: CW3_138TOT_PR24 | C72: Other enhancement (Freeform lines - by exception) - Additional line 5; enhancement water capex - Total | D72: £m | E72: Price Review 2024 | F72: 0 | G72: 0 | H72: 0 | I72: 0 | J72: 0 | K72: 0
A73: SWB | B73: CW3_139TOT_PR24 | C73: Other enhancement (Freeform lines - by exception) - Additional line 5; enhancement water opex - Total | D73: £m | E73: Price Review 2024 | F73: 0 | G73: 0 | H73: 0 | I73: 0 | J73: 0 | K73: 0
A74: SWB | B74: CW1A_015TOT_PR24 | C74: Net totex - Total | D74: £m | E74: Price Review 2024 | F74: 309.8443799 | G74: 296.9089014 | H74: 304.9497263 | I74: 336.0984954 | J74: 317.9892211 | K74: 1565.790724
A75: SRN | B75: CW3_130TOT_PR24 | C75: Other enhancement (Freeform lines - by exception) - Additional line 1; enhancement water capex - Total | D75: £m | E75: Price Review 2024 | F75: 0 | G75: 0 | H75: 0 | I75: 0 | J75: 0 | K75: 0
A76: SRN | B76: CW3_131TOT_PR24 | C76: Other enhancement (Freeform lines - by exception) - Additional line 1; enhancement water opex - Total | D76: £m | E76: Price Review 2024 | F76: 0 | G76: 0 | H76: 0 | I76: 0 | J76: 0 | K76: 0
A77: SRN | B77: CW3_132TOT_PR24 | C77: Other enhancement (Freeform lines - by exception) - Additional line 2; enhancement water capex - Total | D77: £m | E77: Price Review 2024 | F77: 0 | G77: 28.5 | H77: 0 | I77: 0 | J77: 0 | K77: 28.5
A78: SRN | B78: CW3_133TOT_PR24 | C78: Other enhancement (Freeform lines - by exception) - Additional line 2; enhancement water opex - Total | D78: £m | E78: Price Review 2024 | F78: 30.41 | G78: 16.246 | H78: 0 | I78: 0 | J78: 0 | K78: 46.656
A79: SRN | B79: CW3_134TOT_PR24 | C79: Other enhancement (Freeform lines - by exception) - Additional line 3; enhancement water capex - Total | D79: £m | E79: Price Review 2024 | F79: 4.34548988 | G79: 9.2721498 | H79: 9.49665992 | I79: 1.523 | J79: 0 | K79: 24.6372996
A80: SRN | B80: CW3_135TOT_PR24 | C80: Other enhancement (Freeform lines - by exception) - Additional line 3; enhancement water opex - Total | D80: £m | E80: Price Review 2024 | F80: 18.211 | G80: 19.768 | H80: 20.349 | I80: 20.599 | J80: 20.466 | K80: 99.393
A81: SRN | B81: CW3_136TOT_PR24 | C81: Other enhancement (Freeform lines - by exception) - Additional line 4; enhancement water capex - Total | D81: £m | E81: Price Review 2024 | F81: 3.941 | G81: 16.021 | H81: 25.32 | I81: 36.677 | J81: 41.229 | K81: 123.188
A82: SRN | B82: CW3_137TOT_PR24 | C82: Other enhancement (Freeform lines - by exception) - Additional line 4; enhancement water opex - Total | D82: £m | E82: Price Review 2024 | F82: 0 | G82: 0 | H82: 0 | I82: 0 | J82: 0 | K82: 0
A83: SRN | B83: CW3_138TOT_PR24 | C83: Other enhancement (Freeform lines - by exception) - Additional line 5; enhancement water capex - Total | D83: £m | E83: Price Review 2024 | F83: 0 | G83: 0 | H83: 0 | I83: 0 | J83: 0 | K83: 0
A84: SRN | B84: CW3_139TOT_PR24 | C84: Other enhancement (Freeform lines - by exception) - Additional line 5; enhancement water opex - Total | D84: £m | E84: Price Review 2024 | F84: 0 | G84: 0 | H84: 0 | I84: 0 | J84: 0 | K84: 0
A85: SRN | B85: CW1A_015TOT_PR24 | C85: Net totex - Total | D85: £m | E85: Price Review 2024 | F85: 624.948 | G85: 772.22 | H85: 736.348 | I85: 738.194 | J85: 616.384 | K85: 3488.094
A86: TMS | B86: CW3_130TOT_PR24 | C86: Other enhancement (Freeform lines - by exception) - Additional line 1; enhancement water capex - Total | D86: £m | E86: Price Review 2024 | F86: 33.311 | G86: 48.595 | H86: 54.129 | I86: 31.364 | J86: 10.502 | K86: 177.901
A87: TMS | B87: CW3_131TOT_PR24 | C87: Other enhancement (Freeform lines - by exception) - Additional line 1; enhancement water opex - Total | D87: £m | E87: Price Review 2024 | F87: 0 | G87: 0 | H87: 0 | I87: 0.412 | J87: 0.803 | K87: 1.215
A88: TMS | B88: CW3_132TOT_PR24 | C88: Other enhancement (Freeform lines - by exception) - Additional line 2; enhancement water capex - Total | D88: £m | E88: Price Review 2024 | F88: 32.551 | G88: 54.814 | H88: 61.198 | I88: 23.809 | J88: 1.623 | K88: 173.995
A89: TMS | B89: CW3_133TOT_PR24 | C89: Other enhancement (Freeform lines - by exception) - Additional line 2; enhancement water opex - Total | D89: £m | E89: Price Review 2024 | F89: 0 | G89: 0 | H89: 0 | I89: 0 | J89: 0 | K89: 0
A90: TMS | B90: CW3_134TOT_PR24 | C90: Other enhancement (Freeform lines - by exception) - Additional line 3; enhancement water capex - Total | D90: £m | E90: Price Review 2024 | F90: 69.149 | G90: 63.589 | H90: 106.995 | I90: 104.849 | J90: 129.46 | K90: 474.042
A91: TMS | B91: CW3_135TOT_PR24 | C91: Other enhancement (Freeform lines - by exception) - Additional line 3; enhancement water opex - Total | D91: £m | E91: Price Review 2024 | F91: 0 | G91: 0 | H91: 0 | I91: 0 | J91: 0 | K91: 0
A92: TMS | B92: CW3_136TOT_PR24 | C92: Other enhancement (Freeform lines - by exception) - Additional line 4; enhancement water capex - Total | D92: £m | E92: Price Review 2024 | F92: 58.487 | G92: 16.153 | H92: 1.032 | I92: 0 | J92: 0 | K92: 75.672
A93: TMS | B93: CW3_137TOT_PR24 | C93: Other enhancement (Freeform lines - by exception) - Additional line 4; enhancement water opex - Total | D93: £m | E93: Price Review 2024 | F93: 0 | G93: 0 | H93: 0 | I93: 0 | J93: 0 | K93: 0
A94: TMS | B94: CW3_138TOT_PR24 | C94: Other enhancement (Freeform lines - by exception) - Additional line 5; enhancement water capex - Total | D94: £m | E94: Price Review 2024 | F94: 1.814 | G94: 2.392 | H94: 2.975 | I94: 2.988 | J94: 1.27 | K94: 11.439
A95: TMS | B95: CW3_139TOT_PR24 | C95: Other enhancement (Freeform lines - by exception) - Additional line 5; enhancement water opex - Total | D95: £m | E95: Price Review 2024 | F95: 0 | G95: 0 | H95: 0 | I95: 0 | J95: 0 | K95: 0
A96: TMS | B96: CW1A_015TOT_PR24 | C96: Net totex - Total | D96: £m | E96: Price Review 2024 | F96: 1823.090345 | G96: 1820.263319 | H96: 1974.510597 | I96: 1991.515752 | J96: 2552.782715 | K96: 10162.16273
A97: NWT | B97: CW3_130TOT_PR24 | C97: Other enhancement (Freeform lines - by exception) - Additional line 1; enhancement water capex - Total | D97: £m | E97: Price Review 2024 | F97: 0 | G97: 0 | H97: 0 | I97: 0 | J97: 0 | K97: 0
A98: NWT | B98: CW3_131TOT_PR24 | C98: Other enhancement (Freeform lines - by exception) - Additional line 1; enhancement water opex - Total | D98: £m | E98: Price Review 2024 | F98: 0 | G98: 0 | H98: 0 | I98: 0 | J98: 0 | K98: 0
A99: NWT | B99: CW3_132TOT_PR24 | C99: Other enhancement (Freeform lines - by exception) - Additional line 2; enhancement water capex - Total | D99: £m | E99: Price Review 2024 | F99: 0 | G99: 0 | H99: 0 | I99: 0 | J99: 0 | K99: 0
A100: NWT | B100: CW3_133TOT_PR24 | C100: Other enhancement (Freeform lines - by exception) - Additional line 2; enhancement water opex - Total | D100: £m | E100: Price Review 2024 | F100: 0 | G100: 0 | H100: 0 | I100: 0 | J100: 0 | K100: 0
A101: NWT | B101: CW3_134TOT_PR24 | C101: Other enhancement (Freeform lines - by exception) - Additional line 3; enhancement water capex - Total | D101: £m | E101: Price Review 2024 | F101: 0 | G101: 0 | H101: 0 | I101: 0 | J101: 0 | K101: 0
A102: NWT | B102: CW3_135TOT_PR24 | C102: Other enhancement (Freeform lines - by exception) - Additional line 3; enhancement water opex - Total | D102: £m | E102: Price Review 2024 | F102: 0 | G102: 0 | H102: 0 | I102: 0 | J102: 0 | K102: 0
A103: NWT | B103: CW3_136TOT_PR24 | C103: Other enhancement (Freeform lines - by exception) - Additional line 4; enhancement water capex - Total | D103: £m | E103: Price Review 2024 | F103: 0 | G103: 0 | H103: 0 | I103: 0 | J103: 0 | K103: 0
A104: NWT | B104: CW3_137TOT_PR24 | C104: Other enhancement (Freeform lines - by exception) - Additional line 4; enhancement water opex - Total | D104: £m | E104: Price Review 2024 | F104: 0 | G104: 0 | H104: 0 | I104: 0 | J104: 0 | K104: 0
A105: NWT | B105: CW3_138TOT_PR24 | C105: Other enhancement (Freeform lines - by exception) - Additional line 5; enhancement water capex - Total | D105: £m | E105: Price Review 2024 | F105: 22.62438683 | G105: 23.01880069 | H105: 22.84707217 | I105: 23.20541617 | J105: 23.13432414 | K105: 114.83
A106: NWT | B106: CW3_139TOT_PR24 | C106: Other enhancement (Freeform lines - by exception) - Additional line 5; enhancement water opex - Total | D106: £m | E106: Price Review 2024 | F106: 0 | G106: 0 | H106: 0 | I106: 0 | J106: 0 | K106: 0
A107: NWT | B107: CW1A_015TOT_PR24 | C107: Net totex - Total | D107: £m | E107: Price Review 2024 | F107: 798.3278211 | G107: 848.1624659 | H107: 903.43463 | I107: 830.7904028 | J107: 799.36715 | K107: 4180.08247
A108: WSX | B108: CW3_130TOT_PR24 | C108: Other enhancement (Freeform lines - by exception) - Additional line 1; enhancement water capex - Total | D108: £m | E108: Price Review 2024 | F108: 0 | G108: 0 | H108: 0 | I108: 0 | J108: 0 | K108: 0
A109: WSX | B109: CW3_131TOT_PR24 | C109: Other enhancement (Freeform lines - by exception) - Additional line 1; enhancement water opex - Total | D109: £m | E109: Price Review 2024 | F109: 0 | G109: 0 | H109: 0 | I109: 0 | J109: 0 | K109: 0
A110: WSX | B110: CW3_132TOT_PR24 | C110: Other enhancement (Freeform lines - by exception) - Additional line 2; enhancement water capex - Total | D110: £m | E110: Price Review 2024 | F110: 2.103642 | G110: 2.11416 | H110: 0 | I110: 0 | J110: 0 | K110: 4.217802
A111: WSX | B111: CW3_133TOT_PR24 | C111: Other enhancement (Freeform lines - by exception) - Additional line 2; enhancement water opex - Total | D111: £m | E111: Price Review 2024 | F111: 0.152261 | G111: 0.153023 | H111: 0.153787 | I111: 0.154557 | J111: 0.155329 | K111: 0.768957
A112: WSX | B112: CW3_134TOT_PR24 | C112: Other enhancement (Freeform lines - by exception) - Additional line 3; enhancement water capex - Total | D112: £m | E112: Price Review 2024 | F112: 0 | G112: 0 | H112: 0 | I112: 0 | J112: 0 | K112: 0
A113: WSX | B113: CW3_135TOT_PR24 | C113: Other enhancement (Freeform lines - by exception) - Additional line 3; enhancement water opex - Total | D113: £m | E113: Price Review 2024 | F113: 0 | G113: 0 | H113: 0 | I113: 0 | J113: 0 | K113: 0
A114: WSX | B114: CW3_136TOT_PR24 | C114: Other enhancement (Freeform lines - by exception) - Additional line 4; enhancement water capex - Total | D114: £m | E114: Price Review 2024 | F114: 0 | G114: 0 | H114: 0 | I114: 0 | J114: 0 | K114: 0
A115: WSX | B115: CW3_137TOT_PR24 | C115: Other enhancement (Freeform lines - by exception) - Additional line 4; enhancement water opex - Total | D115: £m | E115: Price Review 2024 | F115: 0.361886 | G115: 0.329097 | H115: 0.330743 | I115: 0.335229 | J115: 0.346397 | K115: 1.703352
A116: WSX | B116: CW3_138TOT_PR24 | C116: Other enhancement (Freeform lines - by exception) - Additional line 5; enhancement water capex - Total | D116: £m | E116: Price Review 2024 | F116: 0 | G116: 0 | H116: 0 | I116: 0 | J116: 0 | K116: 0
A117: WSX | B117: CW3_139TOT_PR24 | C117: Other enhancement (Freeform lines - by exception) - Additional line 5; enhancement water opex - Total | D117: £m | E117: Price Review 2024 | F117: 0 | G117: 0 | H117: 0 | I117: 0 | J117: 0 | K117: 0
A118: WSX | B118: CW1A_015TOT_PR24 | C118: Net totex - Total | D118: £m | E118: Price Review 2024 | F118: 224.7643782 | G118: 228.7144897 | H118: 239.0997271 | I118: 222.5707236 | J118: 218.619955 | K118: 1133.769274
A119: YKY | B119: CW3_130TOT_PR24 | C119: Other enhancement (Freeform lines - by exception) - Additional line 1; enhancement water capex - Total | D119: £m | E119: Price Review 2024 | F119: 0 | G119: 0 | H119: 0 | I119: 0 | J119: 0 | K119: 0
A120: YKY | B120: CW3_131TOT_PR24 | C120: Other enhancement (Freeform lines - by exception) - Additional line 1; enhancement water opex - Total | D120: £m | E120: Price Review 2024 | F120: 0 | G120: 0 | H120: 0 | I120: 0 | J120: 0 | K120: 0
A121: YKY | B121: CW3_132TOT_PR24 | C121: Other enhancement (Freeform lines - by exception) - Additional line 2; enhancement water capex - Total | D121: £m | E121: Price Review 2024 | F121: 1.896 | G121: 2.403 | H121: 2.48 | I121: 2.135 | J121: 1.456 | K121: 10.37
A122: YKY | B122: CW3_133TOT_PR24 | C122: Other enhancement (Freeform lines - by exception) - Additional line 2; enhancement water opex - Total | D122: £m | E122: Price Review 2024 | F122: 0 | G122: 0 | H122: 0 | I122: 0 | J122: 0 | K122: 0
A123: YKY | B123: CW3_134TOT_PR24 | C123: Other enhancement (Freeform lines - by exception) - Additional line 3; enhancement water capex - Total | D123: £m | E123: Price Review 2024 | F123: 0 | G123: 0 | H123: 0 | I123: 0 | J123: 0 | K123: 0
A124: YKY | B124: CW3_135TOT_PR24 | C124: Other enhancement (Freeform lines - by exception) - Additional line 3; enhancement water opex - Total | D124: £m | E124: Price Review 2024 | F124: 0 | G124: 0 | H124: 0 | I124: 0 | J124: 0 | K124: 0
A125: YKY | B125: CW3_136TOT_PR24 | C125: Other enhancement (Freeform lines - by exception) - Additional line 4; enhancement water capex - Total | D125: £m | E125: Price Review 2024 | F125: 0 | G125: 0 | H125: 0 | I125: 0 | J125: 0 | K125: 0
A126: YKY | B126: CW3_137TOT_PR24 | C126: Other enhancement (Freeform lines - by exception) - Additional line 4; enhancement water opex - Total | D126: £m | E126: Price Review 2024 | F126: 0 | G126: 0 | H126: 0 | I126: 0 | J126: 0 | K126: 0
A127: YKY | B127: CW3_138TOT_PR24 | C127: Other enhancement (Freeform lines - by exception) - Additional line 5; enhancement water capex - Total | D127: £m | E127: Price Review 2024 | F127: 0 | G127: 0 | H127: 0 | I127: 0 | J127: 0 | K127: 0
A128: YKY | B128: CW3_139TOT_PR24 | C128: Other enhancement (Freeform lines - by exception) - Additional line 5; enhancement water opex - Total | D128: £m | E128: Price Review 2024 | F128: 0 | G128: 0 | H128: 0 | I128: 0 | J128: 0 | K128: 0
A129: YKY | B129: CW1A_015TOT_PR24 | C129: Net totex - Total | D129: £m | E129: Price Review 2024 | F129: 589.4791387 | G129: 655.1010681 | H129: 665.2986241 | I129: 603.9258347 | J129: 592.7718544 | K129: 3106.57652
A130: AFW | B130: CW3_130TOT_PR24 | C130: Other enhancement (Freeform lines - by exception) - Additional line 1; enhancement water capex - Total | D130: £m | E130: Price Review 2024 | F130: 0 | G130: 0 | H130: 0 | I130: 0 | J130: 0 | K130: 0
A131: AFW | B131: CW3_131TOT_PR24 | C131: Other enhancement (Freeform lines - by exception) - Additional line 1; enhancement water opex - Total | D131: £m | E131: Price Review 2024 | F131: 0 | G131: 0 | H131: 0 | I131: 0 | J131: 0 | K131: 0
A132: AFW | B132: CW3_132TOT_PR24 | C132: Other enhancement (Freeform lines - by exception) - Additional line 2; enhancement water capex - Total | D132: £m | E132: Price Review 2024 | F132: 0 | G132: 0 | H132: 0 | I132: 0 | J132: 0 | K132: 0
A133: AFW | B133: CW3_133TOT_PR24 | C133: Other enhancement (Freeform lines - by exception) - Additional line 2; enhancement water opex - Total | D133: £m | E133: Price Review 2024 | F133: 0 | G133: 0 | H133: 0 | I133: 0 | J133: 0 | K133: 0
A134: AFW | B134: CW3_134TOT_PR24 | C134: Other enhancement (Freeform lines - by exception) - Additional line 3; enhancement water capex - Total | D134: £m | E134: Price Review 2024 | F134: 0 | G134: 0 | H134: 0 | I134: 0 | J134: 0 | K134: 0
A135: AFW | B135: CW3_135TOT_PR24 | C135: Other enhancement (Freeform lines - by exception) - Additional line 3; enhancement water opex - Total | D135: £m | E135: Price Review 2024 | F135: 0 | G135: 0 | H135: 0 | I135: 0 | J135: 0 | K135: 0
A136: AFW | B136: CW3_136TOT_PR24 | C136: Other enhancement (Freeform lines - by exception) - Additional line 4; enhancement water capex - Total | D136: £m | E136: Price Review 2024 | F136: 0 | G136: 0 | H136: 0 | I136: 0 | J136: 0 | K136: 0
A137: AFW | B137: CW3_137TOT_PR24 | C137: Other enhancement (Freeform lines - by exception) - Additional line 4; enhancement water opex - Total | D137: £m | E137: Price Review 2024 | F137: 0 | G137: 0 | H137: 0 | I137: 0 | J137: 0 | K137: 0
A138: AFW | B138: CW3_138TOT_PR24 | C138: Other enhancement (Freeform lines - by exception) - Additional line 5; enhancement water capex - Total | D138: £m | E138: Price Review 2024 | F138: 0 | G138: 0 | H138: 0 | I138: 0 | J138: 0 | K138: 0
A139: AFW | B139: CW3_139TOT_PR24 | C139: Other enhancement (Freeform lines - by exception) - Additional line 5; enhancement water opex - Total | D139: £m | E139: Price Review 2024 | F139: 0 | G139: 0 | H139: 0 | I139: 0 | J139: 0 | K139: 0
A140: AFW | B140: CW1A_015TOT_PR24 | C140: Net totex - Total | D140: £m | E140: Price Review 2024 | F140: 421.2415759 | G140: 456.9268827 | H140: 460.2712371 | I140: 432.4364068 | J140: 366.5304741 | K140: 2137.406576
A141: BRL | B141: CW3_130TOT_PR24 | C141: Other enhancement (Freeform lines - by exception) - Additional line 1; enhancement water capex - Total | D141: £m | E141: Price Review 2024 | F141: 0 | G141: 0 | H141: 0 | I141: 0 | J141: 0 | K141: 0
A142: BRL | B142: CW3_131TOT_PR24 | C142: Other enhancement (Freeform lines - by exception) - Additional line 1; enhancement water opex - Total | D142: £m | E142: Price Review 2024 | F142: 0 | G142: 0 | H142: 0 | I142: 0 | J142: 0 | K142: 0
A143: BRL | B143: CW3_132TOT_PR24 | C143: Other enhancement (Freeform lines - by exception) - Additional line 2; enhancement water capex - Total | D143: £m | E143: Price Review 2024 | F143: 0 | G143: 0 | H143: 0 | I143: 0 | J143: 0 | K143: 0
A144: BRL | B144: CW3_133TOT_PR24 | C144: Other enhancement (Freeform lines - by exception) - Additional line 2; enhancement water opex - Total | D144: £m | E144: Price Review 2024 | F144: 0 | G144: 0 | H144: 0 | I144: 0 | J144: 0 | K144: 0
A145: BRL | B145: CW3_134TOT_PR24 | C145: Other enhancement (Freeform lines - by exception) - Additional line 3; enhancement water capex - Total | D145: £m | E145: Price Review 2024 | F145: 0 | G145: 0 | H145: 0 | I145: 0 | J145: 0 | K145: 0
A146: BRL | B146: CW3_135TOT_PR24 | C146: Other enhancement (Freeform lines - by exception) - Additional line 3; enhancement water opex - Total | D146: £m | E146: Price Review 2024 | F146: 0 | G146: 0 | H146: 0 | I146: 0 | J146: 0 | K146: 0
A147: BRL | B147: CW3_136TOT_PR24 | C147: Other enhancement (Freeform lines - by exception) - Additional line 4; enhancement water capex - Total | D147: £m | E147: Price Review 2024 | F147: 0 | G147: 0 | H147: 0 | I147: 0 | J147: 0 | K147: 0
A148: BRL | B148: CW3_137TOT_PR24 | C148: Other enhancement (Freeform lines - by exception) - Additional line 4; enhancement water opex - Total | D148: £m | E148: Price Review 2024 | F148: 0 | G148: 0 | H148: 0 | I148: 0 | J148: 0 | K148: 0
A149: BRL | B149: CW3_138TOT_PR24 | C149: Other enhancement (Freeform lines - by exception) - Additional line 5; enhancement water capex - Total | D149: £m | E149: Price Review 2024 | F149: 0 | G149: 0 | H149: 0 | I149: 0 | J149: 0 | K149: 0
A150: BRL | B150: CW3_139TOT_PR24 | C150: Other enhancement (Freeform lines - by exception) - Additional line 5; enhancement water opex - Total | D150: £m | E150: Price Review 2024 | F150: 0 | G150: 0 | H150: 0 | I150: 0 | J150: 0 | K150: 0
A151: BRL | B151: CW1A_015TOT_PR24 | C151: Net totex - Total | D151: £m | E151: Price Review 2024 | F151: 126.8847785 | G151: 135.7663958 | H151: 140.3862312 | I151: 140.9563935 | J151: 144.9609259 | K151: 688.9547248
A152: PRT | B152: CW3_130TOT_PR24 | C152: Other enhancement (Freeform lines - by exception) - Additional line 1; enhancement water capex - Total | D152: £m | E152: Price Review 2024 | F152: 0.991 | G152: 1.844 | H152: 5.804 | I152: 0 | J152: 0 | K152: 8.639
A153: PRT | B153: CW3_131TOT_PR24 | C153: Other enhancement (Freeform lines - by exception) - Additional line 1; enhancement water opex - Total | D153: £m | E153: Price Review 2024 | F153: 0 | G153: 0 | H153: 0 | I153: 0.234 | J153: 0.234 | K153: 0.468
A154: PRT | B154: CW3_132TOT_PR24 | C154: Other enhancement (Freeform lines - by exception) - Additional line 2; enhancement water capex - Total | D154: £m | E154: Price Review 2024 | F154: 0 | G154: 0 | H154: 0 | I154: 0 | J154: 0 | K154: 0
A155: PRT | B155: CW3_133TOT_PR24 | C155: Other enhancement (Freeform lines - by exception) - Additional line 2; enhancement water opex - Total | D155: £m | E155: Price Review 2024 | F155: 0 | G155: 0 | H155: 0 | I155: 0 | J155: 0 | K155: 0
A156: PRT | B156: CW3_134TOT_PR24 | C156: Other enhancement (Freeform lines - by exception) - Additional line 3; enhancement water capex - Total | D156: £m | E156: Price Review 2024 | F156: 0 | G156: 0 | H156: 0 | I156: 0 | J156: 0 | K156: 0
A157: PRT | B157: CW3_135TOT_PR24 | C157: Other enhancement (Freeform lines - by exception) - Additional line 3; enhancement water opex - Total | D157: £m | E157: Price Review 2024 | F157: 0 | G157: 0 | H157: 0 | I157: 0 | J157: 0 | K157: 0
A158: PRT | B158: CW3_136TOT_PR24 | C158: Other enhancement (Freeform lines - by exception) - Additional line 4; enhancement water capex - Total | D158: £m | E158: Price Review 2024 | F158: 0 | G158: 0 | H158: 0 | I158: 0 | J158: 0 | K158: 0
A159: PRT | B159: CW3_137TOT_PR24 | C159: Other enhancement (Freeform lines - by exception) - Additional line 4; enhancement water opex - Total | D159: £m | E159: Price Review 2024 | F159: 0 | G159: 0 | H159: 0 | I159: 0 | J159: 0 | K159: 0
A160: PRT | B160: CW3_138TOT_PR24 | C160: Other enhancement (Freeform lines - by exception) - Additional line 5; enhancement water capex - Total | D160: £m | E160: Price Review 2024 | F160: 0 | G160: 0 | H160: 0 | I160: 0 | J160: 0 | K160: 0
A161: PRT | B161: CW3_139TOT_PR24 | C161: Other enhancement (Freeform lines - by exception) - Additional line 5; enhancement water opex - Total | D161: £m | E161: Price Review 2024 | F161: 0 | G161: 0 | H161: 0 | I161: 0 | J161: 0 | K161: 0
A162: PRT | B162: CW1A_015TOT_PR24 | C162: Net totex - Total | D162: £m | E162: Price Review 2024 | F162: 58.63988094 | G162: 74.27175013 | H162: 71.67736275 | I162: 63.1207141 | J162: 60.97457465 | K162: 328.6842826
A163: SEW | B163: CW3_130TOT_PR24 | C163: Other enhancement (Freeform lines - by exception) - Additional line 1; enhancement water capex - Total | D163: £m | E163: Price Review 2024 | F163: 0 | G163: 0 | H163: 0 | I163: 0 | J163: 0 | K163: 0
A164: SEW | B164: CW3_131TOT_PR24 | C164: Other enhancement (Freeform lines - by exception) - Additional line 1; enhancement water opex - Total | D164: £m | E164: Price Review 2024 | F164: 0 | G164: 0 | H164: 0 | I164: 0 | J164: 0 | K164: 0
A165: SEW | B165: CW3_132TOT_PR24 | C165: Other enhancement (Freeform lines - by exception) - Additional line 2; enhancement water capex - Total | D165: £m | E165: Price Review 2024 | F165: 0 | G165: 0 | H165: 0 | I165: 0 | J165: 0 | K165: 0
A166: SEW | B166: CW3_133TOT_PR24 | C166: Other enhancement (Freeform lines - by exception) - Additional line 2; enhancement water opex - Total | D166: £m | E166: Price Review 2024 | F166: 0 | G166: 0 | H166: 0 | I166: 0 | J166: 0 | K166: 0
A167: SEW | B167: CW3_134TOT_PR24 | C167: Other enhancement (Freeform lines - by exception) - Additional line 3; enhancement water capex - Total | D167: £m | E167: Price Review 2024 | F167: 0 | G167: 0 | H167: 0 | I167: 0 | J167: 0 | K167: 0
A168: SEW | B168: CW3_135TOT_PR24 | C168: Other enhancement (Freeform lines - by exception) - Additional line 3; enhancement water opex - Total | D168: £m | E168: Price Review 2024 | F168: 0 | G168: 0 | H168: 0 | I168: 0 | J168: 0 | K168: 0
A169: SEW | B169: CW3_136TOT_PR24 | C169: Other enhancement (Freeform lines - by exception) - Additional line 4; enhancement water capex - Total | D169: £m | E169: Price Review 2024 | F169: 0 | G169: 0 | H169: 0 | I169: 0 | J169: 0 | K169: 0
A170: SEW | B170: CW3_137TOT_PR24 | C170: Other enhancement (Freeform lines - by exception) - Additional line 4; enhancement water opex - Total | D170: £m | E170: Price Review 2024 | F170: 0 | G170: 0 | H170: 0 | I170: 0 | J170: 0 | K170: 0
A171: SEW | B171: CW3_138TOT_PR24 | C171: Other enhancement (Freeform lines - by exception) - Additional line 5; enhancement water capex - Total | D171: £m | E171: Price Review 2024 | F171: 0 | G171: 0 | H171: 0 | I171: 0 | J171: 0 | K171: 0
A172: SEW | B172: CW3_139TOT_PR24 | C172: Other enhancement (Freeform lines - by exception) - Additional line 5; enhancement water opex - Total | D172: £m | E172: Price Review 2024 | F172: 0 | G172: 0 | H172: 0 | I172: 0 | J172: 0 | K172: 0
A173: SEW | B173: CW1A_015TOT_PR24 | C173: Net totex - Total | D173: £m | E173: Price Review 2024 | F173: 338.350041 | G173: 358.6142616 | H173: 379.6505991 | I173: 396.850532 | J173: 387.0121512 | K173: 1860.477585
A174: SSC | B174: CW3_130TOT_PR24 | C174: Other enhancement (Freeform lines - by exception) - Additional line 1; enhancement water capex - Total | D174: £m | E174: Price Review 2024 | F174: 0 | G174: 0 | H174: 0 | I174: 0 | J174: 0 | K174: 0
A175: SSC | B175: CW3_131TOT_PR24 | C175: Other enhancement (Freeform lines - by exception) - Additional line 1; enhancement water opex - Total | D175: £m | E175: Price Review 2024 | F175: 0 | G175: 0 | H175: 0 | I175: 0 | J175: 0 | K175: 0
A176: SSC | B176: CW3_132TOT_PR24 | C176: Other enhancement (Freeform lines - by exception) - Additional line 2; enhancement water capex - Total | D176: £m | E176: Price Review 2024 | F176: 0 | G176: 0 | H176: 0 | I176: 0 | J176: 0 | K176: 0
A177: SSC | B177: CW3_133TOT_PR24 | C177: Other enhancement (Freeform lines - by exception) - Additional line 2; enhancement water opex - Total | D177: £m | E177: Price Review 2024 | F177: 0 | G177: 0 | H177: 0 | I177: 0 | J177: 0 | K177: 0
A178: SSC | B178: CW3_134TOT_PR24 | C178: Other enhancement (Freeform lines - by exception) - Additional line 3; enhancement water capex - Total | D178: £m | E178: Price Review 2024 | F178: 0 | G178: 0 | H178: 0 | I178: 0 | J178: 0 | K178: 0
A179: SSC | B179: CW3_135TOT_PR24 | C179: Other enhancement (Freeform lines - by exception) - Additional line 3; enhancement water opex - Total | D179: £m | E179: Price Review 2024 | F179: 0 | G179: 0 | H179: 0 | I179: 0 | J179: 0 | K179: 0
A180: SSC | B180: CW3_136TOT_PR24 | C180: Other enhancement (Freeform lines - by exception) - Additional line 4; enhancement water capex - Total | D180: £m | E180: Price Review 2024 | F180: 0 | G180: 0 | H180: 0 | I180: 0 | J180: 0 | K180: 0
A181: SSC | B181: CW3_137TOT_PR24 | C181: Other enhancement (Freeform lines - by exception) - Additional line 4; enhancement water opex - Total | D181: £m | E181: Price Review 2024 | F181: 0 | G181: 0 | H181: 0 | I181: 0 | J181: 0 | K181: 0
A182: SSC | B182: CW3_138TOT_PR24 | C182: Other enhancement (Freeform lines - by exception) - Additional line 5; enhancement water capex - Total | D182: £m | E182: Price Review 2024 | F182: 0 | G182: 0 | H182: 0 | I182: 0 | J182: 0 | K182: 0
A183: SSC | B183: CW3_139TOT_PR24 | C183: Other enhancement (Freeform lines - by exception) - Additional line 5; enhancement water opex - Total | D183: £m | E183: Price Review 2024 | F183: 0 | G183: 0 | H183: 0 | I183: 0 | J183: 0 | K183: 0
A184: SSC | B184: CW1A_015TOT_PR24 | C184: Net totex - Total | D184: £m | E184: Price Review 2024 | F184: 140.9743619 | G184: 157.4984002 | H184: 159.9249907 | I184: 147.4990977 | J184: 131.8925834 | K184: 737.7894339
A185: SES | B185: CW3_130TOT_PR24 | C185: Other enhancement (Freeform lines - by exception) - Additional line 1; enhancement water capex - Total | D185: £m | E185: Price Review 2024 | F185: 0.04 | G185: 0.06 | H185: 0.06 | I185: 0.06 | J185: 0.06 | K185: 0.28
A186: SES | B186: CW3_131TOT_PR24 | C186: Other enhancement (Freeform lines - by exception) - Additional line 1; enhancement water opex - Total | D186: £m | E186: Price Review 2024 | F186: 0 | G186: 0 | H186: 0 | I186: 0.065 | J186: 0.065 | K186: 0.13
A187: SES | B187: CW3_132TOT_PR24 | C187: Other enhancement (Freeform lines - by exception) - Additional line 2; enhancement water capex - Total | D187: £m | E187: Price Review 2024 | F187: 0 | G187: 0 | H187: 0 | I187: 0 | J187: 0 | K187: 0
A188: SES | B188: CW3_133TOT_PR24 | C188: Other enhancement (Freeform lines - by exception) - Additional line 2; enhancement water opex - Total | D188: £m | E188: Price Review 2024 | F188: 0.137 | G188: 0.063 | H188: 0.012 | I188: 0.356 | J188: 0.028 | K188: 0.596
A189: SES | B189: CW3_134TOT_PR24 | C189: Other enhancement (Freeform lines - by exception) - Additional line 3; enhancement water capex - Total | D189: £m | E189: Price Review 2024 | F189: 0.1 | G189: 0.03 | H189: 0 | I189: 0 | J189: 0 | K189: 0.13
A190: SES | B190: CW3_135TOT_PR24 | C190: Other enhancement (Freeform lines - by exception) - Additional line 3; enhancement water opex - Total | D190: £m | E190: Price Review 2024 | F190: 0 | G190: 0 | H190: 0 | I190: 0 | J190: 0 | K190: 0
A191: SES | B191: CW3_136TOT_PR24 | C191: Other enhancement (Freeform lines - by exception) - Additional line 4; enhancement water capex - Total | D191: £m | E191: Price Review 2024 | F191: 0.5 | G191: 0.5 | H191: 0.5 | I191: 0.5 | J191: 0.5 | K191: 2.5
A192: SES | B192: CW3_137TOT_PR24 | C192: Other enhancement (Freeform lines - by exception) - Additional line 4; enhancement water opex - Total | D192: £m | E192: Price Review 2024 | F192: 0 | G192: 0 | H192: 0 | I192: 0 | J192: 0 | K192: 0
A193: SES | B193: CW3_138TOT_PR24 | C193: Other enhancement (Freeform lines - by exception) - Additional line 5; enhancement water capex - Total | D193: £m | E193: Price Review 2024 | F193: 0 | G193: 0 | H193: 0 | I193: 0 | J193: 0 | K193: 0
A194: SES | B194: CW3_139TOT_PR24 | C194: Other enhancement (Freeform lines - by exception) - Additional line 5; enhancement water opex - Total | D194: £m | E194: Price Review 2024 | F194: 0 | G194: 0 | H194: 0 | I194: 0 | J194: 0 | K194: 0
A195: SES | B195: CW1A_015TOT_PR24 | C195: Net totex - Total | D195: £m | E195: Price Review 2024 | F195: 73.6705985 | G195: 80.76784262 | H195: 87.63970699 | I195: 68.71579409 | J195: 66.84144898 | K195: 377.6353912

Sheet NETTOEX Water
A1: =RIGHT(CELL("filename", $I$1), LEN(CELL("filename", $I$1)) - SEARCH("]", CELL("filename", $I$1))) -> 
C3: Water TOTEX Run11 | E3: Run on 16 Oct 2024 11:11
A5: Company Acronym | B5: Item Code | C5: Item Description | D5: Item Unit | E5: Item Table Suite | F5: Constant
A6: Company Acronym | B6: Item Code | C6: Item Description | D6: Item Unit | E6: Item Table Suite | F6: Price Review 2024
A7: Company Acronym | B7: Item Code | C7: Item Description | D7: Item Unit | E7: Item Table Suite | F7: Run 11 - PR24 FD Data
A8: Company Acronym | B8: Item Code | C8: Item Description | D8: Item Unit | E8: Item Table Suite | F8: Latest
A9: ANH | B9: PR24_NETTOTEX_WATER | C9: PR24 BP Net totex - Total inc. accelerated & transition costs | D9: £m | E9: Price Review 2024 | F9: 4187.353839
A10: WSH | B10: PR24_NETTOTEX_WATER | C10: PR24 BP Net totex - Total inc. accelerated & transition costs | D10: £m | E10: Price Review 2024 | F10: 2365.636
A11: HDD | B11: PR24_NETTOTEX_WATER | C11: PR24 BP Net totex - Total inc. accelerated & transition costs | D11: £m | E11: Price Review 2024 | F11: 202.9929059
A12: NES | B12: PR24_NETTOTEX_WATER | C12: PR24 BP Net totex - Total inc. accelerated & transition costs | D12: £m | E12: Price Review 2024 | F12: 3081.858466
A13: SVE | B13: PR24_NETTOTEX_WATER | C13: PR24 BP Net totex - Total inc. accelerated & transition costs | D13: £m | E13: Price Review 2024 | F13: 5623.042444
A14: SWB | B14: PR24_NETTOTEX_WATER | C14: PR24 BP Net totex - Total inc. accelerated & transition costs | D14: £m | E14: Price Review 2024 | F14: 1570.211528
A15: SRN | B15: PR24_NETTOTEX_WATER | C15: PR24 BP Net totex - Total inc. accelerated & transition costs | D15: £m | E15: Price Review 2024 | F15: 3614.763
A16: TMS | B16: PR24_NETTOTEX_WATER | C16: PR24 BP Net totex - Total inc. accelerated & transition costs | D16: £m | E16: Price Review 2024 | F16: 10162.16273
A17: NWT | B17: PR24_NETTOTEX_WATER | C17: PR24 BP Net totex - Total inc. accelerated & transition costs | D17: £m | E17: Price Review 2024 | F17: 4204.144554
A18: WSX | B18: PR24_NETTOTEX_WATER | C18: PR24 BP Net totex - Total inc. accelerated & transition costs | D18: £m | E18: Price Review 2024 | F18: 1136.356395
A19: YKY | B19: PR24_NETTOTEX_WATER | C19: PR24 BP Net totex - Total inc. accelerated & transition costs | D19: £m | E19: Price Review 2024 | F19: 3120.05052
A20: AFW | B20: PR24_NETTOTEX_WATER | C20: PR24 BP Net totex - Total inc. accelerated & transition costs | D20: £m | E20: Price Review 2024 | F20: 2157.018576
A21: BRL | B21: PR24_NETTOTEX_WATER | C21: PR24 BP Net totex - Total inc. accelerated & transition costs | D21: £m | E21: Price Review 2024 | F21: 688.9547248
A22: PRT | B22: PR24_NETTOTEX_WATER | C22: PR24 BP Net totex - Total inc. accelerated & transition costs | D22: £m | E22: Price Review 2024 | F22: 341.6692826
A23: SEW | B23: PR24_NETTOTEX_WATER | C23: PR24 BP Net totex - Total inc. accelerated & transition costs | D23: £m | E23: Price Review 2024 | F23: 1862.837225
A24: SSC | B24: PR24_NETTOTEX_WATER | C24: PR24 BP Net totex - Total inc. accelerated & transition costs | D24: £m | E24: Price Review 2024 | F24: 737.9594339
A25: SES | B25: PR24_NETTOTEX_WATER | C25: PR24 BP Net totex - Total inc. accelerated & transition costs | D25: £m | E25: Price Review 2024 | F25: 377.6353912

Sheet Reallocations
A1: =RIGHT(CELL("filename", $I$1), LEN(CELL("filename", $I$1)) - SEARCH("]", CELL("filename", $I$1))) -> 
A4: Company | B4: Cost category | C4: BON code | D4: 2025 | E4: 2026 | F4: 2027 | G4: 2028 | H4: 2029 | I4: TOTAL | K4: Reallocated to | L4: BON CODE | M4: 2025 | N4: 2026 | O4: 2027 | P4: 2028 | Q4: 2029 | R4: TOTAL | S4: Comments
A5: ANH | B5: Other enhancement (Freeform lines - by exception) - Additional line 2; enhancement water capex - Total | C5: CW3_132TOT_PR24 | D5: 12.654 | E5: 23.954 | F5: 35.036 | G5: 27.495 | H5: 18.059 | I5: =SUM(D5:H5) -> 117.198 | K5: Water quality improvements - Addressing raw water quality deterioration (grey solutions); ; enhancement totex - Total | L5: CW3_099TOT_PR24 | M5: 12.654 | N5: 23.954 | O5: 35.036 | P5: 27.495 | Q5: 18.059 | R5: =SUM(M5:Q5) -> 117.198 | S5: Reallocated to raw water quality deterioration
A6: ANH | B6: Other enhancement (Freeform lines - by exception) - Additional line 2; enhancement water opex - Total | C6: CW3_133TOT_PR24 | D6: 0.331 | E6: 0.331 | F6: 0.436 | G6: 0.948 | H6: 1.383 | I6: 3.429 | K6: Water quality improvements - Addressing raw water quality deterioration (grey solutions); ; enhancement totex - Total | L6: CW3_099TOT_PR24 | M6: 0.331 | N6: 0.331 | O6: 0.436 | P6: 0.948 | Q6: 1.383 | R6: 3.429 | S6: Reallocated to raw water quality deterioration
A7: ANH | B7: Other enhancement (Freeform lines - by exception) - Additional line 5; enhancement water capex - Total | C7: CW3_138TOT_PR24 | D7: 0.228 | E7: 0.426 | F7: 0.329 | G7: 0.017 | H7: 0 | I7: 1 | K7: Water resilience and security - Security - Cyber; enhancement water totex - Total | L7: CW3_126TOT_PR24 | M7: 0.228 | N7: 0.426 | O7: 0.329 | P7: 0.017 | Q7: 0 | R7: 1 | S7: eCAF Enhanced cyber security requirements
A8: ANH | B8: Other enhancement (Freeform lines - by exception) - Additional line 5; enhancement water opex - Total | C8: CW3_139TOT_PR24 | D8: 0.086 | E8: 0.086 | F8: 0.086 | G8: 0.086 | H8: 0.086 | I8: 0.43 | K8: Water resilience and security - Security - Cyber; enhancement water totex - Total | L8: CW3_126TOT_PR24 | M8: 0.086 | N8: 0.086 | O8: 0.086 | P8: 0.086 | Q8: 0.086 | R8: 0.43 | S8: eCAF Enhanced cyber security requirements
A9: HDD | B9: Other enhancement (Freeform lines - by exception) - Additional line 1; enhancement water capex - Total | C9: CW3_130TOT_PR24 | D9: 7.036 | E9: 4.85 | F9: 0.57 | G9: 1.2 | H9: 1.199 | I9: 14.855 | K9: Resevoir safety; water totex - Total | L9: CW3_146TOT_PR24 | M9: 7.036 | N9: 4.85 | O9: 0.57 | P9: 1.2 | Q9: 1.199 | R9: 14.855 | S9: Reallocated to reservoir safety
A10: HDD | B10: Other enhancement (Freeform lines - by exception) - Additional line 1; enhancement water opex - Total | C10: CW3_131TOT_PR24 | D10: 0 | E10: 0.025 | F10: 0.025 | G10: 0.025 | H10: 0.025 | I10: 0.1 | K10: Resevoir safety; water totex - Total | L10: CW3_146TOT_PR24 | M10: 0 | N10: 0.025 | O10: 0.025 | P10: 0.025 | Q10: 0.025 | R10: 0.1 | S10: Reallocated to reservoir safety
A11: NES | B11: Other enhancement (Freeform lines - by exception) - Additional line 2; enhancement water capex - Total | C11: CW3_132TOT_PR24 | D11: 0.921 | E11: 0 | F11: 0 | G11: 0 | H11: 0 | I11: 0.921 | K11: Water resilience and security - Security - Cyber; enhancement water totex - Total | L11: CW3_126TOT_PR24 | M11: 0.921 | N11: 0 | O11: 0 | P11: 0 | Q11: 0 | R11: 0.921 | S11: Cyber security
A12: NES | B12: Other enhancement (Freeform lines - by exception) - Additional line 2; enhancement water opex - Total | C12: CW3_133TOT_PR24 | D12: 1.42 | E12: 1.422 | F12: 1.422 | G12: 1.422 | H12: 1.422 | I12: 7.108 | K12: Water resilience and security - Security - Cyber; enhancement water totex - Total | L12: CW3_126TOT_PR24 | M12: 1.42 | N12: 1.422 | O12: 1.422 | P12: 1.422 | Q12: 1.422 | R12: 7.108 | S12: Cyber security
A13: NES | B13: Other enhancement (Freeform lines - by exception) - Additional line 5; enhancement water capex - Total | C13: CW3_138TOT_PR24 | D13: 14.605 | E13: 1.8 | F13: 1.8 | G13: 23.859 | H13: 29.098 | I13: 71.162 | K13: Resevoir safety; water totex - Total | L13: CW3_146TOT_PR24 | M13: 14.605 | N13: 1.8 | O13: 1.8 | P13: 23.859 | Q13: 29.098 | R13: 71.162 | S13: Reallocated to reservoir safety
A14: NES | B14: Other enhancement (Freeform lines - by exception) - Additional line 5; enhancement water opex - Total | C14: CW3_139TOT_PR24 | D14: 0 | E14: 0 | F14: 0 | G14: 0 | H14: 0 | I14: 0 | K14: Resevoir safety; water totex - Total | L14: CW3_146TOT_PR24 | M14: 0 | N14: 0 | O14: 0 | P14: 0 | Q14: 0 | R14: 0 | S14: Reallocated to reservoir safety
A15: NES | B15: Other enhancement (Freeform lines - by exception) - Additional line 1; enhancement water capex - Total | C15: CW3_130TOT_PR24 | D15: 14.135 | E15: 31.335 | F15: 47.707 | G15: 27.914 | H15: 19.661 | I15: 140.752 | K15: PR24 busis plan reallocation from enhancement to base water network plus - 2022-23 CPIH prices | L15: BNREALENHBASEWNP_PR24CA001 | M15: 14.135 | N15: 31.335 | O15: 47.707 | P15: 27.914 | Q15: 19.661 | R15: 140.752 | S15: Reallocated to base costs
A16: NES | B16: Other enhancement (Freeform lines - by exception) - Additional line 1; enhancement water opex - Total | C16: CW3_131TOT_PR24 | D16: 0 | E16: 0 | F16: 0 | G16: 0 | H16: 0.104 | I16: 0.104 | K16: PR24 busis plan reallocation from enhancement to base water network plus - 2022-23 CPIH prices | L16: BNREALENHBASEWNP_PR24CA001 | M16: 0 | N16: 0 | O16: 0 | P16: 0 | Q16: 0.104 | R16: 0.104 | S16: Reallocated to base costs
A17: NWT | B17: Other enhancement (Freeform lines - by exception) - Additional line 5; enhancement water capex - Total | C17: CW3_138TOT_PR24 | D17: 22.62438683 | E17: 23.01880069 | F17: 22.84707217 | G17: 23.20541617 | H17: 23.13432414 | I17: 114.83 | K17: Resevoir safety; water totex - Total | L17: CW3_146TOT_PR24 | M17: 22.62438683 | N17: 23.01880069 | O17: 22.84707217 | P17: 23.20541617 | Q17: 23.13432414 | R17: 114.83 | S17: Reallocated to reservoir safety
A18: NWT | B18: Other enhancement (Freeform lines - by exception) - Additional line 5; enhancement water opex - Total | C18: CW3_139TOT_PR24 | D18: 0 | E18: 0 | F18: 0 | G18: 0 | H18: 0 | I18: 0 | K18: Resevoir safety; water totex - Total | L18: CW3_146TOT_PR24 | M18: 0 | N18: 0 | O18: 0 | P18: 0 | Q18: 0 | R18: 0 | S18: Reallocated to reservoir safety
A19: PRT | B19: Other enhancement (Freeform lines - by exception) - Additional line 1; enhancement water capex - Total | C19: CW3_130TOT_PR24 | D19: 0.991 | E19: 1.844 | F19: 5.804 | G19: 0 | H19: 0 | I19: 8.639 | K19: Water quality improvements - Addressing raw water quality deterioration (grey solutions); ; enhancement totex - Total | L19: CW3_099TOT_PR24 | M19: 0.991 | N19: 1.844 | O19: 5.804 | P19: 0 | Q19: 0 | R19: 8.639 | S19: Reallocated to raw water quality deterioration
A20: PRT | B20: Other enhancement (Freeform lines - by exception) - Additional line 1; enhancement water opex - Total | C20: CW3_131TOT_PR24 | D20: 0 | E20: 0 | F20: 0 | G20: 0.234 | H20: 0.234 | I20: 0.468 | K20: Water quality improvements - Addressing raw water quality deterioration (grey solutions); ; enhancement totex - Total | L20: CW3_099TOT_PR24 | M20: 0 | N20: 0 | O20: 0 | P20: 0.234 | Q20: 0.234 | R20: 0.468 | S20: Reallocated to raw water quality deterioration
A21: SES | B21: Other enhancement (Freeform lines - by exception) - Additional line 4; enhancement water capex - Total | C21: CW3_136TOT_PR24 | D21: 0.5 | E21: 0.5 | F21: 0.5 | G21: 0.5 | H21: 0.5 | I21: 2.5 | K21: Supply-demand balance - Leakage improvements delivering benefits in 2025-2030; SDB totex - Total | L21: CW3_049TOT_PR24 | M21: 0.5 | N21: 0.5 | O21: 0.5 | P21: 0.5 | Q21: 0.5 | R21: 2.5 | S21: Leakage – uFMZ' (upstream flow monitoring zones) (totex request £2.5m) (CAPEX)
A22: SES | B22: Other enhancement (Freeform lines - by exception) - Additional line 4; enhancement water opex - Total | C22: CW3_137TOT_PR24 | D22: 0 | E22: 0 | F22: 0 | G22: 0 | H22: 0 | I22: 0 | K22: Supply-demand balance - Leakage improvements delivering benefits in 2025-2030; SDB totex - Total | L22: CW3_049TOT_PR24 | M22: 0 | N22: 0 | O22: 0 | P22: 0 | Q22: 0 | R22: 0 | S22: Leakage – uFMZ' (upstream flow monitoring zones) (totex request £2.5m) (OPEX)
A23: SES | B23: Other enhancement (Freeform lines - by exception) - Additional line 3; enhancement water capex - Total | C23: CW3_134TOT_PR24 | D23: 0.1 | E23: 0.03 | F23: 0 | G23: 0 | H23: 0 | I23: 0.13 | K23: Metering - Smart meter infrastructure; metering totex - Total | L23: CW3_089TOT_PR24 | M23: 0.1 | N23: 0.03 | O23: 0 | P23: 0 | Q23: 0 | R23: 0.13 | S23: Reallocated to metering
A24: SRN | B24: Other enhancement (Freeform lines - by exception) - Additional line 3; enhancement water capex - Total | C24: CW3_134TOT_PR24 | D24: 4.34548988 | E24: 9.2721498 | F24: 9.49665992 | G24: 1.523 | H24: 0 | I24: 24.6372996 | K24: Resevoir safety; water totex - Total | L24: CW3_146TOT_PR24 | M24: 4.34548988 | N24: 9.2721498 | O24: 9.49665992 | P24: 1.523 | Q24: 0 | R24: 24.6372996 | S24: Reallocated to reservoir safety
A25: SRN | B25: Other enhancement (Freeform lines - by exception) - Additional line 4; enhancement water capex - Total | C25: CW3_136TOT_PR24 | D25: 3.941 | E25: 16.021 | F25: 25.32 | G25: 36.677 | H25: 41.229 | I25: 123.188 | K25: Supply-demand balance - Leakage improvements delivering benefits in 2025-2030; SDB totex - Total | L25: CW3_049TOT_PR24 | M25: 3.941 | N25: 16.021 | O25: 25.32 | P25: 36.677 | Q25: 41.229 | R25: 123.188 | S25: Leakage driven mains replacement
A26: SRN | B26: Other enhancement (Freeform lines - by exception) - Additional line 2; enhancement water opex - Total | C26: CW3_133TOT_PR24 | D26: 30.41 | E26: 16.246 | F26: 0 | G26: 0 | H26: 0 | I26: 46.656 | K26: Metering - Smart meter infrastructure; metering totex - Total | L26: CW3_089TOT_PR24 | M26: 14.164 | N26: 0 | O26: 0 | P26: 0 | Q26: 0 | R26: 14.164 | S26: Smart metering DPC costs
A27: SRN | B27: Other enhancement (Freeform lines - by exception) - Additional line 2; enhancement water opex - Total | C27: CW3_133TOT_PR24 | D27: 30.41 | E27: 16.246 | F27: 0 | G27: 0 | H27: 0 | I27: 46.656 | K27: Supply-demand balance - Supply-side improvements delivering benefits in 2025-2030; SDB totex - Total | L27: CW3_043TOT_PR24 | M27: 16.246 | N27: 16.246 | O27: 0 | P27: 0 | Q27: 0 | R27: 32.492 | S27: DPC costs associated with Littlehampton and Medway water recycling projects
A28: SRN | B28: Other enhancement (Freeform lines - by exception) - Additional line 2; enhancement water capex - Total | C28: CW3_132TOT_PR24 | D28: 0 | E28: 28.5 | F28: 0 | G28: 0 | H28: 0 | I28: 28.5 | K28: Supply-demand balance - Supply-side improvements delivering benefits in 2025-2030; SDB totex - Total | L28: CW3_043TOT_PR24 | M28: 0 | N28: 28.5 | O28: 0 | P28: 0 | Q28: 0 | R28: 28.5 | S28: DPC costs associated with Littlehampton and Medway water recycling projects (land purchase)
A29: SVE | B29: Other enhancement (Freeform lines - by exception) - Additional line 5; enhancement water capex - Total | C29: CW3_138TOT_PR24 | D29: 3.920983516 | E29: 5.347039533 | F29: 4.235789728 | G29: 3.44384593 | H29: 4.490831105 | I29: 21.43848981 | K29: Resevoir safety; water totex - Total | L29: CW3_146TOT_PR24 | M29: 3.920983516 | N29: 5.347039533 | O29: 4.235789728 | P29: 3.44384593 | Q29: 4.490831105 | R29: 21.43848981 | S29: Reallocated to reservoir safety
A30: SVE | B30: Other enhancement (Freeform lines - by exception) - Additional line 5; enhancement water opex - Total | C30: CW3_139TOT_PR24 | D30: 0.148 | E30: 0.293 | F30: 0.294 | G30: 0.373 | H30: 0.364 | I30: 1.472 | K30: Resevoir safety; water totex - Total | L30: CW3_146TOT_PR24 | M30: 0.148 | N30: 0.293 | O30: 0.294 | P30: 0.373 | Q30: 0.364 | R30: 1.472 | S30: Reallocated to reservoir safety
A31: SVE | B31: Other enhancement (Freeform lines - by exception) - Additional line 2; enhancement water capex - Total | C31: CW3_132TOT_PR24 | D31: 7.130479118 | E31: 11.946 | F31: 12.114 | G31: 9.136 | H31: 8.482 | I31: 48.80847912 | K31: Water resilience and security - Security - Cyber; enhancement water totex - Total | L31: CW3_126TOT_PR24 | M31: 7.130479118 | N31: 11.946 | O31: 12.114 | P31: 9.136 | Q31: 8.482 | R31: 48.80847912 | S31: Cyber security eCAF
A32: SVE | B32: Other enhancement (Freeform lines - by exception) - Additional line 2; enhancement water opex - Total | C32: CW3_133TOT_PR24 | D32: 0.632 | E32: 0.975 | F32: 1.072 | G32: 1.066 | H32: 1.056 | I32: 4.801 | K32: Water resilience and security - Security - Cyber; enhancement water totex - Total | L32: CW3_126TOT_PR24 | M32: 0.632 | N32: 0.975 | O32: 1.072 | P32: 1.066 | Q32: 1.056 | R32: 4.801 | S32: Cyber security eCAF
A33: SVE | B33: Other enhancement (Freeform lines - by exception) - Additional line 3; enhancement water capex - Total | C33: CW3_134TOT_PR24 | D33: 8.931488308 | E33: 10.23057685 | F33: 10.84737975 | G33: 12.33087029 | H33: 13.3886197 | I33: 55.7289349 | K33: Net zero - Greenhouse gas reduction (net zero); enhancement water totex - Total | L33: CW3_129TOT_PR24 | M33: 8.931488308 | N33: 10.23057685 | O33: 10.84737975 | P33: 12.33087029 | Q33: 13.3886197 | R33: 55.7289349 | S33: Transport EV
A34: TMS | B34: Other enhancement (Freeform lines - by exception) - Additional line 1; enhancement water capex - Total | C34: CW3_130TOT_PR24 | D34: 33.311 | E34: 48.595 | F34: 54.129 | G34: 31.364 | H34: 10.502 | I34: 177.901 | K34: Water quality improvements - Addressing raw water quality deterioration (grey solutions); ; enhancement totex - Total | L34: CW3_099TOT_PR24 | M34: 33.311 | N34: 48.595 | O34: 54.129 | P34: 31.364 | Q34: 10.502 | R34: 177.901 | S34: Crypto Enhancement Case
A35: TMS | B35: Other enhancement (Freeform lines - by exception) - Additional line 1; enhancement water opex - Total | C35: CW3_131TOT_PR24 | D35: 0 | E35: 0 | F35: 0 | G35: 0.412 | H35: 0.803 | I35: 1.215 | K35: Water quality improvements - Addressing raw water quality deterioration (grey solutions); ; enhancement totex - Total | L35: CW3_099TOT_PR24 | M35: 0 | N35: 0 | O35: 0 | P35: 0.412 | Q35: 0.803 | R35: 1.215 | S35: Crypto Enhancement Case
A36: TMS | B36: Other enhancement (Freeform lines - by exception) - Additional line 2; enhancement water capex - Total | C36: CW3_132TOT_PR24 | D36: 32.551 | E36: 54.814 | F36: 61.198 | G36: 23.809 | H36: 1.623 | I36: 173.995 | K36: PR19 WINEP carryover; enhancement water totex - Total | L36: CW3_152TOT_PR24 | M36: 32.551 | N36: 54.814 | O36: 61.198 | P36: 23.809 | Q36: 1.623 | R36: 173.995 | S36: AMP7 carryover
A37: TMS | B37: Other enhancement (Freeform lines - by exception) - Additional line 2; enhancement water opex - Total | C37: CW3_133TOT_PR24 | D37: 0 | E37: 0 | F37: 0 | G37: 0 | H37: 0 | I37: 0 | K37: PR19 WINEP carryover; enhancement water totex - Total | L37: CW3_152TOT_PR24 | M37: 0 | N37: 0 | O37: 0 | P37: 0 | Q37: 0 | R37: 0 | S37: AMP7 carryover
A38: TMS | B38: Other enhancement (Freeform lines - by exception) - Additional line 5; enhancement water capex - Total | C38: CW3_138TOT_PR24 | D38: 1.814 | E38: 2.392 | F38: 2.975 | G38: 2.988 | H38: 1.27 | I38: 11.439 | K38: Resevoir safety; water totex - Total | L38: CW3_146TOT_PR24 | M38: 1.814 | N38: 2.392 | O38: 2.975 | P38: 2.988 | Q38: 1.27 | R38: 11.439 | S38: Reallocated to reservoir safety
A39: TMS | B39: Other enhancement (Freeform lines - by exception) - Additional line 5; enhancement water opex - Total | C39: CW3_139TOT_PR24 | D39: 0 | E39: 0 | F39: 0 | G39: 0 | H39: 0 | I39: 0 | K39: Resevoir safety; water totex - Total | L39: CW3_146TOT_PR24 | M39: 0 | N39: 0 | O39: 0 | P39: 0 | Q39: 0 | R39: 0 | S39: Reallocated to reservoir safety
A40: WSH | B40: Other enhancement (Freeform lines - by exception) - Additional line 5; enhancement water capex - Total | C40: CW3_138TOT_PR24 | D40: 14.156 | E40: 13.926 | F40: 13.95 | G40: 14.052 | H40: 14.225 | I40: 70.309 | K40: Resevoir safety; water totex - Total | L40: CW3_146TOT_PR24 | M40: 14.156 | N40: 13.926 | O40: 13.95 | P40: 14.052 | Q40: 14.225 | R40: 70.309 | S40: Reallocated to reservoir safety
A41: WSH | B41: Other enhancement (Freeform lines - by exception) - Additional line 5; enhancement water opex - Total | C41: CW3_139TOT_PR24 | D41: 0 | E41: 0 | F41: 0 | G41: 0 | H41: 0 | I41: 0 | K41: Resevoir safety; water totex - Total | L41: CW3_146TOT_PR24 | M41: 0 | N41: 0 | O41: 0 | P41: 0 | Q41: 0 | R41: 0 | S41: Reallocated to reservoir safety
A42: WSX | B42: Other enhancement (Freeform lines - by exception) - Additional line 2; enhancement water capex - Total | C42: CW3_132TOT_PR24 | D42: 2.103642 | E42: 2.11416 | F42: 0 | G42: 0 | H42: 0 | I42: 4.217802 | K42: Water resilience and security - Security - Cyber; enhancement water totex - Total | L42: CW3_126TOT_PR24 | M42: 2.103642 | N42: 2.11416 | O42: 0 | P42: 0 | Q42: 0 | R42: 4.217802 | S42: eCAF
A43: WSX | B43: Other enhancement (Freeform lines - by exception) - Additional line 2; enhancement water opex - Total | C43: CW3_133TOT_PR24 | D43: 0.152261 | E43: 0.153023 | F43: 0.153787 | G43: 0.154557 | H43: 0.155329 | I43: 0.768957 | K43: Water resilience and security - Security - Cyber; enhancement water totex - Total | L43: CW3_126TOT_PR24 | M43: 0.152261 | N43: 0.153023 | O43: 0.153787 | P43: 0.154557 | Q43: 0.155329 | R43: 0.768957 | S43: eCAF
A44: YKY | B44: Other enhancement (Freeform lines - by exception) - Additional line 2; enhancement water capex - Total | C44: CW3_132TOT_PR24 | D44: 1.896 | E44: 2.403 | F44: 2.48 | G44: 2.135 | H44: 1.456 | I44: 10.37 | K44: Water resilience and security - Security - Cyber; enhancement water totex - Total | L44: CW3_126TOT_PR24 | M44: 1.896 | N44: 2.403 | O44: 2.48 | P44: 2.135 | Q44: 1.456 | R44: 10.37 | S44: Security Cyber eCAF
A45: YKY | B45: Other enhancement (Freeform lines - by exception) - Additional line 2; enhancement water opex - Total | C45: CW3_133TOT_PR24 | D45: 0 | E45: 0 | F45: 0 | G45: 0 | H45: 0 | I45: 0 | K45: Water resilience and security - Security - Cyber; enhancement water totex - Total | L45: CW3_126TOT_PR24 | M45: 0 | N45: 0 | O45: 0 | P45: 0 | Q45: 0 | R45: 0 | S45: Security Cyber eCAF

Sheet Consolidated Inputs
A1: =RIGHT(CELL("filename", $I$1), LEN(CELL("filename", $I$1)) - SEARCH("]", CELL("filename", $I$1))) -> 
F3: F_Inputs BP | G3: F_Inputs BP | H3: F_Inputs BP | I3: F_Inputs BP | J3: F_Inputs BP
A4: Acronym | B4: Reference | C4: Item description | D4: Unit | E4: Model | F4: 2025-26 | G4: 2026-27 | H4: 2027-28 | I4: 2028-29 | J4: 2029-30
A5: ='F_Inputs BP'!A9 -> ANH | B5: ='F_Inputs BP'!B9 -> CW3_130TOT_PR24 | C5: ='F_Inputs BP'!C9 -> Other enhancement (Freeform lines - by exception) - Additional line 1; enhancement water capex - Total | D5: ='F_Inputs BP'!D9 -> £m | E5: ='F_Inputs BP'!E9 -> Price Review 2024 | F5: ='F_Inputs BP'!F9-SUMIFS(Reallocations!M$4:M$362,Reallocations!$C$4:$C$362,$B5,Reallocations!$A$4:$A$362,$A5) -> 0 | G5: ='F_Inputs BP'!G9-SUMIFS(Reallocations!N$4:N$362,Reallocations!$C$4:$C$362,$B5,Reallocations!$A$4:$A$362,$A5) -> 0 | H5: ='F_Inputs BP'!H9-SUMIFS(Reallocations!O$4:O$362,Reallocations!$C$4:$C$362,$B5,Reallocations!$A$4:$A$362,$A5) -> 0 | I5: ='F_Inputs BP'!I9-SUMIFS(Reallocations!P$4:P$362,Reallocations!$C$4:$C$362,$B5,Reallocations!$A$4:$A$362,$A5) -> 0 | J5: ='F_Inputs BP'!J9-SUMIFS(Reallocations!Q$4:Q$362,Reallocations!$C$4:$C$362,$B5,Reallocations!$A$4:$A$362,$A5) -> 0
A6: ='F_Inputs BP'!A10 -> ANH | B6: ='F_Inputs BP'!B10 -> CW3_131TOT_PR24 | C6: ='F_Inputs BP'!C10 -> Other enhancement (Freeform lines - by exception) - Additional line 1; enhancement water opex - Total | D6: ='F_Inputs BP'!D10 -> £m | E6: ='F_Inputs BP'!E10 -> Price Review 2024 | F6: ='F_Inputs BP'!F10-SUMIFS(Reallocations!M$4:M$362,Reallocations!$C$4:$C$362,$B6,Reallocations!$A$4:$A$362,$A6) -> 0 | G6: ='F_Inputs BP'!G10-SUMIFS(Reallocations!N$4:N$362,Reallocations!$C$4:$C$362,$B6,Reallocations!$A$4:$A$362,$A6) -> 0 | H6: ='F_Inputs BP'!H10-SUMIFS(Reallocations!O$4:O$362,Reallocations!$C$4:$C$362,$B6,Reallocations!$A$4:$A$362,$A6) -> 0 | I6: ='F_Inputs BP'!I10-SUMIFS(Reallocations!P$4:P$362,Reallocations!$C$4:$C$362,$B6,Reallocations!$A$4:$A$362,$A6) -> 0 | J6: ='F_Inputs BP'!J10-SUMIFS(Reallocations!Q$4:Q$362,Reallocations!$C$4:$C$362,$B6,Reallocations!$A$4:$A$362,$A6) -> 0
A7: ='F_Inputs BP'!A11 -> ANH | B7: ='F_Inputs BP'!B11 -> CW3_132TOT_PR24 | C7: ='F_Inputs BP'!C11 -> Other enhancement (Freeform lines - by exception) - Additional line 2; enhancement water capex - Total | D7: ='F_Inputs BP'!D11 -> £m | E7: ='F_Inputs BP'!E11 -> Price Review 2024 | F7: ='F_Inputs BP'!F11-SUMIFS(Reallocations!M$4:M$362,Reallocations!$C$4:$C$362,$B7,Reallocations!$A$4:$A$362,$A7) -> 0 | G7: ='F_Inputs BP'!G11-SUMIFS(Reallocations!N$4:N$362,Reallocations!$C$4:$C$362,$B7,Reallocations!$A$4:$A$362,$A7) -> 0 | H7: ='F_Inputs BP'!H11-SUMIFS(Reallocations!O$4:O$362,Reallocations!$C$4:$C$362,$B7,Reallocations!$A$4:$A$362,$A7) -> 0 | I7: ='F_Inputs BP'!I11-SUMIFS(Reallocations!P$4:P$362,Reallocations!$C$4:$C$362,$B7,Reallocations!$A$4:$A$362,$A7) -> 0 | J7: ='F_Inputs BP'!J11-SUMIFS(Reallocations!Q$4:Q$362,Reallocations!$C$4:$C$362,$B7,Reallocations!$A$4:$A$362,$A7) -> 0
A8: ='F_Inputs BP'!A12 -> ANH | B8: ='F_Inputs BP'!B12 -> CW3_133TOT_PR24 | C8: ='F_Inputs BP'!C12 -> Other enhancement (Freeform lines - by exception) - Additional line 2; enhancement water opex - Total | D8: ='F_Inputs BP'!D12 -> £m | E8: ='F_Inputs BP'!E12 -> Price Review 2024 | F8: ='F_Inputs BP'!F12-SUMIFS(Reallocations!M$4:M$362,Reallocations!$C$4:$C$362,$B8,Reallocations!$A$4:$A$362,$A8) -> 0 | G8: ='F_Inputs BP'!G12-SUMIFS(Reallocations!N$4:N$362,Reallocations!$C$4:$C$362,$B8,Reallocations!$A$4:$A$362,$A8) -> 0 | H8: ='F_Inputs BP'!H12-SUMIFS(Reallocations!O$4:O$362,Reallocations!$C$4:$C$362,$B8,Reallocations!$A$4:$A$362,$A8) -> 0 | I8: ='F_Inputs BP'!I12-SUMIFS(Reallocations!P$4:P$362,Reallocations!$C$4:$C$362,$B8,Reallocations!$A$4:$A$362,$A8) -> 0 | J8: ='F_Inputs BP'!J12-SUMIFS(Reallocations!Q$4:Q$362,Reallocations!$C$4:$C$362,$B8,Reallocations!$A$4:$A$362,$A8) -> 0
A9: ='F_Inputs BP'!A13 -> ANH | B9: ='F_Inputs BP'!B13 -> CW3_134TOT_PR24 | C9: ='F_Inputs BP'!C13 -> Other enhancement (Freeform lines - by exception) - Additional line 3; enhancement water capex - Total | D9: ='F_Inputs BP'!D13 -> £m | E9: ='F_Inputs BP'!E13 -> Price Review 2024 | F9: ='F_Inputs BP'!F13-SUMIFS(Reallocations!M$4:M$362,Reallocations!$C$4:$C$362,$B9,Reallocations!$A$4:$A$362,$A9) -> 0 | G9: ='F_Inputs BP'!G13-SUMIFS(Reallocations!N$4:N$362,Reallocations!$C$4:$C$362,$B9,Reallocations!$A$4:$A$362,$A9) -> 0 | H9: ='F_Inputs BP'!H13-SUMIFS(Reallocations!O$4:O$362,Reallocations!$C$4:$C$362,$B9,Reallocations!$A$4:$A$362,$A9) -> 0 | I9: ='F_Inputs BP'!I13-SUMIFS(Reallocations!P$4:P$362,Reallocations!$C$4:$C$362,$B9,Reallocations!$A$4:$A$362,$A9) -> 0 | J9: ='F_Inputs BP'!J13-SUMIFS(Reallocations!Q$4:Q$362,Reallocations!$C$4:$C$362,$B9,Reallocations!$A$4:$A$362,$A9) -> 0
A10: ='F_Inputs BP'!A14 -> ANH | B10: ='F_Inputs BP'!B14 -> CW3_135TOT_PR24 | C10: ='F_Inputs BP'!C14 -> Other enhancement (Freeform lines - by exception) - Additional line 3; enhancement water opex - Total | D10: ='F_Inputs BP'!D14 -> £m | E10: ='F_Inputs BP'!E14 -> Price Review 2024 | F10: ='F_Inputs BP'!F14-SUMIFS(Reallocations!M$4:M$362,Reallocations!$C$4:$C$362,$B10,Reallocations!$A$4:$A$362,$A10) -> 0 | G10: ='F_Inputs BP'!G14-SUMIFS(Reallocations!N$4:N$362,Reallocations!$C$4:$C$362,$B10,Reallocations!$A$4:$A$362,$A10) -> 0 | H10: ='F_Inputs BP'!H14-SUMIFS(Reallocations!O$4:O$362,Reallocations!$C$4:$C$362,$B10,Reallocations!$A$4:$A$362,$A10) -> 0 | I10: ='F_Inputs BP'!I14-SUMIFS(Reallocations!P$4:P$362,Reallocations!$C$4:$C$362,$B10,Reallocations!$A$4:$A$362,$A10) -> 0 | J10: ='F_Inputs BP'!J14-SUMIFS(Reallocations!Q$4:Q$362,Reallocations!$C$4:$C$362,$B10,Reallocations!$A$4:$A$362,$A10) -> 0
A11: ='F_Inputs BP'!A15 -> ANH | B11: ='F_Inputs BP'!B15 -> CW3_136TOT_PR24 | C11: ='F_Inputs BP'!C15 -> Other enhancement (Freeform lines - by exception) - Additional line 4; enhancement water capex - Total | D11: ='F_Inputs BP'!D15 -> £m | E11: ='F_Inputs BP'!E15 -> Price Review 2024 | F11: ='F_Inputs BP'!F15-SUMIFS(Reallocations!M$4:M$362,Reallocations!$C$4:$C$362,$B11,Reallocations!$A$4:$A$362,$A11) -> 0 | G11: ='F_Inputs BP'!G15-SUMIFS(Reallocations!N$4:N$362,Reallocations!$C$4:$C$362,$B11,Reallocations!$A$4:$A$362,$A11) -> 0 | H11: ='F_Inputs BP'!H15-SUMIFS(Reallocations!O$4:O$362,Reallocations!$C$4:$C$362,$B11,Reallocations!$A$4:$A$362,$A11) -> 0 | I11: ='F_Inputs BP'!I15-SUMIFS(Reallocations!P$4:P$362,Reallocations!$C$4:$C$362,$B11,Reallocations!$A$4:$A$362,$A11) -> 0 | J11: ='F_Inputs BP'!J15-SUMIFS(Reallocations!Q$4:Q$362,Reallocations!$C$4:$C$362,$B11,Reallocations!$A$4:$A$362,$A11) -> 0
A12: ='F_Inputs BP'!A16 -> ANH | B12: ='F_Inputs BP'!B16 -> CW3_137TOT_PR24 | C12: ='F_Inputs BP'!C16 -> Other enhancement (Freeform lines - by exception) - Additional line 4; enhancement water opex - Total | D12: ='F_Inputs BP'!D16 -> £m | E12: ='F_Inputs BP'!E16 -> Price Review 2024 | F12: ='F_Inputs BP'!F16-SUMIFS(Reallocations!M$4:M$362,Reallocations!$C$4:$C$362,$B12,Reallocations!$A$4:$A$362,$A12) -> 0 | G12: ='F_Inputs BP'!G16-SUMIFS(Reallocations!N$4:N$362,Reallocations!$C$4:$C$362,$B12,Reallocations!$A$4:$A$362,$A12) -> 0 | H12: ='F_Inputs BP'!H16-SUMIFS(Reallocations!O$4:O$362,Reallocations!$C$4:$C$362,$B12,Reallocations!$A$4:$A$362,$A12) -> 0 | I12: ='F_Inputs BP'!I16-SUMIFS(Reallocations!P$4:P$362,Reallocations!$C$4:$C$362,$B12,Reallocations!$A$4:$A$362,$A12) -> 0 | J12: ='F_Inputs BP'!J16-SUMIFS(Reallocations!Q$4:Q$362,Reallocations!$C$4:$C$362,$B12,Reallocations!$A$4:$A$362,$A12) -> 0
A13: ='F_Inputs BP'!A17 -> ANH | B13: ='F_Inputs BP'!B17 -> CW3_138TOT_PR24 | C13: ='F_Inputs BP'!C17 -> Other enhancement (Freeform lines - by exception) - Additional line 5; enhancement water capex - Total | D13: ='F_Inputs BP'!D17 -> £m | E13: ='F_Inputs BP'!E17 -> Price Review 2024 | F13: ='F_Inputs BP'!F17-SUMIFS(Reallocations!M$4:M$362,Reallocations!$C$4:$C$362,$B13,Reallocations!$A$4:$A$362,$A13) -> 0 | G13: ='F_Inputs BP'!G17-SUMIFS(Reallocations!N$4:N$362,Reallocations!$C$4:$C$362,$B13,Reallocations!$A$4:$A$362,$A13) -> 0 | H13: ='F_Inputs BP'!H17-SUMIFS(Reallocations!O$4:O$362,Reallocations!$C$4:$C$362,$B13,Reallocations!$A$4:$A$362,$A13) -> 0 | I13: ='F_Inputs BP'!I17-SUMIFS(Reallocations!P$4:P$362,Reallocations!$C$4:$C$362,$B13,Reallocations!$A$4:$A$362,$A13) -> 0 | J13: ='F_Inputs BP'!J17-SUMIFS(Reallocations!Q$4:Q$362,Reallocations!$C$4:$C$362,$B13,Reallocations!$A$4:$A$362,$A13) -> 0
A14: ='F_Inputs BP'!A18 -> ANH | B14: ='F_Inputs BP'!B18 -> CW3_139TOT_PR24 | C14: ='F_Inputs BP'!C18 -> Other enhancement (Freeform lines - by exception) - Additional line 5; enhancement water opex - Total | D14: ='F_Inputs BP'!D18 -> £m | E14: ='F_Inputs BP'!E18 -> Price Review 2024 | F14: ='F_Inputs BP'!F18-SUMIFS(Reallocations!M$4:M$362,Reallocations!$C$4:$C$362,$B14,Reallocations!$A$4:$A$362,$A14) -> 0 | G14: ='F_Inputs BP'!G18-SUMIFS(Reallocations!N$4:N$362,Reallocations!$C$4:$C$362,$B14,Reallocations!$A$4:$A$362,$A14) -> 0 | H14: ='F_Inputs BP'!H18-SUMIFS(Reallocations!O$4:O$362,Reallocations!$C$4:$C$362,$B14,Reallocations!$A$4:$A$362,$A14) -> 0 | I14: ='F_Inputs BP'!I18-SUMIFS(Reallocations!P$4:P$362,Reallocations!$C$4:$C$362,$B14,Reallocations!$A$4:$A$362,$A14) -> 0 | J14: ='F_Inputs BP'!J18-SUMIFS(Reallocations!Q$4:Q$362,Reallocations!$C$4:$C$362,$B14,Reallocations!$A$4:$A$362,$A14) -> 0
A15: ='F_Inputs BP'!A19 -> ANH | B15: ='F_Inputs BP'!B19 -> CW1A_015TOT_PR24 | C15: ='F_Inputs BP'!C19 -> Net totex - Total | D15: ='F_Inputs BP'!D19 -> £m | E15: ='F_Inputs BP'!E19 -> Price Review 2024 | F15: ='F_Inputs BP'!F19-SUMIFS(Reallocations!M$4:M$362,Reallocations!$C$4:$C$362,$B15,Reallocations!$A$4:$A$362,$A15) -> 642.2760603 | G15: ='F_Inputs BP'!G19-SUMIFS(Reallocations!N$4:N$362,Reallocations!$C$4:$C$362,$B15,Reallocations!$A$4:$A$362,$A15) -> 768.1082597 | H15: ='F_Inputs BP'!H19-SUMIFS(Reallocations!O$4:O$362,Reallocations!$C$4:$C$362,$B15,Reallocations!$A$4:$A$362,$A15) -> 865.1307817 | I15: ='F_Inputs BP'!I19-SUMIFS(Reallocations!P$4:P$362,Reallocations!$C$4:$C$362,$B15,Reallocations!$A$4:$A$362,$A15) -> 933.8087939 | J15: ='F_Inputs BP'!J19-SUMIFS(Reallocations!Q$4:Q$362,Reallocations!$C$4:$C$362,$B15,Reallocations!$A$4:$A$362,$A15) -> 970.2019436
A16: ='F_Inputs BP'!A20 -> WSH | B16: ='F_Inputs BP'!B20 -> CW3_130TOT_PR24 | C16: ='F_Inputs BP'!C20 -> Other enhancement (Freeform lines - by exception) - Additional line 1; enhancement water capex - Total | D16: ='F_Inputs BP'!D20 -> £m | E16: ='F_Inputs BP'!E20 -> Price Review 2024 | F16: ='F_Inputs BP'!F20-SUMIFS(Reallocations!M$4:M$362,Reallocations!$C$4:$C$362,$B16,Reallocations!$A$4:$A$362,$A16) -> 0 | G16: ='F_Inputs BP'!G20-SUMIFS(Reallocations!N$4:N$362,Reallocations!$C$4:$C$362,$B16,Reallocations!$A$4:$A$362,$A16) -> 0 | H16: ='F_Inputs BP'!H20-SUMIFS(Reallocations!O$4:O$362,Reallocations!$C$4:$C$362,$B16,Reallocations!$A$4:$A$362,$A16) -> 0 | I16: ='F_Inputs BP'!I20-SUMIFS(Reallocations!P$4:P$362,Reallocations!$C$4:$C$362,$B16,Reallocations!$A$4:$A$362,$A16) -> 0 | J16: ='F_Inputs BP'!J20-SUMIFS(Reallocations!Q$4:Q$362,Reallocations!$C$4:$C$362,$B16,Reallocations!$A$4:$A$362,$A16) -> 0
A17: ='F_Inputs BP'!A21 -> WSH | B17: ='F_Inputs BP'!B21 -> CW3_131TOT_PR24 | C17: ='F_Inputs BP'!C21 -> Other enhancement (Freeform lines - by exception) - Additional line 1; enhancement water opex - Total | D17: ='F_Inputs BP'!D21 -> £m | E17: ='F_Inputs BP'!E21 -> Price Review 2024 | F17: ='F_Inputs BP'!F21-SUMIFS(Reallocations!M$4:M$362,Reallocations!$C$4:$C$362,$B17,Reallocations!$A$4:$A$362,$A17) -> 0 | G17: ='F_Inputs BP'!G21-SUMIFS(Reallocations!N$4:N$362,Reallocations!$C$4:$C$362,$B17,Reallocations!$A$4:$A$362,$A17) -> 0 | H17: ='F_Inputs BP'!H21-SUMIFS(Reallocations!O$4:O$362,Reallocations!$C$4:$C$362,$B17,Reallocations!$A$4:$A$362,$A17) -> 0 | I17: ='F_Inputs BP'!I21-SUMIFS(Reallocations!P$4:P$362,Reallocations!$C$4:$C$362,$B17,Reallocations!$A$4:$A$362,$A17) -> 0 | J17: ='F_Inputs BP'!J21-SUMIFS(Reallocations!Q$4:Q$362,Reallocations!$C$4:$C$362,$B17,Reallocations!$A$4:$A$362,$A17) -> 0
A18: ='F_Inputs BP'!A22 -> WSH | B18: ='F_Inputs BP'!B22 -> CW3_132TOT_PR24 | C18: ='F_Inputs BP'!C22 -> Other enhancement (Freeform lines - by exception) - Additional line 2; enhancement water capex - Total | D18: ='F_Inputs BP'!D22 -> £m | E18: ='F_Inputs BP'!E22 -> Price Review 2024 | F18: ='F_Inputs BP'!F22-SUMIFS(Reallocations!M$4:M$362,Reallocations!$C$4:$C$362,$B18,Reallocations!$A$4:$A$362,$A18) -> 1.358 | G18: ='F_Inputs BP'!G22-SUMIFS(Reallocations!N$4:N$362,Reallocations!$C$4:$C$362,$B18,Reallocations!$A$4:$A$362,$A18) -> 0.663 | H18: ='F_Inputs BP'!H22-SUMIFS(Reallocations!O$4:O$362,Reallocations!$C$4:$C$362,$B18,Reallocations!$A$4:$A$362,$A18) -> 0.655 | I18: ='F_Inputs BP'!I22-SUMIFS(Reallocations!P$4:P$362,Reallocations!$C$4:$C$362,$B18,Reallocations!$A$4:$A$362,$A18) -> 0.662 | J18: ='F_Inputs BP'!J22-SUMIFS(Reallocations!Q$4:Q$362,Reallocations!$C$4:$C$362,$B18,Reallocations!$A$4:$A$362,$A18) -> 0
A19: ='F_Inputs BP'!A23 -> WSH | B19: ='F_Inputs BP'!B23 -> CW3_133TOT_PR24 | C19: ='F_Inputs BP'!C23 -> Other enhancement (Freeform lines - by exception) - Additional line 2; enhancement water opex - Total | D19: ='F_Inputs BP'!D23 -> £m | E19: ='F_Inputs BP'!E23 -> Price Review 2024 | F19: ='F_Inputs BP'!F23-SUMIFS(Reallocations!M$4:M$362,Reallocations!$C$4:$C$362,$B19,Reallocations!$A$4:$A$362,$A19) -> 0 | G19: ='F_Inputs BP'!G23-SUMIFS(Reallocations!N$4:N$362,Reallocations!$C$4:$C$362,$B19,Reallocations!$A$4:$A$362,$A19) -> 0 | H19: ='F_Inputs BP'!H23-SUMIFS(Reallocations!O$4:O$362,Reallocations!$C$4:$C$362,$B19,Reallocations!$A$4:$A$362,$A19) -> 0 | I19: ='F_Inputs BP'!I23-SUMIFS(Reallocations!P$4:P$362,Reallocations!$C$4:$C$362,$B19,Reallocations!$A$4:$A$362,$A19) -> 0 | J19: ='F_Inputs BP'!J23-SUMIFS(Reallocations!Q$4:Q$362,Reallocations!$C$4:$C$362,$B19,Reallocations!$A$4:$A$362,$A19) -> 0
A20: ='F_Inputs BP'!A24 -> WSH | B20: ='F_Inputs BP'!B24 -> CW3_134TOT_PR24 | C20: ='F_Inputs BP'!C24 -> Other enhancement (Freeform lines - by exception) - Additional line 3; enhancement water capex - Total | D20: ='F_Inputs BP'!D24 -> £m | E20: ='F_Inputs BP'!E24 -> Price Review 2024 | F20: ='F_Inputs BP'!F24-SUMIFS(Reallocations!M$4:M$362,Reallocations!$C$4:$C$362,$B20,Reallocations!$A$4:$A$362,$A20) -> 6.149 | G20: ='F_Inputs BP'!G24-SUMIFS(Reallocations!N$4:N$362,Reallocations!$C$4:$C$362,$B20,Reallocations!$A$4:$A$362,$A20) -> 3.87 | H20: ='F_Inputs BP'!H24-SUMIFS(Reallocations!O$4:O$362,Reallocations!$C$4:$C$362,$B20,Reallocations!$A$4:$A$362,$A20) -> 3.877 | I20: ='F_Inputs BP'!I24-SUMIFS(Reallocations!P$4:P$362,Reallocations!$C$4:$C$362,$B20,Reallocations!$A$4:$A$362,$A20) -> 4.394 | J20: ='F_Inputs BP'!J24-SUMIFS(Reallocations!Q$4:Q$362,Reallocations!$C$4:$C$362,$B20,Reallocations!$A$4:$A$362,$A20) -> 6.178
A21: ='F_Inputs BP'!A25 -> WSH | B21: ='F_Inputs BP'!B25 -> CW3_135TOT_PR24 | C21: ='F_Inputs BP'!C25 -> Other enhancement (Freeform lines - by exception) - Additional line 3; enhancement water opex - Total | D21: ='F_Inputs BP'!D25 -> £m | E21: ='F_Inputs BP'!E25 -> Price Review 2024 | F21: ='F_Inputs BP'!F25-SUMIFS(Reallocations!M$4:M$362,Reallocations!$C$4:$C$362,$B21,Reallocations!$A$4:$A$362,$A21) -> 0 | G21: ='F_Inputs BP'!G25-SUMIFS(Reallocations!N$4:N$362,Reallocations!$C$4:$C$362,$B21,Reallocations!$A$4:$A$362,$A21) -> 0 | H21: ='F_Inputs BP'!H25-SUMIFS(Reallocations!O$4:O$362,Reallocations!$C$4:$C$362,$B21,Reallocations!$A$4:$A$362,$A21) -> 0 | I21: ='F_Inputs BP'!I25-SUMIFS(Reallocations!P$4:P$362,Reallocations!$C$4:$C$362,$B21,Reallocations!$A$4:$A$362,$A21) -> 0 | J21: ='F_Inputs BP'!J25-SUMIFS(Reallocations!Q$4:Q$362,Reallocations!$C$4:$C$362,$B21,Reallocations!$A$4:$A$362,$A21) -> 0
A22: ='F_Inputs BP'!A26 -> WSH | B22: ='F_Inputs BP'!B26 -> CW3_136TOT_PR24 | C22: ='F_Inputs BP'!C26 -> Other enhancement (Freeform lines - by exception) - Additional line 4; enhancement water capex - Total | D22: ='F_Inputs BP'!D26 -> £m | E22: ='F_Inputs BP'!E26 -> Price Review 2024 | F22: ='F_Inputs BP'!F26-SUMIFS(Reallocations!M$4:M$362,Reallocations!$C$4:$C$362,$B22,Reallocations!$A$4:$A$362,$A22) -> 0 | G22: ='F_Inputs BP'!G26-SUMIFS(Reallocations!N$4:N$362,Reallocations!$C$4:$C$362,$B22,Reallocations!$A$4:$A$362,$A22) -> 0 | H22: ='F_Inputs BP'!H26-SUMIFS(Reallocations!O$4:O$362,Reallocations!$C$4:$C$362,$B22,Reallocations!$A$4:$A$362,$A22) -> 0 | I22: ='F_Inputs BP'!I26-SUMIFS(Reallocations!P$4:P$362,Reallocations!$C$4:$C$362,$B22,Reallocations!$A$4:$A$362,$A22) -> 0 | J22: ='F_Inputs BP'!J26-SUMIFS(Reallocations!Q$4:Q$362,Reallocations!$C$4:$C$362,$B22,Reallocations!$A$4:$A$362,$A22) -> 0
A23: ='F_Inputs BP'!A27 -> WSH | B23: ='F_Inputs BP'!B27 -> CW3_137TOT_PR24 | C23: ='F_Inputs BP'!C27 -> Other enhancement (Freeform lines - by exception) - Additional line 4; enhancement water opex - Total | D23: ='F_Inputs BP'!D27 -> £m | E23: ='F_Inputs BP'!E27 -> Price Review 2024 | F23: ='F_Inputs BP'!F27-SUMIFS(Reallocations!M$4:M$362,Reallocations!$C$4:$C$362,$B23,Reallocations!$A$4:$A$362,$A23) -> 0 | G23: ='F_Inputs BP'!G27-SUMIFS(Reallocations!N$4:N$362,Reallocations!$C$4:$C$362,$B23,Reallocations!$A$4:$A$362,$A23) -> 0 | H23: ='F_Inputs BP'!H27-SUMIFS(Reallocations!O$4:O$362,Reallocations!$C$4:$C$362,$B23,Reallocations!$A$4:$A$362,$A23) -> 0 | I23: ='F_Inputs BP'!I27-SUMIFS(Reallocations!P$4:P$362,Reallocations!$C$4:$C$362,$B23,Reallocations!$A$4:$A$362,$A23) -> 0 | J23: ='F_Inputs BP'!J27-SUMIFS(Reallocations!Q$4:Q$362,Reallocations!$C$4:$C$362,$B23,Reallocations!$A$4:$A$362,$A23) -> 0
A24: ='F_Inputs BP'!A28 -> WSH | B24: ='F_Inputs BP'!B28 -> CW3_138TOT_PR24 | C24: ='F_Inputs BP'!C28 -> Other enhancement (Freeform lines - by exception) - Additional line 5; enhancement water capex - Total | D24: ='F_Inputs BP'!D28 -> £m | E24: ='F_Inputs BP'!E28 -> Price Review 2024 | F24: ='F_Inputs BP'!F28-SUMIFS(Reallocations!M$4:M$362,Reallocations!$C$4:$C$362,$B24,Reallocations!$A$4:$A$362,$A24) -> 0 | G24: ='F_Inputs BP'!G28-SUMIFS(Reallocations!N$4:N$362,Reallocations!$C$4:$C$362,$B24,Reallocations!$A$4:$A$362,$A24) -> 0 | H24: ='F_Inputs BP'!H28-SUMIFS(Reallocations!O$4:O$362,Reallocations!$C$4:$C$362,$B24,Reallocations!$A$4:$A$362,$A24) -> 0 | I24: ='F_Inputs BP'!I28-SUMIFS(Reallocations!P$4:P$362,Reallocations!$C$4:$C$362,$B24,Reallocations!$A$4:$A$362,$A24) -> 0 | J24: ='F_Inputs BP'!J28-SUMIFS(Reallocations!Q$4:Q$362,Reallocations!$C$4:$C$362,$B24,Reallocations!$A$4:$A$362,$A24) -> 0
A25: ='F_Inputs BP'!A29 -> WSH | B25: ='F_Inputs BP'!B29 -> CW3_139TOT_PR24 | C25: ='F_Inputs BP'!C29 -> Other enhancement (Freeform lines - by exception) - Additional line 5; enhancement water opex - Total | D25: ='F_Inputs BP'!D29 -> £m | E25: ='F_Inputs BP'!E29 -> Price Review 2024 | F25: ='F_Inputs BP'!F29-SUMIFS(Reallocations!M$4:M$362,Reallocations!$C$4:$C$362,$B25,Reallocations!$A$4:$A$362,$A25) -> 0 | G25: ='F_Inputs BP'!G29-SUMIFS(Reallocations!N$4:N$362,Reallocations!$C$4:$C$362,$B25,Reallocations!$A$4:$A$362,$A25) -> 0 | H25: ='F_Inputs BP'!H29-SUMIFS(Reallocations!O$4:O$362,Reallocations!$C$4:$C$362,$B25,Reallocations!$A$4:$A$362,$A25) -> 0 | I25: ='F_Inputs BP'!I29-SUMIFS(Reallocations!P$4:P$362,Reallocations!$C$4:$C$362,$B25,Reallocations!$A$4:$A$362,$A25) -> 0 | J25: ='F_Inputs BP'!J29-SUMIFS(Reallocations!Q$4:Q$362,Reallocations!$C$4:$C$362,$B25,Reallocations!$A$4:$A$362,$A25) -> 0
A26: ='F_Inputs BP'!A30 -> WSH | B26: ='F_Inputs BP'!B30 -> CW1A_015TOT_PR24 | C26: ='F_Inputs BP'!C30 -> Net totex - Total | D26: ='F_Inputs BP'!D30 -> £m | E26: ='F_Inputs BP'!E30 -> Price Review 2024 | F26: ='F_Inputs BP'!F30-SUMIFS(Reallocations!M$4:M$362,Reallocations!$C$4:$C$362,$B26,Reallocations!$A$4:$A$362,$A26) -> 473.339 | G26: ='F_Inputs BP'!G30-SUMIFS(Reallocations!N$4:N$362,Reallocations!$C$4:$C$362,$B26,Reallocations!$A$4:$A$362,$A26) -> 490.418 | H26: ='F_Inputs BP'!H30-SUMIFS(Reallocations!O$4:O$362,Reallocations!$C$4:$C$362,$B26,Reallocations!$A$4:$A$362,$A26) -> 483.149 | I26: ='F_Inputs BP'!I30-SUMIFS(Reallocations!P$4:P$362,Reallocations!$C$4:$C$362,$B26,Reallocations!$A$4:$A$362,$A26) -> 471.888 | J26: ='F_Inputs BP'!J30-SUMIFS(Reallocations!Q$4:Q$362,Reallocations!$C$4:$C$362,$B26,Reallocations!$A$4:$A$362,$A26) -> 446.842
A27: ='F_Inputs BP'!A31 -> HDD | B27: ='F_Inputs BP'!B31 -> CW3_130TOT_PR24 | C27: ='F_Inputs BP'!C31 -> Other enhancement (Freeform lines - by exception) - Additional line 1; enhancement water capex - Total | D27: ='F_Inputs BP'!D31 -> £m | E27: ='F_Inputs BP'!E31 -> Price Review 2024 | F27: ='F_Inputs BP'!F31-SUMIFS(Reallocations!M$4:M$362,Reallocations!$C$4:$C$362,$B27,Reallocations!$A$4:$A$362,$A27) -> 0 | G27: ='F_Inputs BP'!G31-SUMIFS(Reallocations!N$4:N$362,Reallocations!$C$4:$C$362,$B27,Reallocations!$A$4:$A$362,$A27) -> 0 | H27: ='F_Inputs BP'!H31-SUMIFS(Reallocations!O$4:O$362,Reallocations!$C$4:$C$362,$B27,Reallocations!$A$4:$A$362,$A27) -> 0 | I27: ='F_Inputs BP'!I31-SUMIFS(Reallocations!P$4:P$362,Reallocations!$C$4:$C$362,$B27,Reallocations!$A$4:$A$362,$A27) -> 0 | J27: ='F_Inputs BP'!J31-SUMIFS(Reallocations!Q$4:Q$362,Reallocations!$C$4:$C$362,$B27,Reallocations!$A$4:$A$362,$A27) -> 0
A28: ='F_Inputs BP'!A32 -> HDD | B28: ='F_Inputs BP'!B32 -> CW3_131TOT_PR24 | C28: ='F_Inputs BP'!C32 -> Other enhancement (Freeform lines - by exception) - Additional line 1; enhancement water opex - Total | D28: ='F_Inputs BP'!D32 -> £m | E28: ='F_Inputs BP'!E32 -> Price Review 2024 | F28: ='F_Inputs BP'!F32-SUMIFS(Reallocations!M$4:M$362,Reallocations!$C$4:$C$362,$B28,Reallocations!$A$4:$A$362,$A28) -> 0 | G28: ='F_Inputs BP'!G32-SUMIFS(Reallocations!N$4:N$362,Reallocations!$C$4:$C$362,$B28,Reallocations!$A$4:$A$362,$A28) -> 0 | H28: ='F_Inputs BP'!H32-SUMIFS(Reallocations!O$4:O$362,Reallocations!$C$4:$C$362,$B28,Reallocations!$A$4:$A$362,$A28) -> 0 | I28: ='F_Inputs BP'!I32-SUMIFS(Reallocations!P$4:P$362,Reallocations!$C$4:$C$362,$B28,Reallocations!$A$4:$A$362,$A28) -> 0 | J28: ='F_Inputs BP'!J32-SUMIFS(Reallocations!Q$4:Q$362,Reallocations!$C$4:$C$362,$B28,Reallocations!$A$4:$A$362,$A28) -> 0
A29: ='F_Inputs BP'!A33 -> HDD | B29: ='F_Inputs BP'!B33 -> CW3_132TOT_PR24 | C29: ='F_Inputs BP'!C33 -> Other enhancement (Freeform lines - by exception) - Additional line 2; enhancement water capex - Total | D29: ='F_Inputs BP'!D33 -> £m | E29: ='F_Inputs BP'!E33 -> Price Review 2024 | F29: ='F_Inputs BP'!F33-SUMIFS(Reallocations!M$4:M$362,Reallocations!$C$4:$C$362,$B29,Reallocations!$A$4:$A$362,$A29) -> 0 | G29: ='F_Inputs BP'!G33-SUMIFS(Reallocations!N$4:N$362,Reallocations!$C$4:$C$362,$B29,Reallocations!$A$4:$A$362,$A29) -> 0 | H29: ='F_Inputs BP'!H33-SUMIFS(Reallocations!O$4:O$362,Reallocations!$C$4:$C$362,$B29,Reallocations!$A$4:$A$362,$A29) -> 0 | I29: ='F_Inputs BP'!I33-SUMIFS(Reallocations!P$4:P$362,Reallocations!$C$4:$C$362,$B29,Reallocations!$A$4:$A$362,$A29) -> 0 | J29: ='F_Inputs BP'!J33-SUMIFS(Reallocations!Q$4:Q$362,Reallocations!$C$4:$C$362,$B29,Reallocations!$A$4:$A$362,$A29) -> 0
A30: ='F_Inputs BP'!A34 -> HDD | B30: ='F_Inputs BP'!B34 -> CW3_133TOT_PR24 | C30: ='F_Inputs BP'!C34 -> Other enhancement (Freeform lines - by exception) - Additional line 2; enhancement water opex - Total | D30: ='F_Inputs BP'!D34 -> £m | E30: ='F_Inputs BP'!E34 -> Price Review 2024 | F30: ='F_Inputs BP'!F34-SUMIFS(Reallocations!M$4:M$362,Reallocations!$C$4:$C$362,$B30,Reallocations!$A$4:$A$362,$A30) -> 0 | G30: ='F_Inputs BP'!G34-SUMIFS(Reallocations!N$4:N$362,Reallocations!$C$4:$C$362,$B30,Reallocations!$A$4:$A$362,$A30) -> 0 | H30: ='F_Inputs BP'!H34-SUMIFS(Reallocations!O$4:O$362,Reallocations!$C$4:$C$362,$B30,Reallocations!$A$4:$A$362,$A30) -> 0 | I30: ='F_Inputs BP'!I34-SUMIFS(Reallocations!P$4:P$362,Reallocations!$C$4:$C$362,$B30,Reallocations!$A$4:$A$362,$A30) -> 0 | J30: ='F_Inputs BP'!J34-SUMIFS(Reallocations!Q$4:Q$362,Reallocations!$C$4:$C$362,$B30,Reallocations!$A$4:$A$362,$A30) -> 0
A31: ='F_Inputs BP'!A35 -> HDD | B31: ='F_Inputs BP'!B35 -> CW3_134TOT_PR24 | C31: ='F_Inputs BP'!C35 -> Other enhancement (Freeform lines - by exception) - Additional line 3; enhancement water capex - Total | D31: ='F_Inputs BP'!D35 -> £m | E31: ='F_Inputs BP'!E35 -> Price Review 2024 | F31: ='F_Inputs BP'!F35-SUMIFS(Reallocations!M$4:M$362,Reallocations!$C$4:$C$362,$B31,Reallocations!$A$4:$A$362,$A31) -> 0 | G31: ='F_Inputs BP'!G35-SUMIFS(Reallocations!N$4:N$362,Reallocations!$C$4:$C$362,$B31,Reallocations!$A$4:$A$362,$A31) -> 0 | H31: ='F_Inputs BP'!H35-SUMIFS(Reallocations!O$4:O$362,Reallocations!$C$4:$C$362,$B31,Reallocations!$A$4:$A$362,$A31) -> 0 | I31: ='F_Inputs BP'!I35-SUMIFS(Reallocations!P$4:P$362,Reallocations!$C$4:$C$362,$B31,Reallocations!$A$4:$A$362,$A31) -> 0 | J31: ='F_Inputs BP'!J35-SUMIFS(Reallocations!Q$4:Q$362,Reallocations!$C$4:$C$362,$B31,Reallocations!$A$4:$A$362,$A31) -> 0
A32: ='F_Inputs BP'!A36 -> HDD | B32: ='F_Inputs BP'!B36 -> CW3_135TOT_PR24 | C32: ='F_Inputs BP'!C36 -> Other enhancement (Freeform lines - by exception) - Additional line 3; enhancement water opex - Total | D32: ='F_Inputs BP'!D36 -> £m | E32: ='F_Inputs BP'!E36 -> Price Review 2024 | F32: ='F_Inputs BP'!F36-SUMIFS(Reallocations!M$4:M$362,Reallocations!$C$4:$C$362,$B32,Reallocations!$A$4:$A$362,$A32) -> 0 | G32: ='F_Inputs BP'!G36-SUMIFS(Reallocations!N$4:N$362,Reallocations!$C$4:$C$362,$B32,Reallocations!$A$4:$A$362,$A32) -> 0 | H32: ='F_Inputs BP'!H36-SUMIFS(Reallocations!O$4:O$362,Reallocations!$C$4:$C$362,$B32,Reallocations!$A$4:$A$362,$A32) -> 0 | I32: ='F_Inputs BP'!I36-SUMIFS(Reallocations!P$4:P$362,Reallocations!$C$4:$C$362,$B32,Reallocations!$A$4:$A$362,$A32) -> 0 | J32: ='F_Inputs BP'!J36-SUMIFS(Reallocations!Q$4:Q$362,Reallocations!$C$4:$C$362,$B32,Reallocations!$A$4:$A$362,$A32) -> 0
A33: ='F_Inputs BP'!A37 -> HDD | B33: ='F_Inputs BP'!B37 -> CW3_136TOT_PR24 | C33: ='F_Inputs BP'!C37 -> Other enhancement (Freeform lines - by exception) - Additional line 4; enhancement water capex - Total | D33: ='F_Inputs BP'!D37 -> £m | E33: ='F_Inputs BP'!E37 -> Price Review 2024 | F33: ='F_Inputs BP'!F37-SUMIFS(Reallocations!M$4:M$362,Reallocations!$C$4:$C$362,$B33,Reallocations!$A$4:$A$362,$A33) -> 0 | G33: ='F_Inputs BP'!G37-SUMIFS(Reallocations!N$4:N$362,Reallocations!$C$4:$C$362,$B33,Reallocations!$A$4:$A$362,$A33) -> 0 | H33: ='F_Inputs BP'!H37-SUMIFS(Reallocations!O$4:O$362,Reallocations!$C$4:$C$362,$B33,Reallocations!$A$4:$A$362,$A33) -> 0 | I33: ='F_Inputs BP'!I37-SUMIFS(Reallocations!P$4:P$362,Reallocations!$C$4:$C$362,$B33,Reallocations!$A$4:$A$362,$A33) -> 0 | J33: ='F_Inputs BP'!J37-SUMIFS(Reallocations!Q$4:Q$362,Reallocations!$C$4:$C$362,$B33,Reallocations!$A$4:$A$362,$A33) -> 0
A34: ='F_Inputs BP'!A38 -> HDD | B34: ='F_Inputs BP'!B38 -> CW3_137TOT_PR24 | C34: ='F_Inputs BP'!C38 -> Other enhancement (Freeform lines - by exception) - Additional line 4; enhancement water opex - Total | D34: ='F_Inputs BP'!D38 -> £m | E34: ='F_Inputs BP'!E38 -> Price Review 2024 | F34: ='F_Inputs BP'!F38-SUMIFS(Reallocations!M$4:M$362,Reallocations!$C$4:$C$362,$B34,Reallocations!$A$4:$A$362,$A34) -> 0 | G34: ='F_Inputs BP'!G38-SUMIFS(Reallocations!N$4:N$362,Reallocations!$C$4:$C$362,$B34,Reallocations!$A$4:$A$362,$A34) -> 0 | H34: ='F_Inputs BP'!H38-SUMIFS(Reallocations!O$4:O$362,Reallocations!$C$4:$C$362,$B34,Reallocations!$A$4:$A$362,$A34) -> 0 | I34: ='F_Inputs BP'!I38-SUMIFS(Reallocations!P$4:P$362,Reallocations!$C$4:$C$362,$B34,Reallocations!$A$4:$A$362,$A34) -> 0 | J34: ='F_Inputs BP'!J38-SUMIFS(Reallocations!Q$4:Q$362,Reallocations!$C$4:$C$362,$B34,Reallocations!$A$4:$A$362,$A34) -> 0
A35: ='F_Inputs BP'!A39 -> HDD | B35: ='F_Inputs BP'!B39 -> CW3_138TOT_PR24 | C35: ='F_Inputs BP'!C39 -> Other enhancement (Freeform lines - by exception) - Additional line 5; enhancement water capex - Total | D35: ='F_Inputs BP'!D39 -> £m | E35: ='F_Inputs BP'!E39 -> Price Review 2024 | F35: ='F_Inputs BP'!F39-SUMIFS(Reallocations!M$4:M$362,Reallocations!$C$4:$C$362,$B35,Reallocations!$A$4:$A$362,$A35) -> 0.05 | G35: ='F_Inputs BP'!G39-SUMIFS(Reallocations!N$4:N$362,Reallocations!$C$4:$C$362,$B35,Reallocations!$A$4:$A$362,$A35) -> 0.05 | H35: ='F_Inputs BP'!H39-SUMIFS(Reallocations!O$4:O$362,Reallocations!$C$4:$C$362,$B35,Reallocations!$A$4:$A$362,$A35) -> 0.05 | I35: ='F_Inputs BP'!I39-SUMIFS(Reallocations!P$4:P$362,Reallocations!$C$4:$C$362,$B35,Reallocations!$A$4:$A$362,$A35) -> 0.05 | J35: ='F_Inputs BP'!J39-SUMIFS(Reallocations!Q$4:Q$362,Reallocations!$C$4:$C$362,$B35,Reallocations!$A$4:$A$362,$A35) -> 0.05
A36: ='F_Inputs BP'!A40 -> HDD | B36: ='F_Inputs BP'!B40 -> CW3_139TOT_PR24 | C36: ='F_Inputs BP'!C40 -> Other enhancement (Freeform lines - by exception) - Additional line 5; enhancement water opex - Total | D36: ='F_Inputs BP'!D40 -> £m | E36: ='F_Inputs BP'!E40 -> Price Review 2024 | F36: ='F_Inputs BP'!F40-SUMIFS(Reallocations!M$4:M$362,Reallocations!$C$4:$C$362,$B36,Reallocations!$A$4:$A$362,$A36) -> 0 | G36: ='F_Inputs BP'!G40-SUMIFS(Reallocations!N$4:N$362,Reallocations!$C$4:$C$362,$B36,Reallocations!$A$4:$A$362,$A36) -> 0 | H36: ='F_Inputs BP'!H40-SUMIFS(Reallocations!O$4:O$362,Reallocations!$C$4:$C$362,$B36,Reallocations!$A$4:$A$362,$A36) -> 0 | I36: ='F_Inputs BP'!I40-SUMIFS(Reallocations!P$4:P$362,Reallocations!$C$4:$C$362,$B36,Reallocations!$A$4:$A$362,$A36) -> 0 | J36: ='F_Inputs BP'!J40-SUMIFS(Reallocations!Q$4:Q$362,Reallocations!$C$4:$C$362,$B36,Reallocations!$A$4:$A$362,$A36) -> 0
A37: ='F_Inputs BP'!A41 -> HDD | B37: ='F_Inputs BP'!B41 -> CW1A_015TOT_PR24 | C37: ='F_Inputs BP'!C41 -> Net totex - Total | D37: ='F_Inputs BP'!D41 -> £m | E37: ='F_Inputs BP'!E41 -> Price Review 2024 | F37: ='F_Inputs BP'!F41-SUMIFS(Reallocations!M$4:M$362,Reallocations!$C$4:$C$362,$B37,Reallocations!$A$4:$A$362,$A37) -> 43.69230674 | G37: ='F_Inputs BP'!G41-SUMIFS(Reallocations!N$4:N$362,Reallocations!$C$4:$C$362,$B37,Reallocations!$A$4:$A$362,$A37) -> 43.00992768 | H37: ='F_Inputs BP'!H41-SUMIFS(Reallocations!O$4:O$362,Reallocations!$C$4:$C$362,$B37,Reallocations!$A$4:$A$362,$A37) -> 38.76647658 | I37: ='F_Inputs BP'!I41-SUMIFS(Reallocations!P$4:P$362,Reallocations!$C$4:$C$362,$B37,Reallocations!$A$4:$A$362,$A37) -> 38.26094466 | J37: ='F_Inputs BP'!J41-SUMIFS(Reallocations!Q$4:Q$362,Reallocations!$C$4:$C$362,$B37,Reallocations!$A$4:$A$362,$A37) -> 39.26325025
A38: ='F_Inputs BP'!A42 -> NES | B38: ='F_Inputs BP'!B42 -> CW3_130TOT_PR24 | C38: ='F_Inputs BP'!C42 -> Other enhancement (Freeform lines - by exception) - Additional line 1; enhancement water capex - Total | D38: ='F_Inputs BP'!D42 -> £m | E38: ='F_Inputs BP'!E42 -> Price Review 2024 | F38: ='F_Inputs BP'!F42-SUMIFS(Reallocations!M$4:M$362,Reallocations!$C$4:$C$362,$B38,Reallocations!$A$4:$A$362,$A38) -> 0 | G38: ='F_Inputs BP'!G42-SUMIFS(Reallocations!N$4:N$362,Reallocations!$C$4:$C$362,$B38,Reallocations!$A$4:$A$362,$A38) -> 0 | H38: ='F_Inputs BP'!H42-SUMIFS(Reallocations!O$4:O$362,Reallocations!$C$4:$C$362,$B38,Reallocations!$A$4:$A$362,$A38) -> 0 | I38: ='F_Inputs BP'!I42-SUMIFS(Reallocations!P$4:P$362,Reallocations!$C$4:$C$362,$B38,Reallocations!$A$4:$A$362,$A38) -> 0 | J38: ='F_Inputs BP'!J42-SUMIFS(Reallocations!Q$4:Q$362,Reallocations!$C$4:$C$362,$B38,Reallocations!$A$4:$A$362,$A38) -> 0
A39: ='F_Inputs BP'!A43 -> NES | B39: ='F_Inputs BP'!B43 -> CW3_131TOT_PR24 | C39: ='F_Inputs BP'!C43 -> Other enhancement (Freeform lines - by exception) - Additional line 1; enhancement water opex - Total | D39: ='F_Inputs BP'!D43 -> £m | E39: ='F_Inputs BP'!E43 -> Price Review 2024 | F39: ='F_Inputs BP'!F43-SUMIFS(Reallocations!M$4:M$362,Reallocations!$C$4:$C$362,$B39,Reallocations!$A$4:$A$362,$A39) -> 0 | G39: ='F_Inputs BP'!G43-SUMIFS(Reallocations!N$4:N$362,Reallocations!$C$4:$C$362,$B39,Reallocations!$A$4:$A$362,$A39) -> 0 | H39: ='F_Inputs BP'!H43-SUMIFS(Reallocations!O$4:O$362,Reallocations!$C$4:$C$362,$B39,Reallocations!$A$4:$A$362,$A39) -> 0 | I39: ='F_Inputs BP'!I43-SUMIFS(Reallocations!P$4:P$362,Reallocations!$C$4:$C$362,$B39,Reallocations!$A$4:$A$362,$A39) -> 0 | J39: ='F_Inputs BP'!J43-SUMIFS(Reallocations!Q$4:Q$362,Reallocations!$C$4:$C$362,$B39,Reallocations!$A$4:$A$362,$A39) -> 0
A40: ='F_Inputs BP'!A44 -> NES | B40: ='F_Inputs BP'!B44 -> CW3_132TOT_PR24 | C40: ='F_Inputs BP'!C44 -> Other enhancement (Freeform lines - by exception) - Additional line 2; enhancement water capex - Total | D40: ='F_Inputs BP'!D44 -> £m | E40: ='F_Inputs BP'!E44 -> Price Review 2024 | F40: ='F_Inputs BP'!F44-SUMIFS(Reallocations!M$4:M$362,Reallocations!$C$4:$C$362,$B40,Reallocations!$A$4:$A$362,$A40) -> 0 | G40: ='F_Inputs BP'!G44-SUMIFS(Reallocations!N$4:N$362,Reallocations!$C$4:$C$362,$B40,Reallocations!$A$4:$A$362,$A40) -> 0 | H40: ='F_Inputs BP'!H44-SUMIFS(Reallocations!O$4:O$362,Reallocations!$C$4:$C$362,$B40,Reallocations!$A$4:$A$362,$A40) -> 0 | I40: ='F_Inputs BP'!I44-SUMIFS(Reallocations!P$4:P$362,Reallocations!$C$4:$C$362,$B40,Reallocations!$A$4:$A$362,$A40) -> 0 | J40: ='F_Inputs BP'!J44-SUMIFS(Reallocations!Q$4:Q$362,Reallocations!$C$4:$C$362,$B40,Reallocations!$A$4:$A$362,$A40) -> 0
A41: ='F_Inputs BP'!A45 -> NES | B41: ='F_Inputs BP'!B45 -> CW3_133TOT_PR24 | C41: ='F_Inputs BP'!C45 -> Other enhancement (Freeform lines - by exception) - Additional line 2; enhancement water opex - Total | D41: ='F_Inputs BP'!D45 -> £m | E41: ='F_Inputs BP'!E45 -> Price Review 2024 | F41: ='F_Inputs BP'!F45-SUMIFS(Reallocations!M$4:M$362,Reallocations!$C$4:$C$362,$B41,Reallocations!$A$4:$A$362,$A41) -> 0 | G41: ='F_Inputs BP'!G45-SUMIFS(Reallocations!N$4:N$362,Reallocations!$C$4:$C$362,$B41,Reallocations!$A$4:$A$362,$A41) -> 0 | H41: ='F_Inputs BP'!H45-SUMIFS(Reallocations!O$4:O$362,Reallocations!$C$4:$C$362,$B41,Reallocations!$A$4:$A$362,$A41) -> 0 | I41: ='F_Inputs BP'!I45-SUMIFS(Reallocations!P$4:P$362,Reallocations!$C$4:$C$362,$B41,Reallocations!$A$4:$A$362,$A41) -> 0 | J41: ='F_Inputs BP'!J45-SUMIFS(Reallocations!Q$4:Q$362,Reallocations!$C$4:$C$362,$B41,Reallocations!$A$4:$A$362,$A41) -> 0
A42: ='F_Inputs BP'!A46 -> NES | B42: ='F_Inputs BP'!B46 -> CW3_134TOT_PR24 | C42: ='F_Inputs BP'!C46 -> Other enhancement (Freeform lines - by exception) - Additional line 3; enhancement water capex - Total | D42: ='F_Inputs BP'!D46 -> £m | E42: ='F_Inputs BP'!E46 -> Price Review 2024 | F42: ='F_Inputs BP'!F46-SUMIFS(Reallocations!M$4:M$362,Reallocations!$C$4:$C$362,$B42,Reallocations!$A$4:$A$362,$A42) -> 0 | G42: ='F_Inputs BP'!G46-SUMIFS(Reallocations!N$4:N$362,Reallocations!$C$4:$C$362,$B42,Reallocations!$A$4:$A$362,$A42) -> 0 | H42: ='F_Inputs BP'!H46-SUMIFS(Reallocations!O$4:O$362,Reallocations!$C$4:$C$362,$B42,Reallocations!$A$4:$A$362,$A42) -> 0 | I42: ='F_Inputs BP'!I46-SUMIFS(Reallocations!P$4:P$362,Reallocations!$C$4:$C$362,$B42,Reallocations!$A$4:$A$362,$A42) -> 0 | J42: ='F_Inputs BP'!J46-SUMIFS(Reallocations!Q$4:Q$362,Reallocations!$C$4:$C$362,$B42,Reallocations!$A$4:$A$362,$A42) -> 0
A43: ='F_Inputs BP'!A47 -> NES | B43: ='F_Inputs BP'!B47 -> CW3_135TOT_PR24 | C43: ='F_Inputs BP'!C47 -> Other enhancement (Freeform lines - by exception) - Additional line 3; enhancement water opex - Total | D43: ='F_Inputs BP'!D47 -> £m | E43: ='F_Inputs BP'!E47 -> Price Review 2024 | F43: ='F_Inputs BP'!F47-SUMIFS(Reallocations!M$4:M$362,Reallocations!$C$4:$C$362,$B43,Reallocations!$A$4:$A$362,$A43) -> 0 | G43: ='F_Inputs BP'!G47-SUMIFS(Reallocations!N$4:N$362,Reallocations!$C$4:$C$362,$B43,Reallocations!$A$4:$A$362,$A43) -> 0 | H43: ='F_Inputs BP'!H47-SUMIFS(Reallocations!O$4:O$362,Reallocations!$C$4:$C$362,$B43,Reallocations!$A$4:$A$362,$A43) -> 0 | I43: ='F_Inputs BP'!I47-SUMIFS(Reallocations!P$4:P$362,Reallocations!$C$4:$C$362,$B43,Reallocations!$A$4:$A$362,$A43) -> 0 | J43: ='F_Inputs BP'!J47-SUMIFS(Reallocations!Q$4:Q$362,Reallocations!$C$4:$C$362,$B43,Reallocations!$A$4:$A$362,$A43) -> 0
A44: ='F_Inputs BP'!A48 -> NES | B44: ='F_Inputs BP'!B48 -> CW3_136TOT_PR24 | C44: ='F_Inputs BP'!C48 -> Other enhancement (Freeform lines - by exception) - Additional line 4; enhancement water capex - Total | D44: ='F_Inputs BP'!D48 -> £m | E44: ='F_Inputs BP'!E48 -> Price Review 2024 | F44: ='F_Inputs BP'!F48-SUMIFS(Reallocations!M$4:M$362,Reallocations!$C$4:$C$362,$B44,Reallocations!$A$4:$A$362,$A44) -> 0 | G44: ='F_Inputs BP'!G48-SUMIFS(Reallocations!N$4:N$362,Reallocations!$C$4:$C$362,$B44,Reallocations!$A$4:$A$362,$A44) -> 0 | H44: ='F_Inputs BP'!H48-SUMIFS(Reallocations!O$4:O$362,Reallocations!$C$4:$C$362,$B44,Reallocations!$A$4:$A$362,$A44) -> 0 | I44: ='F_Inputs BP'!I48-SUMIFS(Reallocations!P$4:P$362,Reallocations!$C$4:$C$362,$B44,Reallocations!$A$4:$A$362,$A44) -> 0 | J44: ='F_Inputs BP'!J48-SUMIFS(Reallocations!Q$4:Q$362,Reallocations!$C$4:$C$362,$B44,Reallocations!$A$4:$A$362,$A44) -> 0
A45: ='F_Inputs BP'!A49 -> NES | B45: ='F_Inputs BP'!B49 -> CW3_137TOT_PR24 | C45: ='F_Inputs BP'!C49 -> Other enhancement (Freeform lines - by exception) - Additional line 4; enhancement water opex - Total | D45: ='F_Inputs BP'!D49 -> £m | E45: ='F_Inputs BP'!E49 -> Price Review 2024 | F45: ='F_Inputs BP'!F49-SUMIFS(Reallocations!M$4:M$362,Reallocations!$C$4:$C$362,$B45,Reallocations!$A$4:$A$362,$A45) -> 0 | G45: ='F_Inputs BP'!G49-SUMIFS(Reallocations!N$4:N$362,Reallocations!$C$4:$C$362,$B45,Reallocations!$A$4:$A$362,$A45) -> 0 | H45: ='F_Inputs BP'!H49-SUMIFS(Reallocations!O$4:O$362,Reallocations!$C$4:$C$362,$B45,Reallocations!$A$4:$A$362,$A45) -> 0 | I45: ='F_Inputs BP'!I49-SUMIFS(Reallocations!P$4:P$362,Reallocations!$C$4:$C$362,$B45,Reallocations!$A$4:$A$362,$A45) -> 0 | J45: ='F_Inputs BP'!J49-SUMIFS(Reallocations!Q$4:Q$362,Reallocations!$C$4:$C$362,$B45,Reallocations!$A$4:$A$362,$A45) -> 0
A46: ='F_Inputs BP'!A50 -> NES | B46: ='F_Inputs BP'!B50 -> CW3_138TOT_PR24 | C46: ='F_Inputs BP'!C50 -> Other enhancement (Freeform lines - by exception) - Additional line 5; enhancement water capex - Total | D46: ='F_Inputs BP'!D50 -> £m | E46: ='F_Inputs BP'!E50 -> Price Review 2024 | F46: ='F_Inputs BP'!F50-SUMIFS(Reallocations!M$4:M$362,Reallocations!$C$4:$C$362,$B46,Reallocations!$A$4:$A$362,$A46) -> 0 | G46: ='F_Inputs BP'!G50-SUMIFS(Reallocations!N$4:N$362,Reallocations!$C$4:$C$362,$B46,Reallocations!$A$4:$A$362,$A46) -> 0 | H46: ='F_Inputs BP'!H50-SUMIFS(Reallocations!O$4:O$362,Reallocations!$C$4:$C$362,$B46,Reallocations!$A$4:$A$362,$A46) -> 0 | I46: ='F_Inputs BP'!I50-SUMIFS(Reallocations!P$4:P$362,Reallocations!$C$4:$C$362,$B46,Reallocations!$A$4:$A$362,$A46) -> 0 | J46: ='F_Inputs BP'!J50-SUMIFS(Reallocations!Q$4:Q$362,Reallocations!$C$4:$C$362,$B46,Reallocations!$A$4:$A$362,$A46) -> 0
A47: ='F_Inputs BP'!A51 -> NES | B47: ='F_Inputs BP'!B51 -> CW3_139TOT_PR24 | C47: ='F_Inputs BP'!C51 -> Other enhancement (Freeform lines - by exception) - Additional line 5; enhancement water opex - Total | D47: ='F_Inputs BP'!D51 -> £m | E47: ='F_Inputs BP'!E51 -> Price Review 2024 | F47: ='F_Inputs BP'!F51-SUMIFS(Reallocations!M$4:M$362,Reallocations!$C$4:$C$362,$B47,Reallocations!$A$4:$A$362,$A47) -> 0 | G47: ='F_Inputs BP'!G51-SUMIFS(Reallocations!N$4:N$362,Reallocations!$C$4:$C$362,$B47,Reallocations!$A$4:$A$362,$A47) -> 0 | H47: ='F_Inputs BP'!H51-SUMIFS(Reallocations!O$4:O$362,Reallocations!$C$4:$C$362,$B47,Reallocations!$A$4:$A$362,$A47) -> 0 | I47: ='F_Inputs BP'!I51-SUMIFS(Reallocations!P$4:P$362,Reallocations!$C$4:$C$362,$B47,Reallocations!$A$4:$A$362,$A47) -> 0 | J47: ='F_Inputs BP'!J51-SUMIFS(Reallocations!Q$4:Q$362,Reallocations!$C$4:$C$362,$B47,Reallocations!$A$4:$A$362,$A47) -> 0
A48: ='F_Inputs BP'!A52 -> NES | B48: ='F_Inputs BP'!B52 -> CW1A_015TOT_PR24 | C48: ='F_Inputs BP'!C52 -> Net totex - Total | D48: ='F_Inputs BP'!D52 -> £m | E48: ='F_Inputs BP'!E52 -> Price Review 2024 | F48: ='F_Inputs BP'!F52-SUMIFS(Reallocations!M$4:M$362,Reallocations!$C$4:$C$362,$B48,Reallocations!$A$4:$A$362,$A48) -> 656.5009319 | G48: ='F_Inputs BP'!G52-SUMIFS(Reallocations!N$4:N$362,Reallocations!$C$4:$C$362,$B48,Reallocations!$A$4:$A$362,$A48) -> 617.6941943 | H48: ='F_Inputs BP'!H52-SUMIFS(Reallocations!O$4:O$362,Reallocations!$C$4:$C$362,$B48,Reallocations!$A$4:$A$362,$A48) -> 617.4814854 | I48: ='F_Inputs BP'!I52-SUMIFS(Reallocations!P$4:P$362,Reallocations!$C$4:$C$362,$B48,Reallocations!$A$4:$A$362,$A48) -> 578.408895 | J48: ='F_Inputs BP'!J52-SUMIFS(Reallocations!Q$4:Q$362,Reallocations!$C$4:$C$362,$B48,Reallocations!$A$4:$A$362,$A48) -> 568.6069593
A49: ='F_Inputs BP'!A53 -> SVE | B49: ='F_Inputs BP'!B53 -> CW3_130TOT_PR24 | C49: ='F_Inputs BP'!C53 -> Other enhancement (Freeform lines - by exception) - Additional line 1; enhancement water capex - Total | D49: ='F_Inputs BP'!D53 -> £m | E49: ='F_Inputs BP'!E53 -> Price Review 2024 | F49: ='F_Inputs BP'!F53-SUMIFS(Reallocations!M$4:M$362,Reallocations!$C$4:$C$362,$B49,Reallocations!$A$4:$A$362,$A49) -> 2.440844309 | G49: ='F_Inputs BP'!G53-SUMIFS(Reallocations!N$4:N$362,Reallocations!$C$4:$C$362,$B49,Reallocations!$A$4:$A$362,$A49) -> 2.455706242 | H49: ='F_Inputs BP'!H53-SUMIFS(Reallocations!O$4:O$362,Reallocations!$C$4:$C$362,$B49,Reallocations!$A$4:$A$362,$A49) -> 2.470658668 | I49: ='F_Inputs BP'!I53-SUMIFS(Reallocations!P$4:P$362,Reallocations!$C$4:$C$362,$B49,Reallocations!$A$4:$A$362,$A49) -> 2.485702105 | J49: ='F_Inputs BP'!J53-SUMIFS(Reallocations!Q$4:Q$362,Reallocations!$C$4:$C$362,$B49,Reallocations!$A$4:$A$362,$A49) -> 2.500837205
A50: ='F_Inputs BP'!A54 -> SVE | B50: ='F_Inputs BP'!B54 -> CW3_131TOT_PR24 | C50: ='F_Inputs BP'!C54 -> Other enhancement (Freeform lines - by exception) - Additional line 1; enhancement water opex - Total | D50: ='F_Inputs BP'!D54 -> £m | E50: ='F_Inputs BP'!E54 -> Price Review 2024 | F50: ='F_Inputs BP'!F54-SUMIFS(Reallocations!M$4:M$362,Reallocations!$C$4:$C$362,$B50,Reallocations!$A$4:$A$362,$A50) -> 0 | G50: ='F_Inputs BP'!G54-SUMIFS(Reallocations!N$4:N$362,Reallocations!$C$4:$C$362,$B50,Reallocations!$A$4:$A$362,$A50) -> 0.01506130758 | H50: ='F_Inputs BP'!H54-SUMIFS(Reallocations!O$4:O$362,Reallocations!$C$4:$C$362,$B50,Reallocations!$A$4:$A$362,$A50) -> 0.04236658909 | I50: ='F_Inputs BP'!I54-SUMIFS(Reallocations!P$4:P$362,Reallocations!$C$4:$C$362,$B50,Reallocations!$A$4:$A$362,$A50) -> 0.08369346405 | J50: ='F_Inputs BP'!J54-SUMIFS(Reallocations!Q$4:Q$362,Reallocations!$C$4:$C$362,$B50,Reallocations!$A$4:$A$362,$A50) -> 0.09797605368
A51: ='F_Inputs BP'!A55 -> SVE | B51: ='F_Inputs BP'!B55 -> CW3_132TOT_PR24 | C51: ='F_Inputs BP'!C55 -> Other enhancement (Freeform lines - by exception) - Additional line 2; enhancement water capex - Total | D51: ='F_Inputs BP'!D55 -> £m | E51: ='F_Inputs BP'!E55 -> Price Review 2024 | F51: ='F_Inputs BP'!F55-SUMIFS(Reallocations!M$4:M$362,Reallocations!$C$4:$C$362,$B51,Reallocations!$A$4:$A$362,$A51) -> 0 | G51: ='F_Inputs BP'!G55-SUMIFS(Reallocations!N$4:N$362,Reallocations!$C$4:$C$362,$B51,Reallocations!$A$4:$A$362,$A51) -> 0 | H51: ='F_Inputs BP'!H55-SUMIFS(Reallocations!O$4:O$362,Reallocations!$C$4:$C$362,$B51,Reallocations!$A$4:$A$362,$A51) -> 0 | I51: ='F_Inputs BP'!I55-SUMIFS(Reallocations!P$4:P$362,Reallocations!$C$4:$C$362,$B51,Reallocations!$A$4:$A$362,$A51) -> 0 | J51: ='F_Inputs BP'!J55-SUMIFS(Reallocations!Q$4:Q$362,Reallocations!$C$4:$C$362,$B51,Reallocations!$A$4:$A$362,$A51) -> 0
A52: ='F_Inputs BP'!A56 -> SVE | B52: ='F_Inputs BP'!B56 -> CW3_133TOT_PR24 | C52: ='F_Inputs BP'!C56 -> Other enhancement (Freeform lines - by exception) - Additional line 2; enhancement water opex - Total | D52: ='F_Inputs BP'!D56 -> £m | E52: ='F_Inputs BP'!E56 -> Price Review 2024 | F52: ='F_Inputs BP'!F56-SUMIFS(Reallocations!M$4:M$362,Reallocations!$C$4:$C$362,$B52,Reallocations!$A$4:$A$362,$A52) -> 0 | G52: ='F_Inputs BP'!G56-SUMIFS(Reallocations!N$4:N$362,Reallocations!$C$4:$C$362,$B52,Reallocations!$A$4:$A$362,$A52) -> 0 | H52: ='F_Inputs BP'!H56-SUMIFS(Reallocations!O$4:O$362,Reallocations!$C$4:$C$362,$B52,Reallocations!$A$4:$A$362,$A52) -> 0 | I52: ='F_Inputs BP'!I56-SUMIFS(Reallocations!P$4:P$362,Reallocations!$C$4:$C$362,$B52,Reallocations!$A$4:$A$362,$A52) -> 0 | J52: ='F_Inputs BP'!J56-SUMIFS(Reallocations!Q$4:Q$362,Reallocations!$C$4:$C$362,$B52,Reallocations!$A$4:$A$362,$A52) -> 0
A53: ='F_Inputs BP'!A57 -> SVE | B53: ='F_Inputs BP'!B57 -> CW3_134TOT_PR24 | C53: ='F_Inputs BP'!C57 -> Other enhancement (Freeform lines - by exception) - Additional line 3; enhancement water capex - Total | D53: ='F_Inputs BP'!D57 -> £m | E53: ='F_Inputs BP'!E57 -> Price Review 2024 | F53: ='F_Inputs BP'!F57-SUMIFS(Reallocations!M$4:M$362,Reallocations!$C$4:$C$362,$B53,Reallocations!$A$4:$A$362,$A53) -> 0 | G53: ='F_Inputs BP'!G57-SUMIFS(Reallocations!N$4:N$362,Reallocations!$C$4:$C$362,$B53,Reallocations!$A$4:$A$362,$A53) -> 0 | H53: ='F_Inputs BP'!H57-SUMIFS(Reallocations!O$4:O$362,Reallocations!$C$4:$C$362,$B53,Reallocations!$A$4:$A$362,$A53) -> 0 | I53: ='F_Inputs BP'!I57-SUMIFS(Reallocations!P$4:P$362,Reallocations!$C$4:$C$362,$B53,Reallocations!$A$4:$A$362,$A53) -> 0 | J53: ='F_Inputs BP'!J57-SUMIFS(Reallocations!Q$4:Q$362,Reallocations!$C$4:$C$362,$B53,Reallocations!$A$4:$A$362,$A53) -> 0
A54: ='F_Inputs BP'!A58 -> SVE | B54: ='F_Inputs BP'!B58 -> CW3_135TOT_PR24 | C54: ='F_Inputs BP'!C58 -> Other enhancement (Freeform lines - by exception) - Additional line 3; enhancement water opex - Total | D54: ='F_Inputs BP'!D58 -> £m | E54: ='F_Inputs BP'!E58 -> Price Review 2024 | F54: ='F_Inputs BP'!F58-SUMIFS(Reallocations!M$4:M$362,Reallocations!$C$4:$C$362,$B54,Reallocations!$A$4:$A$362,$A54) -> 0 | G54: ='F_Inputs BP'!G58-SUMIFS(Reallocations!N$4:N$362,Reallocations!$C$4:$C$362,$B54,Reallocations!$A$4:$A$362,$A54) -> 0 | H54: ='F_Inputs BP'!H58-SUMIFS(Reallocations!O$4:O$362,Reallocations!$C$4:$C$362,$B54,Reallocations!$A$4:$A$362,$A54) -> 0 | I54: ='F_Inputs BP'!I58-SUMIFS(Reallocations!P$4:P$362,Reallocations!$C$4:$C$362,$B54,Reallocations!$A$4:$A$362,$A54) -> 0 | J54: ='F_Inputs BP'!J58-SUMIFS(Reallocations!Q$4:Q$362,Reallocations!$C$4:$C$362,$B54,Reallocations!$A$4:$A$362,$A54) -> 0
A55: ='F_Inputs BP'!A59 -> SVE | B55: ='F_Inputs BP'!B59 -> CW3_136TOT_PR24 | C55: ='F_Inputs BP'!C59 -> Other enhancement (Freeform lines - by exception) - Additional line 4; enhancement water capex - Total | D55: ='F_Inputs BP'!D59 -> £m | E55: ='F_Inputs BP'!E59 -> Price Review 2024 | F55: ='F_Inputs BP'!F59-SUMIFS(Reallocations!M$4:M$362,Reallocations!$C$4:$C$362,$B55,Reallocations!$A$4:$A$362,$A55) -> 0 | G55: ='F_Inputs BP'!G59-SUMIFS(Reallocations!N$4:N$362,Reallocations!$C$4:$C$362,$B55,Reallocations!$A$4:$A$362,$A55) -> 0 | H55: ='F_Inputs BP'!H59-SUMIFS(Reallocations!O$4:O$362,Reallocations!$C$4:$C$362,$B55,Reallocations!$A$4:$A$362,$A55) -> 0 | I55: ='F_Inputs BP'!I59-SUMIFS(Reallocations!P$4:P$362,Reallocations!$C$4:$C$362,$B55,Reallocations!$A$4:$A$362,$A55) -> 0 | J55: ='F_Inputs BP'!J59-SUMIFS(Reallocations!Q$4:Q$362,Reallocations!$C$4:$C$362,$B55,Reallocations!$A$4:$A$362,$A55) -> 0
A56: ='F_Inputs BP'!A60 -> SVE | B56: ='F_Inputs BP'!B60 -> CW3_137TOT_PR24 | C56: ='F_Inputs BP'!C60 -> Other enhancement (Freeform lines - by exception) - Additional line 4; enhancement water opex - Total | D56: ='F_Inputs BP'!D60 -> £m | E56: ='F_Inputs BP'!E60 -> Price Review 2024 | F56: ='F_Inputs BP'!F60-SUMIFS(Reallocations!M$4:M$362,Reallocations!$C$4:$C$362,$B56,Reallocations!$A$4:$A$362,$A56) -> 0 | G56: ='F_Inputs BP'!G60-SUMIFS(Reallocations!N$4:N$362,Reallocations!$C$4:$C$362,$B56,Reallocations!$A$4:$A$362,$A56) -> 0 | H56: ='F_Inputs BP'!H60-SUMIFS(Reallocations!O$4:O$362,Reallocations!$C$4:$C$362,$B56,Reallocations!$A$4:$A$362,$A56) -> 0 | I56: ='F_Inputs BP'!I60-SUMIFS(Reallocations!P$4:P$362,Reallocations!$C$4:$C$362,$B56,Reallocations!$A$4:$A$362,$A56) -> 0 | J56: ='F_Inputs BP'!J60-SUMIFS(Reallocations!Q$4:Q$362,Reallocations!$C$4:$C$362,$B56,Reallocations!$A$4:$A$362,$A56) -> 0
A57: ='F_Inputs BP'!A61 -> SVE | B57: ='F_Inputs BP'!B61 -> CW3_138TOT_PR24 | C57: ='F_Inputs BP'!C61 -> Other enhancement (Freeform lines - by exception) - Additional line 5; enhancement water capex - Total | D57: ='F_Inputs BP'!D61 -> £m | E57: ='F_Inputs BP'!E61 -> Price Review 2024 | F57: ='F_Inputs BP'!F61-SUMIFS(Reallocations!M$4:M$362,Reallocations!$C$4:$C$362,$B57,Reallocations!$A$4:$A$362,$A57) -> 0 | G57: ='F_Inputs BP'!G61-SUMIFS(Reallocations!N$4:N$362,Reallocations!$C$4:$C$362,$B57,Reallocations!$A$4:$A$362,$A57) -> 0 | H57: ='F_Inputs BP'!H61-SUMIFS(Reallocations!O$4:O$362,Reallocations!$C$4:$C$362,$B57,Reallocations!$A$4:$A$362,$A57) -> 0 | I57: ='F_Inputs BP'!I61-SUMIFS(Reallocations!P$4:P$362,Reallocations!$C$4:$C$362,$B57,Reallocations!$A$4:$A$362,$A57) -> 0 | J57: ='F_Inputs BP'!J61-SUMIFS(Reallocations!Q$4:Q$362,Reallocations!$C$4:$C$362,$B57,Reallocations!$A$4:$A$362,$A57) -> 0
A58: ='F_Inputs BP'!A62 -> SVE | B58: ='F_Inputs BP'!B62 -> CW3_139TOT_PR24 | C58: ='F_Inputs BP'!C62 -> Other enhancement (Freeform lines - by exception) - Additional line 5; enhancement water opex - Total | D58: ='F_Inputs BP'!D62 -> £m | E58: ='F_Inputs BP'!E62 -> Price Review 2024 | F58: ='F_Inputs BP'!F62-SUMIFS(Reallocations!M$4:M$362,Reallocations!$C$4:$C$362,$B58,Reallocations!$A$4:$A$362,$A58) -> 0 | G58: ='F_Inputs BP'!G62-SUMIFS(Reallocations!N$4:N$362,Reallocations!$C$4:$C$362,$B58,Reallocations!$A$4:$A$362,$A58) -> 0 | H58: ='F_Inputs BP'!H62-SUMIFS(Reallocations!O$4:O$362,Reallocations!$C$4:$C$362,$B58,Reallocations!$A$4:$A$362,$A58) -> 0 | I58: ='F_Inputs BP'!I62-SUMIFS(Reallocations!P$4:P$362,Reallocations!$C$4:$C$362,$B58,Reallocations!$A$4:$A$362,$A58) -> 0 | J58: ='F_Inputs BP'!J62-SUMIFS(Reallocations!Q$4:Q$362,Reallocations!$C$4:$C$362,$B58,Reallocations!$A$4:$A$362,$A58) -> 0
A59: ='F_Inputs BP'!A63 -> SVE | B59: ='F_Inputs BP'!B63 -> CW1A_015TOT_PR24 | C59: ='F_Inputs BP'!C63 -> Net totex - Total | D59: ='F_Inputs BP'!D63 -> £m | E59: ='F_Inputs BP'!E63 -> Price Review 2024 | F59: ='F_Inputs BP'!F63-SUMIFS(Reallocations!M$4:M$362,Reallocations!$C$4:$C$362,$B59,Reallocations!$A$4:$A$362,$A59) -> 1002.825388 | G59: ='F_Inputs BP'!G63-SUMIFS(Reallocations!N$4:N$362,Reallocations!$C$4:$C$362,$B59,Reallocations!$A$4:$A$362,$A59) -> 1071.934504 | H59: ='F_Inputs BP'!H63-SUMIFS(Reallocations!O$4:O$362,Reallocations!$C$4:$C$362,$B59,Reallocations!$A$4:$A$362,$A59) -> 1211.139582 | I59: ='F_Inputs BP'!I63-SUMIFS(Reallocations!P$4:P$362,Reallocations!$C$4:$C$362,$B59,Reallocations!$A$4:$A$362,$A59) -> 1182.428934 | J59: ='F_Inputs BP'!J63-SUMIFS(Reallocations!Q$4:Q$362,Reallocations!$C$4:$C$362,$B59,Reallocations!$A$4:$A$362,$A59) -> 982.1283589
A60: ='F_Inputs BP'!A64 -> SWB | B60: ='F_Inputs BP'!B64 -> CW3_130TOT_PR24 | C60: ='F_Inputs BP'!C64 -> Other enhancement (Freeform lines - by exception) - Additional line 1; enhancement water capex - Total | D60: ='F_Inputs BP'!D64 -> £m | E60: ='F_Inputs BP'!E64 -> Price Review 2024 | F60: ='F_Inputs BP'!F64-SUMIFS(Reallocations!M$4:M$362,Reallocations!$C$4:$C$362,$B60,Reallocations!$A$4:$A$362,$A60) -> 0 | G60: ='F_Inputs BP'!G64-SUMIFS(Reallocations!N$4:N$362,Reallocations!$C$4:$C$362,$B60,Reallocations!$A$4:$A$362,$A60) -> 0 | H60: ='F_Inputs BP'!H64-SUMIFS(Reallocations!O$4:O$362,Reallocations!$C$4:$C$362,$B60,Reallocations!$A$4:$A$362,$A60) -> 0 | I60: ='F_Inputs BP'!I64-SUMIFS(Reallocations!P$4:P$362,Reallocations!$C$4:$C$362,$B60,Reallocations!$A$4:$A$362,$A60) -> 0 | J60: ='F_Inputs BP'!J64-SUMIFS(Reallocations!Q$4:Q$362,Reallocations!$C$4:$C$362,$B60,Reallocations!$A$4:$A$362,$A60) -> 0
A61: ='F_Inputs BP'!A65 -> SWB | B61: ='F_Inputs BP'!B65 -> CW3_131TOT_PR24 | C61: ='F_Inputs BP'!C65 -> Other enhancement (Freeform lines - by exception) - Additional line 1; enhancement water opex - Total | D61: ='F_Inputs BP'!D65 -> £m | E61: ='F_Inputs BP'!E65 -> Price Review 2024 | F61: ='F_Inputs BP'!F65-SUMIFS(Reallocations!M$4:M$362,Reallocations!$C$4:$C$362,$B61,Reallocations!$A$4:$A$362,$A61) -> 0 | G61: ='F_Inputs BP'!G65-SUMIFS(Reallocations!N$4:N$362,Reallocations!$C$4:$C$362,$B61,Reallocations!$A$4:$A$362,$A61) -> 0 | H61: ='F_Inputs BP'!H65-SUMIFS(Reallocations!O$4:O$362,Reallocations!$C$4:$C$362,$B61,Reallocations!$A$4:$A$362,$A61) -> 0 | I61: ='F_Inputs BP'!I65-SUMIFS(Reallocations!P$4:P$362,Reallocations!$C$4:$C$362,$B61,Reallocations!$A$4:$A$362,$A61) -> 0 | J61: ='F_Inputs BP'!J65-SUMIFS(Reallocations!Q$4:Q$362,Reallocations!$C$4:$C$362,$B61,Reallocations!$A$4:$A$362,$A61) -> 0
A62: ='F_Inputs BP'!A66 -> SWB | B62: ='F_Inputs BP'!B66 -> CW3_132TOT_PR24 | C62: ='F_Inputs BP'!C66 -> Other enhancement (Freeform lines - by exception) - Additional line 2; enhancement water capex - Total | D62: ='F_Inputs BP'!D66 -> £m | E62: ='F_Inputs BP'!E66 -> Price Review 2024 | F62: ='F_Inputs BP'!F66-SUMIFS(Reallocations!M$4:M$362,Reallocations!$C$4:$C$362,$B62,Reallocations!$A$4:$A$362,$A62) -> 0 | G62: ='F_Inputs BP'!G66-SUMIFS(Reallocations!N$4:N$362,Reallocations!$C$4:$C$362,$B62,Reallocations!$A$4:$A$362,$A62) -> 0 | H62: ='F_Inputs BP'!H66-SUMIFS(Reallocations!O$4:O$362,Reallocations!$C$4:$C$362,$B62,Reallocations!$A$4:$A$362,$A62) -> 0 | I62: ='F_Inputs BP'!I66-SUMIFS(Reallocations!P$4:P$362,Reallocations!$C$4:$C$362,$B62,Reallocations!$A$4:$A$362,$A62) -> 0 | J62: ='F_Inputs BP'!J66-SUMIFS(Reallocations!Q$4:Q$362,Reallocations!$C$4:$C$362,$B62,Reallocations!$A$4:$A$362,$A62) -> 0
A63: ='F_Inputs BP'!A67 -> SWB | B63: ='F_Inputs BP'!B67 -> CW3_133TOT_PR24 | C63: ='F_Inputs BP'!C67 -> Other enhancement (Freeform lines - by exception) - Additional line 2; enhancement water opex - Total | D63: ='F_Inputs BP'!D67 -> £m | E63: ='F_Inputs BP'!E67 -> Price Review 2024 | F63: ='F_Inputs BP'!F67-SUMIFS(Reallocations!M$4:M$362,Reallocations!$C$4:$C$362,$B63,Reallocations!$A$4:$A$362,$A63) -> 0 | G63: ='F_Inputs BP'!G67-SUMIFS(Reallocations!N$4:N$362,Reallocations!$C$4:$C$362,$B63,Reallocations!$A$4:$A$362,$A63) -> 0 | H63: ='F_Inputs BP'!H67-SUMIFS(Reallocations!O$4:O$362,Reallocations!$C$4:$C$362,$B63,Reallocations!$A$4:$A$362,$A63) -> 0 | I63: ='F_Inputs BP'!I67-SUMIFS(Reallocations!P$4:P$362,Reallocations!$C$4:$C$362,$B63,Reallocations!$A$4:$A$362,$A63) -> 0 | J63: ='F_Inputs BP'!J67-SUMIFS(Reallocations!Q$4:Q$362,Reallocations!$C$4:$C$362,$B63,Reallocations!$A$4:$A$362,$A63) -> 0
A64: ='F_Inputs BP'!A68 -> SWB | B64: ='F_Inputs BP'!B68 -> CW3_134TOT_PR24 | C64: ='F_Inputs BP'!C68 -> Other enhancement (Freeform lines - by exception) - Additional line 3; enhancement water capex - Total | D64: ='F_Inputs BP'!D68 -> £m | E64: ='F_Inputs BP'!E68 -> Price Review 2024 | F64: ='F_Inputs BP'!F68-SUMIFS(Reallocations!M$4:M$362,Reallocations!$C$4:$C$362,$B64,Reallocations!$A$4:$A$362,$A64) -> 0 | G64: ='F_Inputs BP'!G68-SUMIFS(Reallocations!N$4:N$362,Reallocations!$C$4:$C$362,$B64,Reallocations!$A$4:$A$362,$A64) -> 0 | H64: ='F_Inputs BP'!H68-SUMIFS(Reallocations!O$4:O$362,Reallocations!$C$4:$C$362,$B64,Reallocations!$A$4:$A$362,$A64) -> 0 | I64: ='F_Inputs BP'!I68-SUMIFS(Reallocations!P$4:P$362,Reallocations!$C$4:$C$362,$B64,Reallocations!$A$4:$A$362,$A64) -> 0 | J64: ='F_Inputs BP'!J68-SUMIFS(Reallocations!Q$4:Q$362,Reallocations!$C$4:$C$362,$B64,Reallocations!$A$4:$A$362,$A64) -> 0
A65: ='F_Inputs BP'!A69 -> SWB | B65: ='F_Inputs BP'!B69 -> CW3_135TOT_PR24 | C65: ='F_Inputs BP'!C69 -> Other enhancement (Freeform lines - by exception) - Additional line 3; enhancement water opex - Total | D65: ='F_Inputs BP'!D69 -> £m | E65: ='F_Inputs BP'!E69 -> Price Review 2024 | F65: ='F_Inputs BP'!F69-SUMIFS(Reallocations!M$4:M$362,Reallocations!$C$4:$C$362,$B65,Reallocations!$A$4:$A$362,$A65) -> 0 | G65: ='F_Inputs BP'!G69-SUMIFS(Reallocations!N$4:N$362,Reallocations!$C$4:$C$362,$B65,Reallocations!$A$4:$A$362,$A65) -> 0 | H65: ='F_Inputs BP'!H69-SUMIFS(Reallocations!O$4:O$362,Reallocations!$C$4:$C$362,$B65,Reallocations!$A$4:$A$362,$A65) -> 0 | I65: ='F_Inputs BP'!I69-SUMIFS(Reallocations!P$4:P$362,Reallocations!$C$4:$C$362,$B65,Reallocations!$A$4:$A$362,$A65) -> 0 | J65: ='F_Inputs BP'!J69-SUMIFS(Reallocations!Q$4:Q$362,Reallocations!$C$4:$C$362,$B65,Reallocations!$A$4:$A$362,$A65) -> 0
A66: ='F_Inputs BP'!A70 -> SWB | B66: ='F_Inputs BP'!B70 -> CW3_136TOT_PR24 | C66: ='F_Inputs BP'!C70 -> Other enhancement (Freeform lines - by exception) - Additional line 4; enhancement water capex - Total | D66: ='F_Inputs BP'!D70 -> £m | E66: ='F_Inputs BP'!E70 -> Price Review 2024 | F66: ='F_Inputs BP'!F70-SUMIFS(Reallocations!M$4:M$362,Reallocations!$C$4:$C$362,$B66,Reallocations!$A$4:$A$362,$A66) -> 0 | G66: ='F_Inputs BP'!G70-SUMIFS(Reallocations!N$4:N$362,Reallocations!$C$4:$C$362,$B66,Reallocations!$A$4:$A$362,$A66) -> 0 | H66: ='F_Inputs BP'!H70-SUMIFS(Reallocations!O$4:O$362,Reallocations!$C$4:$C$362,$B66,Reallocations!$A$4:$A$362,$A66) -> 0 | I66: ='F_Inputs BP'!I70-SUMIFS(Reallocations!P$4:P$362,Reallocations!$C$4:$C$362,$B66,Reallocations!$A$4:$A$362,$A66) -> 0 | J66: ='F_Inputs BP'!J70-SUMIFS(Reallocations!Q$4:Q$362,Reallocations!$C$4:$C$362,$B66,Reallocations!$A$4:$A$362,$A66) -> 0
A67: ='F_Inputs BP'!A71 -> SWB | B67: ='F_Inputs BP'!B71 -> CW3_137TOT_PR24 | C67: ='F_Inputs BP'!C71 -> Other enhancement (Freeform lines - by exception) - Additional line 4; enhancement water opex - Total | D67: ='F_Inputs BP'!D71 -> £m | E67: ='F_Inputs BP'!E71 -> Price Review 2024 | F67: ='F_Inputs BP'!F71-SUMIFS(Reallocations!M$4:M$362,Reallocations!$C$4:$C$362,$B67,Reallocations!$A$4:$A$362,$A67) -> 0 | G67: ='F_Inputs BP'!G71-SUMIFS(Reallocations!N$4:N$362,Reallocations!$C$4:$C$362,$B67,Reallocations!$A$4:$A$362,$A67) -> 0 | H67: ='F_Inputs BP'!H71-SUMIFS(Reallocations!O$4:O$362,Reallocations!$C$4:$C$362,$B67,Reallocations!$A$4:$A$362,$A67) -> 0 | I67: ='F_Inputs BP'!I71-SUMIFS(Reallocations!P$4:P$362,Reallocations!$C$4:$C$362,$B67,Reallocations!$A$4:$A$362,$A67) -> 0 | J67: ='F_Inputs BP'!J71-SUMIFS(Reallocations!Q$4:Q$362,Reallocations!$C$4:$C$362,$B67,Reallocations!$A$4:$A$362,$A67) -> 0
A68: ='F_Inputs BP'!A72 -> SWB | B68: ='F_Inputs BP'!B72 -> CW3_138TOT_PR24 | C68: ='F_Inputs BP'!C72 -> Other enhancement (Freeform lines - by exception) - Additional line 5; enhancement water capex - Total | D68: ='F_Inputs BP'!D72 -> £m | E68: ='F_Inputs BP'!E72 -> Price Review 2024 | F68: ='F_Inputs BP'!F72-SUMIFS(Reallocations!M$4:M$362,Reallocations!$C$4:$C$362,$B68,Reallocations!$A$4:$A$362,$A68) -> 0 | G68: ='F_Inputs BP'!G72-SUMIFS(Reallocations!N$4:N$362,Reallocations!$C$4:$C$362,$B68,Reallocations!$A$4:$A$362,$A68) -> 0 | H68: ='F_Inputs BP'!H72-SUMIFS(Reallocations!O$4:O$362,Reallocations!$C$4:$C$362,$B68,Reallocations!$A$4:$A$362,$A68) -> 0 | I68: ='F_Inputs BP'!I72-SUMIFS(Reallocations!P$4:P$362,Reallocations!$C$4:$C$362,$B68,Reallocations!$A$4:$A$362,$A68) -> 0 | J68: ='F_Inputs BP'!J72-SUMIFS(Reallocations!Q$4:Q$362,Reallocations!$C$4:$C$362,$B68,Reallocations!$A$4:$A$362,$A68) -> 0
A69: ='F_Inputs BP'!A73 -> SWB | B69: ='F_Inputs BP'!B73 -> CW3_139TOT_PR24 | C69: ='F_Inputs BP'!C73 -> Other enhancement (Freeform lines - by exception) - Additional line 5; enhancement water opex - Total | D69: ='F_Inputs BP'!D73 -> £m | E69: ='F_Inputs BP'!E73 -> Price Review 2024 | F69: ='F_Inputs BP'!F73-SUMIFS(Reallocations!M$4:M$362,Reallocations!$C$4:$C$362,$B69,Reallocations!$A$4:$A$362,$A69) -> 0 | G69: ='F_Inputs BP'!G73-SUMIFS(Reallocations!N$4:N$362,Reallocations!$C$4:$C$362,$B69,Reallocations!$A$4:$A$362,$A69) -> 0 | H69: ='F_Inputs BP'!H73-SUMIFS(Reallocations!O$4:O$362,Reallocations!$C$4:$C$362,$B69,Reallocations!$A$4:$A$362,$A69) -> 0 | I69: ='F_Inputs BP'!I73-SUMIFS(Reallocations!P$4:P$362,Reallocations!$C$4:$C$362,$B69,Reallocations!$A$4:$A$362,$A69) -> 0 | J69: ='F_Inputs BP'!J73-SUMIFS(Reallocations!Q$4:Q$362,Reallocations!$C$4:$C$362,$B69,Reallocations!$A$4:$A$362,$A69) -> 0
A70: ='F_Inputs BP'!A74 -> SWB | B70: ='F_Inputs BP'!B74 -> CW1A_015TOT_PR24 | C70: ='F_Inputs BP'!C74 -> Net totex - Total | D70: ='F_Inputs BP'!D74 -> £m | E70: ='F_Inputs BP'!E74 -> Price Review 2024 | F70: ='F_Inputs BP'!F74-SUMIFS(Reallocations!M$4:M$362,Reallocations!$C$4:$C$362,$B70,Reallocations!$A$4:$A$362,$A70) -> 309.8443799 | G70: ='F_Inputs BP'!G74-SUMIFS(Reallocations!N$4:N$362,Reallocations!$C$4:$C$362,$B70,Reallocations!$A$4:$A$362,$A70) -> 296.9089014 | H70: ='F_Inputs BP'!H74-SUMIFS(Reallocations!O$4:O$362,Reallocations!$C$4:$C$362,$B70,Reallocations!$A$4:$A$362,$A70) -> 304.9497263 | I70: ='F_Inputs BP'!I74-SUMIFS(Reallocations!P$4:P$362,Reallocations!$C$4:$C$362,$B70,Reallocations!$A$4:$A$362,$A70) -> 336.0984954 | J70: ='F_Inputs BP'!J74-SUMIFS(Reallocations!Q$4:Q$362,Reallocations!$C$4:$C$362,$B70,Reallocations!$A$4:$A$362,$A70) -> 317.9892211
A71: ='F_Inputs BP'!A75 -> SRN | B71: ='F_Inputs BP'!B75 -> CW3_130TOT_PR24 | C71: ='F_Inputs BP'!C75 -> Other enhancement (Freeform lines - by exception) - Additional line 1; enhancement water capex - Total | D71: ='F_Inputs BP'!D75 -> £m | E71: ='F_Inputs BP'!E75 -> Price Review 2024 | F71: ='F_Inputs BP'!F75-SUMIFS(Reallocations!M$4:M$362,Reallocations!$C$4:$C$362,$B71,Reallocations!$A$4:$A$362,$A71) -> 0 | G71: ='F_Inputs BP'!G75-SUMIFS(Reallocations!N$4:N$362,Reallocations!$C$4:$C$362,$B71,Reallocations!$A$4:$A$362,$A71) -> 0 | H71: ='F_Inputs BP'!H75-SUMIFS(Reallocations!O$4:O$362,Reallocations!$C$4:$C$362,$B71,Reallocations!$A$4:$A$362,$A71) -> 0 | I71: ='F_Inputs BP'!I75-SUMIFS(Reallocations!P$4:P$362,Reallocations!$C$4:$C$362,$B71,Reallocations!$A$4:$A$362,$A71) -> 0 | J71: ='F_Inputs BP'!J75-SUMIFS(Reallocations!Q$4:Q$362,Reallocations!$C$4:$C$362,$B71,Reallocations!$A$4:$A$362,$A71) -> 0
A72: ='F_Inputs BP'!A76 -> SRN | B72: ='F_Inputs BP'!B76 -> CW3_131TOT_PR24 | C72: ='F_Inputs BP'!C76 -> Other enhancement (Freeform lines - by exception) - Additional line 1; enhancement water opex - Total | D72: ='F_Inputs BP'!D76 -> £m | E72: ='F_Inputs BP'!E76 -> Price Review 2024 | F72: ='F_Inputs BP'!F76-SUMIFS(Reallocations!M$4:M$362,Reallocations!$C$4:$C$362,$B72,Reallocations!$A$4:$A$362,$A72) -> 0 | G72: ='F_Inputs BP'!G76-SUMIFS(Reallocations!N$4:N$362,Reallocations!$C$4:$C$362,$B72,Reallocations!$A$4:$A$362,$A72) -> 0 | H72: ='F_Inputs BP'!H76-SUMIFS(Reallocations!O$4:O$362,Reallocations!$C$4:$C$362,$B72,Reallocations!$A$4:$A$362,$A72) -> 0 | I72: ='F_Inputs BP'!I76-SUMIFS(Reallocations!P$4:P$362,Reallocations!$C$4:$C$362,$B72,Reallocations!$A$4:$A$362,$A72) -> 0 | J72: ='F_Inputs BP'!J76-SUMIFS(Reallocations!Q$4:Q$362,Reallocations!$C$4:$C$362,$B72,Reallocations!$A$4:$A$362,$A72) -> 0
A73: ='F_Inputs BP'!A77 -> SRN | B73: ='F_Inputs BP'!B77 -> CW3_132TOT_PR24 | C73: ='F_Inputs BP'!C77 -> Other enhancement (Freeform lines - by exception) - Additional line 2; enhancement water capex - Total | D73: ='F_Inputs BP'!D77 -> £m | E73: ='F_Inputs BP'!E77 -> Price Review 2024 | F73: ='F_Inputs BP'!F77-SUMIFS(Reallocations!M$4:M$362,Reallocations!$C$4:$C$362,$B73,Reallocations!$A$4:$A$362,$A73) -> 0 | G73: ='F_Inputs BP'!G77-SUMIFS(Reallocations!N$4:N$362,Reallocations!$C$4:$C$362,$B73,Reallocations!$A$4:$A$362,$A73) -> 0 | H73: ='F_Inputs BP'!H77-SUMIFS(Reallocations!O$4:O$362,Reallocations!$C$4:$C$362,$B73,Reallocations!$A$4:$A$362,$A73) -> 0 | I73: ='F_Inputs BP'!I77-SUMIFS(Reallocations!P$4:P$362,Reallocations!$C$4:$C$362,$B73,Reallocations!$A$4:$A$362,$A73) -> 0 | J73: ='F_Inputs BP'!J77-SUMIFS(Reallocations!Q$4:Q$362,Reallocations!$C$4:$C$362,$B73,Reallocations!$A$4:$A$362,$A73) -> 0
A74: ='F_Inputs BP'!A78 -> SRN | B74: ='F_Inputs BP'!B78 -> CW3_133TOT_PR24 | C74: ='F_Inputs BP'!C78 -> Other enhancement (Freeform lines - by exception) - Additional line 2; enhancement water opex - Total | D74: ='F_Inputs BP'!D78 -> £m | E74: ='F_Inputs BP'!E78 -> Price Review 2024 | F74: ='F_Inputs BP'!F78-SUMIFS(Reallocations!M$4:M$362,Reallocations!$C$4:$C$362,$B74,Reallocations!$A$4:$A$362,$A74) -> 0 | G74: ='F_Inputs BP'!G78-SUMIFS(Reallocations!N$4:N$362,Reallocations!$C$4:$C$362,$B74,Reallocations!$A$4:$A$362,$A74) -> 0 | H74: ='F_Inputs BP'!H78-SUMIFS(Reallocations!O$4:O$362,Reallocations!$C$4:$C$362,$B74,Reallocations!$A$4:$A$362,$A74) -> 0 | I74: ='F_Inputs BP'!I78-SUMIFS(Reallocations!P$4:P$362,Reallocations!$C$4:$C$362,$B74,Reallocations!$A$4:$A$362,$A74) -> 0 | J74: ='F_Inputs BP'!J78-SUMIFS(Reallocations!Q$4:Q$362,Reallocations!$C$4:$C$362,$B74,Reallocations!$A$4:$A$362,$A74) -> 0
A75: ='F_Inputs BP'!A79 -> SRN | B75: ='F_Inputs BP'!B79 -> CW3_134TOT_PR24 | C75: ='F_Inputs BP'!C79 -> Other enhancement (Freeform lines - by exception) - Additional line 3; enhancement water capex - Total | D75: ='F_Inputs BP'!D79 -> £m | E75: ='F_Inputs BP'!E79 -> Price Review 2024 | F75: ='F_Inputs BP'!F79-SUMIFS(Reallocations!M$4:M$362,Reallocations!$C$4:$C$362,$B75,Reallocations!$A$4:$A$362,$A75) -> 0 | G75: ='F_Inputs BP'!G79-SUMIFS(Reallocations!N$4:N$362,Reallocations!$C$4:$C$362,$B75,Reallocations!$A$4:$A$362,$A75) -> 0 | H75: ='F_Inputs BP'!H79-SUMIFS(Reallocations!O$4:O$362,Reallocations!$C$4:$C$362,$B75,Reallocations!$A$4:$A$362,$A75) -> 0 | I75: ='F_Inputs BP'!I79-SUMIFS(Reallocations!P$4:P$362,Reallocations!$C$4:$C$362,$B75,Reallocations!$A$4:$A$362,$A75) -> 0 | J75: ='F_Inputs BP'!J79-SUMIFS(Reallocations!Q$4:Q$362,Reallocations!$C$4:$C$362,$B75,Reallocations!$A$4:$A$362,$A75) -> 0
A76: ='F_Inputs BP'!A80 -> SRN | B76: ='F_Inputs BP'!B80 -> CW3_135TOT_PR24 | C76: ='F_Inputs BP'!C80 -> Other enhancement (Freeform lines - by exception) - Additional line 3; enhancement water opex - Total | D76: ='F_Inputs BP'!D80 -> £m | E76: ='F_Inputs BP'!E80 -> Price Review 2024 | F76: ='F_Inputs BP'!F80-SUMIFS(Reallocations!M$4:M$362,Reallocations!$C$4:$C$362,$B76,Reallocations!$A$4:$A$362,$A76) -> 18.211 | G76: ='F_Inputs BP'!G80-SUMIFS(Reallocations!N$4:N$362,Reallocations!$C$4:$C$362,$B76,Reallocations!$A$4:$A$362,$A76) -> 19.768 | H76: ='F_Inputs BP'!H80-SUMIFS(Reallocations!O$4:O$362,Reallocations!$C$4:$C$362,$B76,Reallocations!$A$4:$A$362,$A76) -> 20.349 | I76: ='F_Inputs BP'!I80-SUMIFS(Reallocations!P$4:P$362,Reallocations!$C$4:$C$362,$B76,Reallocations!$A$4:$A$362,$A76) -> 20.599 | J76: ='F_Inputs BP'!J80-SUMIFS(Reallocations!Q$4:Q$362,Reallocations!$C$4:$C$362,$B76,Reallocations!$A$4:$A$362,$A76) -> 20.466
A77: ='F_Inputs BP'!A81 -> SRN | B77: ='F_Inputs BP'!B81 -> CW3_136TOT_PR24 | C77: ='F_Inputs BP'!C81 -> Other enhancement (Freeform lines - by exception) - Additional line 4; enhancement water capex - Total | D77: ='F_Inputs BP'!D81 -> £m | E77: ='F_Inputs BP'!E81 -> Price Review 2024 | F77: ='F_Inputs BP'!F81-SUMIFS(Reallocations!M$4:M$362,Reallocations!$C$4:$C$362,$B77,Reallocations!$A$4:$A$362,$A77) -> 0 | G77: ='F_Inputs BP'!G81-SUMIFS(Reallocations!N$4:N$362,Reallocations!$C$4:$C$362,$B77,Reallocations!$A$4:$A$362,$A77) -> 0 | H77: ='F_Inputs BP'!H81-SUMIFS(Reallocations!O$4:O$362,Reallocations!$C$4:$C$362,$B77,Reallocations!$A$4:$A$362,$A77) -> 0 | I77: ='F_Inputs BP'!I81-SUMIFS(Reallocations!P$4:P$362,Reallocations!$C$4:$C$362,$B77,Reallocations!$A$4:$A$362,$A77) -> 0 | J77: ='F_Inputs BP'!J81-SUMIFS(Reallocations!Q$4:Q$362,Reallocations!$C$4:$C$362,$B77,Reallocations!$A$4:$A$362,$A77) -> 0
A78: ='F_Inputs BP'!A82 -> SRN | B78: ='F_Inputs BP'!B82 -> CW3_137TOT_PR24 | C78: ='F_Inputs BP'!C82 -> Other enhancement (Freeform lines - by exception) - Additional line 4; enhancement water opex - Total | D78: ='F_Inputs BP'!D82 -> £m | E78: ='F_Inputs BP'!E82 -> Price Review 2024 | F78: ='F_Inputs BP'!F82-SUMIFS(Reallocations!M$4:M$362,Reallocations!$C$4:$C$362,$B78,Reallocations!$A$4:$A$362,$A78) -> 0 | G78: ='F_Inputs BP'!G82-SUMIFS(Reallocations!N$4:N$362,Reallocations!$C$4:$C$362,$B78,Reallocations!$A$4:$A$362,$A78) -> 0 | H78: ='F_Inputs BP'!H82-SUMIFS(Reallocations!O$4:O$362,Reallocations!$C$4:$C$362,$B78,Reallocations!$A$4:$A$362,$A78) -> 0 | I78: ='F_Inputs BP'!I82-SUMIFS(Reallocations!P$4:P$362,Reallocations!$C$4:$C$362,$B78,Reallocations!$A$4:$A$362,$A78) -> 0 | J78: ='F_Inputs BP'!J82-SUMIFS(Reallocations!Q$4:Q$362,Reallocations!$C$4:$C$362,$B78,Reallocations!$A$4:$A$362,$A78) -> 0
A79: ='F_Inputs BP'!A83 -> SRN | B79: ='F_Inputs BP'!B83 -> CW3_138TOT_PR24 | C79: ='F_Inputs BP'!C83 -> Other enhancement (Freeform lines - by exception) - Additional line 5; enhancement water capex - Total | D79: ='F_Inputs BP'!D83 -> £m | E79: ='F_Inputs BP'!E83 -> Price Review 2024 | F79: ='F_Inputs BP'!F83-SUMIFS(Reallocations!M$4:M$362,Reallocations!$C$4:$C$362,$B79,Reallocations!$A$4:$A$362,$A79) -> 0 | G79: ='F_Inputs BP'!G83-SUMIFS(Reallocations!N$4:N$362,Reallocations!$C$4:$C$362,$B79,Reallocations!$A$4:$A$362,$A79) -> 0 | H79: ='F_Inputs BP'!H83-SUMIFS(Reallocations!O$4:O$362,Reallocations!$C$4:$C$362,$B79,Reallocations!$A$4:$A$362,$A79) -> 0 | I79: ='F_Inputs BP'!I83-SUMIFS(Reallocations!P$4:P$362,Reallocations!$C$4:$C$362,$B79,Reallocations!$A$4:$A$362,$A79) -> 0 | J79: ='F_Inputs BP'!J83-SUMIFS(Reallocations!Q$4:Q$362,Reallocations!$C$4:$C$362,$B79,Reallocations!$A$4:$A$362,$A79) -> 0
A80: ='F_Inputs BP'!A84 -> SRN | B80: ='F_Inputs BP'!B84 -> CW3_139TOT_PR24 | C80: ='F_Inputs BP'!C84 -> Other enhancement (Freeform lines - by exception) - Additional line 5; enhancement water opex - Total | D80: ='F_Inputs BP'!D84 -> £m | E80: ='F_Inputs BP'!E84 -> Price Review 2024 | F80: ='F_Inputs BP'!F84-SUMIFS(Reallocations!M$4:M$362,Reallocations!$C$4:$C$362,$B80,Reallocations!$A$4:$A$362,$A80) -> 0 | G80: ='F_Inputs BP'!G84-SUMIFS(Reallocations!N$4:N$362,Reallocations!$C$4:$C$362,$B80,Reallocations!$A$4:$A$362,$A80) -> 0 | H80: ='F_Inputs BP'!H84-SUMIFS(Reallocations!O$4:O$362,Reallocations!$C$4:$C$362,$B80,Reallocations!$A$4:$A$362,$A80) -> 0 | I80: ='F_Inputs BP'!I84-SUMIFS(Reallocations!P$4:P$362,Reallocations!$C$4:$C$362,$B80,Reallocations!$A$4:$A$362,$A80) -> 0 | J80: ='F_Inputs BP'!J84-SUMIFS(Reallocations!Q$4:Q$362,Reallocations!$C$4:$C$362,$B80,Reallocations!$A$4:$A$362,$A80) -> 0
A81: ='F_Inputs BP'!A85 -> SRN | B81: ='F_Inputs BP'!B85 -> CW1A_015TOT_PR24 | C81: ='F_Inputs BP'!C85 -> Net totex - Total | D81: ='F_Inputs BP'!D85 -> £m | E81: ='F_Inputs BP'!E85 -> Price Review 2024 | F81: ='F_Inputs BP'!F85-SUMIFS(Reallocations!M$4:M$362,Reallocations!$C$4:$C$362,$B81,Reallocations!$A$4:$A$362,$A81) -> 624.948 | G81: ='F_Inputs BP'!G85-SUMIFS(Reallocations!N$4:N$362,Reallocations!$C$4:$C$362,$B81,Reallocations!$A$4:$A$362,$A81) -> 772.22 | H81: ='F_Inputs BP'!H85-SUMIFS(Reallocations!O$4:O$362,Reallocations!$C$4:$C$362,$B81,Reallocations!$A$4:$A$362,$A81) -> 736.348 | I81: ='F_Inputs BP'!I85-SUMIFS(Reallocations!P$4:P$362,Reallocations!$C$4:$C$362,$B81,Reallocations!$A$4:$A$362,$A81) -> 738.194 | J81: ='F_Inputs BP'!J85-SUMIFS(Reallocations!Q$4:Q$362,Reallocations!$C$4:$C$362,$B81,Reallocations!$A$4:$A$362,$A81) -> 616.384
A82: ='F_Inputs BP'!A86 -> TMS | B82: ='F_Inputs BP'!B86 -> CW3_130TOT_PR24 | C82: ='F_Inputs BP'!C86 -> Other enhancement (Freeform lines - by exception) - Additional line 1; enhancement water capex - Total | D82: ='F_Inputs BP'!D86 -> £m | E82: ='F_Inputs BP'!E86 -> Price Review 2024 | F82: ='F_Inputs BP'!F86-SUMIFS(Reallocations!M$4:M$362,Reallocations!$C$4:$C$362,$B82,Reallocations!$A$4:$A$362,$A82) -> 0 | G82: ='F_Inputs BP'!G86-SUMIFS(Reallocations!N$4:N$362,Reallocations!$C$4:$C$362,$B82,Reallocations!$A$4:$A$362,$A82) -> 0 | H82: ='F_Inputs BP'!H86-SUMIFS(Reallocations!O$4:O$362,Reallocations!$C$4:$C$362,$B82,Reallocations!$A$4:$A$362,$A82) -> 0 | I82: ='F_Inputs BP'!I86-SUMIFS(Reallocations!P$4:P$362,Reallocations!$C$4:$C$362,$B82,Reallocations!$A$4:$A$362,$A82) -> 0 | J82: ='F_Inputs BP'!J86-SUMIFS(Reallocations!Q$4:Q$362,Reallocations!$C$4:$C$362,$B82,Reallocations!$A$4:$A$362,$A82) -> 0
A83: ='F_Inputs BP'!A87 -> TMS | B83: ='F_Inputs BP'!B87 -> CW3_131TOT_PR24 | C83: ='F_Inputs BP'!C87 -> Other enhancement (Freeform lines - by exception) - Additional line 1; enhancement water opex - Total | D83: ='F_Inputs BP'!D87 -> £m | E83: ='F_Inputs BP'!E87 -> Price Review 2024 | F83: ='F_Inputs BP'!F87-SUMIFS(Reallocations!M$4:M$362,Reallocations!$C$4:$C$362,$B83,Reallocations!$A$4:$A$362,$A83) -> 0 | G83: ='F_Inputs BP'!G87-SUMIFS(Reallocations!N$4:N$362,Reallocations!$C$4:$C$362,$B83,Reallocations!$A$4:$A$362,$A83) -> 0 | H83: ='F_Inputs BP'!H87-SUMIFS(Reallocations!O$4:O$362,Reallocations!$C$4:$C$362,$B83,Reallocations!$A$4:$A$362,$A83) -> 0 | I83: ='F_Inputs BP'!I87-SUMIFS(Reallocations!P$4:P$362,Reallocations!$C$4:$C$362,$B83,Reallocations!$A$4:$A$362,$A83) -> 0 | J83: ='F_Inputs BP'!J87-SUMIFS(Reallocations!Q$4:Q$362,Reallocations!$C$4:$C$362,$B83,Reallocations!$A$4:$A$362,$A83) -> 0
A84: ='F_Inputs BP'!A88 -> TMS | B84: ='F_Inputs BP'!B88 -> CW3_132TOT_PR24 | C84: ='F_Inputs BP'!C88 -> Other enhancement (Freeform lines - by exception) - Additional line 2; enhancement water capex - Total | D84: ='F_Inputs BP'!D88 -> £m | E84: ='F_Inputs BP'!E88 -> Price Review 2024 | F84: ='F_Inputs BP'!F88-SUMIFS(Reallocations!M$4:M$362,Reallocations!$C$4:$C$362,$B84,Reallocations!$A$4:$A$362,$A84) -> 0 | G84: ='F_Inputs BP'!G88-SUMIFS(Reallocations!N$4:N$362,Reallocations!$C$4:$C$362,$B84,Reallocations!$A$4:$A$362,$A84) -> 0 | H84: ='F_Inputs BP'!H88-SUMIFS(Reallocations!O$4:O$362,Reallocations!$C$4:$C$362,$B84,Reallocations!$A$4:$A$362,$A84) -> 0 | I84: ='F_Inputs BP'!I88-SUMIFS(Reallocations!P$4:P$362,Reallocations!$C$4:$C$362,$B84,Reallocations!$A$4:$A$362,$A84) -> 0 | J84: ='F_Inputs BP'!J88-SUMIFS(Reallocations!Q$4:Q$362,Reallocations!$C$4:$C$362,$B84,Reallocations!$A$4:$A$362,$A84) -> 0
A85: ='F_Inputs BP'!A89 -> TMS | B85: ='F_Inputs BP'!B89 -> CW3_133TOT_PR24 | C85: ='F_Inputs BP'!C89 -> Other enhancement (Freeform lines - by exception) - Additional line 2; enhancement water opex - Total | D85: ='F_Inputs BP'!D89 -> £m | E85: ='F_Inputs BP'!E89 -> Price Review 2024 | F85: ='F_Inputs BP'!F89-SUMIFS(Reallocations!M$4:M$362,Reallocations!$C$4:$C$362,$B85,Reallocations!$A$4:$A$362,$A85) -> 0 | G85: ='F_Inputs BP'!G89-SUMIFS(Reallocations!N$4:N$362,Reallocations!$C$4:$C$362,$B85,Reallocations!$A$4:$A$362,$A85) -> 0 | H85: ='F_Inputs BP'!H89-SUMIFS(Reallocations!O$4:O$362,Reallocations!$C$4:$C$362,$B85,Reallocations!$A$4:$A$362,$A85) -> 0 | I85: ='F_Inputs BP'!I89-SUMIFS(Reallocations!P$4:P$362,Reallocations!$C$4:$C$362,$B85,Reallocations!$A$4:$A$362,$A85) -> 0 | J85: ='F_Inputs BP'!J89-SUMIFS(Reallocations!Q$4:Q$362,Reallocations!$C$4:$C$362,$B85,Reallocations!$A$4:$A$362,$A85) -> 0
A86: ='F_Inputs BP'!A90 -> TMS | B86: ='F_Inputs BP'!B90 -> CW3_134TOT_PR24 | C86: ='F_Inputs BP'!C90 -> Other enhancement (Freeform lines - by exception) - Additional line 3; enhancement water capex - Total | D86: ='F_Inputs BP'!D90 -> £m | E86: ='F_Inputs BP'!E90 -> Price Review 2024 | F86: ='F_Inputs BP'!F90-SUMIFS(Reallocations!M$4:M$362,Reallocations!$C$4:$C$362,$B86,Reallocations!$A$4:$A$362,$A86) -> 69.149 | G86: ='F_Inputs BP'!G90-SUMIFS(Reallocations!N$4:N$362,Reallocations!$C$4:$C$362,$B86,Reallocations!$A$4:$A$362,$A86) -> 63.589 | H86: ='F_Inputs BP'!H90-SUMIFS(Reallocations!O$4:O$362,Reallocations!$C$4:$C$362,$B86,Reallocations!$A$4:$A$362,$A86) -> 106.995 | I86: ='F_Inputs BP'!I90-SUMIFS(Reallocations!P$4:P$362,Reallocations!$C$4:$C$362,$B86,Reallocations!$A$4:$A$362,$A86) -> 104.849 | J86: ='F_Inputs BP'!J90-SUMIFS(Reallocations!Q$4:Q$362,Reallocations!$C$4:$C$362,$B86,Reallocations!$A$4:$A$362,$A86) -> 129.46
A87: ='F_Inputs BP'!A91 -> TMS | B87: ='F_Inputs BP'!B91 -> CW3_135TOT_PR24 | C87: ='F_Inputs BP'!C91 -> Other enhancement (Freeform lines - by exception) - Additional line 3; enhancement water opex - Total | D87: ='F_Inputs BP'!D91 -> £m | E87: ='F_Inputs BP'!E91 -> Price Review 2024 | F87: ='F_Inputs BP'!F91-SUMIFS(Reallocations!M$4:M$362,Reallocations!$C$4:$C$362,$B87,Reallocations!$A$4:$A$362,$A87) -> 0 | G87: ='F_Inputs BP'!G91-SUMIFS(Reallocations!N$4:N$362,Reallocations!$C$4:$C$362,$B87,Reallocations!$A$4:$A$362,$A87) -> 0 | H87: ='F_Inputs BP'!H91-SUMIFS(Reallocations!O$4:O$362,Reallocations!$C$4:$C$362,$B87,Reallocations!$A$4:$A$362,$A87) -> 0 | I87: ='F_Inputs BP'!I91-SUMIFS(Reallocations!P$4:P$362,Reallocations!$C$4:$C$362,$B87,Reallocations!$A$4:$A$362,$A87) -> 0 | J87: ='F_Inputs BP'!J91-SUMIFS(Reallocations!Q$4:Q$362,Reallocations!$C$4:$C$362,$B87,Reallocations!$A$4:$A$362,$A87) -> 0
A88: ='F_Inputs BP'!A92 -> TMS | B88: ='F_Inputs BP'!B92 -> CW3_136TOT_PR24 | C88: ='F_Inputs BP'!C92 -> Other enhancement (Freeform lines - by exception) - Additional line 4; enhancement water capex - Total | D88: ='F_Inputs BP'!D92 -> £m | E88: ='F_Inputs BP'!E92 -> Price Review 2024 | F88: ='F_Inputs BP'!F92-SUMIFS(Reallocations!M$4:M$362,Reallocations!$C$4:$C$362,$B88,Reallocations!$A$4:$A$362,$A88) -> 58.487 | G88: ='F_Inputs BP'!G92-SUMIFS(Reallocations!N$4:N$362,Reallocations!$C$4:$C$362,$B88,Reallocations!$A$4:$A$362,$A88) -> 16.153 | H88: ='F_Inputs BP'!H92-SUMIFS(Reallocations!O$4:O$362,Reallocations!$C$4:$C$362,$B88,Reallocations!$A$4:$A$362,$A88) -> 1.032 | I88: ='F_Inputs BP'!I92-SUMIFS(Reallocations!P$4:P$362,Reallocations!$C$4:$C$362,$B88,Reallocations!$A$4:$A$362,$A88) -> 0 | J88: ='F_Inputs BP'!J92-SUMIFS(Reallocations!Q$4:Q$362,Reallocations!$C$4:$C$362,$B88,Reallocations!$A$4:$A$362,$A88) -> 0
A89: ='F_Inputs BP'!A93 -> TMS | B89: ='F_Inputs BP'!B93 -> CW3_137TOT_PR24 | C89: ='F_Inputs BP'!C93 -> Other enhancement (Freeform lines - by exception) - Additional line 4; enhancement water opex - Total | D89: ='F_Inputs BP'!D93 -> £m | E89: ='F_Inputs BP'!E93 -> Price Review 2024 | F89: ='F_Inputs BP'!F93-SUMIFS(Reallocations!M$4:M$362,Reallocations!$C$4:$C$362,$B89,Reallocations!$A$4:$A$362,$A89) -> 0 | G89: ='F_Inputs BP'!G93-SUMIFS(Reallocations!N$4:N$362,Reallocations!$C$4:$C$362,$B89,Reallocations!$A$4:$A$362,$A89) -> 0 | H89: ='F_Inputs BP'!H93-SUMIFS(Reallocations!O$4:O$362,Reallocations!$C$4:$C$362,$B89,Reallocations!$A$4:$A$362,$A89) -> 0 | I89: ='F_Inputs BP'!I93-SUMIFS(Reallocations!P$4:P$362,Reallocations!$C$4:$C$362,$B89,Reallocations!$A$4:$A$362,$A89) -> 0 | J89: ='F_Inputs BP'!J93-SUMIFS(Reallocations!Q$4:Q$362,Reallocations!$C$4:$C$362,$B89,Reallocations!$A$4:$A$362,$A89) -> 0
A90: ='F_Inputs BP'!A94 -> TMS | B90: ='F_Inputs BP'!B94 -> CW3_138TOT_PR24 | C90: ='F_Inputs BP'!C94 -> Other enhancement (Freeform lines - by exception) - Additional line 5; enhancement water capex - Total | D90: ='F_Inputs BP'!D94 -> £m | E90: ='F_Inputs BP'!E94 -> Price Review 2024 | F90: ='F_Inputs BP'!F94-SUMIFS(Reallocations!M$4:M$362,Reallocations!$C$4:$C$362,$B90,Reallocations!$A$4:$A$362,$A90) -> 0 | G90: ='F_Inputs BP'!G94-SUMIFS(Reallocations!N$4:N$362,Reallocations!$C$4:$C$362,$B90,Reallocations!$A$4:$A$362,$A90) -> 0 | H90: ='F_Inputs BP'!H94-SUMIFS(Reallocations!O$4:O$362,Reallocations!$C$4:$C$362,$B90,Reallocations!$A$4:$A$362,$A90) -> 0 | I90: ='F_Inputs BP'!I94-SUMIFS(Reallocations!P$4:P$362,Reallocations!$C$4:$C$362,$B90,Reallocations!$A$4:$A$362,$A90) -> 0 | J90: ='F_Inputs BP'!J94-SUMIFS(Reallocations!Q$4:Q$362,Reallocations!$C$4:$C$362,$B90,Reallocations!$A$4:$A$362,$A90) -> 0
A91: ='F_Inputs BP'!A95 -> TMS | B91: ='F_Inputs BP'!B95 -> CW3_139TOT_PR24 | C91: ='F_Inputs BP'!C95 -> Other enhancement (Freeform lines - by exception) - Additional line 5; enhancement water opex - Total | D91: ='F_Inputs BP'!D95 -> £m | E91: ='F_Inputs BP'!E95 -> Price Review 2024 | F91: ='F_Inputs BP'!F95-SUMIFS(Reallocations!M$4:M$362,Reallocations!$C$4:$C$362,$B91,Reallocations!$A$4:$A$362,$A91) -> 0 | G91: ='F_Inputs BP'!G95-SUMIFS(Reallocations!N$4:N$362,Reallocations!$C$4:$C$362,$B91,Reallocations!$A$4:$A$362,$A91) -> 0 | H91: ='F_Inputs BP'!H95-SUMIFS(Reallocations!O$4:O$362,Reallocations!$C$4:$C$362,$B91,Reallocations!$A$4:$A$362,$A91) -> 0 | I91: ='F_Inputs BP'!I95-SUMIFS(Reallocations!P$4:P$362,Reallocations!$C$4:$C$362,$B91,Reallocations!$A$4:$A$362,$A91) -> 0 | J91: ='F_Inputs BP'!J95-SUMIFS(Reallocations!Q$4:Q$362,Reallocations!$C$4:$C$362,$B91,Reallocations!$A$4:$A$362,$A91) -> 0
A92: ='F_Inputs BP'!A96 -> TMS | B92: ='F_Inputs BP'!B96 -> CW1A_015TOT_PR24 | C92: ='F_Inputs BP'!C96 -> Net totex - Total | D92: ='F_Inputs BP'!D96 -> £m | E92: ='F_Inputs BP'!E96 -> Price Review 2024 | F92: ='F_Inputs BP'!F96-SUMIFS(Reallocations!M$4:M$362,Reallocations!$C$4:$C$362,$B92,Reallocations!$A$4:$A$362,$A92) -> 1823.090345 | G92: ='F_Inputs BP'!G96-SUMIFS(Reallocations!N$4:N$362,Reallocations!$C$4:$C$362,$B92,Reallocations!$A$4:$A$362,$A92) -> 1820.263319 | H92: ='F_Inputs BP'!H96-SUMIFS(Reallocations!O$4:O$362,Reallocations!$C$4:$C$362,$B92,Reallocations!$A$4:$A$362,$A92) -> 1974.510597 | I92: ='F_Inputs BP'!I96-SUMIFS(Reallocations!P$4:P$362,Reallocations!$C$4:$C$362,$B92,Reallocations!$A$4:$A$362,$A92) -> 1991.515752 | J92: ='F_Inputs BP'!J96-SUMIFS(Reallocations!Q$4:Q$362,Reallocations!$C$4:$C$362,$B92,Reallocations!$A$4:$A$362,$A92) -> 2552.782715
A93: ='F_Inputs BP'!A97 -> NWT | B93: ='F_Inputs BP'!B97 -> CW3_130TOT_PR24 | C93: ='F_Inputs BP'!C97 -> Other enhancement (Freeform lines - by exception) - Additional line 1; enhancement water capex - Total | D93: ='F_Inputs BP'!D97 -> £m | E93: ='F_Inputs BP'!E97 -> Price Review 2024 | F93: ='F_Inputs BP'!F97-SUMIFS(Reallocations!M$4:M$362,Reallocations!$C$4:$C$362,$B93,Reallocations!$A$4:$A$362,$A93) -> 0 | G93: ='F_Inputs BP'!G97-SUMIFS(Reallocations!N$4:N$362,Reallocations!$C$4:$C$362,$B93,Reallocations!$A$4:$A$362,$A93) -> 0 | H93: ='F_Inputs BP'!H97-SUMIFS(Reallocations!O$4:O$362,Reallocations!$C$4:$C$362,$B93,Reallocations!$A$4:$A$362,$A93) -> 0 | I93: ='F_Inputs BP'!I97-SUMIFS(Reallocations!P$4:P$362,Reallocations!$C$4:$C$362,$B93,Reallocations!$A$4:$A$362,$A93) -> 0 | J93: ='F_Inputs BP'!J97-SUMIFS(Reallocations!Q$4:Q$362,Reallocations!$C$4:$C$362,$B93,Reallocations!$A$4:$A$362,$A93) -> 0
A94: ='F_Inputs BP'!A98 -> NWT | B94: ='F_Inputs BP'!B98 -> CW3_131TOT_PR24 | C94: ='F_Inputs BP'!C98 -> Other enhancement (Freeform lines - by exception) - Additional line 1; enhancement water opex - Total | D94: ='F_Inputs BP'!D98 -> £m | E94: ='F_Inputs BP'!E98 -> Price Review 2024 | F94: ='F_Inputs BP'!F98-SUMIFS(Reallocations!M$4:M$362,Reallocations!$C$4:$C$362,$B94,Reallocations!$A$4:$A$362,$A94) -> 0 | G94: ='F_Inputs BP'!G98-SUMIFS(Reallocations!N$4:N$362,Reallocations!$C$4:$C$362,$B94,Reallocations!$A$4:$A$362,$A94) -> 0 | H94: ='F_Inputs BP'!H98-SUMIFS(Reallocations!O$4:O$362,Reallocations!$C$4:$C$362,$B94,Reallocations!$A$4:$A$362,$A94) -> 0 | I94: ='F_Inputs BP'!I98-SUMIFS(Reallocations!P$4:P$362,Reallocations!$C$4:$C$362,$B94,Reallocations!$A$4:$A$362,$A94) -> 0 | J94: ='F_Inputs BP'!J98-SUMIFS(Reallocations!Q$4:Q$362,Reallocations!$C$4:$C$362,$B94,Reallocations!$A$4:$A$362,$A94) -> 0
A95: ='F_Inputs BP'!A99 -> NWT | B95: ='F_Inputs BP'!B99 -> CW3_132TOT_PR24 | C95: ='F_Inputs BP'!C99 -> Other enhancement (Freeform lines - by exception) - Additional line 2; enhancement water capex - Total | D95: ='F_Inputs BP'!D99 -> £m | E95: ='F_Inputs BP'!E99 -> Price Review 2024 | F95: ='F_Inputs BP'!F99-SUMIFS(Reallocations!M$4:M$362,Reallocations!$C$4:$C$362,$B95,Reallocations!$A$4:$A$362,$A95) -> 0 | G95: ='F_Inputs BP'!G99-SUMIFS(Reallocations!N$4:N$362,Reallocations!$C$4:$C$362,$B95,Reallocations!$A$4:$A$362,$A95) -> 0 | H95: ='F_Inputs BP'!H99-SUMIFS(Reallocations!O$4:O$362,Reallocations!$C$4:$C$362,$B95,Reallocations!$A$4:$A$362,$A95) -> 0 | I95: ='F_Inputs BP'!I99-SUMIFS(Reallocations!P$4:P$362,Reallocations!$C$4:$C$362,$B95,Reallocations!$A$4:$A$362,$A95) -> 0 | J95: ='F_Inputs BP'!J99-SUMIFS(Reallocations!Q$4:Q$362,Reallocations!$C$4:$C$362,$B95,Reallocations!$A$4:$A$362,$A95) -> 0
A96: ='F_Inputs BP'!A100 -> NWT | B96: ='F_Inputs BP'!B100 -> CW3_133TOT_PR24 | C96: ='F_Inputs BP'!C100 -> Other enhancement (Freeform lines - by exception) - Additional line 2; enhancement water opex - Total | D96: ='F_Inputs BP'!D100 -> £m | E96: ='F_Inputs BP'!E100 -> Price Review 2024 | F96: ='F_Inputs BP'!F100-SUMIFS(Reallocations!M$4:M$362,Reallocations!$C$4:$C$362,$B96,Reallocations!$A$4:$A$362,$A96) -> 0 | G96: ='F_Inputs BP'!G100-SUMIFS(Reallocations!N$4:N$362,Reallocations!$C$4:$C$362,$B96,Reallocations!$A$4:$A$362,$A96) -> 0 | H96: ='F_Inputs BP'!H100-SUMIFS(Reallocations!O$4:O$362,Reallocations!$C$4:$C$362,$B96,Reallocations!$A$4:$A$362,$A96) -> 0 | I96: ='F_Inputs BP'!I100-SUMIFS(Reallocations!P$4:P$362,Reallocations!$C$4:$C$362,$B96,Reallocations!$A$4:$A$362,$A96) -> 0 | J96: ='F_Inputs BP'!J100-SUMIFS(Reallocations!Q$4:Q$362,Reallocations!$C$4:$C$362,$B96,Reallocations!$A$4:$A$362,$A96) -> 0
A97: ='F_Inputs BP'!A101 -> NWT | B97: ='F_Inputs BP'!B101 -> CW3_134TOT_PR24 | C97: ='F_Inputs BP'!C101 -> Other enhancement (Freeform lines - by exception) - Additional line 3; enhancement water capex - Total | D97: ='F_Inputs BP'!D101 -> £m | E97: ='F_Inputs BP'!E101 -> Price Review 2024 | F97: ='F_Inputs BP'!F101-SUMIFS(Reallocations!M$4:M$362,Reallocations!$C$4:$C$362,$B97,Reallocations!$A$4:$A$362,$A97) -> 0 | G97: ='F_Inputs BP'!G101-SUMIFS(Reallocations!N$4:N$362,Reallocations!$C$4:$C$362,$B97,Reallocations!$A$4:$A$362,$A97) -> 0 | H97: ='F_Inputs BP'!H101-SUMIFS(Reallocations!O$4:O$362,Reallocations!$C$4:$C$362,$B97,Reallocations!$A$4:$A$362,$A97) -> 0 | I97: ='F_Inputs BP'!I101-SUMIFS(Reallocations!P$4:P$362,Reallocations!$C$4:$C$362,$B97,Reallocations!$A$4:$A$362,$A97) -> 0 | J97: ='F_Inputs BP'!J101-SUMIFS(Reallocations!Q$4:Q$362,Reallocations!$C$4:$C$362,$B97,Reallocations!$A$4:$A$362,$A97) -> 0
A98: ='F_Inputs BP'!A102 -> NWT | B98: ='F_Inputs BP'!B102 -> CW3_135TOT_PR24 | C98: ='F_Inputs BP'!C102 -> Other enhancement (Freeform lines - by exception) - Additional line 3; enhancement water opex - Total | D98: ='F_Inputs BP'!D102 -> £m | E98: ='F_Inputs BP'!E102 -> Price Review 2024 | F98: ='F_Inputs BP'!F102-SUMIFS(Reallocations!M$4:M$362,Reallocations!$C$4:$C$362,$B98,Reallocations!$A$4:$A$362,$A98) -> 0 | G98: ='F_Inputs BP'!G102-SUMIFS(Reallocations!N$4:N$362,Reallocations!$C$4:$C$362,$B98,Reallocations!$A$4:$A$362,$A98) -> 0 | H98: ='F_Inputs BP'!H102-SUMIFS(Reallocations!O$4:O$362,Reallocations!$C$4:$C$362,$B98,Reallocations!$A$4:$A$362,$A98) -> 0 | I98: ='F_Inputs BP'!I102-SUMIFS(Reallocations!P$4:P$362,Reallocations!$C$4:$C$362,$B98,Reallocations!$A$4:$A$362,$A98) -> 0 | J98: ='F_Inputs BP'!J102-SUMIFS(Reallocations!Q$4:Q$362,Reallocations!$C$4:$C$362,$B98,Reallocations!$A$4:$A$362,$A98) -> 0
A99: ='F_Inputs BP'!A103 -> NWT | B99: ='F_Inputs BP'!B103 -> CW3_136TOT_PR24 | C99: ='F_Inputs BP'!C103 -> Other enhancement (Freeform lines - by exception) - Additional line 4; enhancement water capex - Total | D99: ='F_Inputs BP'!D103 -> £m | E99: ='F_Inputs BP'!E103 -> Price Review 2024 | F99: ='F_Inputs BP'!F103-SUMIFS(Reallocations!M$4:M$362,Reallocations!$C$4:$C$362,$B99,Reallocations!$A$4:$A$362,$A99) -> 0 | G99: ='F_Inputs BP'!G103-SUMIFS(Reallocations!N$4:N$362,Reallocations!$C$4:$C$362,$B99,Reallocations!$A$4:$A$362,$A99) -> 0 | H99: ='F_Inputs BP'!H103-SUMIFS(Reallocations!O$4:O$362,Reallocations!$C$4:$C$362,$B99,Reallocations!$A$4:$A$362,$A99) -> 0 | I99: ='F_Inputs BP'!I103-SUMIFS(Reallocations!P$4:P$362,Reallocations!$C$4:$C$362,$B99,Reallocations!$A$4:$A$362,$A99) -> 0 | J99: ='F_Inputs BP'!J103-SUMIFS(Reallocations!Q$4:Q$362,Reallocations!$C$4:$C$362,$B99,Reallocations!$A$4:$A$362,$A99) -> 0
A100: ='F_Inputs BP'!A104 -> NWT | B100: ='F_Inputs BP'!B104 -> CW3_137TOT_PR24 | C100: ='F_Inputs BP'!C104 -> Other enhancement (Freeform lines - by exception) - Additional line 4; enhancement water opex - Total | D100: ='F_Inputs BP'!D104 -> £m | E100: ='F_Inputs BP'!E104 -> Price Review 2024 | F100: ='F_Inputs BP'!F104-SUMIFS(Reallocations!M$4:M$362,Reallocations!$C$4:$C$362,$B100,Reallocations!$A$4:$A$362,$A100) -> 0 | G100: ='F_Inputs BP'!G104-SUMIFS(Reallocations!N$4:N$362,Reallocations!$C$4:$C$362,$B100,Reallocations!$A$4:$A$362,$A100) -> 0 | H100: ='F_Inputs BP'!H104-SUMIFS(Reallocations!O$4:O$362,Reallocations!$C$4:$C$362,$B100,Reallocations!$A$4:$A$362,$A100) -> 0 | I100: ='F_Inputs BP'!I104-SUMIFS(Reallocations!P$4:P$362,Reallocations!$C$4:$C$362,$B100,Reallocations!$A$4:$A$362,$A100) -> 0 | J100: ='F_Inputs BP'!J104-SUMIFS(Reallocations!Q$4:Q$362,Reallocations!$C$4:$C$362,$B100,Reallocations!$A$4:$A$362,$A100) -> 0
A101: ='F_Inputs BP'!A105 -> NWT | B101: ='F_Inputs BP'!B105 -> CW3_138TOT_PR24 | C101: ='F_Inputs BP'!C105 -> Other enhancement (Freeform lines - by exception) - Additional line 5; enhancement water capex - Total | D101: ='F_Inputs BP'!D105 -> £m | E101: ='F_Inputs BP'!E105 -> Price Review 2024 | F101: ='F_Inputs BP'!F105-SUMIFS(Reallocations!M$4:M$362,Reallocations!$C$4:$C$362,$B101,Reallocations!$A$4:$A$362,$A101) -> 0 | G101: ='F_Inputs BP'!G105-SUMIFS(Reallocations!N$4:N$362,Reallocations!$C$4:$C$362,$B101,Reallocations!$A$4:$A$362,$A101) -> 0 | H101: ='F_Inputs BP'!H105-SUMIFS(Reallocations!O$4:O$362,Reallocations!$C$4:$C$362,$B101,Reallocations!$A$4:$A$362,$A101) -> 0 | I101: ='F_Inputs BP'!I105-SUMIFS(Reallocations!P$4:P$362,Reallocations!$C$4:$C$362,$B101,Reallocations!$A$4:$A$362,$A101) -> 0 | J101: ='F_Inputs BP'!J105-SUMIFS(Reallocations!Q$4:Q$362,Reallocations!$C$4:$C$362,$B101,Reallocations!$A$4:$A$362,$A101) -> 0
A102: ='F_Inputs BP'!A106 -> NWT | B102: ='F_Inputs BP'!B106 -> CW3_139TOT_PR24 | C102: ='F_Inputs BP'!C106 -> Other enhancement (Freeform lines - by exception) - Additional line 5; enhancement water opex - Total | D102: ='F_Inputs BP'!D106 -> £m | E102: ='F_Inputs BP'!E106 -> Price Review 2024 | F102: ='F_Inputs BP'!F106-SUMIFS(Reallocations!M$4:M$362,Reallocations!$C$4:$C$362,$B102,Reallocations!$A$4:$A$362,$A102) -> 0 | G102: ='F_Inputs BP'!G106-SUMIFS(Reallocations!N$4:N$362,Reallocations!$C$4:$C$362,$B102,Reallocations!$A$4:$A$362,$A102) -> 0 | H102: ='F_Inputs BP'!H106-SUMIFS(Reallocations!O$4:O$362,Reallocations!$C$4:$C$362,$B102,Reallocations!$A$4:$A$362,$A102) -> 0 | I102: ='F_Inputs BP'!I106-SUMIFS(Reallocations!P$4:P$362,Reallocations!$C$4:$C$362,$B102,Reallocations!$A$4:$A$362,$A102) -> 0 | J102: ='F_Inputs BP'!J106-SUMIFS(Reallocations!Q$4:Q$362,Reallocations!$C$4:$C$362,$B102,Reallocations!$A$4:$A$362,$A102) -> 0
A103: ='F_Inputs BP'!A107 -> NWT | B103: ='F_Inputs BP'!B107 -> CW1A_015TOT_PR24 | C103: ='F_Inputs BP'!C107 -> Net totex - Total | D103: ='F_Inputs BP'!D107 -> £m | E103: ='F_Inputs BP'!E107 -> Price Review 2024 | F103: ='F_Inputs BP'!F107-SUMIFS(Reallocations!M$4:M$362,Reallocations!$C$4:$C$362,$B103,Reallocations!$A$4:$A$362,$A103) -> 798.3278211 | G103: ='F_Inputs BP'!G107-SUMIFS(Reallocations!N$4:N$362,Reallocations!$C$4:$C$362,$B103,Reallocations!$A$4:$A$362,$A103) -> 848.1624659 | H103: ='F_Inputs BP'!H107-SUMIFS(Reallocations!O$4:O$362,Reallocations!$C$4:$C$362,$B103,Reallocations!$A$4:$A$362,$A103) -> 903.43463 | I103: ='F_Inputs BP'!I107-SUMIFS(Reallocations!P$4:P$362,Reallocations!$C$4:$C$362,$B103,Reallocations!$A$4:$A$362,$A103) -> 830.7904028 | J103: ='F_Inputs BP'!J107-SUMIFS(Reallocations!Q$4:Q$362,Reallocations!$C$4:$C$362,$B103,Reallocations!$A$4:$A$362,$A103) -> 799.36715
A104: ='F_Inputs BP'!A108 -> WSX | B104: ='F_Inputs BP'!B108 -> CW3_130TOT_PR24 | C104: ='F_Inputs BP'!C108 -> Other enhancement (Freeform lines - by exception) - Additional line 1; enhancement water capex - Total | D104: ='F_Inputs BP'!D108 -> £m | E104: ='F_Inputs BP'!E108 -> Price Review 2024 | F104: ='F_Inputs BP'!F108-SUMIFS(Reallocations!M$4:M$362,Reallocations!$C$4:$C$362,$B104,Reallocations!$A$4:$A$362,$A104) -> 0 | G104: ='F_Inputs BP'!G108-SUMIFS(Reallocations!N$4:N$362,Reallocations!$C$4:$C$362,$B104,Reallocations!$A$4:$A$362,$A104) -> 0 | H104: ='F_Inputs BP'!H108-SUMIFS(Reallocations!O$4:O$362,Reallocations!$C$4:$C$362,$B104,Reallocations!$A$4:$A$362,$A104) -> 0 | I104: ='F_Inputs BP'!I108-SUMIFS(Reallocations!P$4:P$362,Reallocations!$C$4:$C$362,$B104,Reallocations!$A$4:$A$362,$A104) -> 0 | J104: ='F_Inputs BP'!J108-SUMIFS(Reallocations!Q$4:Q$362,Reallocations!$C$4:$C$362,$B104,Reallocations!$A$4:$A$362,$A104) -> 0
A105: ='F_Inputs BP'!A109 -> WSX | B105: ='F_Inputs BP'!B109 -> CW3_131TOT_PR24 | C105: ='F_Inputs BP'!C109 -> Other enhancement (Freeform lines - by exception) - Additional line 1; enhancement water opex - Total | D105: ='F_Inputs BP'!D109 -> £m | E105: ='F_Inputs BP'!E109 -> Price Review 2024 | F105: ='F_Inputs BP'!F109-SUMIFS(Reallocations!M$4:M$362,Reallocations!$C$4:$C$362,$B105,Reallocations!$A$4:$A$362,$A105) -> 0 | G105: ='F_Inputs BP'!G109-SUMIFS(Reallocations!N$4:N$362,Reallocations!$C$4:$C$362,$B105,Reallocations!$A$4:$A$362,$A105) -> 0 | H105: ='F_Inputs BP'!H109-SUMIFS(Reallocations!O$4:O$362,Reallocations!$C$4:$C$362,$B105,Reallocations!$A$4:$A$362,$A105) -> 0 | I105: ='F_Inputs BP'!I109-SUMIFS(Reallocations!P$4:P$362,Reallocations!$C$4:$C$362,$B105,Reallocations!$A$4:$A$362,$A105) -> 0 | J105: ='F_Inputs BP'!J109-SUMIFS(Reallocations!Q$4:Q$362,Reallocations!$C$4:$C$362,$B105,Reallocations!$A$4:$A$362,$A105) -> 0
A106: ='F_Inputs BP'!A110 -> WSX | B106: ='F_Inputs BP'!B110 -> CW3_132TOT_PR24 | C106: ='F_Inputs BP'!C110 -> Other enhancement (Freeform lines - by exception) - Additional line 2; enhancement water capex - Total | D106: ='F_Inputs BP'!D110 -> £m | E106: ='F_Inputs BP'!E110 -> Price Review 2024 | F106: ='F_Inputs BP'!F110-SUMIFS(Reallocations!M$4:M$362,Reallocations!$C$4:$C$362,$B106,Reallocations!$A$4:$A$362,$A106) -> 0 | G106: ='F_Inputs BP'!G110-SUMIFS(Reallocations!N$4:N$362,Reallocations!$C$4:$C$362,$B106,Reallocations!$A$4:$A$362,$A106) -> 0 | H106: ='F_Inputs BP'!H110-SUMIFS(Reallocations!O$4:O$362,Reallocations!$C$4:$C$362,$B106,Reallocations!$A$4:$A$362,$A106) -> 0 | I106: ='F_Inputs BP'!I110-SUMIFS(Reallocations!P$4:P$362,Reallocations!$C$4:$C$362,$B106,Reallocations!$A$4:$A$362,$A106) -> 0 | J106: ='F_Inputs BP'!J110-SUMIFS(Reallocations!Q$4:Q$362,Reallocations!$C$4:$C$362,$B106,Reallocations!$A$4:$A$362,$A106) -> 0
A107: ='F_Inputs BP'!A111 -> WSX | B107: ='F_Inputs BP'!B111 -> CW3_133TOT_PR24 | C107: ='F_Inputs BP'!C111 -> Other enhancement (Freeform lines - by exception) - Additional line 2; enhancement water opex - Total | D107: ='F_Inputs BP'!D111 -> £m | E107: ='F_Inputs BP'!E111 -> Price Review 2024 | F107: ='F_Inputs BP'!F111-SUMIFS(Reallocations!M$4:M$362,Reallocations!$C$4:$C$362,$B107,Reallocations!$A$4:$A$362,$A107) -> 0 | G107: ='F_Inputs BP'!G111-SUMIFS(Reallocations!N$4:N$362,Reallocations!$C$4:$C$362,$B107,Reallocations!$A$4:$A$362,$A107) -> 0 | H107: ='F_Inputs BP'!H111-SUMIFS(Reallocations!O$4:O$362,Reallocations!$C$4:$C$362,$B107,Reallocations!$A$4:$A$362,$A107) -> 0 | I107: ='F_Inputs BP'!I111-SUMIFS(Reallocations!P$4:P$362,Reallocations!$C$4:$C$362,$B107,Reallocations!$A$4:$A$362,$A107) -> 0 | J107: ='F_Inputs BP'!J111-SUMIFS(Reallocations!Q$4:Q$362,Reallocations!$C$4:$C$362,$B107,Reallocations!$A$4:$A$362,$A107) -> 0
A108: ='F_Inputs BP'!A112 -> WSX | B108: ='F_Inputs BP'!B112 -> CW3_134TOT_PR24 | C108: ='F_Inputs BP'!C112 -> Other enhancement (Freeform lines - by exception) - Additional line 3; enhancement water capex - Total | D108: ='F_Inputs BP'!D112 -> £m | E108: ='F_Inputs BP'!E112 -> Price Review 2024 | F108: ='F_Inputs BP'!F112-SUMIFS(Reallocations!M$4:M$362,Reallocations!$C$4:$C$362,$B108,Reallocations!$A$4:$A$362,$A108) -> 0 | G108: ='F_Inputs BP'!G112-SUMIFS(Reallocations!N$4:N$362,Reallocations!$C$4:$C$362,$B108,Reallocations!$A$4:$A$362,$A108) -> 0 | H108: ='F_Inputs BP'!H112-SUMIFS(Reallocations!O$4:O$362,Reallocations!$C$4:$C$362,$B108,Reallocations!$A$4:$A$362,$A108) -> 0 | I108: ='F_Inputs BP'!I112-SUMIFS(Reallocations!P$4:P$362,Reallocations!$C$4:$C$362,$B108,Reallocations!$A$4:$A$362,$A108) -> 0 | J108: ='F_Inputs BP'!J112-SUMIFS(Reallocations!Q$4:Q$362,Reallocations!$C$4:$C$362,$B108,Reallocations!$A$4:$A$362,$A108) -> 0
A109: ='F_Inputs BP'!A113 -> WSX | B109: ='F_Inputs BP'!B113 -> CW3_135TOT_PR24 | C109: ='F_Inputs BP'!C113 -> Other enhancement (Freeform lines - by exception) - Additional line 3; enhancement water opex - Total | D109: ='F_Inputs BP'!D113 -> £m | E109: ='F_Inputs BP'!E113 -> Price Review 2024 | F109: ='F_Inputs BP'!F113-SUMIFS(Reallocations!M$4:M$362,Reallocations!$C$4:$C$362,$B109,Reallocations!$A$4:$A$362,$A109) -> 0 | G109: ='F_Inputs BP'!G113-SUMIFS(Reallocations!N$4:N$362,Reallocations!$C$4:$C$362,$B109,Reallocations!$A$4:$A$362,$A109) -> 0 | H109: ='F_Inputs BP'!H113-SUMIFS(Reallocations!O$4:O$362,Reallocations!$C$4:$C$362,$B109,Reallocations!$A$4:$A$362,$A109) -> 0 | I109: ='F_Inputs BP'!I113-SUMIFS(Reallocations!P$4:P$362,Reallocations!$C$4:$C$362,$B109,Reallocations!$A$4:$A$362,$A109) -> 0 | J109: ='F_Inputs BP'!J113-SUMIFS(Reallocations!Q$4:Q$362,Reallocations!$C$4:$C$362,$B109,Reallocations!$A$4:$A$362,$A109) -> 0
A110: ='F_Inputs BP'!A114 -> WSX | B110: ='F_Inputs BP'!B114 -> CW3_136TOT_PR24 | C110: ='F_Inputs BP'!C114 -> Other enhancement (Freeform lines - by exception) - Additional line 4; enhancement water capex - Total | D110: ='F_Inputs BP'!D114 -> £m | E110: ='F_Inputs BP'!E114 -> Price Review 2024 | F110: ='F_Inputs BP'!F114-SUMIFS(Reallocations!M$4:M$362,Reallocations!$C$4:$C$362,$B110,Reallocations!$A$4:$A$362,$A110) -> 0 | G110: ='F_Inputs BP'!G114-SUMIFS(Reallocations!N$4:N$362,Reallocations!$C$4:$C$362,$B110,Reallocations!$A$4:$A$362,$A110) -> 0 | H110: ='F_Inputs BP'!H114-SUMIFS(Reallocations!O$4:O$362,Reallocations!$C$4:$C$362,$B110,Reallocations!$A$4:$A$362,$A110) -> 0 | I110: ='F_Inputs BP'!I114-SUMIFS(Reallocations!P$4:P$362,Reallocations!$C$4:$C$362,$B110,Reallocations!$A$4:$A$362,$A110) -> 0 | J110: ='F_Inputs BP'!J114-SUMIFS(Reallocations!Q$4:Q$362,Reallocations!$C$4:$C$362,$B110,Reallocations!$A$4:$A$362,$A110) -> 0
A111: ='F_Inputs BP'!A115 -> WSX | B111: ='F_Inputs BP'!B115 -> CW3_137TOT_PR24 | C111: ='F_Inputs BP'!C115 -> Other enhancement (Freeform lines - by exception) - Additional line 4; enhancement water opex - Total | D111: ='F_Inputs BP'!D115 -> £m | E111: ='F_Inputs BP'!E115 -> Price Review 2024 | F111: ='F_Inputs BP'!F115-SUMIFS(Reallocations!M$4:M$362,Reallocations!$C$4:$C$362,$B111,Reallocations!$A$4:$A$362,$A111) -> 0.361886 | G111: ='F_Inputs BP'!G115-SUMIFS(Reallocations!N$4:N$362,Reallocations!$C$4:$C$362,$B111,Reallocations!$A$4:$A$362,$A111) -> 0.329097 | H111: ='F_Inputs BP'!H115-SUMIFS(Reallocations!O$4:O$362,Reallocations!$C$4:$C$362,$B111,Reallocations!$A$4:$A$362,$A111) -> 0.330743 | I111: ='F_Inputs BP'!I115-SUMIFS(Reallocations!P$4:P$362,Reallocations!$C$4:$C$362,$B111,Reallocations!$A$4:$A$362,$A111) -> 0.335229 | J111: ='F_Inputs BP'!J115-SUMIFS(Reallocations!Q$4:Q$362,Reallocations!$C$4:$C$362,$B111,Reallocations!$A$4:$A$362,$A111) -> 0.346397
A112: ='F_Inputs BP'!A116 -> WSX | B112: ='F_Inputs BP'!B116 -> CW3_138TOT_PR24 | C112: ='F_Inputs BP'!C116 -> Other enhancement (Freeform lines - by exception) - Additional line 5; enhancement water capex - Total | D112: ='F_Inputs BP'!D116 -> £m | E112: ='F_Inputs BP'!E116 -> Price Review 2024 | F112: ='F_Inputs BP'!F116-SUMIFS(Reallocations!M$4:M$362,Reallocations!$C$4:$C$362,$B112,Reallocations!$A$4:$A$362,$A112) -> 0 | G112: ='F_Inputs BP'!G116-SUMIFS(Reallocations!N$4:N$362,Reallocations!$C$4:$C$362,$B112,Reallocations!$A$4:$A$362,$A112) -> 0 | H112: ='F_Inputs BP'!H116-SUMIFS(Reallocations!O$4:O$362,Reallocations!$C$4:$C$362,$B112,Reallocations!$A$4:$A$362,$A112) -> 0 | I112: ='F_Inputs BP'!I116-SUMIFS(Reallocations!P$4:P$362,Reallocations!$C$4:$C$362,$B112,Reallocations!$A$4:$A$362,$A112) -> 0 | J112: ='F_Inputs BP'!J116-SUMIFS(Reallocations!Q$4:Q$362,Reallocations!$C$4:$C$362,$B112,Reallocations!$A$4:$A$362,$A112) -> 0
A113: ='F_Inputs BP'!A117 -> WSX | B113: ='F_Inputs BP'!B117 -> CW3_139TOT_PR24 | C113: ='F_Inputs BP'!C117 -> Other enhancement (Freeform lines - by exception) - Additional line 5; enhancement water opex - Total | D113: ='F_Inputs BP'!D117 -> £m | E113: ='F_Inputs BP'!E117 -> Price Review 2024 | F113: ='F_Inputs BP'!F117-SUMIFS(Reallocations!M$4:M$362,Reallocations!$C$4:$C$362,$B113,Reallocations!$A$4:$A$362,$A113) -> 0 | G113: ='F_Inputs BP'!G117-SUMIFS(Reallocations!N$4:N$362,Reallocations!$C$4:$C$362,$B113,Reallocations!$A$4:$A$362,$A113) -> 0 | H113: ='F_Inputs BP'!H117-SUMIFS(Reallocations!O$4:O$362,Reallocations!$C$4:$C$362,$B113,Reallocations!$A$4:$A$362,$A113) -> 0 | I113: ='F_Inputs BP'!I117-SUMIFS(Reallocations!P$4:P$362,Reallocations!$C$4:$C$362,$B113,Reallocations!$A$4:$A$362,$A113) -> 0 | J113: ='F_Inputs BP'!J117-SUMIFS(Reallocations!Q$4:Q$362,Reallocations!$C$4:$C$362,$B113,Reallocations!$A$4:$A$362,$A113) -> 0
A114: ='F_Inputs BP'!A118 -> WSX | B114: ='F_Inputs BP'!B118 -> CW1A_015TOT_PR24 | C114: ='F_Inputs BP'!C118 -> Net totex - Total | D114: ='F_Inputs BP'!D118 -> £m | E114: ='F_Inputs BP'!E118 -> Price Review 2024 | F114: ='F_Inputs BP'!F118-SUMIFS(Reallocations!M$4:M$362,Reallocations!$C$4:$C$362,$B114,Reallocations!$A$4:$A$362,$A114) -> 224.7643782 | G114: ='F_Inputs BP'!G118-SUMIFS(Reallocations!N$4:N$362,Reallocations!$C$4:$C$362,$B114,Reallocations!$A$4:$A$362,$A114) -> 228.7144897 | H114: ='F_Inputs BP'!H118-SUMIFS(Reallocations!O$4:O$362,Reallocations!$C$4:$C$362,$B114,Reallocations!$A$4:$A$362,$A114) -> 239.0997271 | I114: ='F_Inputs BP'!I118-SUMIFS(Reallocations!P$4:P$362,Reallocations!$C$4:$C$362,$B114,Reallocations!$A$4:$A$362,$A114) -> 222.5707236 | J114: ='F_Inputs BP'!J118-SUMIFS(Reallocations!Q$4:Q$362,Reallocations!$C$4:$C$362,$B114,Reallocations!$A$4:$A$362,$A114) -> 218.619955
A115: ='F_Inputs BP'!A119 -> YKY | B115: ='F_Inputs BP'!B119 -> CW3_130TOT_PR24 | C115: ='F_Inputs BP'!C119 -> Other enhancement (Freeform lines - by exception) - Additional line 1; enhancement water capex - Total | D115: ='F_Inputs BP'!D119 -> £m | E115: ='F_Inputs BP'!E119 -> Price Review 2024 | F115: ='F_Inputs BP'!F119-SUMIFS(Reallocations!M$4:M$362,Reallocations!$C$4:$C$362,$B115,Reallocations!$A$4:$A$362,$A115) -> 0 | G115: ='F_Inputs BP'!G119-SUMIFS(Reallocations!N$4:N$362,Reallocations!$C$4:$C$362,$B115,Reallocations!$A$4:$A$362,$A115) -> 0 | H115: ='F_Inputs BP'!H119-SUMIFS(Reallocations!O$4:O$362,Reallocations!$C$4:$C$362,$B115,Reallocations!$A$4:$A$362,$A115) -> 0 | I115: ='F_Inputs BP'!I119-SUMIFS(Reallocations!P$4:P$362,Reallocations!$C$4:$C$362,$B115,Reallocations!$A$4:$A$362,$A115) -> 0 | J115: ='F_Inputs BP'!J119-SUMIFS(Reallocations!Q$4:Q$362,Reallocations!$C$4:$C$362,$B115,Reallocations!$A$4:$A$362,$A115) -> 0
A116: ='F_Inputs BP'!A120 -> YKY | B116: ='F_Inputs BP'!B120 -> CW3_131TOT_PR24 | C116: ='F_Inputs BP'!C120 -> Other enhancement (Freeform lines - by exception) - Additional line 1; enhancement water opex - Total | D116: ='F_Inputs BP'!D120 -> £m | E116: ='F_Inputs BP'!E120 -> Price Review 2024 | F116: ='F_Inputs BP'!F120-SUMIFS(Reallocations!M$4:M$362,Reallocations!$C$4:$C$362,$B116,Reallocations!$A$4:$A$362,$A116) -> 0 | G116: ='F_Inputs BP'!G120-SUMIFS(Reallocations!N$4:N$362,Reallocations!$C$4:$C$362,$B116,Reallocations!$A$4:$A$362,$A116) -> 0 | H116: ='F_Inputs BP'!H120-SUMIFS(Reallocations!O$4:O$362,Reallocations!$C$4:$C$362,$B116,Reallocations!$A$4:$A$362,$A116) -> 0 | I116: ='F_Inputs BP'!I120-SUMIFS(Reallocations!P$4:P$362,Reallocations!$C$4:$C$362,$B116,Reallocations!$A$4:$A$362,$A116) -> 0 | J116: ='F_Inputs BP'!J120-SUMIFS(Reallocations!Q$4:Q$362,Reallocations!$C$4:$C$362,$B116,Reallocations!$A$4:$A$362,$A116) -> 0
A117: ='F_Inputs BP'!A121 -> YKY | B117: ='F_Inputs BP'!B121 -> CW3_132TOT_PR24 | C117: ='F_Inputs BP'!C121 -> Other enhancement (Freeform lines - by exception) - Additional line 2; enhancement water capex - Total | D117: ='F_Inputs BP'!D121 -> £m | E117: ='F_Inputs BP'!E121 -> Price Review 2024 | F117: ='F_Inputs BP'!F121-SUMIFS(Reallocations!M$4:M$362,Reallocations!$C$4:$C$362,$B117,Reallocations!$A$4:$A$362,$A117) -> 0 | G117: ='F_Inputs BP'!G121-SUMIFS(Reallocations!N$4:N$362,Reallocations!$C$4:$C$362,$B117,Reallocations!$A$4:$A$362,$A117) -> 0 | H117: ='F_Inputs BP'!H121-SUMIFS(Reallocations!O$4:O$362,Reallocations!$C$4:$C$362,$B117,Reallocations!$A$4:$A$362,$A117) -> 0 | I117: ='F_Inputs BP'!I121-SUMIFS(Reallocations!P$4:P$362,Reallocations!$C$4:$C$362,$B117,Reallocations!$A$4:$A$362,$A117) -> 0 | J117: ='F_Inputs BP'!J121-SUMIFS(Reallocations!Q$4:Q$362,Reallocations!$C$4:$C$362,$B117,Reallocations!$A$4:$A$362,$A117) -> 0
A118: ='F_Inputs BP'!A122 -> YKY | B118: ='F_Inputs BP'!B122 -> CW3_133TOT_PR24 | C118: ='F_Inputs BP'!C122 -> Other enhancement (Freeform lines - by exception) - Additional line 2; enhancement water opex - Total | D118: ='F_Inputs BP'!D122 -> £m | E118: ='F_Inputs BP'!E122 -> Price Review 2024 | F118: ='F_Inputs BP'!F122-SUMIFS(Reallocations!M$4:M$362,Reallocations!$C$4:$C$362,$B118,Reallocations!$A$4:$A$362,$A118) -> 0 | G118: ='F_Inputs BP'!G122-SUMIFS(Reallocations!N$4:N$362,Reallocations!$C$4:$C$362,$B118,Reallocations!$A$4:$A$362,$A118) -> 0 | H118: ='F_Inputs BP'!H122-SUMIFS(Reallocations!O$4:O$362,Reallocations!$C$4:$C$362,$B118,Reallocations!$A$4:$A$362,$A118) -> 0 | I118: ='F_Inputs BP'!I122-SUMIFS(Reallocations!P$4:P$362,Reallocations!$C$4:$C$362,$B118,Reallocations!$A$4:$A$362,$A118) -> 0 | J118: ='F_Inputs BP'!J122-SUMIFS(Reallocations!Q$4:Q$362,Reallocations!$C$4:$C$362,$B118,Reallocations!$A$4:$A$362,$A118) -> 0
A119: ='F_Inputs BP'!A123 -> YKY | B119: ='F_Inputs BP'!B123 -> CW3_134TOT_PR24 | C119: ='F_Inputs BP'!C123 -> Other enhancement (Freeform lines - by exception) - Additional line 3; enhancement water capex - Total | D119: ='F_Inputs BP'!D123 -> £m | E119: ='F_Inputs BP'!E123 -> Price Review 2024 | F119: ='F_Inputs BP'!F123-SUMIFS(Reallocations!M$4:M$362,Reallocations!$C$4:$C$362,$B119,Reallocations!$A$4:$A$362,$A119) -> 0 | G119: ='F_Inputs BP'!G123-SUMIFS(Reallocations!N$4:N$362,Reallocations!$C$4:$C$362,$B119,Reallocations!$A$4:$A$362,$A119) -> 0 | H119: ='F_Inputs BP'!H123-SUMIFS(Reallocations!O$4:O$362,Reallocations!$C$4:$C$362,$B119,Reallocations!$A$4:$A$362,$A119) -> 0 | I119: ='F_Inputs BP'!I123-SUMIFS(Reallocations!P$4:P$362,Reallocations!$C$4:$C$362,$B119,Reallocations!$A$4:$A$362,$A119) -> 0 | J119: ='F_Inputs BP'!J123-SUMIFS(Reallocations!Q$4:Q$362,Reallocations!$C$4:$C$362,$B119,Reallocations!$A$4:$A$362,$A119) -> 0
A120: ='F_Inputs BP'!A124 -> YKY | B120: ='F_Inputs BP'!B124 -> CW3_135TOT_PR24 | C120: ='F_Inputs BP'!C124 -> Other enhancement (Freeform lines - by exception) - Additional line 3; enhancement water opex - Total | D120: ='F_Inputs BP'!D124 -> £m | E120: ='F_Inputs BP'!E124 -> Price Review 2024 | F120: ='F_Inputs BP'!F124-SUMIFS(Reallocations!M$4:M$362,Reallocations!$C$4:$C$362,$B120,Reallocations!$A$4:$A$362,$A120) -> 0 | G120: ='F_Inputs BP'!G124-SUMIFS(Reallocations!N$4:N$362,Reallocations!$C$4:$C$362,$B120,Reallocations!$A$4:$A$362,$A120) -> 0 | H120: ='F_Inputs BP'!H124-SUMIFS(Reallocations!O$4:O$362,Reallocations!$C$4:$C$362,$B120,Reallocations!$A$4:$A$362,$A120) -> 0 | I120: ='F_Inputs BP'!I124-SUMIFS(Reallocations!P$4:P$362,Reallocations!$C$4:$C$362,$B120,Reallocations!$A$4:$A$362,$A120) -> 0 | J120: ='F_Inputs BP'!J124-SUMIFS(Reallocations!Q$4:Q$362,Reallocations!$C$4:$C$362,$B120,Reallocations!$A$4:$A$362,$A120) -> 0
A121: ='F_Inputs BP'!A125 -> YKY | B121: ='F_Inputs BP'!B125 -> CW3_136TOT_PR24 | C121: ='F_Inputs BP'!C125 -> Other enhancement (Freeform lines - by exception) - Additional line 4; enhancement water capex - Total | D121: ='F_Inputs BP'!D125 -> £m | E121: ='F_Inputs BP'!E125 -> Price Review 2024 | F121: ='F_Inputs BP'!F125-SUMIFS(Reallocations!M$4:M$362,Reallocations!$C$4:$C$362,$B121,Reallocations!$A$4:$A$362,$A121) -> 0 | G121: ='F_Inputs BP'!G125-SUMIFS(Reallocations!N$4:N$362,Reallocations!$C$4:$C$362,$B121,Reallocations!$A$4:$A$362,$A121) -> 0 | H121: ='F_Inputs BP'!H125-SUMIFS(Reallocations!O$4:O$362,Reallocations!$C$4:$C$362,$B121,Reallocations!$A$4:$A$362,$A121) -> 0 | I121: ='F_Inputs BP'!I125-SUMIFS(Reallocations!P$4:P$362,Reallocations!$C$4:$C$362,$B121,Reallocations!$A$4:$A$362,$A121) -> 0 | J121: ='F_Inputs BP'!J125-SUMIFS(Reallocations!Q$4:Q$362,Reallocations!$C$4:$C$362,$B121,Reallocations!$A$4:$A$362,$A121) -> 0
A122: ='F_Inputs BP'!A126 -> YKY | B122: ='F_Inputs BP'!B126 -> CW3_137TOT_PR24 | C122: ='F_Inputs BP'!C126 -> Other enhancement (Freeform lines - by exception) - Additional line 4; enhancement water opex - Total | D122: ='F_Inputs BP'!D126 -> £m | E122: ='F_Inputs BP'!E126 -> Price Review 2024 | F122: ='F_Inputs BP'!F126-SUMIFS(Reallocations!M$4:M$362,Reallocations!$C$4:$C$362,$B122,Reallocations!$A$4:$A$362,$A122) -> 0 | G122: ='F_Inputs BP'!G126-SUMIFS(Reallocations!N$4:N$362,Reallocations!$C$4:$C$362,$B122,Reallocations!$A$4:$A$362,$A122) -> 0 | H122: ='F_Inputs BP'!H126-SUMIFS(Reallocations!O$4:O$362,Reallocations!$C$4:$C$362,$B122,Reallocations!$A$4:$A$362,$A122) -> 0 | I122: ='F_Inputs BP'!I126-SUMIFS(Reallocations!P$4:P$362,Reallocations!$C$4:$C$362,$B122,Reallocations!$A$4:$A$362,$A122) -> 0 | J122: ='F_Inputs BP'!J126-SUMIFS(Reallocations!Q$4:Q$362,Reallocations!$C$4:$C$362,$B122,Reallocations!$A$4:$A$362,$A122) -> 0
A123: ='F_Inputs BP'!A127 -> YKY | B123: ='F_Inputs BP'!B127 -> CW3_138TOT_PR24 | C123: ='F_Inputs BP'!C127 -> Other enhancement (Freeform lines - by exception) - Additional line 5; enhancement water capex - Total | D123: ='F_Inputs BP'!D127 -> £m | E123: ='F_Inputs BP'!E127 -> Price Review 2024 | F123: ='F_Inputs BP'!F127-SUMIFS(Reallocations!M$4:M$362,Reallocations!$C$4:$C$362,$B123,Reallocations!$A$4:$A$362,$A123) -> 0 | G123: ='F_Inputs BP'!G127-SUMIFS(Reallocations!N$4:N$362,Reallocations!$C$4:$C$362,$B123,Reallocations!$A$4:$A$362,$A123) -> 0 | H123: ='F_Inputs BP'!H127-SUMIFS(Reallocations!O$4:O$362,Reallocations!$C$4:$C$362,$B123,Reallocations!$A$4:$A$362,$A123) -> 0 | I123: ='F_Inputs BP'!I127-SUMIFS(Reallocations!P$4:P$362,Reallocations!$C$4:$C$362,$B123,Reallocations!$A$4:$A$362,$A123) -> 0 | J123: ='F_Inputs BP'!J127-SUMIFS(Reallocations!Q$4:Q$362,Reallocations!$C$4:$C$362,$B123,Reallocations!$A$4:$A$362,$A123) -> 0
A124: ='F_Inputs BP'!A128 -> YKY | B124: ='F_Inputs BP'!B128 -> CW3_139TOT_PR24 | C124: ='F_Inputs BP'!C128 -> Other enhancement (Freeform lines - by exception) - Additional line 5; enhancement water opex - Total | D124: ='F_Inputs BP'!D128 -> £m | E124: ='F_Inputs BP'!E128 -> Price Review 2024 | F124: ='F_Inputs BP'!F128-SUMIFS(Reallocations!M$4:M$362,Reallocations!$C$4:$C$362,$B124,Reallocations!$A$4:$A$362,$A124) -> 0 | G124: ='F_Inputs BP'!G128-SUMIFS(Reallocations!N$4:N$362,Reallocations!$C$4:$C$362,$B124,Reallocations!$A$4:$A$362,$A124) -> 0 | H124: ='F_Inputs BP'!H128-SUMIFS(Reallocations!O$4:O$362,Reallocations!$C$4:$C$362,$B124,Reallocations!$A$4:$A$362,$A124) -> 0 | I124: ='F_Inputs BP'!I128-SUMIFS(Reallocations!P$4:P$362,Reallocations!$C$4:$C$362,$B124,Reallocations!$A$4:$A$362,$A124) -> 0 | J124: ='F_Inputs BP'!J128-SUMIFS(Reallocations!Q$4:Q$362,Reallocations!$C$4:$C$362,$B124,Reallocations!$A$4:$A$362,$A124) -> 0
A125: ='F_Inputs BP'!A129 -> YKY | B125: ='F_Inputs BP'!B129 -> CW1A_015TOT_PR24 | C125: ='F_Inputs BP'!C129 -> Net totex - Total | D125: ='F_Inputs BP'!D129 -> £m | E125: ='F_Inputs BP'!E129 -> Price Review 2024 | F125: ='F_Inputs BP'!F129-SUMIFS(Reallocations!M$4:M$362,Reallocations!$C$4:$C$362,$B125,Reallocations!$A$4:$A$362,$A125) -> 589.4791387 | G125: ='F_Inputs BP'!G129-SUMIFS(Reallocations!N$4:N$362,Reallocations!$C$4:$C$362,$B125,Reallocations!$A$4:$A$362,$A125) -> 655.1010681 | H125: ='F_Inputs BP'!H129-SUMIFS(Reallocations!O$4:O$362,Reallocations!$C$4:$C$362,$B125,Reallocations!$A$4:$A$362,$A125) -> 665.2986241 | I125: ='F_Inputs BP'!I129-SUMIFS(Reallocations!P$4:P$362,Reallocations!$C$4:$C$362,$B125,Reallocations!$A$4:$A$362,$A125) -> 603.9258347 | J125: ='F_Inputs BP'!J129-SUMIFS(Reallocations!Q$4:Q$362,Reallocations!$C$4:$C$362,$B125,Reallocations!$A$4:$A$362,$A125) -> 592.7718544
A126: ='F_Inputs BP'!A130 -> AFW | B126: ='F_Inputs BP'!B130 -> CW3_130TOT_PR24 | C126: ='F_Inputs BP'!C130 -> Other enhancement (Freeform lines - by exception) - Additional line 1; enhancement water capex - Total | D126: ='F_Inputs BP'!D130 -> £m | E126: ='F_Inputs BP'!E130 -> Price Review 2024 | F126: ='F_Inputs BP'!F130-SUMIFS(Reallocations!M$4:M$362,Reallocations!$C$4:$C$362,$B126,Reallocations!$A$4:$A$362,$A126) -> 0 | G126: ='F_Inputs BP'!G130-SUMIFS(Reallocations!N$4:N$362,Reallocations!$C$4:$C$362,$B126,Reallocations!$A$4:$A$362,$A126) -> 0 | H126: ='F_Inputs BP'!H130-SUMIFS(Reallocations!O$4:O$362,Reallocations!$C$4:$C$362,$B126,Reallocations!$A$4:$A$362,$A126) -> 0 | I126: ='F_Inputs BP'!I130-SUMIFS(Reallocations!P$4:P$362,Reallocations!$C$4:$C$362,$B126,Reallocations!$A$4:$A$362,$A126) -> 0 | J126: ='F_Inputs BP'!J130-SUMIFS(Reallocations!Q$4:Q$362,Reallocations!$C$4:$C$362,$B126,Reallocations!$A$4:$A$362,$A126) -> 0
A127: ='F_Inputs BP'!A131 -> AFW | B127: ='F_Inputs BP'!B131 -> CW3_131TOT_PR24 | C127: ='F_Inputs BP'!C131 -> Other enhancement (Freeform lines - by exception) - Additional line 1; enhancement water opex - Total | D127: ='F_Inputs BP'!D131 -> £m | E127: ='F_Inputs BP'!E131 -> Price Review 2024 | F127: ='F_Inputs BP'!F131-SUMIFS(Reallocations!M$4:M$362,Reallocations!$C$4:$C$362,$B127,Reallocations!$A$4:$A$362,$A127) -> 0 | G127: ='F_Inputs BP'!G131-SUMIFS(Reallocations!N$4:N$362,Reallocations!$C$4:$C$362,$B127,Reallocations!$A$4:$A$362,$A127) -> 0 | H127: ='F_Inputs BP'!H131-SUMIFS(Reallocations!O$4:O$362,Reallocations!$C$4:$C$362,$B127,Reallocations!$A$4:$A$362,$A127) -> 0 | I127: ='F_Inputs BP'!I131-SUMIFS(Reallocations!P$4:P$362,Reallocations!$C$4:$C$362,$B127,Reallocations!$A$4:$A$362,$A127) -> 0 | J127: ='F_Inputs BP'!J131-SUMIFS(Reallocations!Q$4:Q$362,Reallocations!$C$4:$C$362,$B127,Reallocations!$A$4:$A$362,$A127) -> 0
A128: ='F_Inputs BP'!A132 -> AFW | B128: ='F_Inputs BP'!B132 -> CW3_132TOT_PR24 | C128: ='F_Inputs BP'!C132 -> Other enhancement (Freeform lines - by exception) - Additional line 2; enhancement water capex - Total | D128: ='F_Inputs BP'!D132 -> £m | E128: ='F_Inputs BP'!E132 -> Price Review 2024 | F128: ='F_Inputs BP'!F132-SUMIFS(Reallocations!M$4:M$362,Reallocations!$C$4:$C$362,$B128,Reallocations!$A$4:$A$362,$A128) -> 0 | G128: ='F_Inputs BP'!G132-SUMIFS(Reallocations!N$4:N$362,Reallocations!$C$4:$C$362,$B128,Reallocations!$A$4:$A$362,$A128) -> 0 | H128: ='F_Inputs BP'!H132-SUMIFS(Reallocations!O$4:O$362,Reallocations!$C$4:$C$362,$B128,Reallocations!$A$4:$A$362,$A128) -> 0 | I128: ='F_Inputs BP'!I132-SUMIFS(Reallocations!P$4:P$362,Reallocations!$C$4:$C$362,$B128,Reallocations!$A$4:$A$362,$A128) -> 0 | J128: ='F_Inputs BP'!J132-SUMIFS(Reallocations!Q$4:Q$362,Reallocations!$C$4:$C$362,$B128,Reallocations!$A$4:$A$362,$A128) -> 0
A129: ='F_Inputs BP'!A133 -> AFW | B129: ='F_Inputs BP'!B133 -> CW3_133TOT_PR24 | C129: ='F_Inputs BP'!C133 -> Other enhancement (Freeform lines - by exception) - Additional line 2; enhancement water opex - Total | D129: ='F_Inputs BP'!D133 -> £m | E129: ='F_Inputs BP'!E133 -> Price Review 2024 | F129: ='F_Inputs BP'!F133-SUMIFS(Reallocations!M$4:M$362,Reallocations!$C$4:$C$362,$B129,Reallocations!$A$4:$A$362,$A129) -> 0 | G129: ='F_Inputs BP'!G133-SUMIFS(Reallocations!N$4:N$362,Reallocations!$C$4:$C$362,$B129,Reallocations!$A$4:$A$362,$A129) -> 0 | H129: ='F_Inputs BP'!H133-SUMIFS(Reallocations!O$4:O$362,Reallocations!$C$4:$C$362,$B129,Reallocations!$A$4:$A$362,$A129) -> 0 | I129: ='F_Inputs BP'!I133-SUMIFS(Reallocations!P$4:P$362,Reallocations!$C$4:$C$362,$B129,Reallocations!$A$4:$A$362,$A129) -> 0 | J129: ='F_Inputs BP'!J133-SUMIFS(Reallocations!Q$4:Q$362,Reallocations!$C$4:$C$362,$B129,Reallocations!$A$4:$A$362,$A129) -> 0
A130: ='F_Inputs BP'!A134 -> AFW | B130: ='F_Inputs BP'!B134 -> CW3_134TOT_PR24 | C130: ='F_Inputs BP'!C134 -> Other enhancement (Freeform lines - by exception) - Additional line 3; enhancement water capex - Total | D130: ='F_Inputs BP'!D134 -> £m | E130: ='F_Inputs BP'!E134 -> Price Review 2024 | F130: ='F_Inputs BP'!F134-SUMIFS(Reallocations!M$4:M$362,Reallocations!$C$4:$C$362,$B130,Reallocations!$A$4:$A$362,$A130) -> 0 | G130: ='F_Inputs BP'!G134-SUMIFS(Reallocations!N$4:N$362,Reallocations!$C$4:$C$362,$B130,Reallocations!$A$4:$A$362,$A130) -> 0 | H130: ='F_Inputs BP'!H134-SUMIFS(Reallocations!O$4:O$362,Reallocations!$C$4:$C$362,$B130,Reallocations!$A$4:$A$362,$A130) -> 0 | I130: ='F_Inputs BP'!I134-SUMIFS(Reallocations!P$4:P$362,Reallocations!$C$4:$C$362,$B130,Reallocations!$A$4:$A$362,$A130) -> 0 | J130: ='F_Inputs BP'!J134-SUMIFS(Reallocations!Q$4:Q$362,Reallocations!$C$4:$C$362,$B130,Reallocations!$A$4:$A$362,$A130) -> 0
A131: ='F_Inputs BP'!A135 -> AFW | B131: ='F_Inputs BP'!B135 -> CW3_135TOT_PR24 | C131: ='F_Inputs BP'!C135 -> Other enhancement (Freeform lines - by exception) - Additional line 3; enhancement water opex - Total | D131: ='F_Inputs BP'!D135 -> £m | E131: ='F_Inputs BP'!E135 -> Price Review 2024 | F131: ='F_Inputs BP'!F135-SUMIFS(Reallocations!M$4:M$362,Reallocations!$C$4:$C$362,$B131,Reallocations!$A$4:$A$362,$A131) -> 0 | G131: ='F_Inputs BP'!G135-SUMIFS(Reallocations!N$4:N$362,Reallocations!$C$4:$C$362,$B131,Reallocations!$A$4:$A$362,$A131) -> 0 | H131: ='F_Inputs BP'!H135-SUMIFS(Reallocations!O$4:O$362,Reallocations!$C$4:$C$362,$B131,Reallocations!$A$4:$A$362,$A131) -> 0 | I131: ='F_Inputs BP'!I135-SUMIFS(Reallocations!P$4:P$362,Reallocations!$C$4:$C$362,$B131,Reallocations!$A$4:$A$362,$A131) -> 0 | J131: ='F_Inputs BP'!J135-SUMIFS(Reallocations!Q$4:Q$362,Reallocations!$C$4:$C$362,$B131,Reallocations!$A$4:$A$362,$A131) -> 0
A132: ='F_Inputs BP'!A136 -> AFW | B132: ='F_Inputs BP'!B136 -> CW3_136TOT_PR24 | C132: ='F_Inputs BP'!C136 -> Other enhancement (Freeform lines - by exception) - Additional line 4; enhancement water capex - Total | D132: ='F_Inputs BP'!D136 -> £m | E132: ='F_Inputs BP'!E136 -> Price Review 2024 | F132: ='F_Inputs BP'!F136-SUMIFS(Reallocations!M$4:M$362,Reallocations!$C$4:$C$362,$B132,Reallocations!$A$4:$A$362,$A132) -> 0 | G132: ='F_Inputs BP'!G136-SUMIFS(Reallocations!N$4:N$362,Reallocations!$C$4:$C$362,$B132,Reallocations!$A$4:$A$362,$A132) -> 0 | H132: ='F_Inputs BP'!H136-SUMIFS(Reallocations!O$4:O$362,Reallocations!$C$4:$C$362,$B132,Reallocations!$A$4:$A$362,$A132) -> 0 | I132: ='F_Inputs BP'!I136-SUMIFS(Reallocations!P$4:P$362,Reallocations!$C$4:$C$362,$B132,Reallocations!$A$4:$A$362,$A132) -> 0 | J132: ='F_Inputs BP'!J136-SUMIFS(Reallocations!Q$4:Q$362,Reallocations!$C$4:$C$362,$B132,Reallocations!$A$4:$A$362,$A132) -> 0
A133: ='F_Inputs BP'!A137 -> AFW | B133: ='F_Inputs BP'!B137 -> CW3_137TOT_PR24 | C133: ='F_Inputs BP'!C137 -> Other enhancement (Freeform lines - by exception) - Additional line 4; enhancement water opex - Total | D133: ='F_Inputs BP'!D137 -> £m | E133: ='F_Inputs BP'!E137 -> Price Review 2024 | F133: ='F_Inputs BP'!F137-SUMIFS(Reallocations!M$4:M$362,Reallocations!$C$4:$C$362,$B133,Reallocations!$A$4:$A$362,$A133) -> 0 | G133: ='F_Inputs BP'!G137-SUMIFS(Reallocations!N$4:N$362,Reallocations!$C$4:$C$362,$B133,Reallocations!$A$4:$A$362,$A133) -> 0 | H133: ='F_Inputs BP'!H137-SUMIFS(Reallocations!O$4:O$362,Reallocations!$C$4:$C$362,$B133,Reallocations!$A$4:$A$362,$A133) -> 0 | I133: ='F_Inputs BP'!I137-SUMIFS(Reallocations!P$4:P$362,Reallocations!$C$4:$C$362,$B133,Reallocations!$A$4:$A$362,$A133) -> 0 | J133: ='F_Inputs BP'!J137-SUMIFS(Reallocations!Q$4:Q$362,Reallocations!$C$4:$C$362,$B133,Reallocations!$A$4:$A$362,$A133) -> 0
A134: ='F_Inputs BP'!A138 -> AFW | B134: ='F_Inputs BP'!B138 -> CW3_138TOT_PR24 | C134: ='F_Inputs BP'!C138 -> Other enhancement (Freeform lines - by exception) - Additional line 5; enhancement water capex - Total | D134: ='F_Inputs BP'!D138 -> £m | E134: ='F_Inputs BP'!E138 -> Price Review 2024 | F134: ='F_Inputs BP'!F138-SUMIFS(Reallocations!M$4:M$362,Reallocations!$C$4:$C$362,$B134,Reallocations!$A$4:$A$362,$A134) -> 0 | G134: ='F_Inputs BP'!G138-SUMIFS(Reallocations!N$4:N$362,Reallocations!$C$4:$C$362,$B134,Reallocations!$A$4:$A$362,$A134) -> 0 | H134: ='F_Inputs BP'!H138-SUMIFS(Reallocations!O$4:O$362,Reallocations!$C$4:$C$362,$B134,Reallocations!$A$4:$A$362,$A134) -> 0 | I134: ='F_Inputs BP'!I138-SUMIFS(Reallocations!P$4:P$362,Reallocations!$C$4:$C$362,$B134,Reallocations!$A$4:$A$362,$A134) -> 0 | J134: ='F_Inputs BP'!J138-SUMIFS(Reallocations!Q$4:Q$362,Reallocations!$C$4:$C$362,$B134,Reallocations!$A$4:$A$362,$A134) -> 0
A135: ='F_Inputs BP'!A139 -> AFW | B135: ='F_Inputs BP'!B139 -> CW3_139TOT_PR24 | C135: ='F_Inputs BP'!C139 -> Other enhancement (Freeform lines - by exception) - Additional line 5; enhancement water opex - Total | D135: ='F_Inputs BP'!D139 -> £m | E135: ='F_Inputs BP'!E139 -> Price Review 2024 | F135: ='F_Inputs BP'!F139-SUMIFS(Reallocations!M$4:M$362,Reallocations!$C$4:$C$362,$B135,Reallocations!$A$4:$A$362,$A135) -> 0 | G135: ='F_Inputs BP'!G139-SUMIFS(Reallocations!N$4:N$362,Reallocations!$C$4:$C$362,$B135,Reallocations!$A$4:$A$362,$A135) -> 0 | H135: ='F_Inputs BP'!H139-SUMIFS(Reallocations!O$4:O$362,Reallocations!$C$4:$C$362,$B135,Reallocations!$A$4:$A$362,$A135) -> 0 | I135: ='F_Inputs BP'!I139-SUMIFS(Reallocations!P$4:P$362,Reallocations!$C$4:$C$362,$B135,Reallocations!$A$4:$A$362,$A135) -> 0 | J135: ='F_Inputs BP'!J139-SUMIFS(Reallocations!Q$4:Q$362,Reallocations!$C$4:$C$362,$B135,Reallocations!$A$4:$A$362,$A135) -> 0
A136: ='F_Inputs BP'!A140 -> AFW | B136: ='F_Inputs BP'!B140 -> CW1A_015TOT_PR24 | C136: ='F_Inputs BP'!C140 -> Net totex - Total | D136: ='F_Inputs BP'!D140 -> £m | E136: ='F_Inputs BP'!E140 -> Price Review 2024 | F136: ='F_Inputs BP'!F140-SUMIFS(Reallocations!M$4:M$362,Reallocations!$C$4:$C$362,$B136,Reallocations!$A$4:$A$362,$A136) -> 421.2415759 | G136: ='F_Inputs BP'!G140-SUMIFS(Reallocations!N$4:N$362,Reallocations!$C$4:$C$362,$B136,Reallocations!$A$4:$A$362,$A136) -> 456.9268827 | H136: ='F_Inputs BP'!H140-SUMIFS(Reallocations!O$4:O$362,Reallocations!$C$4:$C$362,$B136,Reallocations!$A$4:$A$362,$A136) -> 460.2712371 | I136: ='F_Inputs BP'!I140-SUMIFS(Reallocations!P$4:P$362,Reallocations!$C$4:$C$362,$B136,Reallocations!$A$4:$A$362,$A136) -> 432.4364068 | J136: ='F_Inputs BP'!J140-SUMIFS(Reallocations!Q$4:Q$362,Reallocations!$C$4:$C$362,$B136,Reallocations!$A$4:$A$362,$A136) -> 366.5304741
A137: ='F_Inputs BP'!A141 -> BRL | B137: ='F_Inputs BP'!B141 -> CW3_130TOT_PR24 | C137: ='F_Inputs BP'!C141 -> Other enhancement (Freeform lines - by exception) - Additional line 1; enhancement water capex - Total | D137: ='F_Inputs BP'!D141 -> £m | E137: ='F_Inputs BP'!E141 -> Price Review 2024 | F137: ='F_Inputs BP'!F141-SUMIFS(Reallocations!M$4:M$362,Reallocations!$C$4:$C$362,$B137,Reallocations!$A$4:$A$362,$A137) -> 0 | G137: ='F_Inputs BP'!G141-SUMIFS(Reallocations!N$4:N$362,Reallocations!$C$4:$C$362,$B137,Reallocations!$A$4:$A$362,$A137) -> 0 | H137: ='F_Inputs BP'!H141-SUMIFS(Reallocations!O$4:O$362,Reallocations!$C$4:$C$362,$B137,Reallocations!$A$4:$A$362,$A137) -> 0 | I137: ='F_Inputs BP'!I141-SUMIFS(Reallocations!P$4:P$362,Reallocations!$C$4:$C$362,$B137,Reallocations!$A$4:$A$362,$A137) -> 0 | J137: ='F_Inputs BP'!J141-SUMIFS(Reallocations!Q$4:Q$362,Reallocations!$C$4:$C$362,$B137,Reallocations!$A$4:$A$362,$A137) -> 0
A138: ='F_Inputs BP'!A142 -> BRL | B138: ='F_Inputs BP'!B142 -> CW3_131TOT_PR24 | C138: ='F_Inputs BP'!C142 -> Other enhancement (Freeform lines - by exception) - Additional line 1; enhancement water opex - Total | D138: ='F_Inputs BP'!D142 -> £m | E138: ='F_Inputs BP'!E142 -> Price Review 2024 | F138: ='F_Inputs BP'!F142-SUMIFS(Reallocations!M$4:M$362,Reallocations!$C$4:$C$362,$B138,Reallocations!$A$4:$A$362,$A138) -> 0 | G138: ='F_Inputs BP'!G142-SUMIFS(Reallocations!N$4:N$362,Reallocations!$C$4:$C$362,$B138,Reallocations!$A$4:$A$362,$A138) -> 0 | H138: ='F_Inputs BP'!H142-SUMIFS(Reallocations!O$4:O$362,Reallocations!$C$4:$C$362,$B138,Reallocations!$A$4:$A$362,$A138) -> 0 | I138: ='F_Inputs BP'!I142-SUMIFS(Reallocations!P$4:P$362,Reallocations!$C$4:$C$362,$B138,Reallocations!$A$4:$A$362,$A138) -> 0 | J138: ='F_Inputs BP'!J142-SUMIFS(Reallocations!Q$4:Q$362,Reallocations!$C$4:$C$362,$B138,Reallocations!$A$4:$A$362,$A138) -> 0
A139: ='F_Inputs BP'!A143 -> BRL | B139: ='F_Inputs BP'!B143 -> CW3_132TOT_PR24 | C139: ='F_Inputs BP'!C143 -> Other enhancement (Freeform lines - by exception) - Additional line 2; enhancement water capex - Total | D139: ='F_Inputs BP'!D143 -> £m | E139: ='F_Inputs BP'!E143 -> Price Review 2024 | F139: ='F_Inputs BP'!F143-SUMIFS(Reallocations!M$4:M$362,Reallocations!$C$4:$C$362,$B139,Reallocations!$A$4:$A$362,$A139) -> 0 | G139: ='F_Inputs BP'!G143-SUMIFS(Reallocations!N$4:N$362,Reallocations!$C$4:$C$362,$B139,Reallocations!$A$4:$A$362,$A139) -> 0 | H139: ='F_Inputs BP'!H143-SUMIFS(Reallocations!O$4:O$362,Reallocations!$C$4:$C$362,$B139,Reallocations!$A$4:$A$362,$A139) -> 0 | I139: ='F_Inputs BP'!I143-SUMIFS(Reallocations!P$4:P$362,Reallocations!$C$4:$C$362,$B139,Reallocations!$A$4:$A$362,$A139) -> 0 | J139: ='F_Inputs BP'!J143-SUMIFS(Reallocations!Q$4:Q$362,Reallocations!$C$4:$C$362,$B139,Reallocations!$A$4:$A$362,$A139) -> 0
A140: ='F_Inputs BP'!A144 -> BRL | B140: ='F_Inputs BP'!B144 -> CW3_133TOT_PR24 | C140: ='F_Inputs BP'!C144 -> Other enhancement (Freeform lines - by exception) - Additional line 2; enhancement water opex - Total | D140: ='F_Inputs BP'!D144 -> £m | E140: ='F_Inputs BP'!E144 -> Price Review 2024 | F140: ='F_Inputs BP'!F144-SUMIFS(Reallocations!M$4:M$362,Reallocations!$C$4:$C$362,$B140,Reallocations!$A$4:$A$362,$A140) -> 0 | G140: ='F_Inputs BP'!G144-SUMIFS(Reallocations!N$4:N$362,Reallocations!$C$4:$C$362,$B140,Reallocations!$A$4:$A$362,$A140) -> 0 | H140: ='F_Inputs BP'!H144-SUMIFS(Reallocations!O$4:O$362,Reallocations!$C$4:$C$362,$B140,Reallocations!$A$4:$A$362,$A140) -> 0 | I140: ='F_Inputs BP'!I144-SUMIFS(Reallocations!P$4:P$362,Reallocations!$C$4:$C$362,$B140,Reallocations!$A$4:$A$362,$A140) -> 0 | J140: ='F_Inputs BP'!J144-SUMIFS(Reallocations!Q$4:Q$362,Reallocations!$C$4:$C$362,$B140,Reallocations!$A$4:$A$362,$A140) -> 0
A141: ='F_Inputs BP'!A145 -> BRL | B141: ='F_Inputs BP'!B145 -> CW3_134TOT_PR24 | C141: ='F_Inputs BP'!C145 -> Other enhancement (Freeform lines - by exception) - Additional line 3; enhancement water capex - Total | D141: ='F_Inputs BP'!D145 -> £m | E141: ='F_Inputs BP'!E145 -> Price Review 2024 | F141: ='F_Inputs BP'!F145-SUMIFS(Reallocations!M$4:M$362,Reallocations!$C$4:$C$362,$B141,Reallocations!$A$4:$A$362,$A141) -> 0 | G141: ='F_Inputs BP'!G145-SUMIFS(Reallocations!N$4:N$362,Reallocations!$C$4:$C$362,$B141,Reallocations!$A$4:$A$362,$A141) -> 0 | H141: ='F_Inputs BP'!H145-SUMIFS(Reallocations!O$4:O$362,Reallocations!$C$4:$C$362,$B141,Reallocations!$A$4:$A$362,$A141) -> 0 | I141: ='F_Inputs BP'!I145-SUMIFS(Reallocations!P$4:P$362,Reallocations!$C$4:$C$362,$B141,Reallocations!$A$4:$A$362,$A141) -> 0 | J141: ='F_Inputs BP'!J145-SUMIFS(Reallocations!Q$4:Q$362,Reallocations!$C$4:$C$362,$B141,Reallocations!$A$4:$A$362,$A141) -> 0
A142: ='F_Inputs BP'!A146 -> BRL | B142: ='F_Inputs BP'!B146 -> CW3_135TOT_PR24 | C142: ='F_Inputs BP'!C146 -> Other enhancement (Freeform lines - by exception) - Additional line 3; enhancement water opex - Total | D142: ='F_Inputs BP'!D146 -> £m | E142: ='F_Inputs BP'!E146 -> Price Review 2024 | F142: ='F_Inputs BP'!F146-SUMIFS(Reallocations!M$4:M$362,Reallocations!$C$4:$C$362,$B142,Reallocations!$A$4:$A$362,$A142) -> 0 | G142: ='F_Inputs BP'!G146-SUMIFS(Reallocations!N$4:N$362,Reallocations!$C$4:$C$362,$B142,Reallocations!$A$4:$A$362,$A142) -> 0 | H142: ='F_Inputs BP'!H146-SUMIFS(Reallocations!O$4:O$362,Reallocations!$C$4:$C$362,$B142,Reallocations!$A$4:$A$362,$A142) -> 0 | I142: ='F_Inputs BP'!I146-SUMIFS(Reallocations!P$4:P$362,Reallocations!$C$4:$C$362,$B142,Reallocations!$A$4:$A$362,$A142) -> 0 | J142: ='F_Inputs BP'!J146-SUMIFS(Reallocations!Q$4:Q$362,Reallocations!$C$4:$C$362,$B142,Reallocations!$A$4:$A$362,$A142) -> 0
A143: ='F_Inputs BP'!A147 -> BRL | B143: ='F_Inputs BP'!B147 -> CW3_136TOT_PR24 | C143: ='F_Inputs BP'!C147 -> Other enhancement (Freeform lines - by exception) - Additional line 4; enhancement water capex - Total | D143: ='F_Inputs BP'!D147 -> £m | E143: ='F_Inputs BP'!E147 -> Price Review 2024 | F143: ='F_Inputs BP'!F147-SUMIFS(Reallocations!M$4:M$362,Reallocations!$C$4:$C$362,$B143,Reallocations!$A$4:$A$362,$A143) -> 0 | G143: ='F_Inputs BP'!G147-SUMIFS(Reallocations!N$4:N$362,Reallocations!$C$4:$C$362,$B143,Reallocations!$A$4:$A$362,$A143) -> 0 | H143: ='F_Inputs BP'!H147-SUMIFS(Reallocations!O$4:O$362,Reallocations!$C$4:$C$362,$B143,Reallocations!$A$4:$A$362,$A143) -> 0 | I143: ='F_Inputs BP'!I147-SUMIFS(Reallocations!P$4:P$362,Reallocations!$C$4:$C$362,$B143,Reallocations!$A$4:$A$362,$A143) -> 0 | J143: ='F_Inputs BP'!J147-SUMIFS(Reallocations!Q$4:Q$362,Reallocations!$C$4:$C$362,$B143,Reallocations!$A$4:$A$362,$A143) -> 0
A144: ='F_Inputs BP'!A148 -> BRL | B144: ='F_Inputs BP'!B148 -> CW3_137TOT_PR24 | C144: ='F_Inputs BP'!C148 -> Other enhancement (Freeform lines - by exception) - Additional line 4; enhancement water opex - Total | D144: ='F_Inputs BP'!D148 -> £m | E144: ='F_Inputs BP'!E148 -> Price Review 2024 | F144: ='F_Inputs BP'!F148-SUMIFS(Reallocations!M$4:M$362,Reallocations!$C$4:$C$362,$B144,Reallocations!$A$4:$A$362,$A144) -> 0 | G144: ='F_Inputs BP'!G148-SUMIFS(Reallocations!N$4:N$362,Reallocations!$C$4:$C$362,$B144,Reallocations!$A$4:$A$362,$A144) -> 0 | H144: ='F_Inputs BP'!H148-SUMIFS(Reallocations!O$4:O$362,Reallocations!$C$4:$C$362,$B144,Reallocations!$A$4:$A$362,$A144) -> 0 | I144: ='F_Inputs BP'!I148-SUMIFS(Reallocations!P$4:P$362,Reallocations!$C$4:$C$362,$B144,Reallocations!$A$4:$A$362,$A144) -> 0 | J144: ='F_Inputs BP'!J148-SUMIFS(Reallocations!Q$4:Q$362,Reallocations!$C$4:$C$362,$B144,Reallocations!$A$4:$A$362,$A144) -> 0
A145: ='F_Inputs BP'!A149 -> BRL | B145: ='F_Inputs BP'!B149 -> CW3_138TOT_PR24 | C145: ='F_Inputs BP'!C149 -> Other enhancement (Freeform lines - by exception) - Additional line 5; enhancement water capex - Total | D145: ='F_Inputs BP'!D149 -> £m | E145: ='F_Inputs BP'!E149 -> Price Review 2024 | F145: ='F_Inputs BP'!F149-SUMIFS(Reallocations!M$4:M$362,Reallocations!$C$4:$C$362,$B145,Reallocations!$A$4:$A$362,$A145) -> 0 | G145: ='F_Inputs BP'!G149-SUMIFS(Reallocations!N$4:N$362,Reallocations!$C$4:$C$362,$B145,Reallocations!$A$4:$A$362,$A145) -> 0 | H145: ='F_Inputs BP'!H149-SUMIFS(Reallocations!O$4:O$362,Reallocations!$C$4:$C$362,$B145,Reallocations!$A$4:$A$362,$A145) -> 0 | I145: ='F_Inputs BP'!I149-SUMIFS(Reallocations!P$4:P$362,Reallocations!$C$4:$C$362,$B145,Reallocations!$A$4:$A$362,$A145) -> 0 | J145: ='F_Inputs BP'!J149-SUMIFS(Reallocations!Q$4:Q$362,Reallocations!$C$4:$C$362,$B145,Reallocations!$A$4:$A$362,$A145) -> 0
A146: ='F_Inputs BP'!A150 -> BRL | B146: ='F_Inputs BP'!B150 -> CW3_139TOT_PR24 | C146: ='F_Inputs BP'!C150 -> Other enhancement (Freeform lines - by exception) - Additional line 5; enhancement water opex - Total | D146: ='F_Inputs BP'!D150 -> £m | E146: ='F_Inputs BP'!E150 -> Price Review 2024 | F146: ='F_Inputs BP'!F150-SUMIFS(Reallocations!M$4:M$362,Reallocations!$C$4:$C$362,$B146,Reallocations!$A$4:$A$362,$A146) -> 0 | G146: ='F_Inputs BP'!G150-SUMIFS(Reallocations!N$4:N$362,Reallocations!$C$4:$C$362,$B146,Reallocations!$A$4:$A$362,$A146) -> 0 | H146: ='F_Inputs BP'!H150-SUMIFS(Reallocations!O$4:O$362,Reallocations!$C$4:$C$362,$B146,Reallocations!$A$4:$A$362,$A146) -> 0 | I146: ='F_Inputs BP'!I150-SUMIFS(Reallocations!P$4:P$362,Reallocations!$C$4:$C$362,$B146,Reallocations!$A$4:$A$362,$A146) -> 0 | J146: ='F_Inputs BP'!J150-SUMIFS(Reallocations!Q$4:Q$362,Reallocations!$C$4:$C$362,$B146,Reallocations!$A$4:$A$362,$A146) -> 0
A147: ='F_Inputs BP'!A151 -> BRL | B147: ='F_Inputs BP'!B151 -> CW1A_015TOT_PR24 | C147: ='F_Inputs BP'!C151 -> Net totex - Total | D147: ='F_Inputs BP'!D151 -> £m | E147: ='F_Inputs BP'!E151 -> Price Review 2024 | F147: ='F_Inputs BP'!F151-SUMIFS(Reallocations!M$4:M$362,Reallocations!$C$4:$C$362,$B147,Reallocations!$A$4:$A$362,$A147) -> 126.8847785 | G147: ='F_Inputs BP'!G151-SUMIFS(Reallocations!N$4:N$362,Reallocations!$C$4:$C$362,$B147,Reallocations!$A$4:$A$362,$A147) -> 135.7663958 | H147: ='F_Inputs BP'!H151-SUMIFS(Reallocations!O$4:O$362,Reallocations!$C$4:$C$362,$B147,Reallocations!$A$4:$A$362,$A147) -> 140.3862312 | I147: ='F_Inputs BP'!I151-SUMIFS(Reallocations!P$4:P$362,Reallocations!$C$4:$C$362,$B147,Reallocations!$A$4:$A$362,$A147) -> 140.9563935 | J147: ='F_Inputs BP'!J151-SUMIFS(Reallocations!Q$4:Q$362,Reallocations!$C$4:$C$362,$B147,Reallocations!$A$4:$A$362,$A147) -> 144.9609259
A148: ='F_Inputs BP'!A152 -> PRT | B148: ='F_Inputs BP'!B152 -> CW3_130TOT_PR24 | C148: ='F_Inputs BP'!C152 -> Other enhancement (Freeform lines - by exception) - Additional line 1; enhancement water capex - Total | D148: ='F_Inputs BP'!D152 -> £m | E148: ='F_Inputs BP'!E152 -> Price Review 2024 | F148: ='F_Inputs BP'!F152-SUMIFS(Reallocations!M$4:M$362,Reallocations!$C$4:$C$362,$B148,Reallocations!$A$4:$A$362,$A148) -> 0 | G148: ='F_Inputs BP'!G152-SUMIFS(Reallocations!N$4:N$362,Reallocations!$C$4:$C$362,$B148,Reallocations!$A$4:$A$362,$A148) -> 0 | H148: ='F_Inputs BP'!H152-SUMIFS(Reallocations!O$4:O$362,Reallocations!$C$4:$C$362,$B148,Reallocations!$A$4:$A$362,$A148) -> 0 | I148: ='F_Inputs BP'!I152-SUMIFS(Reallocations!P$4:P$362,Reallocations!$C$4:$C$362,$B148,Reallocations!$A$4:$A$362,$A148) -> 0 | J148: ='F_Inputs BP'!J152-SUMIFS(Reallocations!Q$4:Q$362,Reallocations!$C$4:$C$362,$B148,Reallocations!$A$4:$A$362,$A148) -> 0
A149: ='F_Inputs BP'!A153 -> PRT | B149: ='F_Inputs BP'!B153 -> CW3_131TOT_PR24 | C149: ='F_Inputs BP'!C153 -> Other enhancement (Freeform lines - by exception) - Additional line 1; enhancement water opex - Total | D149: ='F_Inputs BP'!D153 -> £m | E149: ='F_Inputs BP'!E153 -> Price Review 2024 | F149: ='F_Inputs BP'!F153-SUMIFS(Reallocations!M$4:M$362,Reallocations!$C$4:$C$362,$B149,Reallocations!$A$4:$A$362,$A149) -> 0 | G149: ='F_Inputs BP'!G153-SUMIFS(Reallocations!N$4:N$362,Reallocations!$C$4:$C$362,$B149,Reallocations!$A$4:$A$362,$A149) -> 0 | H149: ='F_Inputs BP'!H153-SUMIFS(Reallocations!O$4:O$362,Reallocations!$C$4:$C$362,$B149,Reallocations!$A$4:$A$362,$A149) -> 0 | I149: ='F_Inputs BP'!I153-SUMIFS(Reallocations!P$4:P$362,Reallocations!$C$4:$C$362,$B149,Reallocations!$A$4:$A$362,$A149) -> 0 | J149: ='F_Inputs BP'!J153-SUMIFS(Reallocations!Q$4:Q$362,Reallocations!$C$4:$C$362,$B149,Reallocations!$A$4:$A$362,$A149) -> 0
A150: ='F_Inputs BP'!A154 -> PRT | B150: ='F_Inputs BP'!B154 -> CW3_132TOT_PR24 | C150: ='F_Inputs BP'!C154 -> Other enhancement (Freeform lines - by exception) - Additional line 2; enhancement water capex - Total | D150: ='F_Inputs BP'!D154 -> £m | E150: ='F_Inputs BP'!E154 -> Price Review 2024 | F150: ='F_Inputs BP'!F154-SUMIFS(Reallocations!M$4:M$362,Reallocations!$C$4:$C$362,$B150,Reallocations!$A$4:$A$362,$A150) -> 0 | G150: ='F_Inputs BP'!G154-SUMIFS(Reallocations!N$4:N$362,Reallocations!$C$4:$C$362,$B150,Reallocations!$A$4:$A$362,$A150) -> 0 | H150: ='F_Inputs BP'!H154-SUMIFS(Reallocations!O$4:O$362,Reallocations!$C$4:$C$362,$B150,Reallocations!$A$4:$A$362,$A150) -> 0 | I150: ='F_Inputs BP'!I154-SUMIFS(Reallocations!P$4:P$362,Reallocations!$C$4:$C$362,$B150,Reallocations!$A$4:$A$362,$A150) -> 0 | J150: ='F_Inputs BP'!J154-SUMIFS(Reallocations!Q$4:Q$362,Reallocations!$C$4:$C$362,$B150,Reallocations!$A$4:$A$362,$A150) -> 0
A151: ='F_Inputs BP'!A155 -> PRT | B151: ='F_Inputs BP'!B155 -> CW3_133TOT_PR24 | C151: ='F_Inputs BP'!C155 -> Other enhancement (Freeform lines - by exception) - Additional line 2; enhancement water opex - Total | D151: ='F_Inputs BP'!D155 -> £m | E151: ='F_Inputs BP'!E155 -> Price Review 2024 | F151: ='F_Inputs BP'!F155-SUMIFS(Reallocations!M$4:M$362,Reallocations!$C$4:$C$362,$B151,Reallocations!$A$4:$A$362,$A151) -> 0 | G151: ='F_Inputs BP'!G155-SUMIFS(Reallocations!N$4:N$362,Reallocations!$C$4:$C$362,$B151,Reallocations!$A$4:$A$362,$A151) -> 0 | H151: ='F_Inputs BP'!H155-SUMIFS(Reallocations!O$4:O$362,Reallocations!$C$4:$C$362,$B151,Reallocations!$A$4:$A$362,$A151) -> 0 | I151: ='F_Inputs BP'!I155-SUMIFS(Reallocations!P$4:P$362,Reallocations!$C$4:$C$362,$B151,Reallocations!$A$4:$A$362,$A151) -> 0 | J151: ='F_Inputs BP'!J155-SUMIFS(Reallocations!Q$4:Q$362,Reallocations!$C$4:$C$362,$B151,Reallocations!$A$4:$A$362,$A151) -> 0
A152: ='F_Inputs BP'!A156 -> PRT | B152: ='F_Inputs BP'!B156 -> CW3_134TOT_PR24 | C152: ='F_Inputs BP'!C156 -> Other enhancement (Freeform lines - by exception) - Additional line 3; enhancement water capex - Total | D152: ='F_Inputs BP'!D156 -> £m | E152: ='F_Inputs BP'!E156 -> Price Review 2024 | F152: ='F_Inputs BP'!F156-SUMIFS(Reallocations!M$4:M$362,Reallocations!$C$4:$C$362,$B152,Reallocations!$A$4:$A$362,$A152) -> 0 | G152: ='F_Inputs BP'!G156-SUMIFS(Reallocations!N$4:N$362,Reallocations!$C$4:$C$362,$B152,Reallocations!$A$4:$A$362,$A152) -> 0 | H152: ='F_Inputs BP'!H156-SUMIFS(Reallocations!O$4:O$362,Reallocations!$C$4:$C$362,$B152,Reallocations!$A$4:$A$362,$A152) -> 0 | I152: ='F_Inputs BP'!I156-SUMIFS(Reallocations!P$4:P$362,Reallocations!$C$4:$C$362,$B152,Reallocations!$A$4:$A$362,$A152) -> 0 | J152: ='F_Inputs BP'!J156-SUMIFS(Reallocations!Q$4:Q$362,Reallocations!$C$4:$C$362,$B152,Reallocations!$A$4:$A$362,$A152) -> 0
A153: ='F_Inputs BP'!A157 -> PRT | B153: ='F_Inputs BP'!B157 -> CW3_135TOT_PR24 | C153: ='F_Inputs BP'!C157 -> Other enhancement (Freeform lines - by exception) - Additional line 3; enhancement water opex - Total | D153: ='F_Inputs BP'!D157 -> £m | E153: ='F_Inputs BP'!E157 -> Price Review 2024 | F153: ='F_Inputs BP'!F157-SUMIFS(Reallocations!M$4:M$362,Reallocations!$C$4:$C$362,$B153,Reallocations!$A$4:$A$362,$A153) -> 0 | G153: ='F_Inputs BP'!G157-SUMIFS(Reallocations!N$4:N$362,Reallocations!$C$4:$C$362,$B153,Reallocations!$A$4:$A$362,$A153) -> 0 | H153: ='F_Inputs BP'!H157-SUMIFS(Reallocations!O$4:O$362,Reallocations!$C$4:$C$362,$B153,Reallocations!$A$4:$A$362,$A153) -> 0 | I153: ='F_Inputs BP'!I157-SUMIFS(Reallocations!P$4:P$362,Reallocations!$C$4:$C$362,$B153,Reallocations!$A$4:$A$362,$A153) -> 0 | J153: ='F_Inputs BP'!J157-SUMIFS(Reallocations!Q$4:Q$362,Reallocations!$C$4:$C$362,$B153,Reallocations!$A$4:$A$362,$A153) -> 0
A154: ='F_Inputs BP'!A158 -> PRT | B154: ='F_Inputs BP'!B158 -> CW3_136TOT_PR24 | C154: ='F_Inputs BP'!C158 -> Other enhancement (Freeform lines - by exception) - Additional line 4; enhancement water capex - Total | D154: ='F_Inputs BP'!D158 -> £m | E154: ='F_Inputs BP'!E158 -> Price Review 2024 | F154: ='F_Inputs BP'!F158-SUMIFS(Reallocations!M$4:M$362,Reallocations!$C$4:$C$362,$B154,Reallocations!$A$4:$A$362,$A154) -> 0 | G154: ='F_Inputs BP'!G158-SUMIFS(Reallocations!N$4:N$362,Reallocations!$C$4:$C$362,$B154,Reallocations!$A$4:$A$362,$A154) -> 0 | H154: ='F_Inputs BP'!H158-SUMIFS(Reallocations!O$4:O$362,Reallocations!$C$4:$C$362,$B154,Reallocations!$A$4:$A$362,$A154) -> 0 | I154: ='F_Inputs BP'!I158-SUMIFS(Reallocations!P$4:P$362,Reallocations!$C$4:$C$362,$B154,Reallocations!$A$4:$A$362,$A154) -> 0 | J154: ='F_Inputs BP'!J158-SUMIFS(Reallocations!Q$4:Q$362,Reallocations!$C$4:$C$362,$B154,Reallocations!$A$4:$A$362,$A154) -> 0
A155: ='F_Inputs BP'!A159 -> PRT | B155: ='F_Inputs BP'!B159 -> CW3_137TOT_PR24 | C155: ='F_Inputs BP'!C159 -> Other enhancement (Freeform lines - by exception) - Additional line 4; enhancement water opex - Total | D155: ='F_Inputs BP'!D159 -> £m | E155: ='F_Inputs BP'!E159 -> Price Review 2024 | F155: ='F_Inputs BP'!F159-SUMIFS(Reallocations!M$4:M$362,Reallocations!$C$4:$C$362,$B155,Reallocations!$A$4:$A$362,$A155) -> 0 | G155: ='F_Inputs BP'!G159-SUMIFS(Reallocations!N$4:N$362,Reallocations!$C$4:$C$362,$B155,Reallocations!$A$4:$A$362,$A155) -> 0 | H155: ='F_Inputs BP'!H159-SUMIFS(Reallocations!O$4:O$362,Reallocations!$C$4:$C$362,$B155,Reallocations!$A$4:$A$362,$A155) -> 0 | I155: ='F_Inputs BP'!I159-SUMIFS(Reallocations!P$4:P$362,Reallocations!$C$4:$C$362,$B155,Reallocations!$A$4:$A$362,$A155) -> 0 | J155: ='F_Inputs BP'!J159-SUMIFS(Reallocations!Q$4:Q$362,Reallocations!$C$4:$C$362,$B155,Reallocations!$A$4:$A$362,$A155) -> 0
A156: ='F_Inputs BP'!A160 -> PRT | B156: ='F_Inputs BP'!B160 -> CW3_138TOT_PR24 | C156: ='F_Inputs BP'!C160 -> Other enhancement (Freeform lines - by exception) - Additional line 5; enhancement water capex - Total | D156: ='F_Inputs BP'!D160 -> £m | E156: ='F_Inputs BP'!E160 -> Price Review 2024 | F156: ='F_Inputs BP'!F160-SUMIFS(Reallocations!M$4:M$362,Reallocations!$C$4:$C$362,$B156,Reallocations!$A$4:$A$362,$A156) -> 0 | G156: ='F_Inputs BP'!G160-SUMIFS(Reallocations!N$4:N$362,Reallocations!$C$4:$C$362,$B156,Reallocations!$A$4:$A$362,$A156) -> 0 | H156: ='F_Inputs BP'!H160-SUMIFS(Reallocations!O$4:O$362,Reallocations!$C$4:$C$362,$B156,Reallocations!$A$4:$A$362,$A156) -> 0 | I156: ='F_Inputs BP'!I160-SUMIFS(Reallocations!P$4:P$362,Reallocations!$C$4:$C$362,$B156,Reallocations!$A$4:$A$362,$A156) -> 0 | J156: ='F_Inputs BP'!J160-SUMIFS(Reallocations!Q$4:Q$362,Reallocations!$C$4:$C$362,$B156,Reallocations!$A$4:$A$362,$A156) -> 0
A157: ='F_Inputs BP'!A161 -> PRT | B157: ='F_Inputs BP'!B161 -> CW3_139TOT_PR24 | C157: ='F_Inputs BP'!C161 -> Other enhancement (Freeform lines - by exception) - Additional line 5; enhancement water opex - Total | D157: ='F_Inputs BP'!D161 -> £m | E157: ='F_Inputs BP'!E161 -> Price Review 2024 | F157: ='F_Inputs BP'!F161-SUMIFS(Reallocations!M$4:M$362,Reallocations!$C$4:$C$362,$B157,Reallocations!$A$4:$A$362,$A157) -> 0 | G157: ='F_Inputs BP'!G161-SUMIFS(Reallocations!N$4:N$362,Reallocations!$C$4:$C$362,$B157,Reallocations!$A$4:$A$362,$A157) -> 0 | H157: ='F_Inputs BP'!H161-SUMIFS(Reallocations!O$4:O$362,Reallocations!$C$4:$C$362,$B157,Reallocations!$A$4:$A$362,$A157) -> 0 | I157: ='F_Inputs BP'!I161-SUMIFS(Reallocations!P$4:P$362,Reallocations!$C$4:$C$362,$B157,Reallocations!$A$4:$A$362,$A157) -> 0 | J157: ='F_Inputs BP'!J161-SUMIFS(Reallocations!Q$4:Q$362,Reallocations!$C$4:$C$362,$B157,Reallocations!$A$4:$A$362,$A157) -> 0
A158: ='F_Inputs BP'!A162 -> PRT | B158: ='F_Inputs BP'!B162 -> CW1A_015TOT_PR24 | C158: ='F_Inputs BP'!C162 -> Net totex - Total | D158: ='F_Inputs BP'!D162 -> £m | E158: ='F_Inputs BP'!E162 -> Price Review 2024 | F158: ='F_Inputs BP'!F162-SUMIFS(Reallocations!M$4:M$362,Reallocations!$C$4:$C$362,$B158,Reallocations!$A$4:$A$362,$A158) -> 58.63988094 | G158: ='F_Inputs BP'!G162-SUMIFS(Reallocations!N$4:N$362,Reallocations!$C$4:$C$362,$B158,Reallocations!$A$4:$A$362,$A158) -> 74.27175013 | H158: ='F_Inputs BP'!H162-SUMIFS(Reallocations!O$4:O$362,Reallocations!$C$4:$C$362,$B158,Reallocations!$A$4:$A$362,$A158) -> 71.67736275 | I158: ='F_Inputs BP'!I162-SUMIFS(Reallocations!P$4:P$362,Reallocations!$C$4:$C$362,$B158,Reallocations!$A$4:$A$362,$A158) -> 63.1207141 | J158: ='F_Inputs BP'!J162-SUMIFS(Reallocations!Q$4:Q$362,Reallocations!$C$4:$C$362,$B158,Reallocations!$A$4:$A$362,$A158) -> 60.97457465
A159: ='F_Inputs BP'!A163 -> SEW | B159: ='F_Inputs BP'!B163 -> CW3_130TOT_PR24 | C159: ='F_Inputs BP'!C163 -> Other enhancement (Freeform lines - by exception) - Additional line 1; enhancement water capex - Total | D159: ='F_Inputs BP'!D163 -> £m | E159: ='F_Inputs BP'!E163 -> Price Review 2024 | F159: ='F_Inputs BP'!F163-SUMIFS(Reallocations!M$4:M$362,Reallocations!$C$4:$C$362,$B159,Reallocations!$A$4:$A$362,$A159) -> 0 | G159: ='F_Inputs BP'!G163-SUMIFS(Reallocations!N$4:N$362,Reallocations!$C$4:$C$362,$B159,Reallocations!$A$4:$A$362,$A159) -> 0 | H159: ='F_Inputs BP'!H163-SUMIFS(Reallocations!O$4:O$362,Reallocations!$C$4:$C$362,$B159,Reallocations!$A$4:$A$362,$A159) -> 0 | I159: ='F_Inputs BP'!I163-SUMIFS(Reallocations!P$4:P$362,Reallocations!$C$4:$C$362,$B159,Reallocations!$A$4:$A$362,$A159) -> 0 | J159: ='F_Inputs BP'!J163-SUMIFS(Reallocations!Q$4:Q$362,Reallocations!$C$4:$C$362,$B159,Reallocations!$A$4:$A$362,$A159) -> 0
A160: ='F_Inputs BP'!A164 -> SEW | B160: ='F_Inputs BP'!B164 -> CW3_131TOT_PR24 | C160: ='F_Inputs BP'!C164 -> Other enhancement (Freeform lines - by exception) - Additional line 1; enhancement water opex - Total | D160: ='F_Inputs BP'!D164 -> £m | E160: ='F_Inputs BP'!E164 -> Price Review 2024 | F160: ='F_Inputs BP'!F164-SUMIFS(Reallocations!M$4:M$362,Reallocations!$C$4:$C$362,$B160,Reallocations!$A$4:$A$362,$A160) -> 0 | G160: ='F_Inputs BP'!G164-SUMIFS(Reallocations!N$4:N$362,Reallocations!$C$4:$C$362,$B160,Reallocations!$A$4:$A$362,$A160) -> 0 | H160: ='F_Inputs BP'!H164-SUMIFS(Reallocations!O$4:O$362,Reallocations!$C$4:$C$362,$B160,Reallocations!$A$4:$A$362,$A160) -> 0 | I160: ='F_Inputs BP'!I164-SUMIFS(Reallocations!P$4:P$362,Reallocations!$C$4:$C$362,$B160,Reallocations!$A$4:$A$362,$A160) -> 0 | J160: ='F_Inputs BP'!J164-SUMIFS(Reallocations!Q$4:Q$362,Reallocations!$C$4:$C$362,$B160,Reallocations!$A$4:$A$362,$A160) -> 0
A161: ='F_Inputs BP'!A165 -> SEW | B161: ='F_Inputs BP'!B165 -> CW3_132TOT_PR24 | C161: ='F_Inputs BP'!C165 -> Other enhancement (Freeform lines - by exception) - Additional line 2; enhancement water capex - Total | D161: ='F_Inputs BP'!D165 -> £m | E161: ='F_Inputs BP'!E165 -> Price Review 2024 | F161: ='F_Inputs BP'!F165-SUMIFS(Reallocations!M$4:M$362,Reallocations!$C$4:$C$362,$B161,Reallocations!$A$4:$A$362,$A161) -> 0 | G161: ='F_Inputs BP'!G165-SUMIFS(Reallocations!N$4:N$362,Reallocations!$C$4:$C$362,$B161,Reallocations!$A$4:$A$362,$A161) -> 0 | H161: ='F_Inputs BP'!H165-SUMIFS(Reallocations!O$4:O$362,Reallocations!$C$4:$C$362,$B161,Reallocations!$A$4:$A$362,$A161) -> 0 | I161: ='F_Inputs BP'!I165-SUMIFS(Reallocations!P$4:P$362,Reallocations!$C$4:$C$362,$B161,Reallocations!$A$4:$A$362,$A161) -> 0 | J161: ='F_Inputs BP'!J165-SUMIFS(Reallocations!Q$4:Q$362,Reallocations!$C$4:$C$362,$B161,Reallocations!$A$4:$A$362,$A161) -> 0
A162: ='F_Inputs BP'!A166 -> SEW | B162: ='F_Inputs BP'!B166 -> CW3_133TOT_PR24 | C162: ='F_Inputs BP'!C166 -> Other enhancement (Freeform lines - by exception) - Additional line 2; enhancement water opex - Total | D162: ='F_Inputs BP'!D166 -> £m | E162: ='F_Inputs BP'!E166 -> Price Review 2024 | F162: ='F_Inputs BP'!F166-SUMIFS(Reallocations!M$4:M$362,Reallocations!$C$4:$C$362,$B162,Reallocations!$A$4:$A$362,$A162) -> 0 | G162: ='F_Inputs BP'!G166-SUMIFS(Reallocations!N$4:N$362,Reallocations!$C$4:$C$362,$B162,Reallocations!$A$4:$A$362,$A162) -> 0 | H162: ='F_Inputs BP'!H166-SUMIFS(Reallocations!O$4:O$362,Reallocations!$C$4:$C$362,$B162,Reallocations!$A$4:$A$362,$A162) -> 0 | I162: ='F_Inputs BP'!I166-SUMIFS(Reallocations!P$4:P$362,Reallocations!$C$4:$C$362,$B162,Reallocations!$A$4:$A$362,$A162) -> 0 | J162: ='F_Inputs BP'!J166-SUMIFS(Reallocations!Q$4:Q$362,Reallocations!$C$4:$C$362,$B162,Reallocations!$A$4:$A$362,$A162) -> 0
A163: ='F_Inputs BP'!A167 -> SEW | B163: ='F_Inputs BP'!B167 -> CW3_134TOT_PR24 | C163: ='F_Inputs BP'!C167 -> Other enhancement (Freeform lines - by exception) - Additional line 3; enhancement water capex - Total | D163: ='F_Inputs BP'!D167 -> £m | E163: ='F_Inputs BP'!E167 -> Price Review 2024 | F163: ='F_Inputs BP'!F167-SUMIFS(Reallocations!M$4:M$362,Reallocations!$C$4:$C$362,$B163,Reallocations!$A$4:$A$362,$A163) -> 0 | G163: ='F_Inputs BP'!G167-SUMIFS(Reallocations!N$4:N$362,Reallocations!$C$4:$C$362,$B163,Reallocations!$A$4:$A$362,$A163) -> 0 | H163: ='F_Inputs BP'!H167-SUMIFS(Reallocations!O$4:O$362,Reallocations!$C$4:$C$362,$B163,Reallocations!$A$4:$A$362,$A163) -> 0 | I163: ='F_Inputs BP'!I167-SUMIFS(Reallocations!P$4:P$362,Reallocations!$C$4:$C$362,$B163,Reallocations!$A$4:$A$362,$A163) -> 0 | J163: ='F_Inputs BP'!J167-SUMIFS(Reallocations!Q$4:Q$362,Reallocations!$C$4:$C$362,$B163,Reallocations!$A$4:$A$362,$A163) -> 0
A164: ='F_Inputs BP'!A168 -> SEW | B164: ='F_Inputs BP'!B168 -> CW3_135TOT_PR24 | C164: ='F_Inputs BP'!C168 -> Other enhancement (Freeform lines - by exception) - Additional line 3; enhancement water opex - Total | D164: ='F_Inputs BP'!D168 -> £m | E164: ='F_Inputs BP'!E168 -> Price Review 2024 | F164: ='F_Inputs BP'!F168-SUMIFS(Reallocations!M$4:M$362,Reallocations!$C$4:$C$362,$B164,Reallocations!$A$4:$A$362,$A164) -> 0 | G164: ='F_Inputs BP'!G168-SUMIFS(Reallocations!N$4:N$362,Reallocations!$C$4:$C$362,$B164,Reallocations!$A$4:$A$362,$A164) -> 0 | H164: ='F_Inputs BP'!H168-SUMIFS(Reallocations!O$4:O$362,Reallocations!$C$4:$C$362,$B164,Reallocations!$A$4:$A$362,$A164) -> 0 | I164: ='F_Inputs BP'!I168-SUMIFS(Reallocations!P$4:P$362,Reallocations!$C$4:$C$362,$B164,Reallocations!$A$4:$A$362,$A164) -> 0 | J164: ='F_Inputs BP'!J168-SUMIFS(Reallocations!Q$4:Q$362,Reallocations!$C$4:$C$362,$B164,Reallocations!$A$4:$A$362,$A164) -> 0
A165: ='F_Inputs BP'!A169 -> SEW | B165: ='F_Inputs BP'!B169 -> CW3_136TOT_PR24 | C165: ='F_Inputs BP'!C169 -> Other enhancement (Freeform lines - by exception) - Additional line 4; enhancement water capex - Total | D165: ='F_Inputs BP'!D169 -> £m | E165: ='F_Inputs BP'!E169 -> Price Review 2024 | F165: ='F_Inputs BP'!F169-SUMIFS(Reallocations!M$4:M$362,Reallocations!$C$4:$C$362,$B165,Reallocations!$A$4:$A$362,$A165) -> 0 | G165: ='F_Inputs BP'!G169-SUMIFS(Reallocations!N$4:N$362,Reallocations!$C$4:$C$362,$B165,Reallocations!$A$4:$A$362,$A165) -> 0 | H165: ='F_Inputs BP'!H169-SUMIFS(Reallocations!O$4:O$362,Reallocations!$C$4:$C$362,$B165,Reallocations!$A$4:$A$362,$A165) -> 0 | I165: ='F_Inputs BP'!I169-SUMIFS(Reallocations!P$4:P$362,Reallocations!$C$4:$C$362,$B165,Reallocations!$A$4:$A$362,$A165) -> 0 | J165: ='F_Inputs BP'!J169-SUMIFS(Reallocations!Q$4:Q$362,Reallocations!$C$4:$C$362,$B165,Reallocations!$A$4:$A$362,$A165) -> 0
A166: ='F_Inputs BP'!A170 -> SEW | B166: ='F_Inputs BP'!B170 -> CW3_137TOT_PR24 | C166: ='F_Inputs BP'!C170 -> Other enhancement (Freeform lines - by exception) - Additional line 4; enhancement water opex - Total | D166: ='F_Inputs BP'!D170 -> £m | E166: ='F_Inputs BP'!E170 -> Price Review 2024 | F166: ='F_Inputs BP'!F170-SUMIFS(Reallocations!M$4:M$362,Reallocations!$C$4:$C$362,$B166,Reallocations!$A$4:$A$362,$A166) -> 0 | G166: ='F_Inputs BP'!G170-SUMIFS(Reallocations!N$4:N$362,Reallocations!$C$4:$C$362,$B166,Reallocations!$A$4:$A$362,$A166) -> 0 | H166: ='F_Inputs BP'!H170-SUMIFS(Reallocations!O$4:O$362,Reallocations!$C$4:$C$362,$B166,Reallocations!$A$4:$A$362,$A166) -> 0 | I166: ='F_Inputs BP'!I170-SUMIFS(Reallocations!P$4:P$362,Reallocations!$C$4:$C$362,$B166,Reallocations!$A$4:$A$362,$A166) -> 0 | J166: ='F_Inputs BP'!J170-SUMIFS(Reallocations!Q$4:Q$362,Reallocations!$C$4:$C$362,$B166,Reallocations!$A$4:$A$362,$A166) -> 0
A167: ='F_Inputs BP'!A171 -> SEW | B167: ='F_Inputs BP'!B171 -> CW3_138TOT_PR24 | C167: ='F_Inputs BP'!C171 -> Other enhancement (Freeform lines - by exception) - Additional line 5; enhancement water capex - Total | D167: ='F_Inputs BP'!D171 -> £m | E167: ='F_Inputs BP'!E171 -> Price Review 2024 | F167: ='F_Inputs BP'!F171-SUMIFS(Reallocations!M$4:M$362,Reallocations!$C$4:$C$362,$B167,Reallocations!$A$4:$A$362,$A167) -> 0 | G167: ='F_Inputs BP'!G171-SUMIFS(Reallocations!N$4:N$362,Reallocations!$C$4:$C$362,$B167,Reallocations!$A$4:$A$362,$A167) -> 0 | H167: ='F_Inputs BP'!H171-SUMIFS(Reallocations!O$4:O$362,Reallocations!$C$4:$C$362,$B167,Reallocations!$A$4:$A$362,$A167) -> 0 | I167: ='F_Inputs BP'!I171-SUMIFS(Reallocations!P$4:P$362,Reallocations!$C$4:$C$362,$B167,Reallocations!$A$4:$A$362,$A167) -> 0 | J167: ='F_Inputs BP'!J171-SUMIFS(Reallocations!Q$4:Q$362,Reallocations!$C$4:$C$362,$B167,Reallocations!$A$4:$A$362,$A167) -> 0
A168: ='F_Inputs BP'!A172 -> SEW | B168: ='F_Inputs BP'!B172 -> CW3_139TOT_PR24 | C168: ='F_Inputs BP'!C172 -> Other enhancement (Freeform lines - by exception) - Additional line 5; enhancement water opex - Total | D168: ='F_Inputs BP'!D172 -> £m | E168: ='F_Inputs BP'!E172 -> Price Review 2024 | F168: ='F_Inputs BP'!F172-SUMIFS(Reallocations!M$4:M$362,Reallocations!$C$4:$C$362,$B168,Reallocations!$A$4:$A$362,$A168) -> 0 | G168: ='F_Inputs BP'!G172-SUMIFS(Reallocations!N$4:N$362,Reallocations!$C$4:$C$362,$B168,Reallocations!$A$4:$A$362,$A168) -> 0 | H168: ='F_Inputs BP'!H172-SUMIFS(Reallocations!O$4:O$362,Reallocations!$C$4:$C$362,$B168,Reallocations!$A$4:$A$362,$A168) -> 0 | I168: ='F_Inputs BP'!I172-SUMIFS(Reallocations!P$4:P$362,Reallocations!$C$4:$C$362,$B168,Reallocations!$A$4:$A$362,$A168) -> 0 | J168: ='F_Inputs BP'!J172-SUMIFS(Reallocations!Q$4:Q$362,Reallocations!$C$4:$C$362,$B168,Reallocations!$A$4:$A$362,$A168) -> 0
A169: ='F_Inputs BP'!A173 -> SEW | B169: ='F_Inputs BP'!B173 -> CW1A_015TOT_PR24 | C169: ='F_Inputs BP'!C173 -> Net totex - Total | D169: ='F_Inputs BP'!D173 -> £m | E169: ='F_Inputs BP'!E173 -> Price Review 2024 | F169: ='F_Inputs BP'!F173-SUMIFS(Reallocations!M$4:M$362,Reallocations!$C$4:$C$362,$B169,Reallocations!$A$4:$A$362,$A169) -> 338.350041 | G169: ='F_Inputs BP'!G173-SUMIFS(Reallocations!N$4:N$362,Reallocations!$C$4:$C$362,$B169,Reallocations!$A$4:$A$362,$A169) -> 358.6142616 | H169: ='F_Inputs BP'!H173-SUMIFS(Reallocations!O$4:O$362,Reallocations!$C$4:$C$362,$B169,Reallocations!$A$4:$A$362,$A169) -> 379.6505991 | I169: ='F_Inputs BP'!I173-SUMIFS(Reallocations!P$4:P$362,Reallocations!$C$4:$C$362,$B169,Reallocations!$A$4:$A$362,$A169) -> 396.850532 | J169: ='F_Inputs BP'!J173-SUMIFS(Reallocations!Q$4:Q$362,Reallocations!$C$4:$C$362,$B169,Reallocations!$A$4:$A$362,$A169) -> 387.0121512
A170: ='F_Inputs BP'!A174 -> SSC | B170: ='F_Inputs BP'!B174 -> CW3_130TOT_PR24 | C170: ='F_Inputs BP'!C174 -> Other enhancement (Freeform lines - by exception) - Additional line 1; enhancement water capex - Total | D170: ='F_Inputs BP'!D174 -> £m | E170: ='F_Inputs BP'!E174 -> Price Review 2024 | F170: ='F_Inputs BP'!F174-SUMIFS(Reallocations!M$4:M$362,Reallocations!$C$4:$C$362,$B170,Reallocations!$A$4:$A$362,$A170) -> 0 | G170: ='F_Inputs BP'!G174-SUMIFS(Reallocations!N$4:N$362,Reallocations!$C$4:$C$362,$B170,Reallocations!$A$4:$A$362,$A170) -> 0 | H170: ='F_Inputs BP'!H174-SUMIFS(Reallocations!O$4:O$362,Reallocations!$C$4:$C$362,$B170,Reallocations!$A$4:$A$362,$A170) -> 0 | I170: ='F_Inputs BP'!I174-SUMIFS(Reallocations!P$4:P$362,Reallocations!$C$4:$C$362,$B170,Reallocations!$A$4:$A$362,$A170) -> 0 | J170: ='F_Inputs BP'!J174-SUMIFS(Reallocations!Q$4:Q$362,Reallocations!$C$4:$C$362,$B170,Reallocations!$A$4:$A$362,$A170) -> 0
A171: ='F_Inputs BP'!A175 -> SSC | B171: ='F_Inputs BP'!B175 -> CW3_131TOT_PR24 | C171: ='F_Inputs BP'!C175 -> Other enhancement (Freeform lines - by exception) - Additional line 1; enhancement water opex - Total | D171: ='F_Inputs BP'!D175 -> £m | E171: ='F_Inputs BP'!E175 -> Price Review 2024 | F171: ='F_Inputs BP'!F175-SUMIFS(Reallocations!M$4:M$362,Reallocations!$C$4:$C$362,$B171,Reallocations!$A$4:$A$362,$A171) -> 0 | G171: ='F_Inputs BP'!G175-SUMIFS(Reallocations!N$4:N$362,Reallocations!$C$4:$C$362,$B171,Reallocations!$A$4:$A$362,$A171) -> 0 | H171: ='F_Inputs BP'!H175-SUMIFS(Reallocations!O$4:O$362,Reallocations!$C$4:$C$362,$B171,Reallocations!$A$4:$A$362,$A171) -> 0 | I171: ='F_Inputs BP'!I175-SUMIFS(Reallocations!P$4:P$362,Reallocations!$C$4:$C$362,$B171,Reallocations!$A$4:$A$362,$A171) -> 0 | J171: ='F_Inputs BP'!J175-SUMIFS(Reallocations!Q$4:Q$362,Reallocations!$C$4:$C$362,$B171,Reallocations!$A$4:$A$362,$A171) -> 0
A172: ='F_Inputs BP'!A176 -> SSC | B172: ='F_Inputs BP'!B176 -> CW3_132TOT_PR24 | C172: ='F_Inputs BP'!C176 -> Other enhancement (Freeform lines - by exception) - Additional line 2; enhancement water capex - Total | D172: ='F_Inputs BP'!D176 -> £m | E172: ='F_Inputs BP'!E176 -> Price Review 2024 | F172: ='F_Inputs BP'!F176-SUMIFS(Reallocations!M$4:M$362,Reallocations!$C$4:$C$362,$B172,Reallocations!$A$4:$A$362,$A172) -> 0 | G172: ='F_Inputs BP'!G176-SUMIFS(Reallocations!N$4:N$362,Reallocations!$C$4:$C$362,$B172,Reallocations!$A$4:$A$362,$A172) -> 0 | H172: ='F_Inputs BP'!H176-SUMIFS(Reallocations!O$4:O$362,Reallocations!$C$4:$C$362,$B172,Reallocations!$A$4:$A$362,$A172) -> 0 | I172: ='F_Inputs BP'!I176-SUMIFS(Reallocations!P$4:P$362,Reallocations!$C$4:$C$362,$B172,Reallocations!$A$4:$A$362,$A172) -> 0 | J172: ='F_Inputs BP'!J176-SUMIFS(Reallocations!Q$4:Q$362,Reallocations!$C$4:$C$362,$B172,Reallocations!$A$4:$A$362,$A172) -> 0
A173: ='F_Inputs BP'!A177 -> SSC | B173: ='F_Inputs BP'!B177 -> CW3_133TOT_PR24 | C173: ='F_Inputs BP'!C177 -> Other enhancement (Freeform lines - by exception) - Additional line 2; enhancement water opex - Total | D173: ='F_Inputs BP'!D177 -> £m | E173: ='F_Inputs BP'!E177 -> Price Review 2024 | F173: ='F_Inputs BP'!F177-SUMIFS(Reallocations!M$4:M$362,Reallocations!$C$4:$C$362,$B173,Reallocations!$A$4:$A$362,$A173) -> 0 | G173: ='F_Inputs BP'!G177-SUMIFS(Reallocations!N$4:N$362,Reallocations!$C$4:$C$362,$B173,Reallocations!$A$4:$A$362,$A173) -> 0 | H173: ='F_Inputs BP'!H177-SUMIFS(Reallocations!O$4:O$362,Reallocations!$C$4:$C$362,$B173,Reallocations!$A$4:$A$362,$A173) -> 0 | I173: ='F_Inputs BP'!I177-SUMIFS(Reallocations!P$4:P$362,Reallocations!$C$4:$C$362,$B173,Reallocations!$A$4:$A$362,$A173) -> 0 | J173: ='F_Inputs BP'!J177-SUMIFS(Reallocations!Q$4:Q$362,Reallocations!$C$4:$C$362,$B173,Reallocations!$A$4:$A$362,$A173) -> 0
A174: ='F_Inputs BP'!A178 -> SSC | B174: ='F_Inputs BP'!B178 -> CW3_134TOT_PR24 | C174: ='F_Inputs BP'!C178 -> Other enhancement (Freeform lines - by exception) - Additional line 3; enhancement water capex - Total | D174: ='F_Inputs BP'!D178 -> £m | E174: ='F_Inputs BP'!E178 -> Price Review 2024 | F174: ='F_Inputs BP'!F178-SUMIFS(Reallocations!M$4:M$362,Reallocations!$C$4:$C$362,$B174,Reallocations!$A$4:$A$362,$A174) -> 0 | G174: ='F_Inputs BP'!G178-SUMIFS(Reallocations!N$4:N$362,Reallocations!$C$4:$C$362,$B174,Reallocations!$A$4:$A$362,$A174) -> 0 | H174: ='F_Inputs BP'!H178-SUMIFS(Reallocations!O$4:O$362,Reallocations!$C$4:$C$362,$B174,Reallocations!$A$4:$A$362,$A174) -> 0 | I174: ='F_Inputs BP'!I178-SUMIFS(Reallocations!P$4:P$362,Reallocations!$C$4:$C$362,$B174,Reallocations!$A$4:$A$362,$A174) -> 0 | J174: ='F_Inputs BP'!J178-SUMIFS(Reallocations!Q$4:Q$362,Reallocations!$C$4:$C$362,$B174,Reallocations!$A$4:$A$362,$A174) -> 0
A175: ='F_Inputs BP'!A179 -> SSC | B175: ='F_Inputs BP'!B179 -> CW3_135TOT_PR24 | C175: ='F_Inputs BP'!C179 -> Other enhancement (Freeform lines - by exception) - Additional line 3; enhancement water opex - Total | D175: ='F_Inputs BP'!D179 -> £m | E175: ='F_Inputs BP'!E179 -> Price Review 2024 | F175: ='F_Inputs BP'!F179-SUMIFS(Reallocations!M$4:M$362,Reallocations!$C$4:$C$362,$B175,Reallocations!$A$4:$A$362,$A175) -> 0 | G175: ='F_Inputs BP'!G179-SUMIFS(Reallocations!N$4:N$362,Reallocations!$C$4:$C$362,$B175,Reallocations!$A$4:$A$362,$A175) -> 0 | H175: ='F_Inputs BP'!H179-SUMIFS(Reallocations!O$4:O$362,Reallocations!$C$4:$C$362,$B175,Reallocations!$A$4:$A$362,$A175) -> 0 | I175: ='F_Inputs BP'!I179-SUMIFS(Reallocations!P$4:P$362,Reallocations!$C$4:$C$362,$B175,Reallocations!$A$4:$A$362,$A175) -> 0 | J175: ='F_Inputs BP'!J179-SUMIFS(Reallocations!Q$4:Q$362,Reallocations!$C$4:$C$362,$B175,Reallocations!$A$4:$A$362,$A175) -> 0
A176: ='F_Inputs BP'!A180 -> SSC | B176: ='F_Inputs BP'!B180 -> CW3_136TOT_PR24 | C176: ='F_Inputs BP'!C180 -> Other enhancement (Freeform lines - by exception) - Additional line 4; enhancement water capex - Total | D176: ='F_Inputs BP'!D180 -> £m | E176: ='F_Inputs BP'!E180 -> Price Review 2024 | F176: ='F_Inputs BP'!F180-SUMIFS(Reallocations!M$4:M$362,Reallocations!$C$4:$C$362,$B176,Reallocations!$A$4:$A$362,$A176) -> 0 | G176: ='F_Inputs BP'!G180-SUMIFS(Reallocations!N$4:N$362,Reallocations!$C$4:$C$362,$B176,Reallocations!$A$4:$A$362,$A176) -> 0 | H176: ='F_Inputs BP'!H180-SUMIFS(Reallocations!O$4:O$362,Reallocations!$C$4:$C$362,$B176,Reallocations!$A$4:$A$362,$A176) -> 0 | I176: ='F_Inputs BP'!I180-SUMIFS(Reallocations!P$4:P$362,Reallocations!$C$4:$C$362,$B176,Reallocations!$A$4:$A$362,$A176) -> 0 | J176: ='F_Inputs BP'!J180-SUMIFS(Reallocations!Q$4:Q$362,Reallocations!$C$4:$C$362,$B176,Reallocations!$A$4:$A$362,$A176) -> 0
A177: ='F_Inputs BP'!A181 -> SSC | B177: ='F_Inputs BP'!B181 -> CW3_137TOT_PR24 | C177: ='F_Inputs BP'!C181 -> Other enhancement (Freeform lines - by exception) - Additional line 4; enhancement water opex - Total | D177: ='F_Inputs BP'!D181 -> £m | E177: ='F_Inputs BP'!E181 -> Price Review 2024 | F177: ='F_Inputs BP'!F181-SUMIFS(Reallocations!M$4:M$362,Reallocations!$C$4:$C$362,$B177,Reallocations!$A$4:$A$362,$A177) -> 0 | G177: ='F_Inputs BP'!G181-SUMIFS(Reallocations!N$4:N$362,Reallocations!$C$4:$C$362,$B177,Reallocations!$A$4:$A$362,$A177) -> 0 | H177: ='F_Inputs BP'!H181-SUMIFS(Reallocations!O$4:O$362,Reallocations!$C$4:$C$362,$B177,Reallocations!$A$4:$A$362,$A177) -> 0 | I177: ='F_Inputs BP'!I181-SUMIFS(Reallocations!P$4:P$362,Reallocations!$C$4:$C$362,$B177,Reallocations!$A$4:$A$362,$A177) -> 0 | J177: ='F_Inputs BP'!J181-SUMIFS(Reallocations!Q$4:Q$362,Reallocations!$C$4:$C$362,$B177,Reallocations!$A$4:$A$362,$A177) -> 0
A178: ='F_Inputs BP'!A182 -> SSC | B178: ='F_Inputs BP'!B182 -> CW3_138TOT_PR24 | C178: ='F_Inputs BP'!C182 -> Other enhancement (Freeform lines - by exception) - Additional line 5; enhancement water capex - Total | D178: ='F_Inputs BP'!D182 -> £m | E178: ='F_Inputs BP'!E182 -> Price Review 2024 | F178: ='F_Inputs BP'!F182-SUMIFS(Reallocations!M$4:M$362,Reallocations!$C$4:$C$362,$B178,Reallocations!$A$4:$A$362,$A178) -> 0 | G178: ='F_Inputs BP'!G182-SUMIFS(Reallocations!N$4:N$362,Reallocations!$C$4:$C$362,$B178,Reallocations!$A$4:$A$362,$A178) -> 0 | H178: ='F_Inputs BP'!H182-SUMIFS(Reallocations!O$4:O$362,Reallocations!$C$4:$C$362,$B178,Reallocations!$A$4:$A$362,$A178) -> 0 | I178: ='F_Inputs BP'!I182-SUMIFS(Reallocations!P$4:P$362,Reallocations!$C$4:$C$362,$B178,Reallocations!$A$4:$A$362,$A178) -> 0 | J178: ='F_Inputs BP'!J182-SUMIFS(Reallocations!Q$4:Q$362,Reallocations!$C$4:$C$362,$B178,Reallocations!$A$4:$A$362,$A178) -> 0
A179: ='F_Inputs BP'!A183 -> SSC | B179: ='F_Inputs BP'!B183 -> CW3_139TOT_PR24 | C179: ='F_Inputs BP'!C183 -> Other enhancement (Freeform lines - by exception) - Additional line 5; enhancement water opex - Total | D179: ='F_Inputs BP'!D183 -> £m | E179: ='F_Inputs BP'!E183 -> Price Review 2024 | F179: ='F_Inputs BP'!F183-SUMIFS(Reallocations!M$4:M$362,Reallocations!$C$4:$C$362,$B179,Reallocations!$A$4:$A$362,$A179) -> 0 | G179: ='F_Inputs BP'!G183-SUMIFS(Reallocations!N$4:N$362,Reallocations!$C$4:$C$362,$B179,Reallocations!$A$4:$A$362,$A179) -> 0 | H179: ='F_Inputs BP'!H183-SUMIFS(Reallocations!O$4:O$362,Reallocations!$C$4:$C$362,$B179,Reallocations!$A$4:$A$362,$A179) -> 0 | I179: ='F_Inputs BP'!I183-SUMIFS(Reallocations!P$4:P$362,Reallocations!$C$4:$C$362,$B179,Reallocations!$A$4:$A$362,$A179) -> 0 | J179: ='F_Inputs BP'!J183-SUMIFS(Reallocations!Q$4:Q$362,Reallocations!$C$4:$C$362,$B179,Reallocations!$A$4:$A$362,$A179) -> 0
A180: ='F_Inputs BP'!A184 -> SSC | B180: ='F_Inputs BP'!B184 -> CW1A_015TOT_PR24 | C180: ='F_Inputs BP'!C184 -> Net totex - Total | D180: ='F_Inputs BP'!D184 -> £m | E180: ='F_Inputs BP'!E184 -> Price Review 2024 | F180: ='F_Inputs BP'!F184-SUMIFS(Reallocations!M$4:M$362,Reallocations!$C$4:$C$362,$B180,Reallocations!$A$4:$A$362,$A180) -> 140.9743619 | G180: ='F_Inputs BP'!G184-SUMIFS(Reallocations!N$4:N$362,Reallocations!$C$4:$C$362,$B180,Reallocations!$A$4:$A$362,$A180) -> 157.4984002 | H180: ='F_Inputs BP'!H184-SUMIFS(Reallocations!O$4:O$362,Reallocations!$C$4:$C$362,$B180,Reallocations!$A$4:$A$362,$A180) -> 159.9249907 | I180: ='F_Inputs BP'!I184-SUMIFS(Reallocations!P$4:P$362,Reallocations!$C$4:$C$362,$B180,Reallocations!$A$4:$A$362,$A180) -> 147.4990977 | J180: ='F_Inputs BP'!J184-SUMIFS(Reallocations!Q$4:Q$362,Reallocations!$C$4:$C$362,$B180,Reallocations!$A$4:$A$362,$A180) -> 131.8925834
A181: ='F_Inputs BP'!A185 -> SES | B181: ='F_Inputs BP'!B185 -> CW3_130TOT_PR24 | C181: ='F_Inputs BP'!C185 -> Other enhancement (Freeform lines - by exception) - Additional line 1; enhancement water capex - Total | D181: ='F_Inputs BP'!D185 -> £m | E181: ='F_Inputs BP'!E185 -> Price Review 2024 | F181: ='F_Inputs BP'!F185-SUMIFS(Reallocations!M$4:M$362,Reallocations!$C$4:$C$362,$B181,Reallocations!$A$4:$A$362,$A181) -> 0.04 | G181: ='F_Inputs BP'!G185-SUMIFS(Reallocations!N$4:N$362,Reallocations!$C$4:$C$362,$B181,Reallocations!$A$4:$A$362,$A181) -> 0.06 | H181: ='F_Inputs BP'!H185-SUMIFS(Reallocations!O$4:O$362,Reallocations!$C$4:$C$362,$B181,Reallocations!$A$4:$A$362,$A181) -> 0.06 | I181: ='F_Inputs BP'!I185-SUMIFS(Reallocations!P$4:P$362,Reallocations!$C$4:$C$362,$B181,Reallocations!$A$4:$A$362,$A181) -> 0.06 | J181: ='F_Inputs BP'!J185-SUMIFS(Reallocations!Q$4:Q$362,Reallocations!$C$4:$C$362,$B181,Reallocations!$A$4:$A$362,$A181) -> 0.06
A182: ='F_Inputs BP'!A186 -> SES | B182: ='F_Inputs BP'!B186 -> CW3_131TOT_PR24 | C182: ='F_Inputs BP'!C186 -> Other enhancement (Freeform lines - by exception) - Additional line 1; enhancement water opex - Total | D182: ='F_Inputs BP'!D186 -> £m | E182: ='F_Inputs BP'!E186 -> Price Review 2024 | F182: ='F_Inputs BP'!F186-SUMIFS(Reallocations!M$4:M$362,Reallocations!$C$4:$C$362,$B182,Reallocations!$A$4:$A$362,$A182) -> 0 | G182: ='F_Inputs BP'!G186-SUMIFS(Reallocations!N$4:N$362,Reallocations!$C$4:$C$362,$B182,Reallocations!$A$4:$A$362,$A182) -> 0 | H182: ='F_Inputs BP'!H186-SUMIFS(Reallocations!O$4:O$362,Reallocations!$C$4:$C$362,$B182,Reallocations!$A$4:$A$362,$A182) -> 0 | I182: ='F_Inputs BP'!I186-SUMIFS(Reallocations!P$4:P$362,Reallocations!$C$4:$C$362,$B182,Reallocations!$A$4:$A$362,$A182) -> 0.065 | J182: ='F_Inputs BP'!J186-SUMIFS(Reallocations!Q$4:Q$362,Reallocations!$C$4:$C$362,$B182,Reallocations!$A$4:$A$362,$A182) -> 0.065
A183: ='F_Inputs BP'!A187 -> SES | B183: ='F_Inputs BP'!B187 -> CW3_132TOT_PR24 | C183: ='F_Inputs BP'!C187 -> Other enhancement (Freeform lines - by exception) - Additional line 2; enhancement water capex - Total | D183: ='F_Inputs BP'!D187 -> £m | E183: ='F_Inputs BP'!E187 -> Price Review 2024 | F183: ='F_Inputs BP'!F187-SUMIFS(Reallocations!M$4:M$362,Reallocations!$C$4:$C$362,$B183,Reallocations!$A$4:$A$362,$A183) -> 0 | G183: ='F_Inputs BP'!G187-SUMIFS(Reallocations!N$4:N$362,Reallocations!$C$4:$C$362,$B183,Reallocations!$A$4:$A$362,$A183) -> 0 | H183: ='F_Inputs BP'!H187-SUMIFS(Reallocations!O$4:O$362,Reallocations!$C$4:$C$362,$B183,Reallocations!$A$4:$A$362,$A183) -> 0 | I183: ='F_Inputs BP'!I187-SUMIFS(Reallocations!P$4:P$362,Reallocations!$C$4:$C$362,$B183,Reallocations!$A$4:$A$362,$A183) -> 0 | J183: ='F_Inputs BP'!J187-SUMIFS(Reallocations!Q$4:Q$362,Reallocations!$C$4:$C$362,$B183,Reallocations!$A$4:$A$362,$A183) -> 0
A184: ='F_Inputs BP'!A188 -> SES | B184: ='F_Inputs BP'!B188 -> CW3_133TOT_PR24 | C184: ='F_Inputs BP'!C188 -> Other enhancement (Freeform lines - by exception) - Additional line 2; enhancement water opex - Total | D184: ='F_Inputs BP'!D188 -> £m | E184: ='F_Inputs BP'!E188 -> Price Review 2024 | F184: ='F_Inputs BP'!F188-SUMIFS(Reallocations!M$4:M$362,Reallocations!$C$4:$C$362,$B184,Reallocations!$A$4:$A$362,$A184) -> 0.137 | G184: ='F_Inputs BP'!G188-SUMIFS(Reallocations!N$4:N$362,Reallocations!$C$4:$C$362,$B184,Reallocations!$A$4:$A$362,$A184) -> 0.063 | H184: ='F_Inputs BP'!H188-SUMIFS(Reallocations!O$4:O$362,Reallocations!$C$4:$C$362,$B184,Reallocations!$A$4:$A$362,$A184) -> 0.012 | I184: ='F_Inputs BP'!I188-SUMIFS(Reallocations!P$4:P$362,Reallocations!$C$4:$C$362,$B184,Reallocations!$A$4:$A$362,$A184) -> 0.356 | J184: ='F_Inputs BP'!J188-SUMIFS(Reallocations!Q$4:Q$362,Reallocations!$C$4:$C$362,$B184,Reallocations!$A$4:$A$362,$A184) -> 0.028
A185: ='F_Inputs BP'!A189 -> SES | B185: ='F_Inputs BP'!B189 -> CW3_134TOT_PR24 | C185: ='F_Inputs BP'!C189 -> Other enhancement (Freeform lines - by exception) - Additional line 3; enhancement water capex - Total | D185: ='F_Inputs BP'!D189 -> £m | E185: ='F_Inputs BP'!E189 -> Price Review 2024 | F185: ='F_Inputs BP'!F189-SUMIFS(Reallocations!M$4:M$362,Reallocations!$C$4:$C$362,$B185,Reallocations!$A$4:$A$362,$A185) -> 0 | G185: ='F_Inputs BP'!G189-SUMIFS(Reallocations!N$4:N$362,Reallocations!$C$4:$C$362,$B185,Reallocations!$A$4:$A$362,$A185) -> 0 | H185: ='F_Inputs BP'!H189-SUMIFS(Reallocations!O$4:O$362,Reallocations!$C$4:$C$362,$B185,Reallocations!$A$4:$A$362,$A185) -> 0 | I185: ='F_Inputs BP'!I189-SUMIFS(Reallocations!P$4:P$362,Reallocations!$C$4:$C$362,$B185,Reallocations!$A$4:$A$362,$A185) -> 0 | J185: ='F_Inputs BP'!J189-SUMIFS(Reallocations!Q$4:Q$362,Reallocations!$C$4:$C$362,$B185,Reallocations!$A$4:$A$362,$A185) -> 0
A186: ='F_Inputs BP'!A190 -> SES | B186: ='F_Inputs BP'!B190 -> CW3_135TOT_PR24 | C186: ='F_Inputs BP'!C190 -> Other enhancement (Freeform lines - by exception) - Additional line 3; enhancement water opex - Total | D186: ='F_Inputs BP'!D190 -> £m | E186: ='F_Inputs BP'!E190 -> Price Review 2024 | F186: ='F_Inputs BP'!F190-SUMIFS(Reallocations!M$4:M$362,Reallocations!$C$4:$C$362,$B186,Reallocations!$A$4:$A$362,$A186) -> 0 | G186: ='F_Inputs BP'!G190-SUMIFS(Reallocations!N$4:N$362,Reallocations!$C$4:$C$362,$B186,Reallocations!$A$4:$A$362,$A186) -> 0 | H186: ='F_Inputs BP'!H190-SUMIFS(Reallocations!O$4:O$362,Reallocations!$C$4:$C$362,$B186,Reallocations!$A$4:$A$362,$A186) -> 0 | I186: ='F_Inputs BP'!I190-SUMIFS(Reallocations!P$4:P$362,Reallocations!$C$4:$C$362,$B186,Reallocations!$A$4:$A$362,$A186) -> 0 | J186: ='F_Inputs BP'!J190-SUMIFS(Reallocations!Q$4:Q$362,Reallocations!$C$4:$C$362,$B186,Reallocations!$A$4:$A$362,$A186) -> 0
A187: ='F_Inputs BP'!A191 -> SES | B187: ='F_Inputs BP'!B191 -> CW3_136TOT_PR24 | C187: ='F_Inputs BP'!C191 -> Other enhancement (Freeform lines - by exception) - Additional line 4; enhancement water capex - Total | D187: ='F_Inputs BP'!D191 -> £m | E187: ='F_Inputs BP'!E191 -> Price Review 2024 | F187: ='F_Inputs BP'!F191-SUMIFS(Reallocations!M$4:M$362,Reallocations!$C$4:$C$362,$B187,Reallocations!$A$4:$A$362,$A187) -> 0 | G187: ='F_Inputs BP'!G191-SUMIFS(Reallocations!N$4:N$362,Reallocations!$C$4:$C$362,$B187,Reallocations!$A$4:$A$362,$A187) -> 0 | H187: ='F_Inputs BP'!H191-SUMIFS(Reallocations!O$4:O$362,Reallocations!$C$4:$C$362,$B187,Reallocations!$A$4:$A$362,$A187) -> 0 | I187: ='F_Inputs BP'!I191-SUMIFS(Reallocations!P$4:P$362,Reallocations!$C$4:$C$362,$B187,Reallocations!$A$4:$A$362,$A187) -> 0 | J187: ='F_Inputs BP'!J191-SUMIFS(Reallocations!Q$4:Q$362,Reallocations!$C$4:$C$362,$B187,Reallocations!$A$4:$A$362,$A187) -> 0
A188: ='F_Inputs BP'!A192 -> SES | B188: ='F_Inputs BP'!B192 -> CW3_137TOT_PR24 | C188: ='F_Inputs BP'!C192 -> Other enhancement (Freeform lines - by exception) - Additional line 4; enhancement water opex - Total | D188: ='F_Inputs BP'!D192 -> £m | E188: ='F_Inputs BP'!E192 -> Price Review 2024 | F188: ='F_Inputs BP'!F192-SUMIFS(Reallocations!M$4:M$362,Reallocations!$C$4:$C$362,$B188,Reallocations!$A$4:$A$362,$A188) -> 0 | G188: ='F_Inputs BP'!G192-SUMIFS(Reallocations!N$4:N$362,Reallocations!$C$4:$C$362,$B188,Reallocations!$A$4:$A$362,$A188) -> 0 | H188: ='F_Inputs BP'!H192-SUMIFS(Reallocations!O$4:O$362,Reallocations!$C$4:$C$362,$B188,Reallocations!$A$4:$A$362,$A188) -> 0 | I188: ='F_Inputs BP'!I192-SUMIFS(Reallocations!P$4:P$362,Reallocations!$C$4:$C$362,$B188,Reallocations!$A$4:$A$362,$A188) -> 0 | J188: ='F_Inputs BP'!J192-SUMIFS(Reallocations!Q$4:Q$362,Reallocations!$C$4:$C$362,$B188,Reallocations!$A$4:$A$362,$A188) -> 0
A189: ='F_Inputs BP'!A193 -> SES | B189: ='F_Inputs BP'!B193 -> CW3_138TOT_PR24 | C189: ='F_Inputs BP'!C193 -> Other enhancement (Freeform lines - by exception) - Additional line 5; enhancement water capex - Total | D189: ='F_Inputs BP'!D193 -> £m | E189: ='F_Inputs BP'!E193 -> Price Review 2024 | F189: ='F_Inputs BP'!F193-SUMIFS(Reallocations!M$4:M$362,Reallocations!$C$4:$C$362,$B189,Reallocations!$A$4:$A$362,$A189) -> 0 | G189: ='F_Inputs BP'!G193-SUMIFS(Reallocations!N$4:N$362,Reallocations!$C$4:$C$362,$B189,Reallocations!$A$4:$A$362,$A189) -> 0 | H189: ='F_Inputs BP'!H193-SUMIFS(Reallocations!O$4:O$362,Reallocations!$C$4:$C$362,$B189,Reallocations!$A$4:$A$362,$A189) -> 0 | I189: ='F_Inputs BP'!I193-SUMIFS(Reallocations!P$4:P$362,Reallocations!$C$4:$C$362,$B189,Reallocations!$A$4:$A$362,$A189) -> 0 | J189: ='F_Inputs BP'!J193-SUMIFS(Reallocations!Q$4:Q$362,Reallocations!$C$4:$C$362,$B189,Reallocations!$A$4:$A$362,$A189) -> 0
A190: ='F_Inputs BP'!A194 -> SES | B190: ='F_Inputs BP'!B194 -> CW3_139TOT_PR24 | C190: ='F_Inputs BP'!C194 -> Other enhancement (Freeform lines - by exception) - Additional line 5; enhancement water opex - Total | D190: ='F_Inputs BP'!D194 -> £m | E190: ='F_Inputs BP'!E194 -> Price Review 2024 | F190: ='F_Inputs BP'!F194-SUMIFS(Reallocations!M$4:M$362,Reallocations!$C$4:$C$362,$B190,Reallocations!$A$4:$A$362,$A190) -> 0 | G190: ='F_Inputs BP'!G194-SUMIFS(Reallocations!N$4:N$362,Reallocations!$C$4:$C$362,$B190,Reallocations!$A$4:$A$362,$A190) -> 0 | H190: ='F_Inputs BP'!H194-SUMIFS(Reallocations!O$4:O$362,Reallocations!$C$4:$C$362,$B190,Reallocations!$A$4:$A$362,$A190) -> 0 | I190: ='F_Inputs BP'!I194-SUMIFS(Reallocations!P$4:P$362,Reallocations!$C$4:$C$362,$B190,Reallocations!$A$4:$A$362,$A190) -> 0 | J190: ='F_Inputs BP'!J194-SUMIFS(Reallocations!Q$4:Q$362,Reallocations!$C$4:$C$362,$B190,Reallocations!$A$4:$A$362,$A190) -> 0
A191: ='F_Inputs BP'!A195 -> SES | B191: ='F_Inputs BP'!B195 -> CW1A_015TOT_PR24 | C191: ='F_Inputs BP'!C195 -> Net totex - Total | D191: ='F_Inputs BP'!D195 -> £m | E191: ='F_Inputs BP'!E195 -> Price Review 2024 | F191: ='F_Inputs BP'!F195-SUMIFS(Reallocations!M$4:M$362,Reallocations!$C$4:$C$362,$B191,Reallocations!$A$4:$A$362,$A191) -> 73.6705985 | G191: ='F_Inputs BP'!G195-SUMIFS(Reallocations!N$4:N$362,Reallocations!$C$4:$C$362,$B191,Reallocations!$A$4:$A$362,$A191) -> 80.76784262 | H191: ='F_Inputs BP'!H195-SUMIFS(Reallocations!O$4:O$362,Reallocations!$C$4:$C$362,$B191,Reallocations!$A$4:$A$362,$A191) -> 87.63970699 | I191: ='F_Inputs BP'!I195-SUMIFS(Reallocations!P$4:P$362,Reallocations!$C$4:$C$362,$B191,Reallocations!$A$4:$A$362,$A191) -> 68.71579409 | J191: ='F_Inputs BP'!J195-SUMIFS(Reallocations!Q$4:Q$362,Reallocations!$C$4:$C$362,$B191,Reallocations!$A$4:$A$362,$A191) -> 66.84144898

Sheet F_Input Override
A1: =RIGHT(CELL("filename", $I$1), LEN(CELL("filename", $I$1)) - SEARCH("]", CELL("filename", $I$1))) -> 
F3: F_Inputs BP | G3: F_Inputs BP | H3: F_Inputs BP | I3: F_Inputs BP | J3: F_Inputs BP
A4: Acronym | B4: Reference | C4: Item description | D4: Unit | E4: Model | F4: 2025-26 | G4: 2026-27 | H4: 2027-28 | I4: 2028-29 | J4: 2029-30 | K4: Reason for override
A5: ='F_Inputs BP'!A9 -> ANH | B5: ='F_Inputs BP'!B9 -> CW3_130TOT_PR24 | C5: ='F_Inputs BP'!C9 -> Other enhancement (Freeform lines - by exception) - Additional line 1; enhancement water capex - Total | D5: ='F_Inputs BP'!D9 -> £m | E5: ='F_Inputs BP'!E9 -> Price Review 2024
A6: ='F_Inputs BP'!A10 -> ANH | B6: ='F_Inputs BP'!B10 -> CW3_131TOT_PR24 | C6: ='F_Inputs BP'!C10 -> Other enhancement (Freeform lines - by exception) - Additional line 1; enhancement water opex - Total | D6: ='F_Inputs BP'!D10 -> £m | E6: ='F_Inputs BP'!E10 -> Price Review 2024
A7: ='F_Inputs BP'!A11 -> ANH | B7: ='F_Inputs BP'!B11 -> CW3_132TOT_PR24 | C7: ='F_Inputs BP'!C11 -> Other enhancement (Freeform lines - by exception) - Additional line 2; enhancement water capex - Total | D7: ='F_Inputs BP'!D11 -> £m | E7: ='F_Inputs BP'!E11 -> Price Review 2024
A8: ='F_Inputs BP'!A12 -> ANH | B8: ='F_Inputs BP'!B12 -> CW3_133TOT_PR24 | C8: ='F_Inputs BP'!C12 -> Other enhancement (Freeform lines - by exception) - Additional line 2; enhancement water opex - Total | D8: ='F_Inputs BP'!D12 -> £m | E8: ='F_Inputs BP'!E12 -> Price Review 2024
A9: ='F_Inputs BP'!A13 -> ANH | B9: ='F_Inputs BP'!B13 -> CW3_134TOT_PR24 | C9: ='F_Inputs BP'!C13 -> Other enhancement (Freeform lines - by exception) - Additional line 3; enhancement water capex - Total | D9: ='F_Inputs BP'!D13 -> £m | E9: ='F_Inputs BP'!E13 -> Price Review 2024
A10: ='F_Inputs BP'!A14 -> ANH | B10: ='F_Inputs BP'!B14 -> CW3_135TOT_PR24 | C10: ='F_Inputs BP'!C14 -> Other enhancement (Freeform lines - by exception) - Additional line 3; enhancement water opex - Total | D10: ='F_Inputs BP'!D14 -> £m | E10: ='F_Inputs BP'!E14 -> Price Review 2024
A11: ='F_Inputs BP'!A15 -> ANH | B11: ='F_Inputs BP'!B15 -> CW3_136TOT_PR24 | C11: ='F_Inputs BP'!C15 -> Other enhancement (Freeform lines - by exception) - Additional line 4; enhancement water capex - Total | D11: ='F_Inputs BP'!D15 -> £m | E11: ='F_Inputs BP'!E15 -> Price Review 2024
A12: ='F_Inputs BP'!A16 -> ANH | B12: ='F_Inputs BP'!B16 -> CW3_137TOT_PR24 | C12: ='F_Inputs BP'!C16 -> Other enhancement (Freeform lines - by exception) - Additional line 4; enhancement water opex - Total | D12: ='F_Inputs BP'!D16 -> £m | E12: ='F_Inputs BP'!E16 -> Price Review 2024
A13: ='F_Inputs BP'!A17 -> ANH | B13: ='F_Inputs BP'!B17 -> CW3_138TOT_PR24 | C13: ='F_Inputs BP'!C17 -> Other enhancement (Freeform lines - by exception) - Additional line 5; enhancement water capex - Total | D13: ='F_Inputs BP'!D17 -> £m | E13: ='F_Inputs BP'!E17 -> Price Review 2024
A14: ='F_Inputs BP'!A18 -> ANH | B14: ='F_Inputs BP'!B18 -> CW3_139TOT_PR24 | C14: ='F_Inputs BP'!C18 -> Other enhancement (Freeform lines - by exception) - Additional line 5; enhancement water opex - Total | D14: ='F_Inputs BP'!D18 -> £m | E14: ='F_Inputs BP'!E18 -> Price Review 2024
A15: ='F_Inputs BP'!A19 -> ANH | B15: ='F_Inputs BP'!B19 -> CW1A_015TOT_PR24 | C15: ='F_Inputs BP'!C19 -> Net totex - Total | D15: ='F_Inputs BP'!D19 -> £m | E15: ='F_Inputs BP'!E19 -> Price Review 2024
A16: ='F_Inputs BP'!A20 -> WSH | B16: ='F_Inputs BP'!B20 -> CW3_130TOT_PR24 | C16: ='F_Inputs BP'!C20 -> Other enhancement (Freeform lines - by exception) - Additional line 1; enhancement water capex - Total | D16: ='F_Inputs BP'!D20 -> £m | E16: ='F_Inputs BP'!E20 -> Price Review 2024
A17: ='F_Inputs BP'!A21 -> WSH | B17: ='F_Inputs BP'!B21 -> CW3_131TOT_PR24 | C17: ='F_Inputs BP'!C21 -> Other enhancement (Freeform lines - by exception) - Additional line 1; enhancement water opex - Total | D17: ='F_Inputs BP'!D21 -> £m | E17: ='F_Inputs BP'!E21 -> Price Review 2024
A18: ='F_Inputs BP'!A22 -> WSH | B18: ='F_Inputs BP'!B22 -> CW3_132TOT_PR24 | C18: ='F_Inputs BP'!C22 -> Other enhancement (Freeform lines - by exception) - Additional line 2; enhancement water capex - Total | D18: ='F_Inputs BP'!D22 -> £m | E18: ='F_Inputs BP'!E22 -> Price Review 2024
A19: ='F_Inputs BP'!A23 -> WSH | B19: ='F_Inputs BP'!B23 -> CW3_133TOT_PR24 | C19: ='F_Inputs BP'!C23 -> Other enhancement (Freeform lines - by exception) - Additional line 2; enhancement water opex - Total | D19: ='F_Inputs BP'!D23 -> £m | E19: ='F_Inputs BP'!E23 -> Price Review 2024
A20: ='F_Inputs BP'!A24 -> WSH | B20: ='F_Inputs BP'!B24 -> CW3_134TOT_PR24 | C20: ='F_Inputs BP'!C24 -> Other enhancement (Freeform lines - by exception) - Additional line 3; enhancement water capex - Total | D20: ='F_Inputs BP'!D24 -> £m | E20: ='F_Inputs BP'!E24 -> Price Review 2024
A21: ='F_Inputs BP'!A25 -> WSH | B21: ='F_Inputs BP'!B25 -> CW3_135TOT_PR24 | C21: ='F_Inputs BP'!C25 -> Other enhancement (Freeform lines - by exception) - Additional line 3; enhancement water opex - Total | D21: ='F_Inputs BP'!D25 -> £m | E21: ='F_Inputs BP'!E25 -> Price Review 2024
A22: ='F_Inputs BP'!A26 -> WSH | B22: ='F_Inputs BP'!B26 -> CW3_136TOT_PR24 | C22: ='F_Inputs BP'!C26 -> Other enhancement (Freeform lines - by exception) - Additional line 4; enhancement water capex - Total | D22: ='F_Inputs BP'!D26 -> £m | E22: ='F_Inputs BP'!E26 -> Price Review 2024
A23: ='F_Inputs BP'!A27 -> WSH | B23: ='F_Inputs BP'!B27 -> CW3_137TOT_PR24 | C23: ='F_Inputs BP'!C27 -> Other enhancement (Freeform lines - by exception) - Additional line 4; enhancement water opex - Total | D23: ='F_Inputs BP'!D27 -> £m | E23: ='F_Inputs BP'!E27 -> Price Review 2024
A24: ='F_Inputs BP'!A28 -> WSH | B24: ='F_Inputs BP'!B28 -> CW3_138TOT_PR24 | C24: ='F_Inputs BP'!C28 -> Other enhancement (Freeform lines - by exception) - Additional line 5; enhancement water capex - Total | D24: ='F_Inputs BP'!D28 -> £m | E24: ='F_Inputs BP'!E28 -> Price Review 2024
A25: ='F_Inputs BP'!A29 -> WSH | B25: ='F_Inputs BP'!B29 -> CW3_139TOT_PR24 | C25: ='F_Inputs BP'!C29 -> Other enhancement (Freeform lines - by exception) - Additional line 5; enhancement water opex - Total | D25: ='F_Inputs BP'!D29 -> £m | E25: ='F_Inputs BP'!E29 -> Price Review 2024
A26: ='F_Inputs BP'!A30 -> WSH | B26: ='F_Inputs BP'!B30 -> CW1A_015TOT_PR24 | C26: ='F_Inputs BP'!C30 -> Net totex - Total | D26: ='F_Inputs BP'!D30 -> £m | E26: ='F_Inputs BP'!E30 -> Price Review 2024
A27: ='F_Inputs BP'!A31 -> HDD | B27: ='F_Inputs BP'!B31 -> CW3_130TOT_PR24 | C27: ='F_Inputs BP'!C31 -> Other enhancement (Freeform lines - by exception) - Additional line 1; enhancement water capex - Total | D27: ='F_Inputs BP'!D31 -> £m | E27: ='F_Inputs BP'!E31 -> Price Review 2024
A28: ='F_Inputs BP'!A32 -> HDD | B28: ='F_Inputs BP'!B32 -> CW3_131TOT_PR24 | C28: ='F_Inputs BP'!C32 -> Other enhancement (Freeform lines - by exception) - Additional line 1; enhancement water opex - Total | D28: ='F_Inputs BP'!D32 -> £m | E28: ='F_Inputs BP'!E32 -> Price Review 2024
A29: ='F_Inputs BP'!A33 -> HDD | B29: ='F_Inputs BP'!B33 -> CW3_132TOT_PR24 | C29: ='F_Inputs BP'!C33 -> Other enhancement (Freeform lines - by exception) - Additional line 2; enhancement water capex - Total | D29: ='F_Inputs BP'!D33 -> £m | E29: ='F_Inputs BP'!E33 -> Price Review 2024
A30: ='F_Inputs BP'!A34 -> HDD | B30: ='F_Inputs BP'!B34 -> CW3_133TOT_PR24 | C30: ='F_Inputs BP'!C34 -> Other enhancement (Freeform lines - by exception) - Additional line 2; enhancement water opex - Total | D30: ='F_Inputs BP'!D34 -> £m | E30: ='F_Inputs BP'!E34 -> Price Review 2024
A31: ='F_Inputs BP'!A35 -> HDD | B31: ='F_Inputs BP'!B35 -> CW3_134TOT_PR24 | C31: ='F_Inputs BP'!C35 -> Other enhancement (Freeform lines - by exception) - Additional line 3; enhancement water capex - Total | D31: ='F_Inputs BP'!D35 -> £m | E31: ='F_Inputs BP'!E35 -> Price Review 2024
A32: ='F_Inputs BP'!A36 -> HDD | B32: ='F_Inputs BP'!B36 -> CW3_135TOT_PR24 | C32: ='F_Inputs BP'!C36 -> Other enhancement (Freeform lines - by exception) - Additional line 3; enhancement water opex - Total | D32: ='F_Inputs BP'!D36 -> £m | E32: ='F_Inputs BP'!E36 -> Price Review 2024
A33: ='F_Inputs BP'!A37 -> HDD | B33: ='F_Inputs BP'!B37 -> CW3_136TOT_PR24 | C33: ='F_Inputs BP'!C37 -> Other enhancement (Freeform lines - by exception) - Additional line 4; enhancement water capex - Total | D33: ='F_Inputs BP'!D37 -> £m | E33: ='F_Inputs BP'!E37 -> Price Review 2024
A34: ='F_Inputs BP'!A38 -> HDD | B34: ='F_Inputs BP'!B38 -> CW3_137TOT_PR24 | C34: ='F_Inputs BP'!C38 -> Other enhancement (Freeform lines - by exception) - Additional line 4; enhancement water opex - Total | D34: ='F_Inputs BP'!D38 -> £m | E34: ='F_Inputs BP'!E38 -> Price Review 2024
A35: ='F_Inputs BP'!A39 -> HDD | B35: ='F_Inputs BP'!B39 -> CW3_138TOT_PR24 | C35: ='F_Inputs BP'!C39 -> Other enhancement (Freeform lines - by exception) - Additional line 5; enhancement water capex - Total | D35: ='F_Inputs BP'!D39 -> £m | E35: ='F_Inputs BP'!E39 -> Price Review 2024
A36: ='F_Inputs BP'!A40 -> HDD | B36: ='F_Inputs BP'!B40 -> CW3_139TOT_PR24 | C36: ='F_Inputs BP'!C40 -> Other enhancement (Freeform lines - by exception) - Additional line 5; enhancement water opex - Total | D36: ='F_Inputs BP'!D40 -> £m | E36: ='F_Inputs BP'!E40 -> Price Review 2024
A37: ='F_Inputs BP'!A41 -> HDD | B37: ='F_Inputs BP'!B41 -> CW1A_015TOT_PR24 | C37: ='F_Inputs BP'!C41 -> Net totex - Total | D37: ='F_Inputs BP'!D41 -> £m | E37: ='F_Inputs BP'!E41 -> Price Review 2024
A38: ='F_Inputs BP'!A42 -> NES | B38: ='F_Inputs BP'!B42 -> CW3_130TOT_PR24 | C38: ='F_Inputs BP'!C42 -> Other enhancement (Freeform lines - by exception) - Additional line 1; enhancement water capex - Total | D38: ='F_Inputs BP'!D42 -> £m | E38: ='F_Inputs BP'!E42 -> Price Review 2024
A39: ='F_Inputs BP'!A43 -> NES | B39: ='F_Inputs BP'!B43 -> CW3_131TOT_PR24 | C39: ='F_Inputs BP'!C43 -> Other enhancement (Freeform lines - by exception) - Additional line 1; enhancement water opex - Total | D39: ='F_Inputs BP'!D43 -> £m | E39: ='F_Inputs BP'!E43 -> Price Review 2024
A40: ='F_Inputs BP'!A44 -> NES | B40: ='F_Inputs BP'!B44 -> CW3_132TOT_PR24 | C40: ='F_Inputs BP'!C44 -> Other enhancement (Freeform lines - by exception) - Additional line 2; enhancement water capex - Total | D40: ='F_Inputs BP'!D44 -> £m | E40: ='F_Inputs BP'!E44 -> Price Review 2024
A41: ='F_Inputs BP'!A45 -> NES | B41: ='F_Inputs BP'!B45 -> CW3_133TOT_PR24 | C41: ='F_Inputs BP'!C45 -> Other enhancement (Freeform lines - by exception) - Additional line 2; enhancement water opex - Total | D41: ='F_Inputs BP'!D45 -> £m | E41: ='F_Inputs BP'!E45 -> Price Review 2024
A42: ='F_Inputs BP'!A46 -> NES | B42: ='F_Inputs BP'!B46 -> CW3_134TOT_PR24 | C42: ='F_Inputs BP'!C46 -> Other enhancement (Freeform lines - by exception) - Additional line 3; enhancement water capex - Total | D42: ='F_Inputs BP'!D46 -> £m | E42: ='F_Inputs BP'!E46 -> Price Review 2024
A43: ='F_Inputs BP'!A47 -> NES | B43: ='F_Inputs BP'!B47 -> CW3_135TOT_PR24 | C43: ='F_Inputs BP'!C47 -> Other enhancement (Freeform lines - by exception) - Additional line 3; enhancement water opex - Total | D43: ='F_Inputs BP'!D47 -> £m | E43: ='F_Inputs BP'!E47 -> Price Review 2024
A44: ='F_Inputs BP'!A48 -> NES | B44: ='F_Inputs BP'!B48 -> CW3_136TOT_PR24 | C44: ='F_Inputs BP'!C48 -> Other enhancement (Freeform lines - by exception) - Additional line 4; enhancement water capex - Total | D44: ='F_Inputs BP'!D48 -> £m | E44: ='F_Inputs BP'!E48 -> Price Review 2024
A45: ='F_Inputs BP'!A49 -> NES | B45: ='F_Inputs BP'!B49 -> CW3_137TOT_PR24 | C45: ='F_Inputs BP'!C49 -> Other enhancement (Freeform lines - by exception) - Additional line 4; enhancement water opex - Total | D45: ='F_Inputs BP'!D49 -> £m | E45: ='F_Inputs BP'!E49 -> Price Review 2024
A46: ='F_Inputs BP'!A50 -> NES | B46: ='F_Inputs BP'!B50 -> CW3_138TOT_PR24 | C46: ='F_Inputs BP'!C50 -> Other enhancement (Freeform lines - by exception) - Additional line 5; enhancement water capex - Total | D46: ='F_Inputs BP'!D50 -> £m | E46: ='F_Inputs BP'!E50 -> Price Review 2024
A47: ='F_Inputs BP'!A51 -> NES | B47: ='F_Inputs BP'!B51 -> CW3_139TOT_PR24 | C47: ='F_Inputs BP'!C51 -> Other enhancement (Freeform lines - by exception) - Additional line 5; enhancement water opex - Total | D47: ='F_Inputs BP'!D51 -> £m | E47: ='F_Inputs BP'!E51 -> Price Review 2024
A48: ='F_Inputs BP'!A52 -> NES | B48: ='F_Inputs BP'!B52 -> CW1A_015TOT_PR24 | C48: ='F_Inputs BP'!C52 -> Net totex - Total | D48: ='F_Inputs BP'!D52 -> £m | E48: ='F_Inputs BP'!E52 -> Price Review 2024
A49: ='F_Inputs BP'!A53 -> SVE | B49: ='F_Inputs BP'!B53 -> CW3_130TOT_PR24 | C49: ='F_Inputs BP'!C53 -> Other enhancement (Freeform lines - by exception) - Additional line 1; enhancement water capex - Total | D49: ='F_Inputs BP'!D53 -> £m | E49: ='F_Inputs BP'!E53 -> Price Review 2024
A50: ='F_Inputs BP'!A54 -> SVE | B50: ='F_Inputs BP'!B54 -> CW3_131TOT_PR24 | C50: ='F_Inputs BP'!C54 -> Other enhancement (Freeform lines - by exception) - Additional line 1; enhancement water opex - Total | D50: ='F_Inputs BP'!D54 -> £m | E50: ='F_Inputs BP'!E54 -> Price Review 2024
A51: ='F_Inputs BP'!A55 -> SVE | B51: ='F_Inputs BP'!B55 -> CW3_132TOT_PR24 | C51: ='F_Inputs BP'!C55 -> Other enhancement (Freeform lines - by exception) - Additional line 2; enhancement water capex - Total | D51: ='F_Inputs BP'!D55 -> £m | E51: ='F_Inputs BP'!E55 -> Price Review 2024
A52: ='F_Inputs BP'!A56 -> SVE | B52: ='F_Inputs BP'!B56 -> CW3_133TOT_PR24 | C52: ='F_Inputs BP'!C56 -> Other enhancement (Freeform lines - by exception) - Additional line 2; enhancement water opex - Total | D52: ='F_Inputs BP'!D56 -> £m | E52: ='F_Inputs BP'!E56 -> Price Review 2024
A53: ='F_Inputs BP'!A57 -> SVE | B53: ='F_Inputs BP'!B57 -> CW3_134TOT_PR24 | C53: ='F_Inputs BP'!C57 -> Other enhancement (Freeform lines - by exception) - Additional line 3; enhancement water capex - Total | D53: ='F_Inputs BP'!D57 -> £m | E53: ='F_Inputs BP'!E57 -> Price Review 2024
A54: ='F_Inputs BP'!A58 -> SVE | B54: ='F_Inputs BP'!B58 -> CW3_135TOT_PR24 | C54: ='F_Inputs BP'!C58 -> Other enhancement (Freeform lines - by exception) - Additional line 3; enhancement water opex - Total | D54: ='F_Inputs BP'!D58 -> £m | E54: ='F_Inputs BP'!E58 -> Price Review 2024
A55: ='F_Inputs BP'!A59 -> SVE | B55: ='F_Inputs BP'!B59 -> CW3_136TOT_PR24 | C55: ='F_Inputs BP'!C59 -> Other enhancement (Freeform lines - by exception) - Additional line 4; enhancement water capex - Total | D55: ='F_Inputs BP'!D59 -> £m | E55: ='F_Inputs BP'!E59 -> Price Review 2024
A56: ='F_Inputs BP'!A60 -> SVE | B56: ='F_Inputs BP'!B60 -> CW3_137TOT_PR24 | C56: ='F_Inputs BP'!C60 -> Other enhancement (Freeform lines - by exception) - Additional line 4; enhancement water opex - Total | D56: ='F_Inputs BP'!D60 -> £m | E56: ='F_Inputs BP'!E60 -> Price Review 2024
A57: ='F_Inputs BP'!A61 -> SVE | B57: ='F_Inputs BP'!B61 -> CW3_138TOT_PR24 | C57: ='F_Inputs BP'!C61 -> Other enhancement (Freeform lines - by exception) - Additional line 5; enhancement water capex - Total | D57: ='F_Inputs BP'!D61 -> £m | E57: ='F_Inputs BP'!E61 -> Price Review 2024
A58: ='F_Inputs BP'!A62 -> SVE | B58: ='F_Inputs BP'!B62 -> CW3_139TOT_PR24 | C58: ='F_Inputs BP'!C62 -> Other enhancement (Freeform lines - by exception) - Additional line 5; enhancement water opex - Total | D58: ='F_Inputs BP'!D62 -> £m | E58: ='F_Inputs BP'!E62 -> Price Review 2024
A59: ='F_Inputs BP'!A63 -> SVE | B59: ='F_Inputs BP'!B63 -> CW1A_015TOT_PR24 | C59: ='F_Inputs BP'!C63 -> Net totex - Total | D59: ='F_Inputs BP'!D63 -> £m | E59: ='F_Inputs BP'!E63 -> Price Review 2024
A60: ='F_Inputs BP'!A64 -> SWB | B60: ='F_Inputs BP'!B64 -> CW3_130TOT_PR24 | C60: ='F_Inputs BP'!C64 -> Other enhancement (Freeform lines - by exception) - Additional line 1; enhancement water capex - Total | D60: ='F_Inputs BP'!D64 -> £m | E60: ='F_Inputs BP'!E64 -> Price Review 2024
A61: ='F_Inputs BP'!A65 -> SWB | B61: ='F_Inputs BP'!B65 -> CW3_131TOT_PR24 | C61: ='F_Inputs BP'!C65 -> Other enhancement (Freeform lines - by exception) - Additional line 1; enhancement water opex - Total | D61: ='F_Inputs BP'!D65 -> £m | E61: ='F_Inputs BP'!E65 -> Price Review 2024
A62: ='F_Inputs BP'!A66 -> SWB | B62: ='F_Inputs BP'!B66 -> CW3_132TOT_PR24 | C62: ='F_Inputs BP'!C66 -> Other enhancement (Freeform lines - by exception) - Additional line 2; enhancement water capex - Total | D62: ='F_Inputs BP'!D66 -> £m | E62: ='F_Inputs BP'!E66 -> Price Review 2024
A63: ='F_Inputs BP'!A67 -> SWB | B63: ='F_Inputs BP'!B67 -> CW3_133TOT_PR24 | C63: ='F_Inputs BP'!C67 -> Other enhancement (Freeform lines - by exception) - Additional line 2; enhancement water opex - Total | D63: ='F_Inputs BP'!D67 -> £m | E63: ='F_Inputs BP'!E67 -> Price Review 2024
A64: ='F_Inputs BP'!A68 -> SWB | B64: ='F_Inputs BP'!B68 -> CW3_134TOT_PR24 | C64: ='F_Inputs BP'!C68 -> Other enhancement (Freeform lines - by exception) - Additional line 3; enhancement water capex - Total | D64: ='F_Inputs BP'!D68 -> £m | E64: ='F_Inputs BP'!E68 -> Price Review 2024
A65: ='F_Inputs BP'!A69 -> SWB | B65: ='F_Inputs BP'!B69 -> CW3_135TOT_PR24 | C65: ='F_Inputs BP'!C69 -> Other enhancement (Freeform lines - by exception) - Additional line 3; enhancement water opex - Total | D65: ='F_Inputs BP'!D69 -> £m | E65: ='F_Inputs BP'!E69 -> Price Review 2024
A66: ='F_Inputs BP'!A70 -> SWB | B66: ='F_Inputs BP'!B70 -> CW3_136TOT_PR24 | C66: ='F_Inputs BP'!C70 -> Other enhancement (Freeform lines - by exception) - Additional line 4; enhancement water capex - Total | D66: ='F_Inputs BP'!D70 -> £m | E66: ='F_Inputs BP'!E70 -> Price Review 2024
A67: ='F_Inputs BP'!A71 -> SWB | B67: ='F_Inputs BP'!B71 -> CW3_137TOT_PR24 | C67: ='F_Inputs BP'!C71 -> Other enhancement (Freeform lines - by exception) - Additional line 4; enhancement water opex - Total | D67: ='F_Inputs BP'!D71 -> £m | E67: ='F_Inputs BP'!E71 -> Price Review 2024
A68: ='F_Inputs BP'!A72 -> SWB | B68: ='F_Inputs BP'!B72 -> CW3_138TOT_PR24 | C68: ='F_Inputs BP'!C72 -> Other enhancement (Freeform lines - by exception) - Additional line 5; enhancement water capex - Total | D68: ='F_Inputs BP'!D72 -> £m | E68: ='F_Inputs BP'!E72 -> Price Review 2024
A69: ='F_Inputs BP'!A73 -> SWB | B69: ='F_Inputs BP'!B73 -> CW3_139TOT_PR24 | C69: ='F_Inputs BP'!C73 -> Other enhancement (Freeform lines - by exception) - Additional line 5; enhancement water opex - Total | D69: ='F_Inputs BP'!D73 -> £m | E69: ='F_Inputs BP'!E73 -> Price Review 2024
A70: ='F_Inputs BP'!A74 -> SWB | B70: ='F_Inputs BP'!B74 -> CW1A_015TOT_PR24 | C70: ='F_Inputs BP'!C74 -> Net totex - Total | D70: ='F_Inputs BP'!D74 -> £m | E70: ='F_Inputs BP'!E74 -> Price Review 2024
A71: ='F_Inputs BP'!A75 -> SRN | B71: ='F_Inputs BP'!B75 -> CW3_130TOT_PR24 | C71: ='F_Inputs BP'!C75 -> Other enhancement (Freeform lines - by exception) - Additional line 1; enhancement water capex - Total | D71: ='F_Inputs BP'!D75 -> £m | E71: ='F_Inputs BP'!E75 -> Price Review 2024
A72: ='F_Inputs BP'!A76 -> SRN | B72: ='F_Inputs BP'!B76 -> CW3_131TOT_PR24 | C72: ='F_Inputs BP'!C76 -> Other enhancement (Freeform lines - by exception) - Additional line 1; enhancement water opex - Total | D72: ='F_Inputs BP'!D76 -> £m | E72: ='F_Inputs BP'!E76 -> Price Review 2024
A73: ='F_Inputs BP'!A77 -> SRN | B73: ='F_Inputs BP'!B77 -> CW3_132TOT_PR24 | C73: ='F_Inputs BP'!C77 -> Other enhancement (Freeform lines - by exception) - Additional line 2; enhancement water capex - Total | D73: ='F_Inputs BP'!D77 -> £m | E73: ='F_Inputs BP'!E77 -> Price Review 2024
A74: ='F_Inputs BP'!A78 -> SRN | B74: ='F_Inputs BP'!B78 -> CW3_133TOT_PR24 | C74: ='F_Inputs BP'!C78 -> Other enhancement (Freeform lines - by exception) - Additional line 2; enhancement water opex - Total | D74: ='F_Inputs BP'!D78 -> £m | E74: ='F_Inputs BP'!E78 -> Price Review 2024
A75: ='F_Inputs BP'!A79 -> SRN | B75: ='F_Inputs BP'!B79 -> CW3_134TOT_PR24 | C75: ='F_Inputs BP'!C79 -> Other enhancement (Freeform lines - by exception) - Additional line 3; enhancement water capex - Total | D75: ='F_Inputs BP'!D79 -> £m | E75: ='F_Inputs BP'!E79 -> Price Review 2024
A76: ='F_Inputs BP'!A80 -> SRN | B76: ='F_Inputs BP'!B80 -> CW3_135TOT_PR24 | C76: ='F_Inputs BP'!C80 -> Other enhancement (Freeform lines - by exception) - Additional line 3; enhancement water opex - Total | D76: ='F_Inputs BP'!D80 -> £m | E76: ='F_Inputs BP'!E80 -> Price Review 2024
A77: ='F_Inputs BP'!A81 -> SRN | B77: ='F_Inputs BP'!B81 -> CW3_136TOT_PR24 | C77: ='F_Inputs BP'!C81 -> Other enhancement (Freeform lines - by exception) - Additional line 4; enhancement water capex - Total | D77: ='F_Inputs BP'!D81 -> £m | E77: ='F_Inputs BP'!E81 -> Price Review 2024
A78: ='F_Inputs BP'!A82 -> SRN | B78: ='F_Inputs BP'!B82 -> CW3_137TOT_PR24 | C78: ='F_Inputs BP'!C82 -> Other enhancement (Freeform lines - by exception) - Additional line 4; enhancement water opex - Total | D78: ='F_Inputs BP'!D82 -> £m | E78: ='F_Inputs BP'!E82 -> Price Review 2024
A79: ='F_Inputs BP'!A83 -> SRN | B79: ='F_Inputs BP'!B83 -> CW3_138TOT_PR24 | C79: ='F_Inputs BP'!C83 -> Other enhancement (Freeform lines - by exception) - Additional line 5; enhancement water capex - Total | D79: ='F_Inputs BP'!D83 -> £m | E79: ='F_Inputs BP'!E83 -> Price Review 2024
A80: ='F_Inputs BP'!A84 -> SRN | B80: ='F_Inputs BP'!B84 -> CW3_139TOT_PR24 | C80: ='F_Inputs BP'!C84 -> Other enhancement (Freeform lines - by exception) - Additional line 5; enhancement water opex - Total | D80: ='F_Inputs BP'!D84 -> £m | E80: ='F_Inputs BP'!E84 -> Price Review 2024
A81: ='F_Inputs BP'!A85 -> SRN | B81: ='F_Inputs BP'!B85 -> CW1A_015TOT_PR24 | C81: ='F_Inputs BP'!C85 -> Net totex - Total | D81: ='F_Inputs BP'!D85 -> £m | E81: ='F_Inputs BP'!E85 -> Price Review 2024
A82: ='F_Inputs BP'!A86 -> TMS | B82: ='F_Inputs BP'!B86 -> CW3_130TOT_PR24 | C82: ='F_Inputs BP'!C86 -> Other enhancement (Freeform lines - by exception) - Additional line 1; enhancement water capex - Total | D82: ='F_Inputs BP'!D86 -> £m | E82: ='F_Inputs BP'!E86 -> Price Review 2024
A83: ='F_Inputs BP'!A87 -> TMS | B83: ='F_Inputs BP'!B87 -> CW3_131TOT_PR24 | C83: ='F_Inputs BP'!C87 -> Other enhancement (Freeform lines - by exception) - Additional line 1; enhancement water opex - Total | D83: ='F_Inputs BP'!D87 -> £m | E83: ='F_Inputs BP'!E87 -> Price Review 2024
A84: ='F_Inputs BP'!A88 -> TMS | B84: ='F_Inputs BP'!B88 -> CW3_132TOT_PR24 | C84: ='F_Inputs BP'!C88 -> Other enhancement (Freeform lines - by exception) - Additional line 2; enhancement water capex - Total | D84: ='F_Inputs BP'!D88 -> £m | E84: ='F_Inputs BP'!E88 -> Price Review 2024
A85: ='F_Inputs BP'!A89 -> TMS | B85: ='F_Inputs BP'!B89 -> CW3_133TOT_PR24 | C85: ='F_Inputs BP'!C89 -> Other enhancement (Freeform lines - by exception) - Additional line 2; enhancement water opex - Total | D85: ='F_Inputs BP'!D89 -> £m | E85: ='F_Inputs BP'!E89 -> Price Review 2024
A86: ='F_Inputs BP'!A90 -> TMS | B86: ='F_Inputs BP'!B90 -> CW3_134TOT_PR24 | C86: ='F_Inputs BP'!C90 -> Other enhancement (Freeform lines - by exception) - Additional line 3; enhancement water capex - Total | D86: ='F_Inputs BP'!D90 -> £m | E86: ='F_Inputs BP'!E90 -> Price Review 2024
A87: ='F_Inputs BP'!A91 -> TMS | B87: ='F_Inputs BP'!B91 -> CW3_135TOT_PR24 | C87: ='F_Inputs BP'!C91 -> Other enhancement (Freeform lines - by exception) - Additional line 3; enhancement water opex - Total | D87: ='F_Inputs BP'!D91 -> £m | E87: ='F_Inputs BP'!E91 -> Price Review 2024
A88: ='F_Inputs BP'!A92 -> TMS | B88: ='F_Inputs BP'!B92 -> CW3_136TOT_PR24 | C88: ='F_Inputs BP'!C92 -> Other enhancement (Freeform lines - by exception) - Additional line 4; enhancement water capex - Total | D88: ='F_Inputs BP'!D92 -> £m | E88: ='F_Inputs BP'!E92 -> Price Review 2024
A89: ='F_Inputs BP'!A93 -> TMS | B89: ='F_Inputs BP'!B93 -> CW3_137TOT_PR24 | C89: ='F_Inputs BP'!C93 -> Other enhancement (Freeform lines - by exception) - Additional line 4; enhancement water opex - Total | D89: ='F_Inputs BP'!D93 -> £m | E89: ='F_Inputs BP'!E93 -> Price Review 2024
A90: ='F_Inputs BP'!A94 -> TMS | B90: ='F_Inputs BP'!B94 -> CW3_138TOT_PR24 | C90: ='F_Inputs BP'!C94 -> Other enhancement (Freeform lines - by exception) - Additional line 5; enhancement water capex - Total | D90: ='F_Inputs BP'!D94 -> £m | E90: ='F_Inputs BP'!E94 -> Price Review 2024
A91: ='F_Inputs BP'!A95 -> TMS | B91: ='F_Inputs BP'!B95 -> CW3_139TOT_PR24 | C91: ='F_Inputs BP'!C95 -> Other enhancement (Freeform lines - by exception) - Additional line 5; enhancement water opex - Total | D91: ='F_Inputs BP'!D95 -> £m | E91: ='F_Inputs BP'!E95 -> Price Review 2024
A92: ='F_Inputs BP'!A96 -> TMS | B92: ='F_Inputs BP'!B96 -> CW1A_015TOT_PR24 | C92: ='F_Inputs BP'!C96 -> Net totex - Total | D92: ='F_Inputs BP'!D96 -> £m | E92: ='F_Inputs BP'!E96 -> Price Review 2024
A93: ='F_Inputs BP'!A97 -> NWT | B93: ='F_Inputs BP'!B97 -> CW3_130TOT_PR24 | C93: ='F_Inputs BP'!C97 -> Other enhancement (Freeform lines - by exception) - Additional line 1; enhancement water capex - Total | D93: ='F_Inputs BP'!D97 -> £m | E93: ='F_Inputs BP'!E97 -> Price Review 2024
A94: ='F_Inputs BP'!A98 -> NWT | B94: ='F_Inputs BP'!B98 -> CW3_131TOT_PR24 | C94: ='F_Inputs BP'!C98 -> Other enhancement (Freeform lines - by exception) - Additional line 1; enhancement water opex - Total | D94: ='F_Inputs BP'!D98 -> £m | E94: ='F_Inputs BP'!E98 -> Price Review 2024
A95: ='F_Inputs BP'!A99 -> NWT | B95: ='F_Inputs BP'!B99 -> CW3_132TOT_PR24 | C95: ='F_Inputs BP'!C99 -> Other enhancement (Freeform lines - by exception) - Additional line 2; enhancement water capex - Total | D95: ='F_Inputs BP'!D99 -> £m | E95: ='F_Inputs BP'!E99 -> Price Review 2024
A96: ='F_Inputs BP'!A100 -> NWT | B96: ='F_Inputs BP'!B100 -> CW3_133TOT_PR24 | C96: ='F_Inputs BP'!C100 -> Other enhancement (Freeform lines - by exception) - Additional line 2; enhancement water opex - Total | D96: ='F_Inputs BP'!D100 -> £m | E96: ='F_Inputs BP'!E100 -> Price Review 2024
A97: ='F_Inputs BP'!A101 -> NWT | B97: ='F_Inputs BP'!B101 -> CW3_134TOT_PR24 | C97: ='F_Inputs BP'!C101 -> Other enhancement (Freeform lines - by exception) - Additional line 3; enhancement water capex - Total | D97: ='F_Inputs BP'!D101 -> £m | E97: ='F_Inputs BP'!E101 -> Price Review 2024
A98: ='F_Inputs BP'!A102 -> NWT | B98: ='F_Inputs BP'!B102 -> CW3_135TOT_PR24 | C98: ='F_Inputs BP'!C102 -> Other enhancement (Freeform lines - by exception) - Additional line 3; enhancement water opex - Total | D98: ='F_Inputs BP'!D102 -> £m | E98: ='F_Inputs BP'!E102 -> Price Review 2024
A99: ='F_Inputs BP'!A103 -> NWT | B99: ='F_Inputs BP'!B103 -> CW3_136TOT_PR24 | C99: ='F_Inputs BP'!C103 -> Other enhancement (Freeform lines - by exception) - Additional line 4; enhancement water capex - Total | D99: ='F_Inputs BP'!D103 -> £m | E99: ='F_Inputs BP'!E103 -> Price Review 2024
A100: ='F_Inputs BP'!A104 -> NWT | B100: ='F_Inputs BP'!B104 -> CW3_137TOT_PR24 | C100: ='F_Inputs BP'!C104 -> Other enhancement (Freeform lines - by exception) - Additional line 4; enhancement water opex - Total | D100: ='F_Inputs BP'!D104 -> £m | E100: ='F_Inputs BP'!E104 -> Price Review 2024
A101: ='F_Inputs BP'!A105 -> NWT | B101: ='F_Inputs BP'!B105 -> CW3_138TOT_PR24 | C101: ='F_Inputs BP'!C105 -> Other enhancement (Freeform lines - by exception) - Additional line 5; enhancement water capex - Total | D101: ='F_Inputs BP'!D105 -> £m | E101: ='F_Inputs BP'!E105 -> Price Review 2024
A102: ='F_Inputs BP'!A106 -> NWT | B102: ='F_Inputs BP'!B106 -> CW3_139TOT_PR24 | C102: ='F_Inputs BP'!C106 -> Other enhancement (Freeform lines - by exception) - Additional line 5; enhancement water opex - Total | D102: ='F_Inputs BP'!D106 -> £m | E102: ='F_Inputs BP'!E106 -> Price Review 2024
A103: ='F_Inputs BP'!A107 -> NWT | B103: ='F_Inputs BP'!B107 -> CW1A_015TOT_PR24 | C103: ='F_Inputs BP'!C107 -> Net totex - Total | D103: ='F_Inputs BP'!D107 -> £m | E103: ='F_Inputs BP'!E107 -> Price Review 2024
A104: ='F_Inputs BP'!A108 -> WSX | B104: ='F_Inputs BP'!B108 -> CW3_130TOT_PR24 | C104: ='F_Inputs BP'!C108 -> Other enhancement (Freeform lines - by exception) - Additional line 1; enhancement water capex - Total | D104: ='F_Inputs BP'!D108 -> £m | E104: ='F_Inputs BP'!E108 -> Price Review 2024
A105: ='F_Inputs BP'!A109 -> WSX | B105: ='F_Inputs BP'!B109 -> CW3_131TOT_PR24 | C105: ='F_Inputs BP'!C109 -> Other enhancement (Freeform lines - by exception) - Additional line 1; enhancement water opex - Total | D105: ='F_Inputs BP'!D109 -> £m | E105: ='F_Inputs BP'!E109 -> Price Review 2024
A106: ='F_Inputs BP'!A110 -> WSX | B106: ='F_Inputs BP'!B110 -> CW3_132TOT_PR24 | C106: ='F_Inputs BP'!C110 -> Other enhancement (Freeform lines - by exception) - Additional line 2; enhancement water capex - Total | D106: ='F_Inputs BP'!D110 -> £m | E106: ='F_Inputs BP'!E110 -> Price Review 2024
A107: ='F_Inputs BP'!A111 -> WSX | B107: ='F_Inputs BP'!B111 -> CW3_133TOT_PR24 | C107: ='F_Inputs BP'!C111 -> Other enhancement (Freeform lines - by exception) - Additional line 2; enhancement water opex - Total | D107: ='F_Inputs BP'!D111 -> £m | E107: ='F_Inputs BP'!E111 -> Price Review 2024
A108: ='F_Inputs BP'!A112 -> WSX | B108: ='F_Inputs BP'!B112 -> CW3_134TOT_PR24 | C108: ='F_Inputs BP'!C112 -> Other enhancement (Freeform lines - by exception) - Additional line 3; enhancement water capex - Total | D108: ='F_Inputs BP'!D112 -> £m | E108: ='F_Inputs BP'!E112 -> Price Review 2024
A109: ='F_Inputs BP'!A113 -> WSX | B109: ='F_Inputs BP'!B113 -> CW3_135TOT_PR24 | C109: ='F_Inputs BP'!C113 -> Other enhancement (Freeform lines - by exception) - Additional line 3; enhancement water opex - Total | D109: ='F_Inputs BP'!D113 -> £m | E109: ='F_Inputs BP'!E113 -> Price Review 2024
A110: ='F_Inputs BP'!A114 -> WSX | B110: ='F_Inputs BP'!B114 -> CW3_136TOT_PR24 | C110: ='F_Inputs BP'!C114 -> Other enhancement (Freeform lines - by exception) - Additional line 4; enhancement water capex - Total | D110: ='F_Inputs BP'!D114 -> £m | E110: ='F_Inputs BP'!E114 -> Price Review 2024
A111: ='F_Inputs BP'!A115 -> WSX | B111: ='F_Inputs BP'!B115 -> CW3_137TOT_PR24 | C111: ='F_Inputs BP'!C115 -> Other enhancement (Freeform lines - by exception) - Additional line 4; enhancement water opex - Total | D111: ='F_Inputs BP'!D115 -> £m | E111: ='F_Inputs BP'!E115 -> Price Review 2024
A112: ='F_Inputs BP'!A116 -> WSX | B112: ='F_Inputs BP'!B116 -> CW3_138TOT_PR24 | C112: ='F_Inputs BP'!C116 -> Other enhancement (Freeform lines - by exception) - Additional line 5; enhancement water capex - Total | D112: ='F_Inputs BP'!D116 -> £m | E112: ='F_Inputs BP'!E116 -> Price Review 2024
A113: ='F_Inputs BP'!A117 -> WSX | B113: ='F_Inputs BP'!B117 -> CW3_139TOT_PR24 | C113: ='F_Inputs BP'!C117 -> Other enhancement (Freeform lines - by exception) - Additional line 5; enhancement water opex - Total | D113: ='F_Inputs BP'!D117 -> £m | E113: ='F_Inputs BP'!E117 -> Price Review 2024
A114: ='F_Inputs BP'!A118 -> WSX | B114: ='F_Inputs BP'!B118 -> CW1A_015TOT_PR24 | C114: ='F_Inputs BP'!C118 -> Net totex - Total | D114: ='F_Inputs BP'!D118 -> £m | E114: ='F_Inputs BP'!E118 -> Price Review 2024
A115: ='F_Inputs BP'!A119 -> YKY | B115: ='F_Inputs BP'!B119 -> CW3_130TOT_PR24 | C115: ='F_Inputs BP'!C119 -> Other enhancement (Freeform lines - by exception) - Additional line 1; enhancement water capex - Total | D115: ='F_Inputs BP'!D119 -> £m | E115: ='F_Inputs BP'!E119 -> Price Review 2024
A116: ='F_Inputs BP'!A120 -> YKY | B116: ='F_Inputs BP'!B120 -> CW3_131TOT_PR24 | C116: ='F_Inputs BP'!C120 -> Other enhancement (Freeform lines - by exception) - Additional line 1; enhancement water opex - Total | D116: ='F_Inputs BP'!D120 -> £m | E116: ='F_Inputs BP'!E120 -> Price Review 2024
A117: ='F_Inputs BP'!A121 -> YKY | B117: ='F_Inputs BP'!B121 -> CW3_132TOT_PR24 | C117: ='F_Inputs BP'!C121 -> Other enhancement (Freeform lines - by exception) - Additional line 2; enhancement water capex - Total | D117: ='F_Inputs BP'!D121 -> £m | E117: ='F_Inputs BP'!E121 -> Price Review 2024
A118: ='F_Inputs BP'!A122 -> YKY | B118: ='F_Inputs BP'!B122 -> CW3_133TOT_PR24 | C118: ='F_Inputs BP'!C122 -> Other enhancement (Freeform lines - by exception) - Additional line 2; enhancement water opex - Total | D118: ='F_Inputs BP'!D122 -> £m | E118: ='F_Inputs BP'!E122 -> Price Review 2024
A119: ='F_Inputs BP'!A123 -> YKY | B119: ='F_Inputs BP'!B123 -> CW3_134TOT_PR24 | C119: ='F_Inputs BP'!C123 -> Other enhancement (Freeform lines - by exception) - Additional line 3; enhancement water capex - Total | D119: ='F_Inputs BP'!D123 -> £m | E119: ='F_Inputs BP'!E123 -> Price Review 2024
A120: ='F_Inputs BP'!A124 -> YKY | B120: ='F_Inputs BP'!B124 -> CW3_135TOT_PR24 | C120: ='F_Inputs BP'!C124 -> Other enhancement (Freeform lines - by exception) - Additional line 3; enhancement water opex - Total | D120: ='F_Inputs BP'!D124 -> £m | E120: ='F_Inputs BP'!E124 -> Price Review 2024
A121: ='F_Inputs BP'!A125 -> YKY | B121: ='F_Inputs BP'!B125 -> CW3_136TOT_PR24 | C121: ='F_Inputs BP'!C125 -> Other enhancement (Freeform lines - by exception) - Additional line 4; enhancement water capex - Total | D121: ='F_Inputs BP'!D125 -> £m | E121: ='F_Inputs BP'!E125 -> Price Review 2024
A122: ='F_Inputs BP'!A126 -> YKY | B122: ='F_Inputs BP'!B126 -> CW3_137TOT_PR24 | C122: ='F_Inputs BP'!C126 -> Other enhancement (Freeform lines - by exception) - Additional line 4; enhancement water opex - Total | D122: ='F_Inputs BP'!D126 -> £m | E122: ='F_Inputs BP'!E126 -> Price Review 2024
A123: ='F_Inputs BP'!A127 -> YKY | B123: ='F_Inputs BP'!B127 -> CW3_138TOT_PR24 | C123: ='F_Inputs BP'!C127 -> Other enhancement (Freeform lines - by exception) - Additional line 5; enhancement water capex - Total | D123: ='F_Inputs BP'!D127 -> £m | E123: ='F_Inputs BP'!E127 -> Price Review 2024
A124: ='F_Inputs BP'!A128 -> YKY | B124: ='F_Inputs BP'!B128 -> CW3_139TOT_PR24 | C124: ='F_Inputs BP'!C128 -> Other enhancement (Freeform lines - by exception) - Additional line 5; enhancement water opex - Total | D124: ='F_Inputs BP'!D128 -> £m | E124: ='F_Inputs BP'!E128 -> Price Review 2024
A125: ='F_Inputs BP'!A129 -> YKY | B125: ='F_Inputs BP'!B129 -> CW1A_015TOT_PR24 | C125: ='F_Inputs BP'!C129 -> Net totex - Total | D125: ='F_Inputs BP'!D129 -> £m | E125: ='F_Inputs BP'!E129 -> Price Review 2024
A126: ='F_Inputs BP'!A130 -> AFW | B126: ='F_Inputs BP'!B130 -> CW3_130TOT_PR24 | C126: ='F_Inputs BP'!C130 -> Other enhancement (Freeform lines - by exception) - Additional line 1; enhancement water capex - Total | D126: ='F_Inputs BP'!D130 -> £m | E126: ='F_Inputs BP'!E130 -> Price Review 2024
A127: ='F_Inputs BP'!A131 -> AFW | B127: ='F_Inputs BP'!B131 -> CW3_131TOT_PR24 | C127: ='F_Inputs BP'!C131 -> Other enhancement (Freeform lines - by exception) - Additional line 1; enhancement water opex - Total | D127: ='F_Inputs BP'!D131 -> £m | E127: ='F_Inputs BP'!E131 -> Price Review 2024
A128: ='F_Inputs BP'!A132 -> AFW | B128: ='F_Inputs BP'!B132 -> CW3_132TOT_PR24 | C128: ='F_Inputs BP'!C132 -> Other enhancement (Freeform lines - by exception) - Additional line 2; enhancement water capex - Total | D128: ='F_Inputs BP'!D132 -> £m | E128: ='F_Inputs BP'!E132 -> Price Review 2024
A129: ='F_Inputs BP'!A133 -> AFW | B129: ='F_Inputs BP'!B133 -> CW3_133TOT_PR24 | C129: ='F_Inputs BP'!C133 -> Other enhancement (Freeform lines - by exception) - Additional line 2; enhancement water opex - Total | D129: ='F_Inputs BP'!D133 -> £m | E129: ='F_Inputs BP'!E133 -> Price Review 2024
A130: ='F_Inputs BP'!A134 -> AFW | B130: ='F_Inputs BP'!B134 -> CW3_134TOT_PR24 | C130: ='F_Inputs BP'!C134 -> Other enhancement (Freeform lines - by exception) - Additional line 3; enhancement water capex - Total | D130: ='F_Inputs BP'!D134 -> £m | E130: ='F_Inputs BP'!E134 -> Price Review 2024
A131: ='F_Inputs BP'!A135 -> AFW | B131: ='F_Inputs BP'!B135 -> CW3_135TOT_PR24 | C131: ='F_Inputs BP'!C135 -> Other enhancement (Freeform lines - by exception) - Additional line 3; enhancement water opex - Total | D131: ='F_Inputs BP'!D135 -> £m | E131: ='F_Inputs BP'!E135 -> Price Review 2024
A132: ='F_Inputs BP'!A136 -> AFW | B132: ='F_Inputs BP'!B136 -> CW3_136TOT_PR24 | C132: ='F_Inputs BP'!C136 -> Other enhancement (Freeform lines - by exception) - Additional line 4; enhancement water capex - Total | D132: ='F_Inputs BP'!D136 -> £m | E132: ='F_Inputs BP'!E136 -> Price Review 2024
A133: ='F_Inputs BP'!A137 -> AFW | B133: ='F_Inputs BP'!B137 -> CW3_137TOT_PR24 | C133: ='F_Inputs BP'!C137 -> Other enhancement (Freeform lines - by exception) - Additional line 4; enhancement water opex - Total | D133: ='F_Inputs BP'!D137 -> £m | E133: ='F_Inputs BP'!E137 -> Price Review 2024
A134: ='F_Inputs BP'!A138 -> AFW | B134: ='F_Inputs BP'!B138 -> CW3_138TOT_PR24 | C134: ='F_Inputs BP'!C138 -> Other enhancement (Freeform lines - by exception) - Additional line 5; enhancement water capex - Total | D134: ='F_Inputs BP'!D138 -> £m | E134: ='F_Inputs BP'!E138 -> Price Review 2024
A135: ='F_Inputs BP'!A139 -> AFW | B135: ='F_Inputs BP'!B139 -> CW3_139TOT_PR24 | C135: ='F_Inputs BP'!C139 -> Other enhancement (Freeform lines - by exception) - Additional line 5; enhancement water opex - Total | D135: ='F_Inputs BP'!D139 -> £m | E135: ='F_Inputs BP'!E139 -> Price Review 2024
A136: ='F_Inputs BP'!A140 -> AFW | B136: ='F_Inputs BP'!B140 -> CW1A_015TOT_PR24 | C136: ='F_Inputs BP'!C140 -> Net totex - Total | D136: ='F_Inputs BP'!D140 -> £m | E136: ='F_Inputs BP'!E140 -> Price Review 2024
A137: ='F_Inputs BP'!A141 -> BRL | B137: ='F_Inputs BP'!B141 -> CW3_130TOT_PR24 | C137: ='F_Inputs BP'!C141 -> Other enhancement (Freeform lines - by exception) - Additional line 1; enhancement water capex - Total | D137: ='F_Inputs BP'!D141 -> £m | E137: ='F_Inputs BP'!E141 -> Price Review 2024
A138: ='F_Inputs BP'!A142 -> BRL | B138: ='F_Inputs BP'!B142 -> CW3_131TOT_PR24 | C138: ='F_Inputs BP'!C142 -> Other enhancement (Freeform lines - by exception) - Additional line 1; enhancement water opex - Total | D138: ='F_Inputs BP'!D142 -> £m | E138: ='F_Inputs BP'!E142 -> Price Review 2024
A139: ='F_Inputs BP'!A143 -> BRL | B139: ='F_Inputs BP'!B143 -> CW3_132TOT_PR24 | C139: ='F_Inputs BP'!C143 -> Other enhancement (Freeform lines - by exception) - Additional line 2; enhancement water capex - Total | D139: ='F_Inputs BP'!D143 -> £m | E139: ='F_Inputs BP'!E143 -> Price Review 2024
A140: ='F_Inputs BP'!A144 -> BRL | B140: ='F_Inputs BP'!B144 -> CW3_133TOT_PR24 | C140: ='F_Inputs BP'!C144 -> Other enhancement (Freeform lines - by exception) - Additional line 2; enhancement water opex - Total | D140: ='F_Inputs BP'!D144 -> £m | E140: ='F_Inputs BP'!E144 -> Price Review 2024
A141: ='F_Inputs BP'!A145 -> BRL | B141: ='F_Inputs BP'!B145 -> CW3_134TOT_PR24 | C141: ='F_Inputs BP'!C145 -> Other enhancement (Freeform lines - by exception) - Additional line 3; enhancement water capex - Total | D141: ='F_Inputs BP'!D145 -> £m | E141: ='F_Inputs BP'!E145 -> Price Review 2024
A142: ='F_Inputs BP'!A146 -> BRL | B142: ='F_Inputs BP'!B146 -> CW3_135TOT_PR24 | C142: ='F_Inputs BP'!C146 -> Other enhancement (Freeform lines - by exception) - Additional line 3; enhancement water opex - Total | D142: ='F_Inputs BP'!D146 -> £m | E142: ='F_Inputs BP'!E146 -> Price Review 2024
A143: ='F_Inputs BP'!A147 -> BRL | B143: ='F_Inputs BP'!B147 -> CW3_136TOT_PR24 | C143: ='F_Inputs BP'!C147 -> Other enhancement (Freeform lines - by exception) - Additional line 4; enhancement water capex - Total | D143: ='F_Inputs BP'!D147 -> £m | E143: ='F_Inputs BP'!E147 -> Price Review 2024
A144: ='F_Inputs BP'!A148 -> BRL | B144: ='F_Inputs BP'!B148 -> CW3_137TOT_PR24 | C144: ='F_Inputs BP'!C148 -> Other enhancement (Freeform lines - by exception) - Additional line 4; enhancement water opex - Total | D144: ='F_Inputs BP'!D148 -> £m | E144: ='F_Inputs BP'!E148 -> Price Review 2024
A145: ='F_Inputs BP'!A149 -> BRL | B145: ='F_Inputs BP'!B149 -> CW3_138TOT_PR24 | C145: ='F_Inputs BP'!C149 -> Other enhancement (Freeform lines - by exception) - Additional line 5; enhancement water capex - Total | D145: ='F_Inputs BP'!D149 -> £m | E145: ='F_Inputs BP'!E149 -> Price Review 2024
A146: ='F_Inputs BP'!A150 -> BRL | B146: ='F_Inputs BP'!B150 -> CW3_139TOT_PR24 | C146: ='F_Inputs BP'!C150 -> Other enhancement (Freeform lines - by exception) - Additional line 5; enhancement water opex - Total | D146: ='F_Inputs BP'!D150 -> £m | E146: ='F_Inputs BP'!E150 -> Price Review 2024
A147: ='F_Inputs BP'!A151 -> BRL | B147: ='F_Inputs BP'!B151 -> CW1A_015TOT_PR24 | C147: ='F_Inputs BP'!C151 -> Net totex - Total | D147: ='F_Inputs BP'!D151 -> £m | E147: ='F_Inputs BP'!E151 -> Price Review 2024
A148: ='F_Inputs BP'!A152 -> PRT | B148: ='F_Inputs BP'!B152 -> CW3_130TOT_PR24 | C148: ='F_Inputs BP'!C152 -> Other enhancement (Freeform lines - by exception) - Additional line 1; enhancement water capex - Total | D148: ='F_Inputs BP'!D152 -> £m | E148: ='F_Inputs BP'!E152 -> Price Review 2024
A149: ='F_Inputs BP'!A153 -> PRT | B149: ='F_Inputs BP'!B153 -> CW3_131TOT_PR24 | C149: ='F_Inputs BP'!C153 -> Other enhancement (Freeform lines - by exception) - Additional line 1; enhancement water opex - Total | D149: ='F_Inputs BP'!D153 -> £m | E149: ='F_Inputs BP'!E153 -> Price Review 2024
A150: ='F_Inputs BP'!A154 -> PRT | B150: ='F_Inputs BP'!B154 -> CW3_132TOT_PR24 | C150: ='F_Inputs BP'!C154 -> Other enhancement (Freeform lines - by exception) - Additional line 2; enhancement water capex - Total | D150: ='F_Inputs BP'!D154 -> £m | E150: ='F_Inputs BP'!E154 -> Price Review 2024
A151: ='F_Inputs BP'!A155 -> PRT | B151: ='F_Inputs BP'!B155 -> CW3_133TOT_PR24 | C151: ='F_Inputs BP'!C155 -> Other enhancement (Freeform lines - by exception) - Additional line 2; enhancement water opex - Total | D151: ='F_Inputs BP'!D155 -> £m | E151: ='F_Inputs BP'!E155 -> Price Review 2024
A152: ='F_Inputs BP'!A156 -> PRT | B152: ='F_Inputs BP'!B156 -> CW3_134TOT_PR24 | C152: ='F_Inputs BP'!C156 -> Other enhancement (Freeform lines - by exception) - Additional line 3; enhancement water capex - Total | D152: ='F_Inputs BP'!D156 -> £m | E152: ='F_Inputs BP'!E156 -> Price Review 2024
A153: ='F_Inputs BP'!A157 -> PRT | B153: ='F_Inputs BP'!B157 -> CW3_135TOT_PR24 | C153: ='F_Inputs BP'!C157 -> Other enhancement (Freeform lines - by exception) - Additional line 3; enhancement water opex - Total | D153: ='F_Inputs BP'!D157 -> £m | E153: ='F_Inputs BP'!E157 -> Price Review 2024
A154: ='F_Inputs BP'!A158 -> PRT | B154: ='F_Inputs BP'!B158 -> CW3_136TOT_PR24 | C154: ='F_Inputs BP'!C158 -> Other enhancement (Freeform lines - by exception) - Additional line 4; enhancement water capex - Total | D154: ='F_Inputs BP'!D158 -> £m | E154: ='F_Inputs BP'!E158 -> Price Review 2024
A155: ='F_Inputs BP'!A159 -> PRT | B155: ='F_Inputs BP'!B159 -> CW3_137TOT_PR24 | C155: ='F_Inputs BP'!C159 -> Other enhancement (Freeform lines - by exception) - Additional line 4; enhancement water opex - Total | D155: ='F_Inputs BP'!D159 -> £m | E155: ='F_Inputs BP'!E159 -> Price Review 2024
A156: ='F_Inputs BP'!A160 -> PRT | B156: ='F_Inputs BP'!B160 -> CW3_138TOT_PR24 | C156: ='F_Inputs BP'!C160 -> Other enhancement (Freeform lines - by exception) - Additional line 5; enhancement water capex - Total | D156: ='F_Inputs BP'!D160 -> £m | E156: ='F_Inputs BP'!E160 -> Price Review 2024
A157: ='F_Inputs BP'!A161 -> PRT | B157: ='F_Inputs BP'!B161 -> CW3_139TOT_PR24 | C157: ='F_Inputs BP'!C161 -> Other enhancement (Freeform lines - by exception) - Additional line 5; enhancement water opex - Total | D157: ='F_Inputs BP'!D161 -> £m | E157: ='F_Inputs BP'!E161 -> Price Review 2024
A158: ='F_Inputs BP'!A162 -> PRT | B158: ='F_Inputs BP'!B162 -> CW1A_015TOT_PR24 | C158: ='F_Inputs BP'!C162 -> Net totex - Total | D158: ='F_Inputs BP'!D162 -> £m | E158: ='F_Inputs BP'!E162 -> Price Review 2024
A159: ='F_Inputs BP'!A163 -> SEW | B159: ='F_Inputs BP'!B163 -> CW3_130TOT_PR24 | C159: ='F_Inputs BP'!C163 -> Other enhancement (Freeform lines - by exception) - Additional line 1; enhancement water capex - Total | D159: ='F_Inputs BP'!D163 -> £m | E159: ='F_Inputs BP'!E163 -> Price Review 2024
A160: ='F_Inputs BP'!A164 -> SEW | B160: ='F_Inputs BP'!B164 -> CW3_131TOT_PR24 | C160: ='F_Inputs BP'!C164 -> Other enhancement (Freeform lines - by exception) - Additional line 1; enhancement water opex - Total | D160: ='F_Inputs BP'!D164 -> £m | E160: ='F_Inputs BP'!E164 -> Price Review 2024
A161: ='F_Inputs BP'!A165 -> SEW | B161: ='F_Inputs BP'!B165 -> CW3_132TOT_PR24 | C161: ='F_Inputs BP'!C165 -> Other enhancement (Freeform lines - by exception) - Additional line 2; enhancement water capex - Total | D161: ='F_Inputs BP'!D165 -> £m | E161: ='F_Inputs BP'!E165 -> Price Review 2024
A162: ='F_Inputs BP'!A166 -> SEW | B162: ='F_Inputs BP'!B166 -> CW3_133TOT_PR24 | C162: ='F_Inputs BP'!C166 -> Other enhancement (Freeform lines - by exception) - Additional line 2; enhancement water opex - Total | D162: ='F_Inputs BP'!D166 -> £m | E162: ='F_Inputs BP'!E166 -> Price Review 2024
A163: ='F_Inputs BP'!A167 -> SEW | B163: ='F_Inputs BP'!B167 -> CW3_134TOT_PR24 | C163: ='F_Inputs BP'!C167 -> Other enhancement (Freeform lines - by exception) - Additional line 3; enhancement water capex - Total | D163: ='F_Inputs BP'!D167 -> £m | E163: ='F_Inputs BP'!E167 -> Price Review 2024
A164: ='F_Inputs BP'!A168 -> SEW | B164: ='F_Inputs BP'!B168 -> CW3_135TOT_PR24 | C164: ='F_Inputs BP'!C168 -> Other enhancement (Freeform lines - by exception) - Additional line 3; enhancement water opex - Total | D164: ='F_Inputs BP'!D168 -> £m | E164: ='F_Inputs BP'!E168 -> Price Review 2024
A165: ='F_Inputs BP'!A169 -> SEW | B165: ='F_Inputs BP'!B169 -> CW3_136TOT_PR24 | C165: ='F_Inputs BP'!C169 -> Other enhancement (Freeform lines - by exception) - Additional line 4; enhancement water capex - Total | D165: ='F_Inputs BP'!D169 -> £m | E165: ='F_Inputs BP'!E169 -> Price Review 2024
A166: ='F_Inputs BP'!A170 -> SEW | B166: ='F_Inputs BP'!B170 -> CW3_137TOT_PR24 | C166: ='F_Inputs BP'!C170 -> Other enhancement (Freeform lines - by exception) - Additional line 4; enhancement water opex - Total | D166: ='F_Inputs BP'!D170 -> £m | E166: ='F_Inputs BP'!E170 -> Price Review 2024
A167: ='F_Inputs BP'!A171 -> SEW | B167: ='F_Inputs BP'!B171 -> CW3_138TOT_PR24 | C167: ='F_Inputs BP'!C171 -> Other enhancement (Freeform lines - by exception) - Additional line 5; enhancement water capex - Total | D167: ='F_Inputs BP'!D171 -> £m | E167: ='F_Inputs BP'!E171 -> Price Review 2024
A168: ='F_Inputs BP'!A172 -> SEW | B168: ='F_Inputs BP'!B172 -> CW3_139TOT_PR24 | C168: ='F_Inputs BP'!C172 -> Other enhancement (Freeform lines - by exception) - Additional line 5; enhancement water opex - Total | D168: ='F_Inputs BP'!D172 -> £m | E168: ='F_Inputs BP'!E172 -> Price Review 2024
A169: ='F_Inputs BP'!A173 -> SEW | B169: ='F_Inputs BP'!B173 -> CW1A_015TOT_PR24 | C169: ='F_Inputs BP'!C173 -> Net totex - Total | D169: ='F_Inputs BP'!D173 -> £m | E169: ='F_Inputs BP'!E173 -> Price Review 2024
A170: ='F_Inputs BP'!A174 -> SSC | B170: ='F_Inputs BP'!B174 -> CW3_130TOT_PR24 | C170: ='F_Inputs BP'!C174 -> Other enhancement (Freeform lines - by exception) - Additional line 1; enhancement water capex - Total | D170: ='F_Inputs BP'!D174 -> £m | E170: ='F_Inputs BP'!E174 -> Price Review 2024
A171: ='F_Inputs BP'!A175 -> SSC | B171: ='F_Inputs BP'!B175 -> CW3_131TOT_PR24 | C171: ='F_Inputs BP'!C175 -> Other enhancement (Freeform lines - by exception) - Additional line 1; enhancement water opex - Total | D171: ='F_Inputs BP'!D175 -> £m | E171: ='F_Inputs BP'!E175 -> Price Review 2024
A172: ='F_Inputs BP'!A176 -> SSC | B172: ='F_Inputs BP'!B176 -> CW3_132TOT_PR24 | C172: ='F_Inputs BP'!C176 -> Other enhancement (Freeform lines - by exception) - Additional line 2; enhancement water capex - Total | D172: ='F_Inputs BP'!D176 -> £m | E172: ='F_Inputs BP'!E176 -> Price Review 2024
A173: ='F_Inputs BP'!A177 -> SSC | B173: ='F_Inputs BP'!B177 -> CW3_133TOT_PR24 | C173: ='F_Inputs BP'!C177 -> Other enhancement (Freeform lines - by exception) - Additional line 2; enhancement water opex - Total | D173: ='F_Inputs BP'!D177 -> £m | E173: ='F_Inputs BP'!E177 -> Price Review 2024
A174: ='F_Inputs BP'!A178 -> SSC | B174: ='F_Inputs BP'!B178 -> CW3_134TOT_PR24 | C174: ='F_Inputs BP'!C178 -> Other enhancement (Freeform lines - by exception) - Additional line 3; enhancement water capex - Total | D174: ='F_Inputs BP'!D178 -> £m | E174: ='F_Inputs BP'!E178 -> Price Review 2024
A175: ='F_Inputs BP'!A179 -> SSC | B175: ='F_Inputs BP'!B179 -> CW3_135TOT_PR24 | C175: ='F_Inputs BP'!C179 -> Other enhancement (Freeform lines - by exception) - Additional line 3; enhancement water opex - Total | D175: ='F_Inputs BP'!D179 -> £m | E175: ='F_Inputs BP'!E179 -> Price Review 2024
A176: ='F_Inputs BP'!A180 -> SSC | B176: ='F_Inputs BP'!B180 -> CW3_136TOT_PR24 | C176: ='F_Inputs BP'!C180 -> Other enhancement (Freeform lines - by exception) - Additional line 4; enhancement water capex - Total | D176: ='F_Inputs BP'!D180 -> £m | E176: ='F_Inputs BP'!E180 -> Price Review 2024
A177: ='F_Inputs BP'!A181 -> SSC | B177: ='F_Inputs BP'!B181 -> CW3_137TOT_PR24 | C177: ='F_Inputs BP'!C181 -> Other enhancement (Freeform lines - by exception) - Additional line 4; enhancement water opex - Total | D177: ='F_Inputs BP'!D181 -> £m | E177: ='F_Inputs BP'!E181 -> Price Review 2024
A178: ='F_Inputs BP'!A182 -> SSC | B178: ='F_Inputs BP'!B182 -> CW3_138TOT_PR24 | C178: ='F_Inputs BP'!C182 -> Other enhancement (Freeform lines - by exception) - Additional line 5; enhancement water capex - Total | D178: ='F_Inputs BP'!D182 -> £m | E178: ='F_Inputs BP'!E182 -> Price Review 2024
A179: ='F_Inputs BP'!A183 -> SSC | B179: ='F_Inputs BP'!B183 -> CW3_139TOT_PR24 | C179: ='F_Inputs BP'!C183 -> Other enhancement (Freeform lines - by exception) - Additional line 5; enhancement water opex - Total | D179: ='F_Inputs BP'!D183 -> £m | E179: ='F_Inputs BP'!E183 -> Price Review 2024
A180: ='F_Inputs BP'!A184 -> SSC | B180: ='F_Inputs BP'!B184 -> CW1A_015TOT_PR24 | C180: ='F_Inputs BP'!C184 -> Net totex - Total | D180: ='F_Inputs BP'!D184 -> £m | E180: ='F_Inputs BP'!E184 -> Price Review 2024
A181: ='F_Inputs BP'!A185 -> SES | B181: ='F_Inputs BP'!B185 -> CW3_130TOT_PR24 | C181: ='F_Inputs BP'!C185 -> Other enhancement (Freeform lines - by exception) - Additional line 1; enhancement water capex - Total | D181: ='F_Inputs BP'!D185 -> £m | E181: ='F_Inputs BP'!E185 -> Price Review 2024
A182: ='F_Inputs BP'!A186 -> SES | B182: ='F_Inputs BP'!B186 -> CW3_131TOT_PR24 | C182: ='F_Inputs BP'!C186 -> Other enhancement (Freeform lines - by exception) - Additional line 1; enhancement water opex - Total | D182: ='F_Inputs BP'!D186 -> £m | E182: ='F_Inputs BP'!E186 -> Price Review 2024
A183: ='F_Inputs BP'!A187 -> SES | B183: ='F_Inputs BP'!B187 -> CW3_132TOT_PR24 | C183: ='F_Inputs BP'!C187 -> Other enhancement (Freeform lines - by exception) - Additional line 2; enhancement water capex - Total | D183: ='F_Inputs BP'!D187 -> £m | E183: ='F_Inputs BP'!E187 -> Price Review 2024
A184: ='F_Inputs BP'!A188 -> SES | B184: ='F_Inputs BP'!B188 -> CW3_133TOT_PR24 | C184: ='F_Inputs BP'!C188 -> Other enhancement (Freeform lines - by exception) - Additional line 2; enhancement water opex - Total | D184: ='F_Inputs BP'!D188 -> £m | E184: ='F_Inputs BP'!E188 -> Price Review 2024
A185: ='F_Inputs BP'!A189 -> SES | B185: ='F_Inputs BP'!B189 -> CW3_134TOT_PR24 | C185: ='F_Inputs BP'!C189 -> Other enhancement (Freeform lines - by exception) - Additional line 3; enhancement water capex - Total | D185: ='F_Inputs BP'!D189 -> £m | E185: ='F_Inputs BP'!E189 -> Price Review 2024
A186: ='F_Inputs BP'!A190 -> SES | B186: ='F_Inputs BP'!B190 -> CW3_135TOT_PR24 | C186: ='F_Inputs BP'!C190 -> Other enhancement (Freeform lines - by exception) - Additional line 3; enhancement water opex - Total | D186: ='F_Inputs BP'!D190 -> £m | E186: ='F_Inputs BP'!E190 -> Price Review 2024
A187: ='F_Inputs BP'!A191 -> SES | B187: ='F_Inputs BP'!B191 -> CW3_136TOT_PR24 | C187: ='F_Inputs BP'!C191 -> Other enhancement (Freeform lines - by exception) - Additional line 4; enhancement water capex - Total | D187: ='F_Inputs BP'!D191 -> £m | E187: ='F_Inputs BP'!E191 -> Price Review 2024
A188: ='F_Inputs BP'!A192 -> SES | B188: ='F_Inputs BP'!B192 -> CW3_137TOT_PR24 | C188: ='F_Inputs BP'!C192 -> Other enhancement (Freeform lines - by exception) - Additional line 4; enhancement water opex - Total | D188: ='F_Inputs BP'!D192 -> £m | E188: ='F_Inputs BP'!E192 -> Price Review 2024
A189: ='F_Inputs BP'!A193 -> SES | B189: ='F_Inputs BP'!B193 -> CW3_138TOT_PR24 | C189: ='F_Inputs BP'!C193 -> Other enhancement (Freeform lines - by exception) - Additional line 5; enhancement water capex - Total | D189: ='F_Inputs BP'!D193 -> £m | E189: ='F_Inputs BP'!E193 -> Price Review 2024
A190: ='F_Inputs BP'!A194 -> SES | B190: ='F_Inputs BP'!B194 -> CW3_139TOT_PR24 | C190: ='F_Inputs BP'!C194 -> Other enhancement (Freeform lines - by exception) - Additional line 5; enhancement water opex - Total | D190: ='F_Inputs BP'!D194 -> £m | E190: ='F_Inputs BP'!E194 -> Price Review 2024
A191: ='F_Inputs BP'!A195 -> SES | B191: ='F_Inputs BP'!B195 -> CW1A_015TOT_PR24 | C191: ='F_Inputs BP'!C195 -> Net totex - Total | D191: ='F_Inputs BP'!D195 -> £m | E191: ='F_Inputs BP'!E195 -> Price Review 2024

Sheet Final_Input
A1: =RIGHT(CELL("filename", $I$1), LEN(CELL("filename", $I$1)) - SEARCH("]", CELL("filename", $I$1))) -> 
A3: Acronym | B3: Reference | C3: Item description | D3: Unit | E3: Model | F3: 2025-26 | G3: 2026-27 | H3: 2027-28 | I3: 2028-29 | J3: 2029-30 | K3: Total
A4: ='F_Inputs BP'!A9 -> ANH | B4: ='F_Inputs BP'!B9 -> CW3_130TOT_PR24 | C4: ='F_Inputs BP'!C9 -> Other enhancement (Freeform lines - by exception) - Additional line 1; enhancement water capex - Total | D4: ='F_Inputs BP'!D9 -> £m | E4: ='F_Inputs BP'!E9 -> Price Review 2024 | F4: =IF('F_Input Override'!F5="",'Consolidated Inputs'!F5,('F_Input Override'!F5)) -> 0 | G4: =IF('F_Input Override'!G5="",'Consolidated Inputs'!G5,('F_Input Override'!G5)) -> 0 | H4: =IF('F_Input Override'!H5="",'Consolidated Inputs'!H5,('F_Input Override'!H5)) -> 0 | I4: =IF('F_Input Override'!I5="",'Consolidated Inputs'!I5,('F_Input Override'!I5)) -> 0 | J4: =IF('F_Input Override'!J5="",'Consolidated Inputs'!J5,('F_Input Override'!J5)) -> 0 | K4: =SUM(F4:J4) -> 0
A5: ='F_Inputs BP'!A10 -> ANH | B5: ='F_Inputs BP'!B10 -> CW3_131TOT_PR24 | C5: ='F_Inputs BP'!C10 -> Other enhancement (Freeform lines - by exception) - Additional line 1; enhancement water opex - Total | D5: ='F_Inputs BP'!D10 -> £m | E5: ='F_Inputs BP'!E10 -> Price Review 2024 | F5: =IF('F_Input Override'!F6="",'Consolidated Inputs'!F6,('F_Input Override'!F6)) -> 0 | G5: =IF('F_Input Override'!G6="",'Consolidated Inputs'!G6,('F_Input Override'!G6)) -> 0 | H5: =IF('F_Input Override'!H6="",'Consolidated Inputs'!H6,('F_Input Override'!H6)) -> 0 | I5: =IF('F_Input Override'!I6="",'Consolidated Inputs'!I6,('F_Input Override'!I6)) -> 0 | J5: =IF('F_Input Override'!J6="",'Consolidated Inputs'!J6,('F_Input Override'!J6)) -> 0 | K5: =SUM(F5:J5) -> 0
A6: ='F_Inputs BP'!A11 -> ANH | B6: ='F_Inputs BP'!B11 -> CW3_132TOT_PR24 | C6: ='F_Inputs BP'!C11 -> Other enhancement (Freeform lines - by exception) - Additional line 2; enhancement water capex - Total | D6: ='F_Inputs BP'!D11 -> £m | E6: ='F_Inputs BP'!E11 -> Price Review 2024 | F6: =IF('F_Input Override'!F7="",'Consolidated Inputs'!F7,('F_Input Override'!F7)) -> 0 | G6: =IF('F_Input Override'!G7="",'Consolidated Inputs'!G7,('F_Input Override'!G7)) -> 0 | H6: =IF('F_Input Override'!H7="",'Consolidated Inputs'!H7,('F_Input Override'!H7)) -> 0 | I6: =IF('F_Input Override'!I7="",'Consolidated Inputs'!I7,('F_Input Override'!I7)) -> 0 | J6: =IF('F_Input Override'!J7="",'Consolidated Inputs'!J7,('F_Input Override'!J7)) -> 0 | K6: 0
